Workbook

Sheet Instructions
I2: Validation - Croisement des tables
B3: Instructions:
A4: 1 | B4: Dupliquer votre modèle de détermination avant de passer aux étapes suivantes. | I4: Ovoltotrec | J4: Rapport GTYF | K4: Rapport ECONO
A5: 2 | B5: Coller les OUTPUTs ci-dessous dans votre modèle de détermination. | I5: =VLOOKUP("Ovoltotrec",Output!$C:$AM,8,FALSE) -> 699500 | J5: =VLOOKUP("OVOLTOTREC",GTYF!$C:$AQ,8,FALSE)=I5 -> TRUE | K5: =VLOOKUP("OVOLTOTREC",Econo!$C:$AQ,8,FALSE)=I5 -> TRUE
B6: Outputs pour Cahier_Détermination_2023
A7: 3 | B7: Ajouter l'agrégat FCIMPROD_SNAT au thème 5 de la section LANSCAPE de votre modèle et les courbes SNAT
B8: *AGGREGATE FCIMPROD_SNAT FCxxxx
A9: 4 | B9: Copier coller la syntaxe TARGET_GTYF_DET, TARGET_ECONO, TARGET AREA, TARGET DETAIL (voir plus bas) dans la section "Reports" du scénario de détermination.
B10: *TARGET GTYF_DET.dbf
B11: *TARGET_ECONO.dbf
B12: *TARGET AREA.dbf et *TARGET DETAIL.dbf
A13: 5 | B13: Insérer la syntaxe économique dans les sections Output, Lanscape, …
A14: 6 | B14: Compiler le scénario (Faire une fleche sur vos scénarios)
A15: 7 | B15: Ouvrir vos rapports Output, GTYF et ECONO directement de WS. Contrôle A --> Contrôle C
A16: 8 | B16: Copier/coller vos rapports Output, GTYF et ECONO dans les onglets appropriés. Attention de respecter le nombres de colonnes. Les onglets Output, GTYF et ECONO sont préformatés et contiennent des formules aux colonnes AM à AP.
A17: 9 | B17: Valider que la cellule I5 indique vrai lorsque vous aurez collé vos données dans les onglets "Output", "GTYF" et ÉCONO" pour s'assurer que les données proviennent de la même optimisation.
A18: 10 | B18: Utiliser le fichier DBF pour copier/coller votre calendrier de COS dans l'onglet Cedule_COS et y ajouter les COS absents (COS fermés ou toujours ouverts) et compléter leur calendrier par des "0" ou des "1".
A19: 11 | B19: Compléter toutes les cellules et onglets de couleur | D19: jaune
A20: 12 | B20: Notez que les tableaux 9, 10, 13, 15 et 17 ont des instructions particulières

Sheet Suivi_modif
B2: Modifications apportées au cahier:
B3: Version originale (v1) | C3: Version de départ | H3: Inclus ?
B4: Version modifiée 2 novembre 2021 (v2) | C4: Correction du calcul de % de sapin en P0 (cellule O9)
B5: Version modifiée 4 novembre 2021 (v3) | C5: Correction du % récolte volume sur pied destiné à l'aménagement (Tableau - CelluleV59)
B6: Version modifiée 4 novembre 2021 (v3) | C6: Correction des valideurs Vrai/Faux (Tableau - Cellule W101, W102, W103)
B7: Version modifiée 8 novembre 2021 (v4) | C7: Onglet "UTA" - Amélioration de la syntaxe des rechercheV
B8: Version modifiée 8 novembre 2021 (v4) | C8: Tableau 3 - ligne 50: changé la police de caractère pour du Arial
B9: Version modifiée 9 novembre 2021 (v5) | C9: Onglet "Target_ECONO": La syntaxe du rapport a été corrigée.
B10: Version modifiée 11 novembre 2021 (v6) | C10: Tableau 1 - Entente Crie - Correction pour considérer le code "EXEC" pour les UA avec Entente Crie | H10: non-intégrée car pas d'impact pour UA vague 3
B11: Version modifiée 15 novembre 2021 (v7) | C11: Tableau 3 - ligne 49 en caractère gras - ligne 51 en caractère normal | H11: OUI | I11: benan3 15/11/2021
B12: Version modifiée 19 novembre 2021 (v8) | C12: Tableau 9 - Dernière ligne du tableau effacée | H12: OUI | I12: benan3 19/11/2021
B13: Version modifiée 22 novembre 2021 (v9) | C13: Tableau 4 - Première colonne (ha/an) changé la mise en forme pour avoir des 0 ha/an au lieu de "-" Voir figure --> Format: Nombre - Utiliser séparateur de millier - sans décimales | H13: OUI | I13: benan3 22/11/2021
C14: Tableau 8 - Arrondi ajouté dans formules cellules G102 et G103 | H14: OUI | I14: Joufr3 25/11/2021
C15: Tableau 10 - format % dans la cellule H143 | H15: OUI | I15: benan3 8/12/2021
B17: Validation par CARMI5 2021-11-12
B19: 1. Validation des intrants, Somme des OUTPUT P0@P30 du cahier = Somme des OUTPUT P0@P30 du modèle :
B20: Onglet OUTPUT | C20: OK
B21: Onglet GTYF | C21: OK
B22: Onglet Econo | C22: OK
B23: 2. Validation des tableaux, Confrontation avec le cahier d'analyse de la détermination (BENAN) et le fichier de consignation
B24: Validation des catégories de superficie | C24: Ok | D24: Cahier BENAN
B25: Tableau 1 | C25: OK | D25: Cahier BENAN
B26: Tableau 3 | C26: OK | D26: Fichier consignation
B27: Tableau 4 | C27: OK | D27: Cahier BENAN
B28: Tableau 8 | C28: OK | D28: Fichier de consignation
B29: Tableau 9 | C29: OK | D29: Fonctionnement et affichage
B30: Tableau 10 | C30: OK | D30: Fichier de consignation
B31: Tableau 13 | C31: OK | D31: Écart sur le TOTAL <= 200, masque la ligne Pun gris et Mélezes car < 1%
B32: 3. Validation des figures, Confrontation avec le cahier d'analyse de la détermination (BENAN) et le fichier de consignation
B33: Figure 2 | C33: OK | D33: Fonctionnement et affichage
B34: Figure 3 | C34: OK | D34: Fonctionnement et affichage
B35: Figure 4 | C35: OK | D35: Fonctionnement et affichage
B36: Figure 5 | C36: OK | D36: Fonctionnement et affichage
B37: Figure 6 | C37: OK | D37: Fonctionnement et affichage
B38: Figure 7 | C38: OK | D38: Fonctionnement et affichage
B39: Figure 9b | C39: Non Conforme | D39: Fonctionnement et affichage. Apparence est différente du cahier de BENAN
B40: Figure 9c | C40: OK | D40: Fonctionnement et affichage. Apparence semblable au cahier de BENAN
B41: Figure 10a | C41: OK | D41: Fonctionnement et affichage. Apparence semblable au cahier de BENAN
B42: Figure 10c | C42: OK | D42: Fonctionnement et affichage
B43: Figure 11b | C43: OK | D43: Fonctionnement et affichage.
B44: Figure 14 | C44: OK | D44: Fonctionnement et affichage. Apparence semblable au cahier de BENAN
B45: Figure 15a | C45: Non Conforme | D45: Fonctionnement et affichage. Apparence est différente du cahier de BENAN
B46: Figure 19 | C46: OK | D46: Fonctionnement et affichage. Nombre d'UTR non conforme au modèle
B47: Figure 20 | C47: OK | D47: Fonctionnement et affichage.
B48: Figure 21 | C48: OK | D48: Fonctionnement et affichage.
B49: Figure 22 | C49: OK | D49: Fonctionnement et affichage.
B50: 4. Validation des UTA
B51: Conforme au nombre d'UTA du modèle | C51: OK

Sheet Tableaux
T1: Instructions : Compléter les cellules oranges | AB1: Avec l'utilisation de l'outil à Éric
B2: PROER1 : vous pouvez utiliser l'outil FoxPro pour compléter les cellules oranges : | T2: 1) Cellule V11 : Inscrire la superficie totale brute de la carte WS | AB2: 191176
B3: l'outil intérroge la carte Woodstock et met les valeurs dans un fichier Excel | T3: 2) Cellule V15 : Inscrire la superficie WS des GS RP1 et RP2 (ça ne devrait être que du EXEX et EXTI)
B4: interroge_carte_WS_pour cahier_analyse.FXP | T4: 3) Cellule V24 : Inscrire la superficie WS des GS RP3 à RP9 sur INC
B5: T:\Donnees\Courant\CPF_2023-2028\Comite_Vague_2\30_Phase1\32_Sce1\Outils | T5: 4) Cellule V25 : Inscrire la superficie WS des GS SNAT sur INC (qui ne sont pas des RP)
T6: 5) Cellules L20 à S21 : Inscrire la superficie de la carte WS pour chacune des cases oranges
B7: Catégories | I7: Superficie | Z7: Total | AA7: Sup_aff
I8: ha | J8: % | V8: Période | Z8: Total | AA8: Sup_empche
B9: Superficie totale du territoire d'analyse (EXHU exclu) | I9: =V11-V16 -> 190071.7 | J9: =IFERROR(I9/I9,"-") -> 1 | S9: =LEFT(B$25,10) -> Tableau 1. | T9: Output | U9: Superficie | V9: 0 | Z9: Total | AA9: Sup_ecot
B10: Pertes (emprise chemin, écotone, improductif) | I10: =U20+V20+Y20 -> 6195 | J10: =I10/I9 -> 0.0325929636 | S10: =LEFT(B$25,10) -> Tableau 1. | T10: OSUPTOT | U10: WS | V10: =VLOOKUP(T10,Output!$C:$H,6,FALSE) -> 184980.1 | Z10: INC | AA10: Sup_brivAB
B11: Territoire improductif (EXEX + EXTI) | I11: =SUM(V13:V14) -> 26193.7 | J11: =I11/I9 -> 0.137809574 | S11: Tableau 1. | U11: Brute | V11: =AB2 -> 191176 | X11: Sup_soustraite : | Y11: =T20+U20+V20+Y20+AA20 -> 31962 | Z11: INC | AA11: Sup_brivCD
B12: sans possibilité de remise en production | I12: =I11-I13 -> 26193.7 | J12: - | S12: Tableau 1. | U12: pertes | V12: =U20+V20+Y20 -> 6195 | X12: Sup nette : | Y12: =V11-Y11 -> 159214 | Z12: Total | AA12: Sup_impro
B13: avec possibilité de remise en production (RP1 et RP2) | I13: =V15 -> 0 | J13: - | S13: Tableau 1. | T13: OSUPEXEX | U13: EXEX | V13: =VLOOKUP(T13,Output!$C:$H,6,FALSE) -> 23084.8 | Z13: Total | AA13: Sup_pentf
S14: Tableau 1. | T14: OSUPEXTI | U14: EXTI | V14: =VLOOKUP(T14,Output!$C:$H,6,FALSE) -> 3108.9 | Z14: INC | AA14: Sup_pentf
B15: Territoire inclus dans l’UA mais exclu des activités d'aménagement (EXIN) | I15: =V17 -> 66803.7 | J15: =I15/I9 -> 0.351465789 | S15: Tableau 1. | U15: RP1/RP2 | V15: =AB3 -> 0
B16: pentes abruptes et sommets (codes F et S) --> potentiellement récoltables | I16: =AA21 -> 17373 | J16: - | S16: Tableau 1. | T16: OSUPEXHU | U16: EXHU | V16: =VLOOKUP(T16,Output!$C:$H,6,FALSE) -> 1104.3
B17: bandes riveraines (densité AB) --> potentiellement récoltables | I17: =W21 -> 8704 | J17: - | S17: Tableau 1. | T17: OSUPEXIN | U17: EXIN | V17: =VLOOKUP(T17,Output!$C:$H,6,FALSE) -> 66803.7
B18: bandes riveraines (densité CD) --> potentiellement récoltables | I18: =X21 -> 1392 | J18: - | S18: Tableau 1. | T18: ↓ | U18: ↓ | V18: ↓ | Y18: ↓ | AA18: ↓
B19: autres | I19: =I15-I16-I17-I18 -> 39334.7 | S19: Tableau 1. | T19: Sup_aff | U19: Sup_empche | V19: Sup_ecot | W19: Sup_brivAB | X19: Sup_brivCD | Y19: Sup_impro | Z19: Sup_aut | AA19: Sup_pentf
B20: Territoire destiné à l'aménagement forestier (INC) | I20: =V22 -> 90878.4 | J20: =I20/I9 -> 0.4781269384 | S20: Tableau 1. | T20: 2097 | U20: 3307 | V20: 2224 | Y20: 664 | AA20: 23670 | AB20: Total
B21: forestier exploitable | I21: =V22-I22-I23 -> 90878.4 | J21: - | S21: Tableau 1. | W21: 8704 | X21: 1392 | AA21: 17373 | AB21: INC
B22: forestier inexploitable avec possibilité de remise en production (RP3 à RP15) | I22: =V24 -> 0 | J22: - | S22: Tableau 1. | T22: OSUPINC | U22: INC | V22: =VLOOKUP(T22,Output!$C:$H,6,FALSE) -> 90878.4
B23: forestier inexploitable sans possibilité de remise en production (SNAT) | I23: =V25 -> 0 | J23: - | S23: Tableau 1.
S24: Tableau 1. | U24: RP3 à RP9 | V24: =AB4 -> 0
B25: Tableau 1. Répartition de la superficie de l'unité d'aménagement pas catégorie de territoire | S25: Tableau 1. | U25: SNAT | V25: =AB5 -> 0
B26: Catégories | F26: Superficies
F27: Hectares | G27: %
B28: Superficie totale de l’unité d’aménagement | F28: =ROUND(I9,-1) -> 190070 | G28: =F28/F28 -> 1
B29: Retraits de superficie
B30: Territoire non forestier | F30: =ROUND(I10+I11,-1) -> 32390 | G30: =F30/F28 -> 0.1704109012
B31: Territoire forestier peu productif (30 à 50 m³/ha) | F31: =ROUND(I22+I23,-1) -> 0 | G31: =F31/F28 -> 0
B32: Territoire forestier exclu de l’aménagement | F32: =ROUND(F28-F30-F31-F33,-1) -> 66800 | G32: =F32/F28 -> 0.351449466 | N32: À compléter UA : | O32: UA:
B33: Superficie destinée à l’aménagement forestier | F33: =ROUND(I21,-1) -> 90880 | G33: =F33/F28 -> 0.4781396328 | O33: 07251 | T33: Légende | U33: Output | V33: P2@P6
S34: =LEFT(B$46,10) -> Tableau 3. | T34: Sepm | U34: OVOLGSEPMREC | V34: =IFERROR(VLOOKUP($U34,Output!$C:$AM,37,FALSE)/5,0) -> 15981.7892
S35: Tableau 3.
S36: Tableau 3. | T36: Tho | U36: OVOLTHOREC | V36: =IFERROR(VLOOKUP($U36,Output!$C:$AM,37,FALSE)/5,0) -> 1458.7532
S37: Tableau 3. | T37: Pru | U37: OVOLPRUREC | V37: =IFERROR(VLOOKUP($U37,Output!$C:$AM,37,FALSE)/5,0) -> 1355.6052
S38: Tableau 3. | T38: Pins | U38: OVOLGPINSREC | V38: =IFERROR(VLOOKUP($U38,Output!$C:$AM,37,FALSE)/5,0) -> 3762.2976
S39: Tableau 3. | T39: Peu | U39: OVOLGPEUREC | V39: =IFERROR(VLOOKUP($U39,Output!$C:$AM,37,FALSE)/5,0) -> 14104.452
S40: Tableau 3. | T40: Bop | U40: OVOLGBPREC | V40: =IFERROR(VLOOKUP($U40,Output!$C:$AM,37,FALSE)/5,0) -> 3621.336
S41: Tableau 3. | T41: Boj | U41: OVOLBOJREC | V41: =IFERROR(VLOOKUP($U41,Output!$C:$AM,37,FALSE)/5,0) -> 14048.016
S42: Tableau 3. | T42: Ers | U42: OVOLERSREC | V42: =IFERROR(VLOOKUP($U42,Output!$C:$AM,37,FALSE)/5,0) -> 49540.342
S43: Tableau 3. | T43: Err | U43: OVOLGEROREC | V43: =IFERROR(VLOOKUP($U43,Output!$C:$AM,37,FALSE)/5,0) -> 8334.1636
S44: Tableau 3. | T44: Autre .F. (Auf) | V44: =V47-V42-V41 -> 27691.354
S45: Tableau 3. | T45: résineux | U45: OVOLGRREC | V45: =IFERROR(VLOOKUP($U45,Output!$C:$AM,37,FALSE)/5,0) -> 22560
B46: Tableau 3. Possibilités forestières par essence ou par groupe d’essences et écart avec la période 2018-2023 | S46: Tableau 3. | T46: intolérant | U46: OVOLGFIREC | V46: =IFERROR(VLOOKUP($U46,Output!$C:$AM,37,FALSE)/5,0) -> 26060
B47: Périodes | C47: ="Possibilités forestières (m"&CHAR(179)&" bruts/an)" -> Possibilités forestières (m³ bruts/an) | S47: Tableau 3. | T47: Tolérant | U47: OVOLGFTREC | V47: =IFERROR(VLOOKUP($U47,Output!$C:$AM,37,FALSE)/5,0) -> 91279.712
C48: SEPM | D48: Thuya | E48: Pruche | F48: Pins blanc et rouge | G48: Peupliers | H48: Bouleau à papier | I48: Bouleau jaune | J48: Érables à sucre et rouge | K48: Autres feuillus durs | L48: Total | N48: Possibilité forestière unitaire (PAC / Sup destinée à l'aménagement) | S48: Tableau 3. | T48: Total récoltés | U48: OVOLTOTREC | V48: =IFERROR(VLOOKUP($U48,Output!$C:$AM,37,FALSE)/5,0) -> 139900
B49: 2023-2028 | C49: =ROUND(V$34,-2) -> 16000 | D49: =ROUND(V$36,-2) -> 1500 | E49: =ROUND(V$37,-2) -> 1400 | F49: =ROUND(V$38,-2) -> 3800 | G49: =ROUND(V$39,-2) -> 14100 | H49: =ROUND(V$40,-2) -> 3600 | I49: =ROUND(V$41,-2) -> 14000 | J49: =ROUND(V$50,-2) -> 57900 | K49: =ROUND(V$44,-2) -> 27700 | L49: =SUM(C49:K49) -> 140000 | N49: =V57 -> 1.539392606 | S49: Tableau 3. | T49: FN sur pied | U49: OVOLGFNREC | V49: =IFERROR(VLOOKUP($U49,Output!$C:$AM,37,FALSE)/5,0) -> 9336.55
C50: =C49/$L$49 -> 0.1142857143 | D50: 0.01071428571 | E50: 0.01 | F50: 0.02714285714 | G50: 0.1007142857 | H50: 0.02571428571 | I50: 0.1 | J50: 0.4135714286 | K50: 0.1978571429 | L50: =SUM(C50:K50) -> 1 | S50: Tableau 3. | T50: ER | V50: =V42+V43 -> 57874.5056
B51: 2018-2023 | C51: =VLOOKUP($O$33,DataLocal!$A$6:$W$35,13,FALSE) -> 10500 | D51: =VLOOKUP($O$33,DataLocal!$A$6:$W$35,14,FALSE) -> 4900 | E51: =VLOOKUP($O$33,DataLocal!$A$6:$W$35,15,FALSE) -> 13400 | F51: =VLOOKUP($O$33,DataLocal!$A$6:$W$35,16,FALSE) -> 2600 | G51: =VLOOKUP($O$33,DataLocal!$A$6:$W$35,17,FALSE) -> 12600 | H51: =VLOOKUP($O$33,DataLocal!$A$6:$W$35,18,FALSE) -> 4000 | I51: =VLOOKUP($O$33,DataLocal!$A$6:$W$35,19,FALSE) -> 8200 | J51: =VLOOKUP($O$33,DataLocal!$A$6:$W$35,20,FALSE) -> 34100 | K51: =VLOOKUP($O$33,DataLocal!$A$6:$W$35,21,FALSE) -> 15800 | L51: =VLOOKUP($O$33,DataLocal!$A$6:$W$35,23,FALSE) -> 106100 | N51: % du volume sur pied initial | S51: Tableau 3. | U51: OVOLSABREC | V51: =IFERROR(VLOOKUP($U51,Output!$C:$AM,37,FALSE)/5,0) -> 7657.0864
B52: Écart | C52: =IFERROR((C49/C$51)-1,0) -> 0.5238095238 | D52: -0.693877551 | E52: -0.8955223881 | F52: 0.4615384615 | G52: 0.119047619 | H52: -0.1 | I52: 0.7073170732 | J52: 0.6979472141 | K52: 0.753164557 | L52: 0.3195098963 | N52: =V59 -> 0.01028805071 | S52: Tableau 3. | U52: OVOLGEPXREC | V52: =IFERROR(VLOOKUP($U52,Output!$C:$AM,37,FALSE)/5,0) -> 7880.9104
B53: ="Répartition de la composante SEPM des possibilités forestières 2023-2028 : sapin ("&IFERROR(ROUND(V51/V34*100,0),0)&"%), épinettes ("&IFERROR(ROUND(V52/V34*100,0),0)&"%), pin gris ("&IFERROR(ROUND(V53/V34*100,0),0)&"%) et mélèzes ("&IFERROR(ROUND(V54/V34*100,0),0)&"%)." -> Répartition de la composante SEPM des possibilités forestières 2023-2028 : sapin (48%), épinettes (49%), pin gris (2%) et mélèzes (0%). | S53: Tableau 3. | U53: OVOLGPGREC | V53: =IFERROR(VLOOKUP($U53,Output!$C:$AM,37,FALSE)/5,0) -> 390.002
B54: ="Répartition de la composante Érables à sucre et rouge des possibilités forestières 2023-2028 : érable à sucre("&IFERROR(ROUND(V42/(V42+V43)*100,0),0)&"%) et érable rouge ("&IFERROR(ROUND(V43/(V42+V43)*100,0),0)&"%)." -> Répartition de la composante Érables à sucre et rouge des possibilités forestières 2023-2028 : érable à sucre(86%) et érable rouge (14%). | S54: Tableau 3. | U54: OVOLGMLREC | V54: =IFERROR(VLOOKUP($U54,Output!$C:$AM,37,FALSE)/5,0) -> 52.5964
B55: Copier/Coller le tableau ci-dessus avec les lignes 53 et 54 | S55: Tableau 3. | U55: OSUPINC | V55: =IFERROR(VLOOKUP($U55,Output!$C:$AM,6,FALSE),0) -> 90878.4
S56: Tableau 3. | U56: OVOLTOTPIEDINC | V56: =IFERROR(VLOOKUP($U56,Output!$C:$AM,7,FALSE),0) -> 13994983.59
S57: Tableau 3. | U57: Possibilité forestière unitaire | V57: =IFERROR(V48/F33,0) -> 1.539392606
S58: Tableau 3. | U58: % récolte volume sur pied
U59: % récolte volume sur pied destiné à l'aménagement | V59: =V48/Figures!V19 -> 0.01028805071
B61: Tableau 4. Répartition des superficies récoltées et des possibilités forestières par grand type de forêt
B62: Grands types de forêt | D62: Superficie récoltée* | H62: Possibilités forestières* | S62: =LEFT(B$61,10) -> Tableau 4. | V62: Output total non arrondi | W62: Écart entre la somme du tableau et le output total
D63: Coupes totales | F63: Coupes partielles | H63: Résineux | J63: Feuillus tolérants | L63: Feuillus intolérants | N63: Total | S63: Tableau 4. | T63: Total | Z63: P2 à P6
D64: ha/an | E64: % | F64: ha/an | G64: % | H64: m³ bruts/an | I64: % | J64: ="m"&CHAR(179)&" bruts/an" -> m³ bruts/an | K64: % | L64: ="m"&CHAR(179)&" bruts/an" -> m³ bruts/an | M64: % | N64: ="m"&CHAR(179)&" bruts/an" -> m³ bruts/an | O64: % | S64: Tableau 4. | T64: ha/an | U64: % | Y64: Famille de courbe | Z64: OSUPINC | AA64: OSUPREALREGAFIN | AB64: OSUPREALREGAPAR | AC64: OSUPREALREGAPRE | AD64: OVOLGRREC | AE64: OVOLGAURREC | AF64: OVOLGFIREC | AG64: OVOLGFTREC | AH64: OVOLTOTREC
B65: Bétulaies blanches | D65: =ROUND(AA65/5,-1) -> 0 | E65: =IFERROR(D65/D$79,0) -> 0 | F65: =ROUND(AB65/5,-1) -> 0 | G65: =IFERROR(F65/F$79,0) -> 0 | H65: =ROUND(AD65/5,-2) -> 0 | I65: =IFERROR(H65/H$79,0) -> 0 | J65: =ROUND(AG65/5,-2) -> 0 | K65: =IFERROR(J65/J$79,0) -> 0 | L65: =ROUND(AF65/5,-2) -> 0 | M65: =L65/L$79 -> 0 | N65: =H65+J65+L65 -> 0 | O65: =N65/$N$79 -> 0 | S65: Tableau 4. | T65: =D65+F65 -> 0 | U65: =IFERROR(T65/T$79,0) -> 0 | V65: =(AA65+AB65)/5 -> 0 | W65: =T65-V65 -> 0 | Y65: (FCTYF_BOP) | Z65: =VLOOKUP(Z$64&$Y65,GTYF!$C:$AP,6,FALSE) -> 0 | AA65: =VLOOKUP(AA$64&$Y65,GTYF!$C:$AP,37,FALSE) -> 0 | AB65: =VLOOKUP(AB$64&$Y65,GTYF!$C:$AP,37,FALSE) -> 0 | AC65: =VLOOKUP(AC$64&$Y65,GTYF!$C:$AP,37,FALSE) -> 0 | AD65: =VLOOKUP(AD$64&$Y65,GTYF!$C:$AP,37,FALSE) -> 0 | AE65: =VLOOKUP(AE$64&$Y65,GTYF!$C:$AP,37,FALSE) -> 0 | AF65: =VLOOKUP(AF$64&$Y65,GTYF!$C:$AP,37,FALSE) -> 0 | AG65: =VLOOKUP(AG$64&$Y65,GTYF!$C:$AP,37,FALSE) -> 0 | AH65: =VLOOKUP(AH$64&$Y65,GTYF!$C:$AP,37,FALSE) -> 0
B66: Bétulaies blanches à résineux | D66: 0 | E66: =IFERROR(D66/D$79,0) -> 0 | F66: 0 | G66: =IFERROR(F66/F$79,0) -> 0 | H66: =ROUND(AD66/5,-2) -> 0 | I66: =IFERROR(H66/H$79,0) -> 0 | J66: =ROUND(AG66/5,-2) -> 0 | K66: 0 | L66: =ROUND(AF66/5,-2) -> 0 | M66: =L66/L$79 -> 0 | N66: =H66+J66+L66 -> 0 | O66: 0 | S66: Tableau 4. | T66: 0 | U66: =IFERROR(T66/T$79,0) -> 0 | V66: =(AA66+AB66)/5 -> 0 | W66: 0 | Y66: (FCTYF_BOPR) | Z66: =VLOOKUP(Z$64&$Y66,GTYF!$C:$AP,6,FALSE) -> 1097.5 | AA66: =VLOOKUP(AA$64&$Y66,GTYF!$C:$AP,37,FALSE) -> 0 | AB66: =VLOOKUP(AB$64&$Y66,GTYF!$C:$AP,37,FALSE) -> 0 | AC66: =VLOOKUP(AC$64&$Y66,GTYF!$C:$AP,37,FALSE) -> 0 | AD66: =VLOOKUP(AD$64&$Y66,GTYF!$C:$AP,37,FALSE) -> 0 | AE66: =VLOOKUP(AE$64&$Y66,GTYF!$C:$AP,37,FALSE) -> 0 | AF66: =VLOOKUP(AF$64&$Y66,GTYF!$C:$AP,37,FALSE) -> 0 | AG66: =VLOOKUP(AG$64&$Y66,GTYF!$C:$AP,37,FALSE) -> 0 | AH66: =VLOOKUP(AH$64&$Y66,GTYF!$C:$AP,37,FALSE) -> 0
B67: Cédrières | D67: 0 | E67: 0 | F67: 10 | G67: 0.007575757576 | H67: =ROUND(AD67/5,-2) -> 700 | I67: 0.03083700441 | J67: 300 | K67: 0.003278688525 | L67: 100 | M67: 0.003846153846 | N67: 1100 | O67: 0.007845934379 | S67: Tableau 4. | T67: 10 | U67: 0.006666666667 | V67: =(AA67+AB67)/5 -> 13.092 | W67: -3.092 | Y67: (FCTYF_THO) | Z67: =VLOOKUP(Z$64&$Y67,GTYF!$C:$AP,6,FALSE) -> 1968.7 | AA67: =VLOOKUP(AA$64&$Y67,GTYF!$C:$AP,37,FALSE) -> 0 | AB67: =VLOOKUP(AB$64&$Y67,GTYF!$C:$AP,37,FALSE) -> 65.46 | AC67: =VLOOKUP(AC$64&$Y67,GTYF!$C:$AP,37,FALSE) -> 65.46 | AD67: =VLOOKUP(AD$64&$Y67,GTYF!$C:$AP,37,FALSE) -> 3340.964 | AE67: =VLOOKUP(AE$64&$Y67,GTYF!$C:$AP,37,FALSE) -> 2540.296 | AF67: =VLOOKUP(AF$64&$Y67,GTYF!$C:$AP,37,FALSE) -> 708.416 | AG67: =VLOOKUP(AG$64&$Y67,GTYF!$C:$AP,37,FALSE) -> 1279.052 | AH67: =VLOOKUP(AH$64&$Y67,GTYF!$C:$AP,37,FALSE) -> 5327.942
B68: Érablières rouges | D68: 20 | E68: 0.1111111111 | F68: 0 | G68: 0 | H68: 500 | I68: 0.02202643172 | J68: 1200 | K68: 0.0131147541 | L68: 2200 | M68: 0.08461538462 | N68: 3900 | O68: 0.02781740371 | S68: Tableau 4. | T68: 20 | U68: 0.01333333333 | V68: =(AA68+AB68)/5 -> 24.62 | W68: -4.62 | Y68: (FCTYF_ERO) | Z68: =VLOOKUP(Z$64&$Y68,GTYF!$C:$AP,6,FALSE) -> 1461.4 | AA68: =VLOOKUP(AA$64&$Y68,GTYF!$C:$AP,37,FALSE) -> 123.1 | AB68: =VLOOKUP(AB$64&$Y68,GTYF!$C:$AP,37,FALSE) -> 0 | AC68: =VLOOKUP(AC$64&$Y68,GTYF!$C:$AP,37,FALSE) -> 123.1 | AD68: =VLOOKUP(AD$64&$Y68,GTYF!$C:$AP,37,FALSE) -> 2387.408 | AE68: =VLOOKUP(AE$64&$Y68,GTYF!$C:$AP,37,FALSE) -> 421.334 | AF68: =VLOOKUP(AF$64&$Y68,GTYF!$C:$AP,37,FALSE) -> 10840.026 | AG68: =VLOOKUP(AG$64&$Y68,GTYF!$C:$AP,37,FALSE) -> 5992.48 | AH68: =VLOOKUP(AH$64&$Y68,GTYF!$C:$AP,37,FALSE) -> 19219.92
B69: Feuillus tolérants | D69: 0 | E69: 0 | F69: 1140 | G69: 0.8636363636 | H69: 4000 | I69: 0.1762114537 | J69: 80700 | K69: 0.8819672131 | L69: 5600 | M69: 0.2153846154 | N69: 90300 | O69: 0.6440798859 | S69: Tableau 4. | T69: 1140 | U69: 0.76 | V69: 1141.2416 | W69: -1.2416 | Y69: (FCTYF_FT) | Z69: =VLOOKUP(Z$64&$Y69,GTYF!$C:$AP,6,FALSE) -> 59585 | AA69: =VLOOKUP(AA$64&$Y69,GTYF!$C:$AP,37,FALSE) -> 0 | AB69: =VLOOKUP(AB$64&$Y69,GTYF!$C:$AP,37,FALSE) -> 5706.208 | AC69: =VLOOKUP(AC$64&$Y69,GTYF!$C:$AP,37,FALSE) -> 5706.208 | AD69: =VLOOKUP(AD$64&$Y69,GTYF!$C:$AP,37,FALSE) -> 20205.572 | AE69: =VLOOKUP(AE$64&$Y69,GTYF!$C:$AP,37,FALSE) -> 6273.97 | AF69: =VLOOKUP(AF$64&$Y69,GTYF!$C:$AP,37,FALSE) -> 27999.174 | AG69: =VLOOKUP(AG$64&$Y69,GTYF!$C:$AP,37,FALSE) -> 403263.368 | AH69: =VLOOKUP(AH$64&$Y69,GTYF!$C:$AP,37,FALSE) -> 451471.698
B70: Feuillus tolérants à résineux | D70: 20 | E70: 0.1111111111 | F70: 120 | G70: 0.09090909091 | H70: 4500 | I70: 0.1982378855 | J70: 6300 | K70: 0.06885245902 | L70: 2000 | M70: 0.07692307692 | N70: 12800 | O70: 0.09129814551 | S70: Tableau 4. | T70: 140 | U70: 0.09333333333 | V70: 135.5212 | W70: 4.4788 | Y70: (FCTYF_FTR) | Z70: =VLOOKUP(Z$64&$Y70,GTYF!$C:$AP,6,FALSE) -> 8918.5 | AA70: =VLOOKUP(AA$64&$Y70,GTYF!$C:$AP,37,FALSE) -> 89.408 | AB70: =VLOOKUP(AB$64&$Y70,GTYF!$C:$AP,37,FALSE) -> 588.198 | AC70: =VLOOKUP(AC$64&$Y70,GTYF!$C:$AP,37,FALSE) -> 677.604 | AD70: =VLOOKUP(AD$64&$Y70,GTYF!$C:$AP,37,FALSE) -> 22453.47 | AE70: =VLOOKUP(AE$64&$Y70,GTYF!$C:$AP,37,FALSE) -> 4846.228 | AF70: =VLOOKUP(AF$64&$Y70,GTYF!$C:$AP,37,FALSE) -> 10008.024 | AG70: =VLOOKUP(AG$64&$Y70,GTYF!$C:$AP,37,FALSE) -> 31478.798 | AH70: =VLOOKUP(AH$64&$Y70,GTYF!$C:$AP,37,FALSE) -> 63939.148
B71: Pessières | D71: =ROUND(AA71/5,-1) -> 20 | E71: 0.1111111111 | F71: 20 | G71: 0.01515151515 | H71: 3900 | I71: 0.1718061674 | J71: 100 | K71: 0.001092896175 | L71: 500 | M71: 0.01923076923 | N71: 4500 | O71: 0.03209700428 | S71: Tableau 4. | T71: 40 | U71: 0.02666666667 | V71: 41.776 | W71: =T71-V71 -> -1.776 | Y71: (FCTYF_EPX) | Z71: =VLOOKUP(Z$64&$Y71,GTYF!$C:$AP,6,FALSE) -> 2357.7 | AA71: =VLOOKUP(AA$64&$Y71,GTYF!$C:$AP,37,FALSE) -> 94.96 | AB71: =VLOOKUP(AB$64&$Y71,GTYF!$C:$AP,37,FALSE) -> 113.92 | AC71: =VLOOKUP(AC$64&$Y71,GTYF!$C:$AP,37,FALSE) -> 208.88 | AD71: =VLOOKUP(AD$64&$Y71,GTYF!$C:$AP,37,FALSE) -> 19694.25 | AE71: =VLOOKUP(AE$64&$Y71,GTYF!$C:$AP,37,FALSE) -> 1178.372 | AF71: =VLOOKUP(AF$64&$Y71,GTYF!$C:$AP,37,FALSE) -> 2507.956 | AG71: =VLOOKUP(AG$64&$Y71,GTYF!$C:$AP,37,FALSE) -> 260.998 | AH71: =VLOOKUP(AH$64&$Y71,GTYF!$C:$AP,37,FALSE) -> 22463.204
B72: Peupleraies | D72: 50 | E72: 0.2777777778 | F72: 0 | G72: 0 | H72: 500 | I72: 0.02202643172 | J72: 1500 | K72: 0.01639344262 | L72: 9800 | M72: 0.3769230769 | N72: 11800 | O72: 0.08416547789 | S72: Tableau 4. | T72: 50 | U72: 0.03333333333 | V72: 51.1492 | W72: -1.1492 | Y72: (FCTYF_PEU) | Z72: =VLOOKUP(Z$64&$Y72,GTYF!$C:$AP,6,FALSE) -> 3450.2 | AA72: =VLOOKUP(AA$64&$Y72,GTYF!$C:$AP,37,FALSE) -> 255.746 | AB72: =VLOOKUP(AB$64&$Y72,GTYF!$C:$AP,37,FALSE) -> 0 | AC72: =VLOOKUP(AC$64&$Y72,GTYF!$C:$AP,37,FALSE) -> 255.746 | AD72: =VLOOKUP(AD$64&$Y72,GTYF!$C:$AP,37,FALSE) -> 2329.874 | AE72: =VLOOKUP(AE$64&$Y72,GTYF!$C:$AP,37,FALSE) -> 637.35 | AF72: =VLOOKUP(AF$64&$Y72,GTYF!$C:$AP,37,FALSE) -> 48755.204 | AG72: =VLOOKUP(AG$64&$Y72,GTYF!$C:$AP,37,FALSE) -> 7562.364 | AH72: =VLOOKUP(AH$64&$Y72,GTYF!$C:$AP,37,FALSE) -> 58647.442
B73: Peupleraies à résineux | D73: 30 | E73: 0.1666666667 | F73: 0 | G73: 0 | H73: 1800 | I73: 0.07929515419 | J73: 100 | K73: 0.001092896175 | L73: 3200 | M73: 0.1230769231 | N73: 5100 | O73: 0.03637660485 | S73: Tableau 4. | T73: 30 | U73: 0.02 | V73: 25.9948 | W73: 4.0052 | Y73: (FCTYF_PEUR) | Z73: =VLOOKUP(Z$64&$Y73,GTYF!$C:$AP,6,FALSE) -> 1257.9 | AA73: =VLOOKUP(AA$64&$Y73,GTYF!$C:$AP,37,FALSE) -> 129.974 | AB73: =VLOOKUP(AB$64&$Y73,GTYF!$C:$AP,37,FALSE) -> 0 | AC73: =VLOOKUP(AC$64&$Y73,GTYF!$C:$AP,37,FALSE) -> 129.974 | AD73: =VLOOKUP(AD$64&$Y73,GTYF!$C:$AP,37,FALSE) -> 8947.69 | AE73: =VLOOKUP(AE$64&$Y73,GTYF!$C:$AP,37,FALSE) -> 3120.804 | AF73: =VLOOKUP(AF$64&$Y73,GTYF!$C:$AP,37,FALSE) -> 16219.962 | AG73: =VLOOKUP(AG$64&$Y73,GTYF!$C:$AP,37,FALSE) -> 510.104 | AH73: =VLOOKUP(AH$64&$Y73,GTYF!$C:$AP,37,FALSE) -> 25677.754
B74: Pinèdes blanches | D74: 0 | E74: 0 | F74: 30 | G74: 0.02272727273 | H74: 2700 | I74: 0.1189427313 | J74: 300 | K74: 0.003278688525 | L74: 800 | M74: 0.03076923077 | N74: 3800 | O74: 0.02710413695 | S74: Tableau 4. | T74: 30 | U74: 0.02 | V74: 31.7672 | W74: -1.7672 | Y74: (FCTYF_PIN) | Z74: =VLOOKUP(Z$64&$Y74,GTYF!$C:$AP,6,FALSE) -> 1775.6 | AA74: =VLOOKUP(AA$64&$Y74,GTYF!$C:$AP,37,FALSE) -> 0 | AB74: =VLOOKUP(AB$64&$Y74,GTYF!$C:$AP,37,FALSE) -> 158.836 | AC74: =VLOOKUP(AC$64&$Y74,GTYF!$C:$AP,37,FALSE) -> 158.836 | AD74: =VLOOKUP(AD$64&$Y74,GTYF!$C:$AP,37,FALSE) -> 13331.338 | AE74: =VLOOKUP(AE$64&$Y74,GTYF!$C:$AP,37,FALSE) -> 11089.816 | AF74: =VLOOKUP(AF$64&$Y74,GTYF!$C:$AP,37,FALSE) -> 4134.846 | AG74: =VLOOKUP(AG$64&$Y74,GTYF!$C:$AP,37,FALSE) -> 1252.866 | AH74: =VLOOKUP(AH$64&$Y74,GTYF!$C:$AP,37,FALSE) -> 18718.728
B75: Pinèdes grises | D75: 0 | E75: 0 | F75: 0 | G75: 0 | H75: 0 | I75: 0 | J75: 0 | K75: 0 | L75: 0 | M75: 0 | N75: 0 | O75: 0 | S75: Tableau 4. | T75: 0 | U75: 0 | V75: 0 | W75: 0 | Y75: (FCTYF_PIG) | Z75: =VLOOKUP(Z$64&$Y75,GTYF!$C:$AP,6,FALSE) -> 0 | AA75: =VLOOKUP(AA$64&$Y75,GTYF!$C:$AP,37,FALSE) -> 0 | AB75: =VLOOKUP(AB$64&$Y75,GTYF!$C:$AP,37,FALSE) -> 0 | AC75: =VLOOKUP(AC$64&$Y75,GTYF!$C:$AP,37,FALSE) -> 0 | AD75: =VLOOKUP(AD$64&$Y75,GTYF!$C:$AP,37,FALSE) -> 0 | AE75: =VLOOKUP(AE$64&$Y75,GTYF!$C:$AP,37,FALSE) -> 0 | AF75: =VLOOKUP(AF$64&$Y75,GTYF!$C:$AP,37,FALSE) -> 0 | AG75: =VLOOKUP(AG$64&$Y75,GTYF!$C:$AP,37,FALSE) -> 0 | AH75: =VLOOKUP(AH$64&$Y75,GTYF!$C:$AP,37,FALSE) -> 0
B76: Prucheraies | D76: 0 | E76: 0 | F76: 0 | G76: 0 | H76: 200 | I76: 0.008810572687 | J76: 200 | K76: 0.00218579235 | L76: 0 | M76: 0 | N76: 400 | O76: 0.002853067047 | S76: Tableau 4. | T76: 0 | U76: 0 | V76: 3.648 | W76: -3.648 | Y76: (FCTYF_PRU) | Z76: =VLOOKUP(Z$64&$Y76,GTYF!$C:$AP,6,FALSE) -> 7337.8 | AA76: =VLOOKUP(AA$64&$Y76,GTYF!$C:$AP,37,FALSE) -> 0 | AB76: =VLOOKUP(AB$64&$Y76,GTYF!$C:$AP,37,FALSE) -> 18.24 | AC76: =VLOOKUP(AC$64&$Y76,GTYF!$C:$AP,37,FALSE) -> 18.24 | AD76: =VLOOKUP(AD$64&$Y76,GTYF!$C:$AP,37,FALSE) -> 779.212 | AE76: =VLOOKUP(AE$64&$Y76,GTYF!$C:$AP,37,FALSE) -> 615.052 | AF76: =VLOOKUP(AF$64&$Y76,GTYF!$C:$AP,37,FALSE) -> 84.086 | AG76: =VLOOKUP(AG$64&$Y76,GTYF!$C:$AP,37,FALSE) -> 760.244 | AH76: =VLOOKUP(AH$64&$Y76,GTYF!$C:$AP,37,FALSE) -> 1623.36
B77: Résineux à feuillus | D77: 40 | E77: 0.2222222222 | F77: 0 | G77: 0 | H77: 3900 | I77: 0.1718061674 | J77: 800 | K77: 0.008743169399 | L77: 1800 | M77: 0.06923076923 | N77: 6500 | O77: 0.04636233951 | S77: Tableau 4. | T77: 40 | U77: 0.02666666667 | V77: 37.4772 | W77: 2.5228 | Y77: (FCTYF_RF) | Z77: =VLOOKUP(Z$64&$Y77,GTYF!$C:$AP,6,FALSE) -> 1668.1 | AA77: =VLOOKUP(AA$64&$Y77,GTYF!$C:$AP,37,FALSE) -> 187.386 | AB77: =VLOOKUP(AB$64&$Y77,GTYF!$C:$AP,37,FALSE) -> 0 | AC77: =VLOOKUP(AC$64&$Y77,GTYF!$C:$AP,37,FALSE) -> 187.386 | AD77: =VLOOKUP(AD$64&$Y77,GTYF!$C:$AP,37,FALSE) -> 19330.214 | AE77: =VLOOKUP(AE$64&$Y77,GTYF!$C:$AP,37,FALSE) -> 2174.042 | AF77: =VLOOKUP(AF$64&$Y77,GTYF!$C:$AP,37,FALSE) -> 9042.306 | AG77: =VLOOKUP(AG$64&$Y77,GTYF!$C:$AP,37,FALSE) -> 4038.284 | AH77: =VLOOKUP(AH$64&$Y77,GTYF!$C:$AP,37,FALSE) -> 32410.808
B78: Sapinières | D78: 0 | E78: 0 | F78: 0 | G78: 0 | H78: 0 | I78: 0 | J78: =ROUND(AG78/5,-2) -> 0 | K78: 0 | L78: 0 | M78: 0 | N78: 0 | O78: 0 | S78: Tableau 4. | T78: 0 | U78: 0 | V78: 0 | W78: 0 | Y78: (FCTYF_SAB) | Z78: =VLOOKUP(Z$64&$Y78,GTYF!$C:$AP,6,FALSE) -> 0 | AA78: =VLOOKUP(AA$64&$Y78,GTYF!$C:$AP,37,FALSE) -> 0 | AB78: =VLOOKUP(AB$64&$Y78,GTYF!$C:$AP,37,FALSE) -> 0 | AC78: =VLOOKUP(AC$64&$Y78,GTYF!$C:$AP,37,FALSE) -> 0 | AD78: =VLOOKUP(AD$64&$Y78,GTYF!$C:$AP,37,FALSE) -> 0 | AE78: =VLOOKUP(AE$64&$Y78,GTYF!$C:$AP,37,FALSE) -> 0 | AF78: =VLOOKUP(AF$64&$Y78,GTYF!$C:$AP,37,FALSE) -> 0 | AG78: =VLOOKUP(AG$64&$Y78,GTYF!$C:$AP,37,FALSE) -> 0 | AH78: =VLOOKUP(AH$64&$Y78,GTYF!$C:$AP,37,FALSE) -> 0
B79: Total | D79: =SUM(D65:D78) -> 180 | E79: =SUM(E65:E78) -> 1 | F79: =SUM(F65:F78) -> 1320 | G79: =SUM(G65:G78) -> 1 | H79: =SUM(H65:H78) -> 22700 | I79: =SUM(I65:I78) -> 1 | J79: 91500 | K79: 1 | L79: 26000 | M79: 1 | N79: =SUM(N65:N78) -> 140200 | O79: 1 | S79: Tableau 4. | T79: =SUM(T65:T78) -> 1500 | U79: =SUM(U65:U78) -> 1 | V79: =SUM(V65:V78) -> 1506.2872 | W79: -6.2872 | Y79: Somme | Z79: =SUM(Z65:Z78) -> 90878.4 | AA79: =SUM(AA65:AA78) -> 880.574 | AB79: =SUM(AB65:AB78) -> 6650.862 | AC79: =SUM(AC65:AC78) -> 7531.434
B80: * Les superficies sont arrondies à la dizaine près et les volumes à la centaine près. Cette opération peut engendrer de légères distorsions sur les sommes | S80: Tableau 4. | Y80: Total (Output) | Z80: =VLOOKUP(Z$64,Output!$C:$AP,6,FALSE) -> 90878.4
Y81: Écart | Z81: =Z79-Z80 -> 0
N82: Écart de possibilité
N83: =N79-L49 -> 200 | O83: Valideur
B84: Tableau 8. Traitements commerciaux supportant les possibilités forestières
B85: Traitements commerciaux (récolte) | G85: Superficie annuelle moyenne (ha/an) | H85: Superficie antérieure (ha/an) | I85: Écart (ha/an)
T88: Légende | U88: Name | V88: PERIOD2@6
B89: Coupe avec protection de la régénération et des sols (CPRS) | G89: =IFERROR(ROUND(V89,-1),0)-G90-G91 -> 160 | H89: =IFERROR(ROUND(VLOOKUP(O33,DataLocal!$A:$BH,37,FALSE),-1),0) -> 100 | I89: =G89-H89 -> 60 | S89: =LEFT(B$84,10) -> Tableau 8. | T89: Coupes avec protection de la régénération et des sols (CPRS) | U89: OSUPCT | V89: =IFERROR(VLOOKUP(U89,Output!$C:$AQ,37,FALSE)/5,"0000") -> 176.1144
B90: Coupe avec protection des petites tiges marchandes (CPPTM) | G90: =IFERROR(ROUND(V90,-1),0) -> 0 | H90: =IFERROR(ROUND(VLOOKUP(O33,DataLocal!$A:$BH,38,FALSE),-1),0) -> 0 | I90: =G90-H90 -> 0 | S90: Tableau 8. | T90: Coupe avec protection des petites tiges marchandes (CPPTM) | U90: OSUPREALACPPTM | V90: =IFERROR(VLOOKUP(U90,Output!$C:$AQ,37,FALSE)/5,"0000") -> 0
B91: Coupe avec réserve de semenciers (CRS) | G91: =IFERROR(ROUND(V91,-1),0) -> 20 | H91: =IFERROR(ROUND(VLOOKUP(33,DataLocal!$A:$BH,39,FALSE),-1),0) -> 0 | I91: 20 | S91: Tableau 8. | T91: Coupe avec réserve de semenciers (CRS) | U91: OSUPREALACRS | V91: =IFERROR(VLOOKUP(U91,Output!$C:$AQ,37,FALSE)/5,"0000") -> 24.62
B92: Total des coupes finales | G92: =SUM(G89:G91) -> 180 | H92: =SUM(H89:H91) -> 100 | I92: 80 | S92: Tableau 8.
B93: Éclaircie commerciale | G93: =IFERROR(ROUND(V93,-1),0) -> 20 | H93: =IFERROR(ROUND(VLOOKUP(O33,DataLocal!$A:$BH,40,FALSE),-1),0) -> 0 | I93: 20 | S93: Tableau 8. | T93: Éclaircie commerciale (EC) | U93: OSUPEC_SEPM | V93: =IFERROR(VLOOKUP(U93,Output!$C:$AQ,37,FALSE)/5,"0000") -> 22.784
B94: Coupe progressive régulière | G94: =IFERROR(ROUND(V94+V95,-1),0) -> 0 | H94: =IFERROR(ROUND(VLOOKUP(O33,DataLocal!$A:$BH,41,FALSE),-1),0) -> 0 | I94: 0 | S94: Tableau 8. | T94: Coupe progressive régulière initiale (CPROG) | U94: OSUPCPROG_INI | V94: =IFERROR(VLOOKUP(U94,Output!$C:$AQ,37,FALSE)/5,"0000") -> 0000
B95: Coupe progressive irrégulière à régénération lente (CPIL) | G95: =IFERROR(ROUND(V96+V97,-1),0) -> 450 | H95: =IFERROR(ROUND(VLOOKUP(O33,DataLocal!$A:$BH,42,FALSE),-1),0) -> 600 | I95: -150 | S95: Tableau 8. | T95: Coupe progressive régulière finale (CPROG) | U95: OSUPCPROG_FIN | V95: =IFERROR(VLOOKUP(U95,Output!$C:$AQ,37,FALSE)/5,"0000") -> 0000
B96: Coupe progressive irrégulière à couvert permanent (CPICP) | G96: =IFERROR(ROUND(V98,-1),0) -> 860 | H96: =IFERROR(ROUND(VLOOKUP(O33,DataLocal!$A:$BH,43,FALSE),-1),0) -> 410 | I96: 450 | S96: Tableau 8. | T96: Coupe progessive irrégulière initiale (CPIRL) | U96: OSUPCPIRL_INI | V96: =IFERROR(VLOOKUP(U96,Output!$C:$AQ,37,FALSE)/5,"0000") -> 287.6508
B97: Coupes de jardinage ou d'amélioration | G97: =IFERROR(ROUND(V99,-1),0) -> 0 | H97: =IFERROR(ROUND(VLOOKUP(O33,DataLocal!$A:$BH,44,FALSE),-1),0) -> 240 | I97: -240 | T97: Coupe progessive irrégulière finale (CPIRL) | U97: OSUPCPIRL_FIN | V97: =IFERROR(VLOOKUP(U97,Output!$C:$AQ,37,FALSE)/5,"0000") -> 162.0372
B98: Total des coupes partielles | G98: =SUM(G93:G97) -> 1330 | H98: =SUM(H93:H97) -> 1250 | I98: 80 | S98: =LEFT(B$84,10) -> Tableau 8. | T98: Coupe à couvert permanent (CPICP) | U98: OSUPCPICP | V98: =IFERROR(VLOOKUP(U98,Output!$C:$AQ,37,FALSE)/5,"0000") -> 857.7004
B99: Total des activités de récolte | G99: =G92+G98 -> 1510 | H99: =H98+H92 -> 1350 | I99: 160 | S99: =LEFT(B$84,10) -> Tableau 8. | T99: Coupe de jardinage (CJ) | U99: OSUPCJ | V99: =IFERROR(VLOOKUP(U99,Output!$C:$AQ,37,FALSE)/5,"0000") -> 0000
B100: % des coupes totales / récolte | G100: =IFERROR(G92/G99,0) -> 0.119205298 | H100: =IFERROR(H92/H99,0) -> 0.07407407407 | I100: =ROUND(G100-H100,2) -> 0.05 | W100: Valideur
B101: % des coupes partielles / récolte | G101: =IFERROR(G98/G99,0) -> 0.880794702 | H101: =IFERROR(H98/H99,0) -> 0.9259259259 | I101: =ROUND(G101-H101,2) -> -0.05 | S101: =LEFT(B$84,10) -> Tableau 8. | U101: OSUPREALREGAPAR | V101: =VLOOKUP(U101,Output!$C:$AQ,37,FALSE)/5 -> 1330.1724 | W101: =ROUND(SUM(V93:V99),0)=ROUND(V101,0) -> TRUE
B102: Coupes partielles de peuplements résineux | G102: =ROUND(((AB67+AB71+AB75+AB76+AB77+AB78)/5),-1) -> 40 | H102: =IFERROR(ROUND(VLOOKUP(O33,DataLocal!$A:$BH,45,FALSE),-1),0) -> 220 | I102: -180 | S102: =LEFT(B$84,10) -> Tableau 8. | U102: OSUPREALREGAFIN | V102: =VLOOKUP(U102,Output!$C:$AQ,37,FALSE)/5 -> 176.1144 | W102: =ROUND((V89),0)=ROUND(V102,0) -> TRUE
B103: Coupes partielles de peuplements de feuillus tolérants et de pins | G103: =ROUND(((AB69+AB70+AB74)/5),-1) -> 1290 | H103: =IFERROR(ROUND(VLOOKUP(O33,DataLocal!$A:$BH,46,FALSE),-1),0) -> 1030 | I103: 260 | J103: Arrondi ajouté dans formules cellules G102 et G103 | S103: =LEFT(B$84,10) -> Tableau 8. | U103: OSUPREALREGAPRE | V103: =VLOOKUP(U103,Output!$C:$AQ,37,FALSE)/5 -> 1506.2864 | W103: =ROUND(V89+SUM(V93:V99),0)=ROUND(V103,0) -> TRUE
B109: Tableau 9. Variables descriptives reliées aux coupes partielles et totales par grand type de forêt | L109: La CRV est-elle compabilisée avec les coupes partielles (regaPar)?
B110: Grands types de forêt | E110: Coupes partielles | H110: Coupes totales | L110: Si Oui - Remplacer alors les valeurs (colonne H et I) par celles-ci
E111: Rotation moyenne | F111: Prélèvement moyen | G111: Surface terrière moyenne avant coupe | H111: Âge moyen des peuplements | I111: Volume moyen toutes essences | J111: Dimension des bois SEPM | M111: Âge moyen des peuplements | N111: Volume moyen toutes essences | P111: Âge moyen des peuplements (valeurs originales)
S113: Référence Tableau 63 du cahier d'analyse VF
E115: Années | F115: ="m"&CHAR(179)&"/ha" -> m³/ha | G115: ="m"&CHAR(178)&"/ha" -> m²/ha | H115: Années | I115: ="m"&CHAR(179)&"/an" -> m³/an | J115: ="dcm"&CHAR(179)&"/tige" -> dcm³/tige | M115: Années | N115: ="m"&CHAR(179)&"/an" -> m³/an | P115: Années | S115: =LEFT(B$109,10) -> Tableau 9. | V115: OSUPREALREGAPRE | W115: OSUPINC | X115: OVOLGSEPMRECREGAFIN | Y115: ONBTGSEPMRECREGAFIN | Z115: OVOLTOTRECACT | AA115: OVOLTOTRECACFP | AB115: OVOLTOTRECACRS | AC115: OVOLTOTRECACPPTM | AD115: OSUPREALREGAFIN | AE115: OVOLTOTRECACRV | AF115: OAGETOTRECACT | AG115: OAGETOTRECACFP | AH115: OAGETOTRECACRS | AI115: OAGETOTRECACPPTM | AJ115: OSUPREALREGAFIN | AK115: OAGETOTRECACRV | AM115: OVOLTOTRECaEC | AN115: OVOLTOTRECaEC2 | AO115: OVOLTOTRECaEC3 | AP115: OVOLTOTRECaCA | AQ115: OVOLTOTRECaCA2 | AR115: OVOLTOTRECaCPROG | AS115: OVOLTOTRECaCPIL | AT115: OVOLTOTRECaCPIP | AU115: OVOLTOTRECaCPFORT | AV115: OVOLTOTRECaCPFAIBL | AW115: OVOLTOTRECaCP | AX115: OVOLTOTRECaCPJ | AY115: OVOLTOTRECaCJ | AZ115: SOMME | BA115: OSUPREALREGAPAR
B116: =T116 -> Bétulaies blanches | E116: =IFERROR($AZ116/$BA116,"-") -> - | F116: - | G116: - | H116: =IFERROR(($AF116+$AG116+$AH116+$AI116+$AK116)/$AJ116*5,"-") -> - | I116: =IFERROR(($Z116+$AA116+$AB116+$AC116+$AE116)/$AD116,"-") -> - | J116: =(IFERROR(X116/Y116*1000,"-")) -> - | M116: =IFERROR(($AF116+$AG116+$AH116+$AI116)/$AJ116*5,"-") -> - | N116: =IFERROR(($Z116+$AA116+$AB116+$AC116)/$AD116,"-") -> - | P116: - | S116: =LEFT(B$109,10) -> Tableau 9. | T116: Bétulaies blanches | U116: (FCTYF_BOP) | V116: =VLOOKUP(V$115&$U116,GTYF!$C:$AQ,37,FALSE) -> 0 | W116: =VLOOKUP(W$115&$U116,GTYF!$C:$AQ,6,FALSE) -> 0 | X116: =VLOOKUP(X$115&$U116,GTYF!$C:$AQ,37,FALSE) -> 0 | Y116: =VLOOKUP(Y$115&$U116,GTYF!$C:$AQ,37,FALSE) -> 0 | Z116: =VLOOKUP(Z$115&$U116,GTYF!$C:$AQ,37,FALSE) -> 0 | AA116: =VLOOKUP(AA$115&$U116,GTYF!$C:$AQ,37,FALSE) -> 0 | AB116: =VLOOKUP(AB$115&$U116,GTYF!$C:$AQ,37,FALSE) -> 0 | AC116: =VLOOKUP(AC$115&$U116,GTYF!$C:$AQ,37,FALSE) -> 0 | AD116: =VLOOKUP(AD$115&$U116,GTYF!$C:$AQ,37,FALSE) -> 0 | AE116: =VLOOKUP(AE$115&$U116,GTYF!$C:$AQ,37,FALSE) -> 0 | AF116: =VLOOKUP(AF$115&$U116,GTYF!$C:$AQ,37,FALSE) -> 0 | AG116: =VLOOKUP(AG$115&$U116,GTYF!$C:$AQ,37,FALSE) -> 0 | AH116: =VLOOKUP(AH$115&$U116,GTYF!$C:$AQ,37,FALSE) -> 0 | AI116: =VLOOKUP(AI$115&$U116,GTYF!$C:$AQ,37,FALSE) -> 0 | AJ116: =VLOOKUP(AJ$115&$U116,GTYF!$C:$AQ,37,FALSE) -> 0 | AK116: =VLOOKUP(AK$115&$U116,GTYF!$C:$AQ,37,FALSE) -> 0 | AM116: =VLOOKUP(AM$115&$U116,GTYF!$C:$AQ,37,FALSE) -> 0 | AN116: =VLOOKUP(AN$115&$U116,GTYF!$C:$AQ,37,FALSE) -> 0 | AO116: =VLOOKUP(AO$115&$U116,GTYF!$C:$AQ,37,FALSE) -> 0 | AP116: =VLOOKUP(AP$115&$U116,GTYF!$C:$AQ,37,FALSE) -> 0 | AQ116: =VLOOKUP(AQ$115&$U116,GTYF!$C:$AQ,37,FALSE) -> 0 | AR116: =VLOOKUP(AR$115&$U116,GTYF!$C:$AQ,37,FALSE) -> 0 | AS116: =VLOOKUP(AS$115&$U116,GTYF!$C:$AQ,37,FALSE) -> 0 | AT116: =VLOOKUP(AT$115&$U116,GTYF!$C:$AQ,37,FALSE) -> 0 | AU116: =VLOOKUP(AU$115&$U116,GTYF!$C:$AQ,37,FALSE) -> 0 | AV116: =VLOOKUP(AV$115&$U116,GTYF!$C:$AQ,37,FALSE) -> 0 | AW116: =VLOOKUP(AW$115&$U116,GTYF!$C:$AQ,37,FALSE) -> 0 | AX116: =VLOOKUP(AX$115&$U116,GTYF!$C:$AQ,37,FALSE) -> 0 | AY116: =VLOOKUP(AY$115&$U116,GTYF!$C:$AQ,37,FALSE) -> 0 | AZ116: =SUM(AM116:AY116) -> 0 | BA116: =VLOOKUP(BA$115&$U116,GTYF!$C:$AQ,37,FALSE) -> 0
B117: Bétulaies blanches à résineux | E117: - | F117: - | G117: - | H117: =IFERROR(($AF117+$AG117+$AH117+$AI117+$AK117)/$AJ117*5,"-") -> - | I117: =IFERROR(($Z117+$AA117+$AB117+$AC117+$AE117)/$AD117,"-") -> - | J117: =(IFERROR(X117/Y117*1000,"-")) -> - | M117: =IFERROR(($AF117+$AG117+$AH117+$AI117)/$AJ117*5,"-") -> - | N117: =IFERROR(($Z117+$AA117+$AB117+$AC117)/$AD117,"-") -> - | P117: - | S117: Tableau 9. | T117: Bétulaies blanches à résineux | U117: (FCTYF_BOPR) | V117: =VLOOKUP(V$115&$U117,GTYF!$C:$AQ,37,FALSE) -> 0 | W117: =VLOOKUP(W$115&$U117,GTYF!$C:$AQ,6,FALSE) -> 1097.5 | X117: =VLOOKUP(X$115&$U117,GTYF!$C:$AQ,37,FALSE) -> 0 | Y117: =VLOOKUP(Y$115&$U117,GTYF!$C:$AQ,37,FALSE) -> 0 | Z117: =VLOOKUP(Z$115&$U117,GTYF!$C:$AQ,37,FALSE) -> 0 | AA117: =VLOOKUP(AA$115&$U117,GTYF!$C:$AQ,37,FALSE) -> 0 | AB117: =VLOOKUP(AB$115&$U117,GTYF!$C:$AQ,37,FALSE) -> 0 | AC117: =VLOOKUP(AC$115&$U117,GTYF!$C:$AQ,37,FALSE) -> 0 | AD117: =VLOOKUP(AD$115&$U117,GTYF!$C:$AQ,37,FALSE) -> 0 | AE117: =VLOOKUP(AE$115&$U117,GTYF!$C:$AQ,37,FALSE) -> 0 | AF117: =VLOOKUP(AF$115&$U117,GTYF!$C:$AQ,37,FALSE) -> 0 | AG117: =VLOOKUP(AG$115&$U117,GTYF!$C:$AQ,37,FALSE) -> 0 | AH117: =VLOOKUP(AH$115&$U117,GTYF!$C:$AQ,37,FALSE) -> 0 | AI117: =VLOOKUP(AI$115&$U117,GTYF!$C:$AQ,37,FALSE) -> 0 | AJ117: =VLOOKUP(AJ$115&$U117,GTYF!$C:$AQ,37,FALSE) -> 0 | AK117: =VLOOKUP(AK$115&$U117,GTYF!$C:$AQ,37,FALSE) -> 0 | AM117: =VLOOKUP(AM$115&$U117,GTYF!$C:$AQ,37,FALSE) -> 0 | AN117: =VLOOKUP(AN$115&$U117,GTYF!$C:$AQ,37,FALSE) -> 0 | AO117: =VLOOKUP(AO$115&$U117,GTYF!$C:$AQ,37,FALSE) -> 0 | AP117: =VLOOKUP(AP$115&$U117,GTYF!$C:$AQ,37,FALSE) -> 0 | AQ117: =VLOOKUP(AQ$115&$U117,GTYF!$C:$AQ,37,FALSE) -> 0 | AR117: =VLOOKUP(AR$115&$U117,GTYF!$C:$AQ,37,FALSE) -> 0 | AS117: =VLOOKUP(AS$115&$U117,GTYF!$C:$AQ,37,FALSE) -> 0 | AT117: =VLOOKUP(AT$115&$U117,GTYF!$C:$AQ,37,FALSE) -> 0 | AU117: =VLOOKUP(AU$115&$U117,GTYF!$C:$AQ,37,FALSE) -> 0 | AV117: =VLOOKUP(AV$115&$U117,GTYF!$C:$AQ,37,FALSE) -> 0 | AW117: =VLOOKUP(AW$115&$U117,GTYF!$C:$AQ,37,FALSE) -> 0 | AX117: =VLOOKUP(AX$115&$U117,GTYF!$C:$AQ,37,FALSE) -> 0 | AY117: =VLOOKUP(AY$115&$U117,GTYF!$C:$AQ,37,FALSE) -> 0 | AZ117: =SUM(AM117:AY117) -> 0 | BA117: =VLOOKUP(BA$115&$U117,GTYF!$C:$AQ,37,FALSE) -> 0
B118: Cédrières | E118: 41 | F118: 81 | G118: 31 | H118: =IFERROR(($AF118+$AG118+$AH118+$AI118+$AK118)/$AJ118*5,"-") -> - | I118: - | J118: =(IFERROR(X118/Y118*1000,"-")) -> - | M118: - | N118: - | P118: - | S118: Tableau 9. | T118: Cédrières | U118: (FCTYF_THO) | V118: =VLOOKUP(V$115&$U118,GTYF!$C:$AQ,37,FALSE) -> 65.46 | W118: =VLOOKUP(W$115&$U118,GTYF!$C:$AQ,6,FALSE) -> 1968.7 | X118: =VLOOKUP(X$115&$U118,GTYF!$C:$AQ,37,FALSE) -> 0 | Y118: =VLOOKUP(Y$115&$U118,GTYF!$C:$AQ,37,FALSE) -> 0 | Z118: =VLOOKUP(Z$115&$U118,GTYF!$C:$AQ,37,FALSE) -> 0 | AA118: =VLOOKUP(AA$115&$U118,GTYF!$C:$AQ,37,FALSE) -> 0 | AB118: =VLOOKUP(AB$115&$U118,GTYF!$C:$AQ,37,FALSE) -> 0 | AC118: =VLOOKUP(AC$115&$U118,GTYF!$C:$AQ,37,FALSE) -> 0 | AD118: =VLOOKUP(AD$115&$U118,GTYF!$C:$AQ,37,FALSE) -> 0 | AE118: =VLOOKUP(AE$115&$U118,GTYF!$C:$AQ,37,FALSE) -> 0 | AF118: =VLOOKUP(AF$115&$U118,GTYF!$C:$AQ,37,FALSE) -> 0 | AG118: =VLOOKUP(AG$115&$U118,GTYF!$C:$AQ,37,FALSE) -> 0 | AH118: =VLOOKUP(AH$115&$U118,GTYF!$C:$AQ,37,FALSE) -> 0 | AI118: =VLOOKUP(AI$115&$U118,GTYF!$C:$AQ,37,FALSE) -> 0 | AJ118: =VLOOKUP(AJ$115&$U118,GTYF!$C:$AQ,37,FALSE) -> 0 | AK118: =VLOOKUP(AK$115&$U118,GTYF!$C:$AQ,37,FALSE) -> 0 | AM118: =VLOOKUP(AM$115&$U118,GTYF!$C:$AQ,37,FALSE) -> 0 | AN118: =VLOOKUP(AN$115&$U118,GTYF!$C:$AQ,37,FALSE) -> 0 | AO118: =VLOOKUP(AO$115&$U118,GTYF!$C:$AQ,37,FALSE) -> 0 | AP118: =VLOOKUP(AP$115&$U118,GTYF!$C:$AQ,37,FALSE) -> 0 | AQ118: =VLOOKUP(AQ$115&$U118,GTYF!$C:$AQ,37,FALSE) -> 0 | AR118: =VLOOKUP(AR$115&$U118,GTYF!$C:$AQ,37,FALSE) -> 0 | AS118: =VLOOKUP(AS$115&$U118,GTYF!$C:$AQ,37,FALSE) -> 0 | AT118: =VLOOKUP(AT$115&$U118,GTYF!$C:$AQ,37,FALSE) -> 4433.702 | AU118: =VLOOKUP(AU$115&$U118,GTYF!$C:$AQ,37,FALSE) -> 0 | AV118: =VLOOKUP(AV$115&$U118,GTYF!$C:$AQ,37,FALSE) -> 894.24 | AW118: =VLOOKUP(AW$115&$U118,GTYF!$C:$AQ,37,FALSE) -> 0 | AX118: =VLOOKUP(AX$115&$U118,GTYF!$C:$AQ,37,FALSE) -> 0 | AY118: =VLOOKUP(AY$115&$U118,GTYF!$C:$AQ,37,FALSE) -> 0 | AZ118: 5327.942 | BA118: =VLOOKUP(BA$115&$U118,GTYF!$C:$AQ,37,FALSE) -> 65.46
B119: Érablières rouges | E119: - | F119: - | G119: - | H119: 112.9167344 | I119: 156.1325751 | J119: ND | M119: 112.9167344 | N119: 156.1325751 | P119: 112.9167344 | S119: Tableau 9. | T119: Érablières rouges | U119: (FCTYF_ERO) | V119: =VLOOKUP(V$115&$U119,GTYF!$C:$AQ,37,FALSE) -> 123.1 | W119: =VLOOKUP(W$115&$U119,GTYF!$C:$AQ,6,FALSE) -> 1461.4 | X119: =VLOOKUP(X$115&$U119,GTYF!$C:$AQ,37,FALSE) -> 1966.074 | Y119: =VLOOKUP(Y$115&$U119,GTYF!$C:$AQ,37,FALSE) -> 13199.776 | Z119: =VLOOKUP(Z$115&$U119,GTYF!$C:$AQ,37,FALSE) -> 0 | AA119: =VLOOKUP(AA$115&$U119,GTYF!$C:$AQ,37,FALSE) -> 0 | AB119: =VLOOKUP(AB$115&$U119,GTYF!$C:$AQ,37,FALSE) -> 19219.92 | AC119: =VLOOKUP(AC$115&$U119,GTYF!$C:$AQ,37,FALSE) -> 0 | AD119: =VLOOKUP(AD$115&$U119,GTYF!$C:$AQ,37,FALSE) -> 123.1 | AE119: =VLOOKUP(AE$115&$U119,GTYF!$C:$AQ,37,FALSE) -> 0 | AF119: =VLOOKUP(AF$115&$U119,GTYF!$C:$AQ,37,FALSE) -> 0 | AG119: =VLOOKUP(AG$115&$U119,GTYF!$C:$AQ,37,FALSE) -> 0 | AH119: =VLOOKUP(AH$115&$U119,GTYF!$C:$AQ,37,FALSE) -> 2780.01 | AI119: =VLOOKUP(AI$115&$U119,GTYF!$C:$AQ,37,FALSE) -> 0 | AJ119: =VLOOKUP(AJ$115&$U119,GTYF!$C:$AQ,37,FALSE) -> 123.1 | AK119: =VLOOKUP(AK$115&$U119,GTYF!$C:$AQ,37,FALSE) -> 0 | AM119: =VLOOKUP(AM$115&$U119,GTYF!$C:$AQ,37,FALSE) -> 0 | AN119: =VLOOKUP(AN$115&$U119,GTYF!$C:$AQ,37,FALSE) -> 0 | AO119: =VLOOKUP(AO$115&$U119,GTYF!$C:$AQ,37,FALSE) -> 0 | AP119: =VLOOKUP(AP$115&$U119,GTYF!$C:$AQ,37,FALSE) -> 0 | AQ119: =VLOOKUP(AQ$115&$U119,GTYF!$C:$AQ,37,FALSE) -> 0 | AR119: =VLOOKUP(AR$115&$U119,GTYF!$C:$AQ,37,FALSE) -> 0 | AS119: =VLOOKUP(AS$115&$U119,GTYF!$C:$AQ,37,FALSE) -> 0 | AT119: =VLOOKUP(AT$115&$U119,GTYF!$C:$AQ,37,FALSE) -> 0 | AU119: =VLOOKUP(AU$115&$U119,GTYF!$C:$AQ,37,FALSE) -> 0 | AV119: =VLOOKUP(AV$115&$U119,GTYF!$C:$AQ,37,FALSE) -> 0 | AW119: =VLOOKUP(AW$115&$U119,GTYF!$C:$AQ,37,FALSE) -> 0 | AX119: =VLOOKUP(AX$115&$U119,GTYF!$C:$AQ,37,FALSE) -> 0 | AY119: =VLOOKUP(AY$115&$U119,GTYF!$C:$AQ,37,FALSE) -> 0 | AZ119: 0 | BA119: =VLOOKUP(BA$115&$U119,GTYF!$C:$AQ,37,FALSE) -> 0
B120: Feuillus tolérants | E120: 40 | F120: 72 | G120: 24 | H120: - | I120: - | J120: - | M120: - | N120: - | P120: - | S120: Tableau 9. | T120: Feuillus tolérants | U120: (FCTYF_FT) | V120: =VLOOKUP(V$115&$U120,GTYF!$C:$AQ,37,FALSE) -> 5706.208 | W120: =VLOOKUP(W$115&$U120,GTYF!$C:$AQ,6,FALSE) -> 59585 | X120: =VLOOKUP(X$115&$U120,GTYF!$C:$AQ,37,FALSE) -> 1682.88 | Y120: =VLOOKUP(Y$115&$U120,GTYF!$C:$AQ,37,FALSE) -> 17910.998 | Z120: =VLOOKUP(Z$115&$U120,GTYF!$C:$AQ,37,FALSE) -> 0 | AA120: =VLOOKUP(AA$115&$U120,GTYF!$C:$AQ,37,FALSE) -> 0 | AB120: =VLOOKUP(AB$115&$U120,GTYF!$C:$AQ,37,FALSE) -> 0 | AC120: =VLOOKUP(AC$115&$U120,GTYF!$C:$AQ,37,FALSE) -> 0 | AD120: =VLOOKUP(AD$115&$U120,GTYF!$C:$AQ,37,FALSE) -> 0 | AE120: =VLOOKUP(AE$115&$U120,GTYF!$C:$AQ,37,FALSE) -> 99167.38 | AF120: =VLOOKUP(AF$115&$U120,GTYF!$C:$AQ,37,FALSE) -> 0 | AG120: =VLOOKUP(AG$115&$U120,GTYF!$C:$AQ,37,FALSE) -> 0 | AH120: =VLOOKUP(AH$115&$U120,GTYF!$C:$AQ,37,FALSE) -> 0 | AI120: =VLOOKUP(AI$115&$U120,GTYF!$C:$AQ,37,FALSE) -> 0 | AJ120: =VLOOKUP(AJ$115&$U120,GTYF!$C:$AQ,37,FALSE) -> 0 | AK120: =VLOOKUP(AK$115&$U120,GTYF!$C:$AQ,37,FALSE) -> 12269.874 | AM120: =VLOOKUP(AM$115&$U120,GTYF!$C:$AQ,37,FALSE) -> 0 | AN120: =VLOOKUP(AN$115&$U120,GTYF!$C:$AQ,37,FALSE) -> 0 | AO120: =VLOOKUP(AO$115&$U120,GTYF!$C:$AQ,37,FALSE) -> 0 | AP120: =VLOOKUP(AP$115&$U120,GTYF!$C:$AQ,37,FALSE) -> 0 | AQ120: =VLOOKUP(AQ$115&$U120,GTYF!$C:$AQ,37,FALSE) -> 0 | AR120: =VLOOKUP(AR$115&$U120,GTYF!$C:$AQ,37,FALSE) -> 0 | AS120: =VLOOKUP(AS$115&$U120,GTYF!$C:$AQ,37,FALSE) -> 54869.748 | AT120: =VLOOKUP(AT$115&$U120,GTYF!$C:$AQ,37,FALSE) -> 60546.914 | AU120: =VLOOKUP(AU$115&$U120,GTYF!$C:$AQ,37,FALSE) -> 6944.996 | AV120: =VLOOKUP(AV$115&$U120,GTYF!$C:$AQ,37,FALSE) -> 229942.654 | AW120: =VLOOKUP(AW$115&$U120,GTYF!$C:$AQ,37,FALSE) -> 0 | AX120: =VLOOKUP(AX$115&$U120,GTYF!$C:$AQ,37,FALSE) -> 0 | AY120: =VLOOKUP(AY$115&$U120,GTYF!$C:$AQ,37,FALSE) -> 0 | AZ120: 352304.312 | BA120: =VLOOKUP(BA$115&$U120,GTYF!$C:$AQ,37,FALSE) -> 5706.208
B121: Feuillus tolérants à résineux | E121: 39 | F121: 83 | G121: 25 | H121: >120 | I121: 172.0524338 | J121: ND | M121: 144.0314066 | N121: 172.0524338 | P121: 144.0314066 | S121: Tableau 9. | T121: Feuillus tolérants à résineux | U121: (FCTYF_FTR) | V121: =VLOOKUP(V$115&$U121,GTYF!$C:$AQ,37,FALSE) -> 677.604 | W121: =VLOOKUP(W$115&$U121,GTYF!$C:$AQ,6,FALSE) -> 8918.5 | X121: =VLOOKUP(X$115&$U121,GTYF!$C:$AQ,37,FALSE) -> 5599.7 | Y121: =VLOOKUP(Y$115&$U121,GTYF!$C:$AQ,37,FALSE) -> 24897.242 | Z121: =VLOOKUP(Z$115&$U121,GTYF!$C:$AQ,37,FALSE) -> 15382.864 | AA121: =VLOOKUP(AA$115&$U121,GTYF!$C:$AQ,37,FALSE) -> 0 | AB121: =VLOOKUP(AB$115&$U121,GTYF!$C:$AQ,37,FALSE) -> 0 | AC121: =VLOOKUP(AC$115&$U121,GTYF!$C:$AQ,37,FALSE) -> 0 | AD121: =VLOOKUP(AD$115&$U121,GTYF!$C:$AQ,37,FALSE) -> 89.408 | AE121: =VLOOKUP(AE$115&$U121,GTYF!$C:$AQ,37,FALSE) -> 0 | AF121: =VLOOKUP(AF$115&$U121,GTYF!$C:$AQ,37,FALSE) -> 2575.512 | AG121: =VLOOKUP(AG$115&$U121,GTYF!$C:$AQ,37,FALSE) -> 0 | AH121: =VLOOKUP(AH$115&$U121,GTYF!$C:$AQ,37,FALSE) -> 0 | AI121: =VLOOKUP(AI$115&$U121,GTYF!$C:$AQ,37,FALSE) -> 0 | AJ121: =VLOOKUP(AJ$115&$U121,GTYF!$C:$AQ,37,FALSE) -> 89.408 | AK121: =VLOOKUP(AK$115&$U121,GTYF!$C:$AQ,37,FALSE) -> 0 | AM121: =VLOOKUP(AM$115&$U121,GTYF!$C:$AQ,37,FALSE) -> 0 | AN121: =VLOOKUP(AN$115&$U121,GTYF!$C:$AQ,37,FALSE) -> 0 | AO121: =VLOOKUP(AO$115&$U121,GTYF!$C:$AQ,37,FALSE) -> 0 | AP121: =VLOOKUP(AP$115&$U121,GTYF!$C:$AQ,37,FALSE) -> 0 | AQ121: =VLOOKUP(AQ$115&$U121,GTYF!$C:$AQ,37,FALSE) -> 0 | AR121: =VLOOKUP(AR$115&$U121,GTYF!$C:$AQ,37,FALSE) -> 0 | AS121: =VLOOKUP(AS$115&$U121,GTYF!$C:$AQ,37,FALSE) -> 27941.464 | AT121: =VLOOKUP(AT$115&$U121,GTYF!$C:$AQ,37,FALSE) -> 0 | AU121: =VLOOKUP(AU$115&$U121,GTYF!$C:$AQ,37,FALSE) -> 20614.82 | AV121: =VLOOKUP(AV$115&$U121,GTYF!$C:$AQ,37,FALSE) -> 0 | AW121: =VLOOKUP(AW$115&$U121,GTYF!$C:$AQ,37,FALSE) -> 0 | AX121: =VLOOKUP(AX$115&$U121,GTYF!$C:$AQ,37,FALSE) -> 0 | AY121: =VLOOKUP(AY$115&$U121,GTYF!$C:$AQ,37,FALSE) -> 0 | AZ121: =SUM(AM121:AY121) -> 48556.284 | BA121: =VLOOKUP(BA$115&$U121,GTYF!$C:$AQ,37,FALSE) -> 588.198
B122: Pessières | E122: 29 | F122: 55 | G122: 34 | H122: 111.1720725 | I122: 170.2259478 | J122: 173.6092571 | M122: 111.1720725 | N122: 170.2259478 | P122: 111.1720725 | S122: Tableau 9. | T122: Pessières | U122: (FCTYF_EPX) | V122: =VLOOKUP(V$115&$U122,GTYF!$C:$AQ,37,FALSE) -> 208.88 | W122: =VLOOKUP(W$115&$U122,GTYF!$C:$AQ,6,FALSE) -> 2357.7 | X122: =VLOOKUP(X$115&$U122,GTYF!$C:$AQ,37,FALSE) -> 12949.944 | Y122: =VLOOKUP(Y$115&$U122,GTYF!$C:$AQ,37,FALSE) -> 74592.474 | Z122: =VLOOKUP(Z$115&$U122,GTYF!$C:$AQ,37,FALSE) -> 16164.656 | AA122: =VLOOKUP(AA$115&$U122,GTYF!$C:$AQ,37,FALSE) -> 0 | AB122: =VLOOKUP(AB$115&$U122,GTYF!$C:$AQ,37,FALSE) -> 0 | AC122: =VLOOKUP(AC$115&$U122,GTYF!$C:$AQ,37,FALSE) -> 0 | AD122: =VLOOKUP(AD$115&$U122,GTYF!$C:$AQ,37,FALSE) -> 94.96 | AE122: =VLOOKUP(AE$115&$U122,GTYF!$C:$AQ,37,FALSE) -> 0 | AF122: =VLOOKUP(AF$115&$U122,GTYF!$C:$AQ,37,FALSE) -> 2111.38 | AG122: =VLOOKUP(AG$115&$U122,GTYF!$C:$AQ,37,FALSE) -> 0 | AH122: =VLOOKUP(AH$115&$U122,GTYF!$C:$AQ,37,FALSE) -> 0 | AI122: =VLOOKUP(AI$115&$U122,GTYF!$C:$AQ,37,FALSE) -> 0 | AJ122: =VLOOKUP(AJ$115&$U122,GTYF!$C:$AQ,37,FALSE) -> 94.96 | AK122: =VLOOKUP(AK$115&$U122,GTYF!$C:$AQ,37,FALSE) -> 0 | AM122: =VLOOKUP(AM$115&$U122,GTYF!$C:$AQ,37,FALSE) -> 6298.548 | AN122: =VLOOKUP(AN$115&$U122,GTYF!$C:$AQ,37,FALSE) -> 0 | AO122: =VLOOKUP(AO$115&$U122,GTYF!$C:$AQ,37,FALSE) -> 0 | AP122: =VLOOKUP(AP$115&$U122,GTYF!$C:$AQ,37,FALSE) -> 0 | AQ122: =VLOOKUP(AQ$115&$U122,GTYF!$C:$AQ,37,FALSE) -> 0 | AR122: =VLOOKUP(AR$115&$U122,GTYF!$C:$AQ,37,FALSE) -> 0 | AS122: =VLOOKUP(AS$115&$U122,GTYF!$C:$AQ,37,FALSE) -> 0 | AT122: =VLOOKUP(AT$115&$U122,GTYF!$C:$AQ,37,FALSE) -> 0 | AU122: =VLOOKUP(AU$115&$U122,GTYF!$C:$AQ,37,FALSE) -> 0 | AV122: =VLOOKUP(AV$115&$U122,GTYF!$C:$AQ,37,FALSE) -> 0 | AW122: =VLOOKUP(AW$115&$U122,GTYF!$C:$AQ,37,FALSE) -> 0 | AX122: =VLOOKUP(AX$115&$U122,GTYF!$C:$AQ,37,FALSE) -> 0 | AY122: =VLOOKUP(AY$115&$U122,GTYF!$C:$AQ,37,FALSE) -> 0 | AZ122: 6298.548 | BA122: =VLOOKUP(BA$115&$U122,GTYF!$C:$AQ,37,FALSE) -> 113.92
B123: Peupleraies | E123: - | F123: - | G123: - | H123: 71.88757595 | I123: 229.3190979 | J123: 91.66686706 | M123: 71.88757595 | N123: 229.3190979 | P123: 71.88757595 | S123: Tableau 9. | T123: Peupleraies | U123: (FCTYF_PEU) | V123: =VLOOKUP(V$115&$U123,GTYF!$C:$AQ,37,FALSE) -> 255.746 | W123: =VLOOKUP(W$115&$U123,GTYF!$C:$AQ,6,FALSE) -> 3450.2 | X123: =VLOOKUP(X$115&$U123,GTYF!$C:$AQ,37,FALSE) -> 1692.522 | Y123: =VLOOKUP(Y$115&$U123,GTYF!$C:$AQ,37,FALSE) -> 18463.836 | Z123: =VLOOKUP(Z$115&$U123,GTYF!$C:$AQ,37,FALSE) -> 58647.442 | AA123: =VLOOKUP(AA$115&$U123,GTYF!$C:$AQ,37,FALSE) -> 0 | AB123: =VLOOKUP(AB$115&$U123,GTYF!$C:$AQ,37,FALSE) -> 0 | AC123: =VLOOKUP(AC$115&$U123,GTYF!$C:$AQ,37,FALSE) -> 0 | AD123: =VLOOKUP(AD$115&$U123,GTYF!$C:$AQ,37,FALSE) -> 255.746 | AE123: =VLOOKUP(AE$115&$U123,GTYF!$C:$AQ,37,FALSE) -> 0 | AF123: =VLOOKUP(AF$115&$U123,GTYF!$C:$AQ,37,FALSE) -> 3676.992 | AG123: =VLOOKUP(AG$115&$U123,GTYF!$C:$AQ,37,FALSE) -> 0 | AH123: =VLOOKUP(AH$115&$U123,GTYF!$C:$AQ,37,FALSE) -> 0 | AI123: =VLOOKUP(AI$115&$U123,GTYF!$C:$AQ,37,FALSE) -> 0 | AJ123: =VLOOKUP(AJ$115&$U123,GTYF!$C:$AQ,37,FALSE) -> 255.746 | AK123: =VLOOKUP(AK$115&$U123,GTYF!$C:$AQ,37,FALSE) -> 0 | AM123: =VLOOKUP(AM$115&$U123,GTYF!$C:$AQ,37,FALSE) -> 0 | AN123: =VLOOKUP(AN$115&$U123,GTYF!$C:$AQ,37,FALSE) -> 0 | AO123: =VLOOKUP(AO$115&$U123,GTYF!$C:$AQ,37,FALSE) -> 0 | AP123: =VLOOKUP(AP$115&$U123,GTYF!$C:$AQ,37,FALSE) -> 0 | AQ123: =VLOOKUP(AQ$115&$U123,GTYF!$C:$AQ,37,FALSE) -> 0 | AR123: =VLOOKUP(AR$115&$U123,GTYF!$C:$AQ,37,FALSE) -> 0 | AS123: =VLOOKUP(AS$115&$U123,GTYF!$C:$AQ,37,FALSE) -> 0 | AT123: =VLOOKUP(AT$115&$U123,GTYF!$C:$AQ,37,FALSE) -> 0 | AU123: =VLOOKUP(AU$115&$U123,GTYF!$C:$AQ,37,FALSE) -> 0 | AV123: =VLOOKUP(AV$115&$U123,GTYF!$C:$AQ,37,FALSE) -> 0 | AW123: =VLOOKUP(AW$115&$U123,GTYF!$C:$AQ,37,FALSE) -> 0 | AX123: =VLOOKUP(AX$115&$U123,GTYF!$C:$AQ,37,FALSE) -> 0 | AY123: =VLOOKUP(AY$115&$U123,GTYF!$C:$AQ,37,FALSE) -> 0 | AZ123: 0 | BA123: =VLOOKUP(BA$115&$U123,GTYF!$C:$AQ,37,FALSE) -> 0
B124: Peupleraies à résineux | E124: - | F124: - | G124: - | H124: 57.12157816 | I124: 197.5606968 | J124: 117.9843402 | M124: 57.12157816 | N124: 197.5606968 | P124: 57.12157816 | S124: Tableau 9. | T124: Peupleraies à résineux | U124: (FCTYF_PEUR) | V124: =VLOOKUP(V$115&$U124,GTYF!$C:$AQ,37,FALSE) -> 129.974 | W124: =VLOOKUP(W$115&$U124,GTYF!$C:$AQ,6,FALSE) -> 1257.9 | X124: =VLOOKUP(X$115&$U124,GTYF!$C:$AQ,37,FALSE) -> 5826.886 | Y124: =VLOOKUP(Y$115&$U124,GTYF!$C:$AQ,37,FALSE) -> 49386.944 | Z124: =VLOOKUP(Z$115&$U124,GTYF!$C:$AQ,37,FALSE) -> 25677.754 | AA124: =VLOOKUP(AA$115&$U124,GTYF!$C:$AQ,37,FALSE) -> 0 | AB124: =VLOOKUP(AB$115&$U124,GTYF!$C:$AQ,37,FALSE) -> 0 | AC124: =VLOOKUP(AC$115&$U124,GTYF!$C:$AQ,37,FALSE) -> 0 | AD124: =VLOOKUP(AD$115&$U124,GTYF!$C:$AQ,37,FALSE) -> 129.974 | AE124: =VLOOKUP(AE$115&$U124,GTYF!$C:$AQ,37,FALSE) -> 0 | AF124: =VLOOKUP(AF$115&$U124,GTYF!$C:$AQ,37,FALSE) -> 1484.864 | AG124: =VLOOKUP(AG$115&$U124,GTYF!$C:$AQ,37,FALSE) -> 0 | AH124: =VLOOKUP(AH$115&$U124,GTYF!$C:$AQ,37,FALSE) -> 0 | AI124: =VLOOKUP(AI$115&$U124,GTYF!$C:$AQ,37,FALSE) -> 0 | AJ124: =VLOOKUP(AJ$115&$U124,GTYF!$C:$AQ,37,FALSE) -> 129.974 | AK124: =VLOOKUP(AK$115&$U124,GTYF!$C:$AQ,37,FALSE) -> 0 | AM124: =VLOOKUP(AM$115&$U124,GTYF!$C:$AQ,37,FALSE) -> 0 | AN124: =VLOOKUP(AN$115&$U124,GTYF!$C:$AQ,37,FALSE) -> 0 | AO124: =VLOOKUP(AO$115&$U124,GTYF!$C:$AQ,37,FALSE) -> 0 | AP124: =VLOOKUP(AP$115&$U124,GTYF!$C:$AQ,37,FALSE) -> 0 | AQ124: =VLOOKUP(AQ$115&$U124,GTYF!$C:$AQ,37,FALSE) -> 0 | AR124: =VLOOKUP(AR$115&$U124,GTYF!$C:$AQ,37,FALSE) -> 0 | AS124: =VLOOKUP(AS$115&$U124,GTYF!$C:$AQ,37,FALSE) -> 0 | AT124: =VLOOKUP(AT$115&$U124,GTYF!$C:$AQ,37,FALSE) -> 0 | AU124: =VLOOKUP(AU$115&$U124,GTYF!$C:$AQ,37,FALSE) -> 0 | AV124: =VLOOKUP(AV$115&$U124,GTYF!$C:$AQ,37,FALSE) -> 0 | AW124: =VLOOKUP(AW$115&$U124,GTYF!$C:$AQ,37,FALSE) -> 0 | AX124: =VLOOKUP(AX$115&$U124,GTYF!$C:$AQ,37,FALSE) -> 0 | AY124: =VLOOKUP(AY$115&$U124,GTYF!$C:$AQ,37,FALSE) -> 0 | AZ124: 0 | BA124: =VLOOKUP(BA$115&$U124,GTYF!$C:$AQ,37,FALSE) -> 0
B125: Pinèdes blanches | E125: 52 | F125: 118 | G125: 32 | H125: - | I125: - | J125: - | M125: - | N125: - | P125: - | S125: Tableau 9. | T125: Pinèdes blanches | U125: (FCTYF_PIN) | V125: =VLOOKUP(V$115&$U125,GTYF!$C:$AQ,37,FALSE) -> 158.836 | W125: =VLOOKUP(W$115&$U125,GTYF!$C:$AQ,6,FALSE) -> 1775.6 | X125: =VLOOKUP(X$115&$U125,GTYF!$C:$AQ,37,FALSE) -> 0 | Y125: =VLOOKUP(Y$115&$U125,GTYF!$C:$AQ,37,FALSE) -> 0 | Z125: =VLOOKUP(Z$115&$U125,GTYF!$C:$AQ,37,FALSE) -> 0 | AA125: =VLOOKUP(AA$115&$U125,GTYF!$C:$AQ,37,FALSE) -> 0 | AB125: =VLOOKUP(AB$115&$U125,GTYF!$C:$AQ,37,FALSE) -> 0 | AC125: =VLOOKUP(AC$115&$U125,GTYF!$C:$AQ,37,FALSE) -> 0 | AD125: =VLOOKUP(AD$115&$U125,GTYF!$C:$AQ,37,FALSE) -> 0 | AE125: =VLOOKUP(AE$115&$U125,GTYF!$C:$AQ,37,FALSE) -> 0 | AF125: =VLOOKUP(AF$115&$U125,GTYF!$C:$AQ,37,FALSE) -> 0 | AG125: =VLOOKUP(AG$115&$U125,GTYF!$C:$AQ,37,FALSE) -> 0 | AH125: =VLOOKUP(AH$115&$U125,GTYF!$C:$AQ,37,FALSE) -> 0 | AI125: =VLOOKUP(AI$115&$U125,GTYF!$C:$AQ,37,FALSE) -> 0 | AJ125: =VLOOKUP(AJ$115&$U125,GTYF!$C:$AQ,37,FALSE) -> 0 | AK125: =VLOOKUP(AK$115&$U125,GTYF!$C:$AQ,37,FALSE) -> 0 | AM125: =VLOOKUP(AM$115&$U125,GTYF!$C:$AQ,37,FALSE) -> 0 | AN125: =VLOOKUP(AN$115&$U125,GTYF!$C:$AQ,37,FALSE) -> 0 | AO125: =VLOOKUP(AO$115&$U125,GTYF!$C:$AQ,37,FALSE) -> 0 | AP125: =VLOOKUP(AP$115&$U125,GTYF!$C:$AQ,37,FALSE) -> 0 | AQ125: =VLOOKUP(AQ$115&$U125,GTYF!$C:$AQ,37,FALSE) -> 0 | AR125: =VLOOKUP(AR$115&$U125,GTYF!$C:$AQ,37,FALSE) -> 0 | AS125: =VLOOKUP(AS$115&$U125,GTYF!$C:$AQ,37,FALSE) -> 8901.956 | AT125: =VLOOKUP(AT$115&$U125,GTYF!$C:$AQ,37,FALSE) -> 0 | AU125: =VLOOKUP(AU$115&$U125,GTYF!$C:$AQ,37,FALSE) -> 9816.774 | AV125: =VLOOKUP(AV$115&$U125,GTYF!$C:$AQ,37,FALSE) -> 0 | AW125: =VLOOKUP(AW$115&$U125,GTYF!$C:$AQ,37,FALSE) -> 0 | AX125: =VLOOKUP(AX$115&$U125,GTYF!$C:$AQ,37,FALSE) -> 0 | AY125: =VLOOKUP(AY$115&$U125,GTYF!$C:$AQ,37,FALSE) -> 0 | AZ125: 18718.73 | BA125: =VLOOKUP(BA$115&$U125,GTYF!$C:$AQ,37,FALSE) -> 158.836
B126: Pinèdes grises | E126: - | F126: - | G126: - | H126: - | I126: - | J126: - | M126: - | N126: - | P126: - | S126: Tableau 9. | T126: Pinèdes grises | U126: (FCTYF_PIG) | V126: =VLOOKUP(V$115&$U126,GTYF!$C:$AQ,37,FALSE) -> 0 | W126: =VLOOKUP(W$115&$U126,GTYF!$C:$AQ,6,FALSE) -> 0 | X126: =VLOOKUP(X$115&$U126,GTYF!$C:$AQ,37,FALSE) -> 0 | Y126: =VLOOKUP(Y$115&$U126,GTYF!$C:$AQ,37,FALSE) -> 0 | Z126: =VLOOKUP(Z$115&$U126,GTYF!$C:$AQ,37,FALSE) -> 0 | AA126: =VLOOKUP(AA$115&$U126,GTYF!$C:$AQ,37,FALSE) -> 0 | AB126: =VLOOKUP(AB$115&$U126,GTYF!$C:$AQ,37,FALSE) -> 0 | AC126: =VLOOKUP(AC$115&$U126,GTYF!$C:$AQ,37,FALSE) -> 0 | AD126: =VLOOKUP(AD$115&$U126,GTYF!$C:$AQ,37,FALSE) -> 0 | AE126: =VLOOKUP(AE$115&$U126,GTYF!$C:$AQ,37,FALSE) -> 0 | AF126: =VLOOKUP(AF$115&$U126,GTYF!$C:$AQ,37,FALSE) -> 0 | AG126: =VLOOKUP(AG$115&$U126,GTYF!$C:$AQ,37,FALSE) -> 0 | AH126: =VLOOKUP(AH$115&$U126,GTYF!$C:$AQ,37,FALSE) -> 0 | AI126: =VLOOKUP(AI$115&$U126,GTYF!$C:$AQ,37,FALSE) -> 0 | AJ126: =VLOOKUP(AJ$115&$U126,GTYF!$C:$AQ,37,FALSE) -> 0 | AK126: =VLOOKUP(AK$115&$U126,GTYF!$C:$AQ,37,FALSE) -> 0 | AM126: =VLOOKUP(AM$115&$U126,GTYF!$C:$AQ,37,FALSE) -> 0 | AN126: =VLOOKUP(AN$115&$U126,GTYF!$C:$AQ,37,FALSE) -> 0 | AO126: =VLOOKUP(AO$115&$U126,GTYF!$C:$AQ,37,FALSE) -> 0 | AP126: =VLOOKUP(AP$115&$U126,GTYF!$C:$AQ,37,FALSE) -> 0 | AQ126: =VLOOKUP(AQ$115&$U126,GTYF!$C:$AQ,37,FALSE) -> 0 | AR126: =VLOOKUP(AR$115&$U126,GTYF!$C:$AQ,37,FALSE) -> 0 | AS126: =VLOOKUP(AS$115&$U126,GTYF!$C:$AQ,37,FALSE) -> 0 | AT126: =VLOOKUP(AT$115&$U126,GTYF!$C:$AQ,37,FALSE) -> 0 | AU126: =VLOOKUP(AU$115&$U126,GTYF!$C:$AQ,37,FALSE) -> 0 | AV126: =VLOOKUP(AV$115&$U126,GTYF!$C:$AQ,37,FALSE) -> 0 | AW126: =VLOOKUP(AW$115&$U126,GTYF!$C:$AQ,37,FALSE) -> 0 | AX126: =VLOOKUP(AX$115&$U126,GTYF!$C:$AQ,37,FALSE) -> 0 | AY126: =VLOOKUP(AY$115&$U126,GTYF!$C:$AQ,37,FALSE) -> 0 | AZ126: 0 | BA126: =VLOOKUP(BA$115&$U126,GTYF!$C:$AQ,37,FALSE) -> 0
B127: Prucheraies | E127: 45 | F127: 89 | G127: 31 | H127: - | I127: - | J127: - | M127: - | N127: - | P127: - | S127: Tableau 9. | T127: Prucheraies | U127: (FCTYF_PRU) | V127: =VLOOKUP(V$115&$U127,GTYF!$C:$AQ,37,FALSE) -> 18.24 | W127: =VLOOKUP(W$115&$U127,GTYF!$C:$AQ,6,FALSE) -> 7337.8 | X127: =VLOOKUP(X$115&$U127,GTYF!$C:$AQ,37,FALSE) -> 0 | Y127: =VLOOKUP(Y$115&$U127,GTYF!$C:$AQ,37,FALSE) -> 0 | Z127: =VLOOKUP(Z$115&$U127,GTYF!$C:$AQ,37,FALSE) -> 0 | AA127: =VLOOKUP(AA$115&$U127,GTYF!$C:$AQ,37,FALSE) -> 0 | AB127: =VLOOKUP(AB$115&$U127,GTYF!$C:$AQ,37,FALSE) -> 0 | AC127: =VLOOKUP(AC$115&$U127,GTYF!$C:$AQ,37,FALSE) -> 0 | AD127: =VLOOKUP(AD$115&$U127,GTYF!$C:$AQ,37,FALSE) -> 0 | AE127: =VLOOKUP(AE$115&$U127,GTYF!$C:$AQ,37,FALSE) -> 0 | AF127: =VLOOKUP(AF$115&$U127,GTYF!$C:$AQ,37,FALSE) -> 0 | AG127: =VLOOKUP(AG$115&$U127,GTYF!$C:$AQ,37,FALSE) -> 0 | AH127: =VLOOKUP(AH$115&$U127,GTYF!$C:$AQ,37,FALSE) -> 0 | AI127: =VLOOKUP(AI$115&$U127,GTYF!$C:$AQ,37,FALSE) -> 0 | AJ127: =VLOOKUP(AJ$115&$U127,GTYF!$C:$AQ,37,FALSE) -> 0 | AK127: =VLOOKUP(AK$115&$U127,GTYF!$C:$AQ,37,FALSE) -> 0 | AM127: =VLOOKUP(AM$115&$U127,GTYF!$C:$AQ,37,FALSE) -> 0 | AN127: =VLOOKUP(AN$115&$U127,GTYF!$C:$AQ,37,FALSE) -> 0 | AO127: =VLOOKUP(AO$115&$U127,GTYF!$C:$AQ,37,FALSE) -> 0 | AP127: =VLOOKUP(AP$115&$U127,GTYF!$C:$AQ,37,FALSE) -> 0 | AQ127: =VLOOKUP(AQ$115&$U127,GTYF!$C:$AQ,37,FALSE) -> 0 | AR127: =VLOOKUP(AR$115&$U127,GTYF!$C:$AQ,37,FALSE) -> 0 | AS127: =VLOOKUP(AS$115&$U127,GTYF!$C:$AQ,37,FALSE) -> 0 | AT127: =VLOOKUP(AT$115&$U127,GTYF!$C:$AQ,37,FALSE) -> 1623.36 | AU127: =VLOOKUP(AU$115&$U127,GTYF!$C:$AQ,37,FALSE) -> 0 | AV127: =VLOOKUP(AV$115&$U127,GTYF!$C:$AQ,37,FALSE) -> 0 | AW127: =VLOOKUP(AW$115&$U127,GTYF!$C:$AQ,37,FALSE) -> 0 | AX127: =VLOOKUP(AX$115&$U127,GTYF!$C:$AQ,37,FALSE) -> 0 | AY127: =VLOOKUP(AY$115&$U127,GTYF!$C:$AQ,37,FALSE) -> 0 | AZ127: 1623.36 | BA127: =VLOOKUP(BA$115&$U127,GTYF!$C:$AQ,37,FALSE) -> 18.24
B128: Résineux à feuillus | E128: - | F128: - | G128: - | H128: 57.58114267 | I128: 172.9628041 | J128: 157.9193534 | M128: 57.58114267 | N128: 172.9628041 | P128: 57.58114267 | S128: Tableau 9. | T128: Résineux à feuillus | U128: (FCTYF_RF) | V128: =VLOOKUP(V$115&$U128,GTYF!$C:$AQ,37,FALSE) -> 187.386 | W128: =VLOOKUP(W$115&$U128,GTYF!$C:$AQ,6,FALSE) -> 1668.1 | X128: =VLOOKUP(X$115&$U128,GTYF!$C:$AQ,37,FALSE) -> 17156.17 | Y128: =VLOOKUP(Y$115&$U128,GTYF!$C:$AQ,37,FALSE) -> 108638.806 | Z128: =VLOOKUP(Z$115&$U128,GTYF!$C:$AQ,37,FALSE) -> 32410.808 | AA128: =VLOOKUP(AA$115&$U128,GTYF!$C:$AQ,37,FALSE) -> 0 | AB128: =VLOOKUP(AB$115&$U128,GTYF!$C:$AQ,37,FALSE) -> 0 | AC128: =VLOOKUP(AC$115&$U128,GTYF!$C:$AQ,37,FALSE) -> 0 | AD128: =VLOOKUP(AD$115&$U128,GTYF!$C:$AQ,37,FALSE) -> 187.386 | AE128: =VLOOKUP(AE$115&$U128,GTYF!$C:$AQ,37,FALSE) -> 0 | AF128: =VLOOKUP(AF$115&$U128,GTYF!$C:$AQ,37,FALSE) -> 2157.98 | AG128: =VLOOKUP(AG$115&$U128,GTYF!$C:$AQ,37,FALSE) -> 0 | AH128: =VLOOKUP(AH$115&$U128,GTYF!$C:$AQ,37,FALSE) -> 0 | AI128: =VLOOKUP(AI$115&$U128,GTYF!$C:$AQ,37,FALSE) -> 0 | AJ128: =VLOOKUP(AJ$115&$U128,GTYF!$C:$AQ,37,FALSE) -> 187.386 | AK128: =VLOOKUP(AK$115&$U128,GTYF!$C:$AQ,37,FALSE) -> 0 | AM128: =VLOOKUP(AM$115&$U128,GTYF!$C:$AQ,37,FALSE) -> 0 | AN128: =VLOOKUP(AN$115&$U128,GTYF!$C:$AQ,37,FALSE) -> 0 | AO128: =VLOOKUP(AO$115&$U128,GTYF!$C:$AQ,37,FALSE) -> 0 | AP128: =VLOOKUP(AP$115&$U128,GTYF!$C:$AQ,37,FALSE) -> 0 | AQ128: =VLOOKUP(AQ$115&$U128,GTYF!$C:$AQ,37,FALSE) -> 0 | AR128: =VLOOKUP(AR$115&$U128,GTYF!$C:$AQ,37,FALSE) -> 0 | AS128: =VLOOKUP(AS$115&$U128,GTYF!$C:$AQ,37,FALSE) -> 0 | AT128: =VLOOKUP(AT$115&$U128,GTYF!$C:$AQ,37,FALSE) -> 0 | AU128: =VLOOKUP(AU$115&$U128,GTYF!$C:$AQ,37,FALSE) -> 0 | AV128: =VLOOKUP(AV$115&$U128,GTYF!$C:$AQ,37,FALSE) -> 0 | AW128: =VLOOKUP(AW$115&$U128,GTYF!$C:$AQ,37,FALSE) -> 0 | AX128: =VLOOKUP(AX$115&$U128,GTYF!$C:$AQ,37,FALSE) -> 0 | AY128: =VLOOKUP(AY$115&$U128,GTYF!$C:$AQ,37,FALSE) -> 0 | AZ128: 0 | BA128: =VLOOKUP(BA$115&$U128,GTYF!$C:$AQ,37,FALSE) -> 0
B129: Sapinières | E129: - | F129: - | G129: - | H129: - | I129: - | J129: - | M129: =IFERROR(($AF129+$AG129+$AH129+$AI129)/$AJ129*5,"-") -> - | N129: - | P129: - | S129: Tableau 9. | T129: Sapinières | U129: (FCTYF_SAB) | V129: =VLOOKUP(V$115&$U129,GTYF!$C:$AQ,37,FALSE) -> 0 | W129: =VLOOKUP(W$115&$U129,GTYF!$C:$AQ,6,FALSE) -> 0 | X129: =VLOOKUP(X$115&$U129,GTYF!$C:$AQ,37,FALSE) -> 0 | Y129: =VLOOKUP(Y$115&$U129,GTYF!$C:$AQ,37,FALSE) -> 0 | Z129: =VLOOKUP(Z$115&$U129,GTYF!$C:$AQ,37,FALSE) -> 0 | AA129: =VLOOKUP(AA$115&$U129,GTYF!$C:$AQ,37,FALSE) -> 0 | AB129: =VLOOKUP(AB$115&$U129,GTYF!$C:$AQ,37,FALSE) -> 0 | AC129: =VLOOKUP(AC$115&$U129,GTYF!$C:$AQ,37,FALSE) -> 0 | AD129: =VLOOKUP(AD$115&$U129,GTYF!$C:$AQ,37,FALSE) -> 0 | AE129: =VLOOKUP(AE$115&$U129,GTYF!$C:$AQ,37,FALSE) -> 0 | AF129: =VLOOKUP(AF$115&$U129,GTYF!$C:$AQ,37,FALSE) -> 0 | AG129: =VLOOKUP(AG$115&$U129,GTYF!$C:$AQ,37,FALSE) -> 0 | AH129: =VLOOKUP(AH$115&$U129,GTYF!$C:$AQ,37,FALSE) -> 0 | AI129: =VLOOKUP(AI$115&$U129,GTYF!$C:$AQ,37,FALSE) -> 0 | AJ129: =VLOOKUP(AJ$115&$U129,GTYF!$C:$AQ,37,FALSE) -> 0 | AK129: =VLOOKUP(AK$115&$U129,GTYF!$C:$AQ,37,FALSE) -> 0 | AM129: =VLOOKUP(AM$115&$U129,GTYF!$C:$AQ,37,FALSE) -> 0 | AN129: =VLOOKUP(AN$115&$U129,GTYF!$C:$AQ,37,FALSE) -> 0 | AO129: =VLOOKUP(AO$115&$U129,GTYF!$C:$AQ,37,FALSE) -> 0 | AP129: =VLOOKUP(AP$115&$U129,GTYF!$C:$AQ,37,FALSE) -> 0 | AQ129: =VLOOKUP(AQ$115&$U129,GTYF!$C:$AQ,37,FALSE) -> 0 | AR129: =VLOOKUP(AR$115&$U129,GTYF!$C:$AQ,37,FALSE) -> 0 | AS129: =VLOOKUP(AS$115&$U129,GTYF!$C:$AQ,37,FALSE) -> 0 | AT129: =VLOOKUP(AT$115&$U129,GTYF!$C:$AQ,37,FALSE) -> 0 | AU129: =VLOOKUP(AU$115&$U129,GTYF!$C:$AQ,37,FALSE) -> 0 | AV129: =VLOOKUP(AV$115&$U129,GTYF!$C:$AQ,37,FALSE) -> 0 | AW129: =VLOOKUP(AW$115&$U129,GTYF!$C:$AQ,37,FALSE) -> 0 | AX129: =VLOOKUP(AX$115&$U129,GTYF!$C:$AQ,37,FALSE) -> 0 | AY129: =VLOOKUP(AY$115&$U129,GTYF!$C:$AQ,37,FALSE) -> 0 | AZ129: 0 | BA129: =VLOOKUP(BA$115&$U129,GTYF!$C:$AQ,37,FALSE) -> 0
S130: Tableau 9. | T130: Tous les GTYF | V130: =SUM(V116:V129) -> 7531.434 | W130: =SUM(W116:W129) -> 90878.4 | X130: 46874.176 | Y130: 307090.076 | Z130: 148283.524 | AA130: 0 | AB130: 19219.92 | AC130: 0 | AD130: 880.574 | AE130: 99167.38 | AF130: 12006.728 | AG130: 0 | AH130: 2780.01 | AI130: 0 | AJ130: 880.574 | AK130: 12269.874
L131: Les statistiques portants sur les coupes partielles proviennent d'un Script R et sont disponibles ici:
L132: T:\Donnees\02_Courant\01_CPF\01_UA\0XXXX\70_Determination\72_Rapport\01_Cahier_DET\Tableau_9
L133: Données T:\Donnees\02_Courant\01_CPF\01_UA\07251\70_Determination\72_Rapport\01_Cahier_DET\Tableau_9\Coupes_partielles_P2_a_P6.xlsx intégrées
B134: Tableau 10. Traitements non commerciaux supportant les possibilités forestières | L134: Données colonne F selon résultat script R Coupes_partielles_P2_a_P6.xlsx
B135: Traitements non commerciaux | F135: Superficie annuelle moyenne (ha/an) | G135: Superficie antérieure (ha/an) | H135: Écart (ha/an) | X135: Exemple U03772
K138: Le texte en rouge demande à l'analyste de valider la nature exacte du traitement et les superficies - variable selon la vague et l'UA - veuillez ensuite mettre en noir et supprimer la remarque si elle ne s'applique pas (si DEG_1 ne contient pas de regarni)
B139: Ligniculture (essences à croissance rapide) | F139: =ROUND(V139,-1) -> 0 | G139: =IFERROR(ROUND(VLOOKUP(O33,DataLocal!$A:$BH,47,FALSE),-1),0) -> 0 | H139: =F139-G139 -> 0 | S139: =LEFT(B$134,11) -> Tableau 10. | T139: Plantation ligniculture (pins, feuillus) | U139: OSUPPL_PPF | V139: =IFERROR(VLOOKUP(U139,Output!C:AQ,37,FALSE),0)/5 -> 0
B140: Plantation intensive (2 000 plants/ha) | F140: =ROUND(V140,-1) -> 20 | G140: =IFERROR(ROUND(VLOOKUP(O33,DataLocal!$A:$BH,48,FALSE),-1),0) -> 0 | H140: =F140-G140 -> 20 | S140: =LEFT(B$134,11) -> Tableau 10. | T140: Plantation intensive | U140: OSUPPL_SEPM_I | V140: =IFERROR(VLOOKUP(U140,Output!C:AQ,37,FALSE),0)/5 -> 15.3972
B141: Plantation de base (1 600 plants/ha) | F141: =ROUND(V141,-1) -> 30 | G141: =IFERROR(ROUND(VLOOKUP(O33,DataLocal!$A:$BH,49,FALSE),-1),0) -> 60 | H141: -30 | S141: Tableau 10. | T141: Plantation de base | U141: OSUPPL_SEPM_E | V141: =IFERROR(VLOOKUP(U141,Output!C:AQ,37,FALSE),0)/5 -> 32.532
B142: Regarni | F142: =ROUND(V142,-1) -> 70 | G142: =IFERROR(ROUND(VLOOKUP(O33,DataLocal!$A:$BH,50,FALSE),-1),0) -> 10 | H142: 60 | S142: Tableau 10. | T142: Regarni | U142: OSUPREG | V142: =IFERROR(VLOOKUP(U142,Output!C:AQ,37,FALSE),0)/5 -> 68.4948
B143: % des plantations dans les coupes totales | F143: =IFERROR(SUM(F139:F141)/G92,0) -> 0.2777777778 | G143: =IFERROR(SUM(G139:G141)/H92,0) -> 0.6 | H143: =(F143-G143) -> -0.3222222222 | S143: Tableau 10.
B144: Total des travaux de reboisement | F144: =ROUND(SUM(F139:F142),-1) -> 120 | G144: =ROUND(SUM(G139:G142),-1) -> 70 | H144: 50 | S144: Tableau 10.
B145: Nettoiement (régénération naturelle et plantation) | F145: =ROUND(V145,-1) -> 400 | G145: =IFERROR(ROUND(VLOOKUP(O33,DataLocal!$A:$BH,51,FALSE),-1),0) -> 0 | H145: 400 | S145: Tableau 10. | T145: Nettoiement | U145: OSUPREALNET | V145: =IFERROR(VLOOKUP(U145,Output!C:AQ,37,FALSE),0)/5 -> 400.16
B146: Éclaircie précommerciale | F146: =ROUND(V146,-1) -> 0 | G146: =IFERROR(ROUND(VLOOKUP(O33,DataLocal!$A:$BH,52,FALSE),-1),0) -> 40 | H146: -40 | S146: Tableau 10. | T146: Éclaircie précommerciale de la régénération naturelle | U146: OSUPREALEPC | V146: =IFERROR(VLOOKUP(U146,Output!C:AQ,37,FALSE),0)/5 -> 0 | X146: Exemple U09751
B147: Dégagement de la régénération naturelle (et regarni) | F147: =ROUND(V147,-1) -> 90 | G147: =IFERROR(ROUND(VLOOKUP(O33,DataLocal!$A:$BH,53,FALSE),-1),0) -> 0 | H147: 90 | S147: Tableau 10. | T147: Dégagement de la régénération naturelle | U147: OSUPDEG_2 | V147: =IFERROR(VLOOKUP(U147,Output!C:AQ,37,FALSE),0)/5 -> 88.4948
B148: Dégagement des plantations | F148: =ROUND(V148,-1) -> 60 | G148: =IFERROR(ROUND(VLOOKUP(O33,DataLocal!$A:$BH,54,FALSE),-1),0) -> 60 | H148: 0 | S148: Tableau 10. | T148: Dégagement de plantation | U148: OSUPDEG_1 | V148: =IFERROR(VLOOKUP(U148,Output!C:AQ,37,FALSE),0)/5 -> 63.3264
B149: Élagage | F149: =ROUND(V149,-1) -> 20 | G149: =IFERROR(ROUND(VLOOKUP(O33,DataLocal!$A:$BN,66,FALSE),-1),0) -> 10 | H149: 10 | S149: Tableau 10. | T149: Élagage (plantation) | U149: OSUPELAG | V149: =IFERROR(VLOOKUP(U149,Output!C:AQ,37,FALSE),0)/5 -> 18.0148
B150: Total des travaux d'éducation | F150: =SUM(F145:F149) -> 570 | G150: =SUM(G145:G149) -> 110 | H150: 460 | S150: Tableau 10. | U150: OSUPSCA_LIGN | V150: =IFERROR(VLOOKUP(U150,Output!C:AQ,37,FALSE),0)/5 -> 0
B151: Scarifiage partiel | F151: =ROUND(V152,-1) -> 60 | G151: =IFERROR(ROUND(VLOOKUP(O33,DataLocal!$A:$BH,58,FALSE),-1),0) -> 260 | H151: -200 | S151: Tableau 10. | U151: OSUPSCA_LRD | V151: =IFERROR(VLOOKUP(U151,Output!C:AQ,37,FALSE),0)/5 -> 0
B152: Scarifiage en plein | F152: =ROUND(V153+V150+V151,-1) -> 70 | G152: =IFERROR(ROUND(VLOOKUP(O33,DataLocal!$A:$BH,59,FALSE),-1),0) -> 60 | H152: 10 | S152: Tableau 10. | U152: OSUPSCA_PART | V152: =IFERROR(VLOOKUP(U152,Output!C:AQ,37,FALSE),0)/5 -> 56.9952
B153: Total de la préparation de terrain | F153: =IFERROR(SUM(F151:F152),0) -> 130 | G153: =IFERROR(SUM(G151:G152),0) -> 320 | H153: -190 | S153: Tableau 10. | U153: OSUPSCA_REG | V153: =IFERROR(VLOOKUP(U153,Output!C:AQ,37,FALSE),0)/5 -> 72.5492
B154: Total des travaux sans récolte | F154: =F153+F150+F144 -> 820 | G154: =G153+G150+G144 -> 500 | H154: 320
B160: Tableau 13 : Variation du volume sur pied à court, moyen et long terme | L160: % du volume total | U160: colonne | V160: 37 | W160: 38 | X160: 39 | Y160: 40 | AF160: 37 | AG160: 38 | AH160: 39 | AI160: 40
B161: Essences | C161: Volume moyen sur pied (m3) | G161: Volume moyen sur pied (%) | V161: Volume moyen sur pied (m3) | Z161: Volume moyen sur pied (%) | AF161: Volume dans courbe SNAT
C162: 2023 à 2048 | D162: 2048 à 2073 | E162: 2073 à 2118 | F162: 2118 à 2168 | G162: =C162 -> 2023 à 2048 | H162: =D162 -> 2048 à 2073 | I162: 2073 à 2118 | J162: 2118 à 2168 | L162: 2023 à 2048 | T162: Légende | U162: Name | V162: p 2 à 6 | W162: p 7 à 11 | X162: p 12 à 20 | Y162: p 21 à 30 | Z162: p 2 à 6 | AA162: p 7 à 11 | AB162: p 12 à 20 | AC162: p 21 à 30 | AE162: Name | AF162: p 2 à 6 | AG162: p 7 à 11 | AH162: p 12 à 20 | AI162: p 21 à 30
B163: =T163 -> Sapin baumier | C163: =ROUND(V163-AF163,-2) -> 514900 | D163: =ROUND(W163-AG163,-2) -> 527600 | E163: 485600 | F163: 522200 | G163: =C163/C$177 -> 0.03588953634 | H163: =D163/D$177 -> 0.03615432056 | I163: =E163/E$177 -> 0.03327622833 | J163: =F163/F$177 -> 0.03578428013 | L163: =C163/C$177 -> 0.03588953634 | S163: =LEFT(B$160,11) -> Tableau 13 | T163: Sapin baumier | U163: OVOLSABPIEDINC | V163: =VLOOKUP($U163,Output!$C:$AQ,V$160,FALSE) -> 514938.792 | W163: =VLOOKUP($U163,Output!$C:$AQ,W$160,FALSE) -> 527569.64 | X163: =VLOOKUP($U163,Output!$C:$AQ,X$160,FALSE) -> 485615.9578 | Y163: =VLOOKUP($U163,Output!$C:$AQ,Y$160,FALSE) -> 522211.26 | Z163: =V163/V$178 -> 0.03589219324 | AA163: =W163/W$178 -> 0.03615231141 | AB163: =X163/X$178 -> 0.03327738748 | AC163: =Y163/Y$178 -> 0.03578512231 | AE163: OVOLSABPIEDSNAT | AF163: =IFERROR(VLOOKUP($AE163,Output!$C:$AQ,AF$160,FALSE),0) -> 0 | AG163: =IFERROR(VLOOKUP($AE163,Output!$C:$AQ,AG$160,FALSE),0) -> 0 | AH163: =IFERROR(VLOOKUP($AE163,Output!$C:$AQ,AH$160,FALSE),0) -> 0 | AI163: =IFERROR(VLOOKUP($AE163,Output!$C:$AQ,AI$160,FALSE),0) -> 0
B164: =T164 -> Épinettes | C164: =ROUND(V164-AF164,-2) -> 653600 | D164: 645600 | E164: 708500 | F164: 726200 | G164: 0.04555719742 | H164: 0.04424038923 | I164: 0.04855067498 | J164: 0.04976358528 | L164: 0.04555719742 | S164: Tableau 13 | T164: Épinettes | U164: OVOLgEpxPIEDINC | V164: =VLOOKUP($U164,Output!$C:$AQ,V$160,FALSE) -> 653586.652 | W164: =VLOOKUP($U164,Output!$C:$AQ,W$160,FALSE) -> 645617.168 | X164: =VLOOKUP($U164,Output!$C:$AQ,X$160,FALSE) -> 708469.4744 | Y164: =VLOOKUP($U164,Output!$C:$AQ,Y$160,FALSE) -> 726194.14 | Z164: 0.04555620742 | AA164: 0.04424165293 | AB164: 0.04854867893 | AC164: 0.04976328186 | AE164: OVOLgEpxPIEDSNAT | AF164: =IFERROR(VLOOKUP($AE164,Output!$C:$AQ,AF$160,FALSE),0) -> 0 | AG164: =IFERROR(VLOOKUP($AE164,Output!$C:$AQ,AG$160,FALSE),0) -> 0 | AH164: =IFERROR(VLOOKUP($AE164,Output!$C:$AQ,AH$160,FALSE),0) -> 0 | AI164: =IFERROR(VLOOKUP($AE164,Output!$C:$AQ,AI$160,FALSE),0) -> 0
B165: =T165 -> Pin gris | C165: 32100 | D165: 27500 | E165: 28100 | F165: 18800 | G165: 0.002237432738 | H165: 0.001884465155 | I165: 0.001925580758 | J165: 0.001288288906 | L165: 0.002237432738 | S165: Tableau 13 | T165: Pin gris | U165: OVOLgPgPIEDINC | V165: =VLOOKUP($U165,Output!$C:$AQ,V$160,FALSE) -> 32147.87 | W165: =VLOOKUP($U165,Output!$C:$AQ,W$160,FALSE) -> 27544.626 | X165: =VLOOKUP($U165,Output!$C:$AQ,X$160,FALSE) -> 28056.49444 | Y165: =VLOOKUP($U165,Output!$C:$AQ,Y$160,FALSE) -> 18758.964 | Z165: 0.002240766437 | AA165: 0.001887526919 | AB165: 0.001922603288 | AC165: 0.001285479408 | AE165: OVOLgPgPIEDSNAT | AF165: =IFERROR(VLOOKUP($AE165,Output!$C:$AQ,AF$160,FALSE),0) -> 0 | AG165: =IFERROR(VLOOKUP($AE165,Output!$C:$AQ,AG$160,FALSE),0) -> 0 | AH165: =IFERROR(VLOOKUP($AE165,Output!$C:$AQ,AH$160,FALSE),0) -> 0 | AI165: =IFERROR(VLOOKUP($AE165,Output!$C:$AQ,AI$160,FALSE),0) -> 0
B166: =T166 -> Mélèzes | C166: 2300 | D166: 1900 | E166: 1300 | F166: 800 | G166: 0.0001603144952 | H166: 0.0001301994107 | I166: 8.90838073e-05 | J166: 5.48208045e-05 | L166: 0.0001603144952 | S166: Tableau 13 | T166: Mélèzes | U166: OVOLgMlPIEDINC | V166: =VLOOKUP($U166,Output!$C:$AQ,V$160,FALSE) -> 2349.11 | W166: =VLOOKUP($U166,Output!$C:$AQ,W$160,FALSE) -> 1911.838 | X166: =VLOOKUP($U166,Output!$C:$AQ,X$160,FALSE) -> 1287.606667 | Y166: =VLOOKUP($U166,Output!$C:$AQ,Y$160,FALSE) -> 841.155 | Z166: 0.0001637373439 | AA166: 0.0001310108799 | AB166: 8.823471569e-05 | AC166: 5.764110594e-05 | AE166: OVOLGMlPIEDSNAT | AF166: =IFERROR(VLOOKUP($AE166,Output!$C:$AQ,AF$160,FALSE),0) -> 0 | AG166: =IFERROR(VLOOKUP($AE166,Output!$C:$AQ,AG$160,FALSE),0) -> 0 | AH166: =IFERROR(VLOOKUP($AE166,Output!$C:$AQ,AH$160,FALSE),0) -> 0 | AI166: =IFERROR(VLOOKUP($AE166,Output!$C:$AQ,AI$160,FALSE),0) -> 0
B167: Thuya | C167: =ROUND(V167-AF167,-2) -> 356100 | D167: 347500 | E167: 331400 | F167: 331300 | G167: 0.02482086598 | H167: 0.02381278695 | I167: 0.02270951826 | J167: 0.02270266566 | L167: 0.02482086598 | S167: Tableau 13 | T167: Thuya | U167: OVOLTHOPIEDINC | V167: =VLOOKUP($U167,Output!$C:$AQ,V$160,FALSE) -> 356119.762 | W167: =VLOOKUP($U167,Output!$C:$AQ,W$160,FALSE) -> 347528.858 | X167: =VLOOKUP($U167,Output!$C:$AQ,X$160,FALSE) -> 331360.7844 | Y167: =VLOOKUP($U167,Output!$C:$AQ,Y$160,FALSE) -> 331312.774 | Z167: 0.02482221094 | AA167: 0.02381481144 | AB167: 0.02270687576 | AC167: 0.02270358579 | AE167: OVOLTHOPIEDSNAT | AF167: =IFERROR(VLOOKUP($AE167,Output!$C:$AQ,AF$160,FALSE),0) -> 0 | AG167: =IFERROR(VLOOKUP($AE167,Output!$C:$AQ,AG$160,FALSE),0) -> 0 | AH167: =IFERROR(VLOOKUP($AE167,Output!$C:$AQ,AH$160,FALSE),0) -> 0 | AI167: =IFERROR(VLOOKUP($AE167,Output!$C:$AQ,AI$160,FALSE),0) -> 0
B168: Pruche | C168: 838700 | D168: 843300 | E168: 770000 | F168: 747700 | G168: 0.05845902919 | H168: 0.05778798054 | I168: 0.05276502433 | J168: 0.0512368944 | L168: 0.05845902919 | S168: Tableau 13 | T168: Pruche | U168: OVOLPRUPIEDINC | V168: =VLOOKUP($U168,Output!$C:$AQ,V$160,FALSE) -> 838671.198 | W168: =VLOOKUP($U168,Output!$C:$AQ,W$160,FALSE) -> 843312.596 | X168: =VLOOKUP($U168,Output!$C:$AQ,X$160,FALSE) -> 770045.5144 | Y168: =VLOOKUP($U168,Output!$C:$AQ,Y$160,FALSE) -> 747716.043 | Z168: 0.05845694512 | AA168: 0.05778895766 | AB168: 0.05276824732 | AC168: 0.05123809481 | AE168: OVOLPRUPIEDSNAT | AF168: =IFERROR(VLOOKUP($AE168,Output!$C:$AQ,AF$160,FALSE),0) -> 0 | AG168: =IFERROR(VLOOKUP($AE168,Output!$C:$AQ,AG$160,FALSE),0) -> 0 | AH168: =IFERROR(VLOOKUP($AE168,Output!$C:$AQ,AH$160,FALSE),0) -> 0 | AI168: =IFERROR(VLOOKUP($AE168,Output!$C:$AQ,AI$160,FALSE),0) -> 0
B169: Pins blanc et rouge | C169: 339600 | D169: 325900 | E169: 292000 | F169: 270800 | G169: 0.02367078373 | H169: 0.02233262523 | I169: 0.02000959364 | J169: 0.01855684232 | L169: 0.02367078373 | S169: Tableau 13 | T169: Pins blanc et rouge | U169: OVOLGPINSPIEDINC | V169: =VLOOKUP($U169,Output!$C:$AQ,V$160,FALSE) -> 339636.458 | W169: =VLOOKUP($U169,Output!$C:$AQ,W$160,FALSE) -> 325861.296 | X169: =VLOOKUP($U169,Output!$C:$AQ,X$160,FALSE) -> 292028.1389 | Y169: =VLOOKUP($U169,Output!$C:$AQ,Y$160,FALSE) -> 270840.824 | Z169: 0.02367329394 | AA169: 0.02233001704 | AB169: 0.02001156135 | AC169: 0.01855967643 | AE169: OVOLGPINSCPIEDSNAT | AF169: =IFERROR(VLOOKUP($AE169,Output!$C:$AQ,AF$160,FALSE),0) -> 0 | AG169: =IFERROR(VLOOKUP($AE169,Output!$C:$AQ,AG$160,FALSE),0) -> 0 | AH169: =IFERROR(VLOOKUP($AE169,Output!$C:$AQ,AH$160,FALSE),0) -> 0 | AI169: =IFERROR(VLOOKUP($AE169,Output!$C:$AQ,AI$160,FALSE),0) -> 0
B170: Peupliers | C170: 615300 | D170: 539200 | E170: 625600 | F170: 579200 | G170: 0.04288761257 | H170: 0.03694922223 | I170: 0.04286986912 | J170: 0.03969026245 | L170: 0.04288761257 | S170: Tableau 13 | T170: Peupliers | U170: OVOLGPEUPIEDINC | V170: =VLOOKUP($U170,Output!$C:$AQ,V$160,FALSE) -> 615252.606 | W170: =VLOOKUP($U170,Output!$C:$AQ,W$160,FALSE) -> 539173.11 | X170: =VLOOKUP($U170,Output!$C:$AQ,X$160,FALSE) -> 625612.0011 | Y170: =VLOOKUP($U170,Output!$C:$AQ,Y$160,FALSE) -> 579203.531 | Z170: 0.04288425298 | AA170: 0.03694745243 | AB170: 0.04287077605 | AC170: 0.0396905827 | AE170: OVOLPEUPIEDSNAT | AF170: =IFERROR(VLOOKUP($AE170,Output!$C:$AQ,AF$160,FALSE),0) -> 0 | AG170: =IFERROR(VLOOKUP($AE170,Output!$C:$AQ,AG$160,FALSE),0) -> 0 | AH170: =IFERROR(VLOOKUP($AE170,Output!$C:$AQ,AH$160,FALSE),0) -> 0 | AI170: =IFERROR(VLOOKUP($AE170,Output!$C:$AQ,AI$160,FALSE),0) -> 0
B171: Bouleau à papier | C171: 325200 | D171: 420000 | E171: 454200 | F171: 545200 | G171: 0.02266707558 | H171: 0.02878092236 | I171: 0.03112451175 | J171: 0.03736037826 | L171: 0.02266707558 | N171: =(F171-C171)/C171 -> 0.6765067651 | S171: Tableau 13 | T171: Bouleau à papier | U171: OVOLgBpPIEDINC | V171: =VLOOKUP($U171,Output!$C:$AQ,V$160,FALSE) -> 325230.732 | W171: =VLOOKUP($U171,Output!$C:$AQ,W$160,FALSE) -> 420017.07 | X171: =VLOOKUP($U171,Output!$C:$AQ,X$160,FALSE) -> 454222.0378 | Y171: =VLOOKUP($U171,Output!$C:$AQ,Y$160,FALSE) -> 545237.279 | Z171: 0.02266918799 | AA171: 0.02878214886 | AB171: 0.0311260833 | AC171: 0.03736300653 | AE171: OVOLgBpPIEDSNAT | AF171: =IFERROR(VLOOKUP($AE171,Output!$C:$AQ,AF$160,FALSE),0) -> 0 | AG171: =IFERROR(VLOOKUP($AE171,Output!$C:$AQ,AG$160,FALSE),0) -> 0 | AH171: =IFERROR(VLOOKUP($AE171,Output!$C:$AQ,AH$160,FALSE),0) -> 0 | AI171: =IFERROR(VLOOKUP($AE171,Output!$C:$AQ,AI$160,FALSE),0) -> 0
B172: Bouleau jaune | C172: 1352000 | D172: 1406400 | E172: 1314700 | F172: 1275100 | G172: 0.09423704241 | H172: 0.0963749743 | I172: 0.09009113959 | J172: 0.08737750976 | L172: 0.09423704241 | N172: =(F172-C172)/C172 -> -0.05687869822 | S172: Tableau 13 | T172: Bouleau jaune | U172: OVOLBOJPIEDINC | V172: =VLOOKUP($U172,Output!$C:$AQ,V$160,FALSE) -> 1351992.072 | W172: =VLOOKUP($U172,Output!$C:$AQ,W$160,FALSE) -> 1406427.226 | X172: =VLOOKUP($U172,Output!$C:$AQ,X$160,FALSE) -> 1314652.583 | Y172: =VLOOKUP($U172,Output!$C:$AQ,Y$160,FALSE) -> 1275126.002 | Z172: 0.09423636647 | AA172: 0.09637703006 | AB172: 0.09008806798 | AC172: 0.08737946391 | AE172: OVOLBOJPIEDSNAT | AF172: =IFERROR(VLOOKUP($AE172,Output!$C:$AQ,AF$160,FALSE),0) -> 0 | AG172: =IFERROR(VLOOKUP($AE172,Output!$C:$AQ,AG$160,FALSE),0) -> 0 | AH172: =IFERROR(VLOOKUP($AE172,Output!$C:$AQ,AH$160,FALSE),0) -> 0 | AI172: =IFERROR(VLOOKUP($AE172,Output!$C:$AQ,AI$160,FALSE),0) -> 0
B173: Érable rouge | C173: 814100 | D173: 798900 | E173: 757500 | F173: 808100 | G173: 0.05674436111 | H173: 0.05474542589 | I173: 0.05190844926 | J173: 0.05537586514 | L173: 0.05674436111 | S173: Tableau 13 | T173: Érable rouge | U173: OVOLgEroPIEDINC | V173: =VLOOKUP($U173,Output!$C:$AQ,V$160,FALSE) -> 814134.544 | W173: =VLOOKUP($U173,Output!$C:$AQ,W$160,FALSE) -> 798863.772 | X173: =VLOOKUP($U173,Output!$C:$AQ,X$160,FALSE) -> 757478.1244 | Y173: =VLOOKUP($U173,Output!$C:$AQ,Y$160,FALSE) -> 808060.304 | Z173: 0.05674669462 | AA173: 0.05474305129 | AB173: 0.05190705258 | AC173: 0.05537325414 | AE173: OVOLgEroPIEDSNAT | AF173: =IFERROR(VLOOKUP($AE173,Output!$C:$AQ,AF$160,FALSE),0) -> 0 | AG173: =IFERROR(VLOOKUP($AE173,Output!$C:$AQ,AG$160,FALSE),0) -> 0 | AH173: =IFERROR(VLOOKUP($AE173,Output!$C:$AQ,AH$160,FALSE),0) -> 0 | AI173: =IFERROR(VLOOKUP($AE173,Output!$C:$AQ,AI$160,FALSE),0) -> 0
B174: Érable à sucre | C174: 5916900 | D174: 6055000 | E174: 6086400 | F174: 5999100 | G174: 0.4124194942 | H174: 0.414924964 | I174: 0.4170766806 | J174: 0.4110943603 | L174: 0.4124194942 | S174: Tableau 13 | T174: Érable à sucre | U174: OVOLERSPIEDINC | V174: =VLOOKUP($U174,Output!$C:$AQ,V$160,FALSE) -> 5916920.014 | W174: =VLOOKUP($U174,Output!$C:$AQ,W$160,FALSE) -> 6054983.16 | X174: =VLOOKUP($U174,Output!$C:$AQ,X$160,FALSE) -> 6086443.192 | Y174: =VLOOKUP($U174,Output!$C:$AQ,Y$160,FALSE) -> 5999125.822 | Z174: 0.4124203495 | AA174: 0.4149246284 | AB174: 0.4170804629 | AC174: 0.4110969405 | AE174: OVOLERSPIEDSNAT | AF174: =IFERROR(VLOOKUP($AE174,Output!$C:$AQ,AF$160,FALSE),0) -> 0 | AG174: =IFERROR(VLOOKUP($AE174,Output!$C:$AQ,AG$160,FALSE),0) -> 0 | AH174: =IFERROR(VLOOKUP($AE174,Output!$C:$AQ,AH$160,FALSE),0) -> 0 | AI174: =IFERROR(VLOOKUP($AE174,Output!$C:$AQ,AI$160,FALSE),0) -> 0
B175: Autres feuillus durs | C175: =ROUND(V175-AF175,-2) -> 2585800 | D175: 2654200 | E175: 2737700 | F175: 2768300 | G175: 0.1802353138 | H175: 0.1818817241 | I175: 0.1876036456 | J175: 0.1897005414 | L175: 0.1802353138 | S175: Tableau 13 | T175: Autres feuillus durs | V175: =V178-V176-V174-V173-V172-V171-V170-V169-V168-V167 -> 2585838.968 | W175: =W178-W176-W174-W173-W172-W171-W170-W169-W168-W167 -> 2654160.86 | X175: =X178-X176-X174-X173-X172-X171-X170-X169-X168-X167 -> 2737699.306 | Y175: =Y178-Y176-Y174-Y173-Y172-Y171-Y170-Y169-Y168-Y167 -> 2768343.122 | Z175: 0.180237794 | AA175: 0.1818794007 | AB175: 0.187603968 | AC175: 0.1897038705 | AE175: Autres feuillus durs | AF175: =AF178-AF176-AF174-AF173-AF172-AF171-AF170-AF169-AF168-AF167 -> 0 | AG175: =AG178-AG176-AG174-AG173-AG172-AG171-AG170-AG169-AG168-AG167 -> 0 | AH175: =AH178-AH176-AH174-AH173-AH172-AH171-AH170-AH169-AH168-AH167 -> 0 | AI175: =AI178-AI176-AI174-AI173-AI172-AI171-AI170-AI169-AI168-AI167 -> 0
B176: Autres essences | C176: =IF($L$163<0.0095,C163,0)+IF($L$164<0.0095,C164,0)+IF($L$165<0.0095,C165,0)+IF($L$166<0.0095,C166,0)+IF($L$167<0.0095,C167,0)+IF($L$168<0.0095,C168,0)+IF($L$169<0.0095,C169,0)+IF($L$170<0.0095,C170,0)+IF($L$171<0.0095,C171,0)+IF($L$172<0.0095,C172,0)+IF($L$173<0.0095,C173,0)+IF($L$174<0.0095,C174+0)+IF($L$175<0.0095,C175,0) -> 34400 | D176: =IF($L$163<0.0095,D163,0)+IF($L$164<0.0095,D164,0)+IF($L$165<0.0095,D165,0)+IF($L$166<0.0095,D166,0)+IF($L$167<0.0095,D167,0)+IF($L$168<0.0095,D168,0)+IF($L$169<0.0095,D169,0)+IF($L$170<0.0095,D170,0)+IF($L$171<0.0095,D171,0)+IF($L$172<0.0095,D172,0)+IF($L$173<0.0095,D173,0)+IF($L$174<0.0095,D174+0)+IF($L$175<0.0095,D175,0) -> 29400 | E176: =IF($L$163<0.0095,E163,0)+IF($L$164<0.0095,E164,0)+IF($L$165<0.0095,E165,0)+IF($L$166<0.0095,E166,0)+IF($L$167<0.0095,E167,0)+IF($L$168<0.0095,E168,0)+IF($L$169<0.0095,E169,0)+IF($L$170<0.0095,E170,0)+IF($L$171<0.0095,E171,0)+IF($L$172<0.0095,E172,0)+IF($L$173<0.0095,E173,0)+IF($L$174<0.0095,E174+0)+IF($L$175<0.0095,E175,0) -> 29400 | F176: =IF($L$163<0.0095,F163,0)+IF($L$164<0.0095,F164,0)+IF($L$165<0.0095,F165,0)+IF($L$166<0.0095,F166,0)+IF($L$167<0.0095,F167,0)+IF($L$168<0.0095,F168,0)+IF($L$169<0.0095,F169,0)+IF($L$170<0.0095,F170,0)+IF($L$171<0.0095,F171,0)+IF($L$172<0.0095,F172,0)+IF($L$173<0.0095,F173,0)+IF($L$174<0.0095,F174+0)+IF($L$175<0.0095,F175,0) -> 19600 | G176: 0.002397747233 | H176: 0.002014664565 | I176: 0.002014664565 | J176: 0.00134310971 | L176: 0.002397747233 | S176: Tableau 13 | T176: SEPM | U176: OVOLGSEPMPIEDINC | V176: =VLOOKUP($U176,Output!$C:$AQ,V$160,FALSE) -> 1203022.424 | W176: =VLOOKUP($U176,Output!$C:$AQ,W$160,FALSE) -> 1202643.272 | X176: =VLOOKUP($U176,Output!$C:$AQ,X$160,FALSE) -> 1223429.538 | Y176: =VLOOKUP($U176,Output!$C:$AQ,Y$160,FALSE) -> 1268005.519 | Z176: 0.08385290444 | AA176: 0.08241250215 | AB176: 0.08383690472 | AC176: 0.08689152469 | AE176: OVOLgSEPMPIEDSNAT | AF176: =IFERROR(VLOOKUP($AE176,Output!$C:$AQ,AF$160,FALSE),0) -> 0 | AG176: =IFERROR(VLOOKUP($AE176,Output!$C:$AQ,AG$160,FALSE),0) -> 0 | AH176: =IFERROR(VLOOKUP($AE176,Output!$C:$AQ,AH$160,FALSE),0) -> 0 | AI176: =IFERROR(VLOOKUP($AE176,Output!$C:$AQ,AI$160,FALSE),0) -> 0
B177: Total | C177: =ROUND(V178-AF178,-2) -> 14346800 | D177: =ROUND(W178-AG178,-2) -> 14593000 | E177: =ROUND(X178-AH178,-2) -> 14593000 | F177: =ROUND(Y178-AI178,-2) -> 14593000 | G177: 1 | H177: 1 | I177: 1 | J177: 1 | S177: Tableau 13 | T177: FN - ERS BOJ | U177: OVOLGFNPIEDINC | V177: =VLOOKUP($U177,Output!$C:$AQ,V$160,FALSE) -> 1285117.442 | W177: =VLOOKUP($U177,Output!$C:$AQ,W$160,FALSE) -> 1299288.342 | X177: =VLOOKUP($U177,Output!$C:$AQ,X$160,FALSE) -> 1323306.743 | Y177: =VLOOKUP($U177,Output!$C:$AQ,Y$160,FALSE) -> 1268343.471 | Z177: 0.08957508015 | AA177: 0.08903521582 | AB177: 0.09068110417 | AC177: 0.08691468323 | AE177: OVOLgFnPIEDSNAT | AF177: =IFERROR(VLOOKUP($AE177,Output!$C:$AQ,AF$160,FALSE),0) -> 0 | AG177: =IFERROR(VLOOKUP($AE177,Output!$C:$AQ,AG$160,FALSE),0) -> 0 | AH177: =IFERROR(VLOOKUP($AE177,Output!$C:$AQ,AH$160,FALSE),0) -> 0 | AI177: =IFERROR(VLOOKUP($AE177,Output!$C:$AQ,AI$160,FALSE),0) -> 0
L178: Masquer les essences du tableau qui sont en surbrillance (< 1%) | S178: Tableau 13 | T178: TOT sur pied | U178: OVOLTOTPIEDINC | V178: =VLOOKUP($U178,Output!$C:$AQ,V$160,FALSE) -> 14346818.78 | W178: =VLOOKUP($U178,Output!$C:$AQ,W$160,FALSE) -> 14592971.22 | X178: =VLOOKUP($U178,Output!$C:$AQ,X$160,FALSE) -> 14592971.22 | Y178: =VLOOKUP($U178,Output!$C:$AQ,Y$160,FALSE) -> 14592971.22 | Z178: 1 | AA178: 1 | AB178: 1 | AC178: 1 | AE178: OVOLTOTPIEDSNAT | AF178: =IFERROR(VLOOKUP($AE178,Output!$C:$AQ,AF$160,FALSE),0) -> 0 | AG178: =IFERROR(VLOOKUP($AE178,Output!$C:$AQ,AG$160,FALSE),0) -> 0 | AH178: =IFERROR(VLOOKUP($AE178,Output!$C:$AQ,AH$160,FALSE),0) -> 0 | AI178: =IFERROR(VLOOKUP($AE178,Output!$C:$AQ,AI$160,FALSE),0) -> 0
L179: Ces volumes sont comptabilisés dans "Autres essences" | S179: Tableau 13 | T179: Érables à sucre et rouge
D182: P2 | E182: P3 | F182: P4 | G182: P5 | H182: P6
B183: Tableau 15 Statistiques sur les compartiments d’organisation spatiale admissibles à la récolte par période
B184: Compartiments d'organisation spatiale | D184: 2023-2028 | E184: 2028-2033 | F184: 2033-2038 | G184: 2038-2043 | H184: 2043-2048
B185: Nombre total | D185: =Cedule_COS!G6 -> 0
B186: En pessière | D186: =COUNTIF(Cedule_COS!$A$10:$A$1009,"<S*") -> 0 | J186: Fait la sommation automatique des COS débutant par la lettre "P" ou par "C", valider et corriger si nécessaire
B187: En sapinière | D187: =COUNTIF(Cedule_COS!$A$10:$A$1009,"S*") -> 0 | J187: Fait la sommation automatique des COS débutant par la lettre "S", valider et corriger si nécessaire
B188: Admissibles à la récolte | D188: =Cedule_COS!C7 -> 0 | E188: =Cedule_COS!D7 -> 0 | F188: =Cedule_COS!E7 -> 0 | G188: =Cedule_COS!F7 -> 0 | H188: =Cedule_COS!G7 -> 0
B189: % de compartiments admissibles | D189: =Cedule_COS!C8 ->  | E189: =Cedule_COS!D8 ->  | F189: =Cedule_COS!E8 ->  | G189: =Cedule_COS!F8 ->  | H189: =Cedule_COS!G8 -> 
B193: Tableau 17 Superficies considérées pour l'analyse de la mortalité d'ici la période 2023-2028 | S193: =LEFT(B$193,11) -> Tableau 17 | T193: Légende | V193: Output | W193: Valeur | X193: Période | Y193: Année
F194: ha | G194: % | S194: =LEFT(B$193,11) -> Tableau 17 | T194: Incluses aux activités de récolte | V194: OSUPINC | W194: =VLOOKUP($V194,Output!$C:$AQ,6,FALSE) -> 90878.4 | X194: P0 | Y194: 2018
B195: Épidémie sévère confirmée à la photo-interprétation | G195: =F195/W$194 -> 0 | J195: Faire une sélection sur le thème 8 = "INC" et seulement les années correspondant à l'épidémie actuelle | S195: =LEFT(B$193,11) -> Tableau 17 | T195: Épidémie sévère confirmée à la photo-interprétation | V195: Requete dans la table d'attribut
B196: Défoliation cumulative (cote ≥ 15) | F196: =ROUND(W196,-1) ->  | G196: =F196/W$194 ->  | J196: Des champs avaient été ajoutés par l'analyste à la fin de table d'attribut de la carte woodstock | S196: =LEFT(B$193,11) -> Tableau 17 | T196: Défoliation cumulative projetée 2023 ≥ 15 | V196: OSUPINC15+ | W196: =VLOOKUP($V196,Output!$C:$AQ,7,FALSE) ->  | X196: P1 | Y196: 2023
B197: Mortalité projetée | F197: =ROUND(SUM(W197:W198),-1) ->  | G197: =F197/W$194 ->  | J197: et c'est sur ces derniers que doivent se réaliser les requêtes | S197: =LEFT(B$193,11) -> Tableau 17 | T197: Mortalité projetée (sommation des 2 actions) | V197: osupaTBEmort | W197: =VLOOKUP($V197,Output!$C:$AQ,8,FALSE) ->  | X197: P2 | Y197: 2028
B198: Récupération prévue 2018-2023 | F198: =-ROUND(W199,-1) ->  | G198: =F198/W$194 ->  | V198: Osupactiontberetard | W198: =VLOOKUP($V198,Output!$C:$AQ,8,FALSE) ->  | X198: P2 | Y198: 2028
S199: =LEFT(B$193,11) -> Tableau 17 | T199: Récolte prévue à court terme (récupération) | V199: osuprealregapre_15+ | W199: =VLOOKUP($V199,Output!$C:$AQ,7,FALSE) ->  | X199: P1 | Y199: 2023

Sheet Figures
B2: Figure 2. Répartition du volume de bois marchand sur pied en début de calcul (m3). | N2: Volume sur pied en P0 | S2: Source: CahierDetermination_2018-2023 | V2: Volume sur pied en P0 - volume en SNAT | Z2: Volume dans courbe SNAT
L3: Conserver les GTYF même s'ils sont absents de l'UA | S3: Intrants | T3: Légende | U3: Name | V3: PERIOD0 | W3: % | X3: PERIOD0 | Z3: Name | AB3: PERIOD0
N4: Total | O4: =V19 -> 13598300 | S4: =LEFT(B$2,10) -> Figure 2. | T4: Autres feuillus durs | V4: =ROUND(V19-V17-V11-V12-V10-V8-V9-V6-V5-V7,-2) -> 2516300 | W4: =IFERROR(V4/$V$19,0) -> 0.1850451895 | X4: =X19-X17-X11-X12-X10-X8-X9-X6-X5-X7 -> 2516288.37 | Z4: Autres feuillus durs | AB4: =ROUND(AB19-AB17-AB11-AB12-AB10-AB8-AB9-AB6-AB5-AB7,-2) -> 0
N5: % R | O5: =(V17+V12+V11+V10)/V19 -> 0.1842362648 | S5: Figure 2. | T5: Érable à sucre | U5: OVOLERSPIEDINC | V5: =ROUND(X5-AB5,-2) -> 5520100 | W5: 0.4059404484 | X5: =VLOOKUP(U5,Output!$C:$AQ,6,FALSE) -> 5520122.56 | Z5: OVOLERSPIEDSNAT | AB5: =IFERROR(VLOOKUP(Z5,Output!$C:$AQ,6,FALSE),0) -> 0
N6: %SEPM | O6: =V17/V19 -> 0.08196612812 | S6: Figure 2. | T6: Érable rouge | U6: OVOLgEroPIEDINC | V6: 767400 | W6: 0.05643352478 | X6: =VLOOKUP(U6,Output!$C:$AQ,6,FALSE) -> 767443.01 | Z6: OVOLgEroPIEDSNAT | AB6: =IFERROR(VLOOKUP(Z6,Output!$C:$AQ,6,FALSE),0) -> 0
N7: % Fi | O7: =W21 -> 0.1297147438 | P7: =O7*O4 -> 1763900 | S7: Figure 2. | T7: Bouleau jaune | U7: OVOLBOJPIEDINC | V7: 1292700 | W7: 0.09506335351 | X7: =VLOOKUP(U7,Output!$C:$AQ,6,FALSE) -> 1292661.51 | Z7: OVOLBOJPIEDSNAT | AB7: =IFERROR(VLOOKUP(Z7,Output!$C:$AQ,6,FALSE),0) -> 0
N8: % FT | O8: =W22 -> 0.6860489914 | S8: Figure 2. | T8: Bouleau à papier | U8: OVOLgBpPIEDINC | V8: 293900 | W8: 0.02161299574 | X8: =VLOOKUP(U8,Output!$C:$AQ,6,FALSE) -> 293892.73 | Z8: OVOLgBpPIEDSNAT | AB8: =IFERROR(VLOOKUP(Z8,Output!$C:$AQ,6,FALSE),0) -> 0
N9: %Sapin | O9: =V16/V17 -> 0.4618697291 | S9: Figure 2. | T9: Peupliers | U9: OVOLGPEUPIEDINC | V9: 702600 | W9: 0.05166822323 | X9: =VLOOKUP(U9,Output!$C:$AQ,6,FALSE) -> 702554.41 | Z9: OVOLPEUPIEDSNAT | AB9: =IFERROR(VLOOKUP(Z9,Output!$C:$AQ,6,FALSE),0) -> 0
N10: %ERR | O10: =IFERROR(V6/(V5+V6),0) -> 0.1220516899 | S10: Figure 2. | T10: Pins blanc et rouge | U10: OVOLGPINSPIEDINC | V10: 323300 | W10: 0.0237750307 | X10: =VLOOKUP(U10,Output!$C:$AQ,6,FALSE) -> 323333.77 | Z10: OVOLGPINSCPIEDSNAT | AB10: =IFERROR(VLOOKUP(Z10,Output!$C:$AQ,6,FALSE),0) -> 0
S11: Figure 2. | T11: Pruche | U11: OVOLPRUPIEDINC | V11: 714500 | W11: 0.05254333262 | X11: =VLOOKUP(U11,Output!$C:$AQ,6,FALSE) -> 714548.29 | Z11: OVOLPRUPIEDSNAT | AB11: =IFERROR(VLOOKUP(Z11,Output!$C:$AQ,6,FALSE),0) -> 0
N12: Volume sur pied au calcul 2015-2018 | P12: UA | S12: Figure 2. | T12: Thuya | U12: OVOLTHOPIEDINC | V12: 352900 | W12: 0.02595177338 | X12: =VLOOKUP(U12,Output!$C:$AQ,6,FALSE) -> 352871.03 | Z12: OVOLTHOPIEDSNAT | AB12: =IFERROR(VLOOKUP(Z12,Output!$C:$AQ,6,FALSE),0) -> 0
P13: =Tableaux!O33 -> 07251 | S13: Figure 2. | T13: Mélèzes | U13: OVOLgMlPIEDINC | V13: 2500 | W13: 0.0001838465102 | X13: =VLOOKUP(U13,Output!$C:$AQ,6,FALSE) -> 2516.17 | Z13: OVOLGMlPIEDSNAT | AB13: =IFERROR(VLOOKUP(Z13,Output!$C:$AQ,6,FALSE),0) -> 0
N14: Total | O14: =VLOOKUP(P13,DataLocal!$A:$BM,61,FALSE) -> 17038320 | S14: Figure 2. | T14: Pin gris | U14: OVOLgPgPIEDINC | V14: 22600 | W14: 0.001661972452 | X14: =VLOOKUP(U14,Output!$C:$AQ,6,FALSE) -> 22562.57 | Z14: OVOLgPgPIEDSNAT | AB14: =IFERROR(VLOOKUP(Z14,Output!$C:$AQ,6,FALSE),0) -> 0
N15: % R | O15: =VLOOKUP(P13,DataLocal!$A:$BM,62,FALSE) -> 0.24 | S15: Figure 2. | T15: Épinettes | U15: OVOLgEpxPIEDINC | V15: 574700 | W15: 0.04226263577 | X15: =VLOOKUP(U15,Output!$C:$AQ,6,FALSE) -> 574718.37 | Z15: OVOLgEpxPIEDSNAT | AB15: =IFERROR(VLOOKUP(Z15,Output!$C:$AQ,6,FALSE),0) -> 0
N16: % SEPM | O16: =VLOOKUP(P13,DataLocal!$A:$BM,63,FALSE) -> 0.07 | S16: Figure 2. | T16: Sapin baumier | U16: OVOLSABPIEDINC | V16: =ROUND(X16-AB16,-2) -> 514800 | W16: 0.03785767339 | X16: =VLOOKUP(U16,Output!$C:$AQ,6,FALSE) -> 514824.23 | Z16: OVOLSABPIEDSNAT | AB16: =IFERROR(VLOOKUP(Z16,Output!$C:$AQ,6,FALSE),0) -> 0
N17: % Fi | O17: =VLOOKUP(P13,DataLocal!$A:$BM,64,FALSE) -> 0.23 | S17: Figure 2. | T17: SEPM | U17: OVOLGSEPMPIEDINC | V17: =ROUND(X17-AB17,-2) -> 1114600 | W17: =IFERROR(V17/$V$19,0) -> 0.08196612812 | X17: =VLOOKUP(U17,Output!$C:$AQ,6,FALSE) -> 1114621.34 | Z17: OVOLgSEPMPIEDSNAT | AB17: =IFERROR(VLOOKUP(Z17,Output!$C:$AQ,6,FALSE),0) -> 0
N18: % Ft | O18: =VLOOKUP(P13,DataLocal!$A:$BM,65,FALSE) -> 0.53 | S18: Figure 2. | T18: FN - ERS BOJ | U18: OVOLGFNPIEDINC | V18: 1212000 | W18: 0.08912878816 | X18: =VLOOKUP(U18,Output!$C:$AQ,6,FALSE) -> 1212012.67 | Z18: OVOLgFnPIEDSNAT | AB18: =IFERROR(VLOOKUP(Z18,Output!$C:$AQ,6,FALSE),0) -> 0
S19: Figure 2. | T19: TOT sur pied | U19: OVOLTOTPIEDINC | V19: =ROUND(X19-AB19,-2) -> 13598300 | W19: 1 | X19: =VLOOKUP(U19,Output!$C:$AQ,6,FALSE) -> 13598337.02 | Z19: OVOLTOTPIEDSNAT | AB19: =IFERROR(VLOOKUP(Z19,Output!$C:$AQ,6,FALSE),0) -> 0
N20: Vol R | O20: =ROUND(O15*$O$14,-2) -> 4089200 | T20: Érables à sucre et rouge | U20: Érables à sucre et rouge | V20: =V5+V6 -> 6287500 | W20: 0.4623739732 | X20: =X5+X6 -> 6287565.57 | Z20: Érables à sucre et rouge | AB20: =AB5+AB6 -> 0
N21: Vol SEPM | O21: =ROUND(O16*$O$14,-2) -> 1192700 | P21: Traduits en m3 | T21: gFi | U21: OVOLgFiPIEDINC | V21: =ROUND(X21-AB21,-2) -> 1763900 | W21: 0.1297147438 | X21: =VLOOKUP(U21,Output!$C:$AQ,6,FALSE) -> 1763890.15 | Z21: OVOLgFiPIEDSNAT | AB21: =IFERROR(VLOOKUP(Z21,Output!$C:$AQ,6,FALSE),0) -> 0
N22: Vol Fi | O22: =ROUND(O17*$O$14,-2) -> 3918800 | P22: approximativement | T22: gFt | U22: OVOLgFtPIEDINC | V22: 9329100 | W22: 0.6860489914 | X22: =VLOOKUP(U22,Output!$C:$AQ,6,FALSE) -> 9329072.43 | Z22: OVOLgFtPIEDSNAT | AB22: =IFERROR(VLOOKUP(Z22,Output!$C:$AQ,6,FALSE),0) -> 0
N23: Vol Ft | O23: =ROUND(O18*$O$14,-2) -> 9030300
B27: Type de couvert : | C27: =#REF! -> 
B28: Figure 3. Répartition de la superficie par grand type de forêt en début de calcul (ha). | S28: Intrants | T28: Légende | V28: PERIOD0 | W28: % | X28: PERIOD0
S29: =LEFT(B$28,10) -> Figure 3. | T29: Sapinières | U29: (FCTYF_SAB) | V29: =ROUND(X29,-1) -> 0 | W29: =V29/V$44 -> 0 | X29: =VLOOKUP("OSUPINC"&$U29,GTYF!$C:$AP,6,FALSE) -> 0
S30: Figure 3. | T30: Résineux à feuillus | U30: (FCTYF_RF) | V30: =ROUND(X30,-1) -> 1670 | W30: 0.01845477811 | X30: =VLOOKUP("OSUPINC"&$U30,GTYF!$C:$AP,6,FALSE) -> 1668.1
S31: Figure 3. | T31: Prucheraies | U31: (FCTYF_PRU) | V31: 7340 | W31: 0.08111261758 | X31: =VLOOKUP("OSUPINC"&$U31,GTYF!$C:$AP,6,FALSE) -> 7337.8
S32: Figure 3. | T32: Pinèdes grises | U32: (FCTYF_PIG) | V32: 0 | W32: 0 | X32: =VLOOKUP("OSUPINC"&$U32,GTYF!$C:$AP,6,FALSE) -> 0
L33: Conserver les GTYF même s'ils sont absents de l'UA | S33: Figure 3. | T33: Pinèdes blanches | U33: (FCTYF_PIN) | V33: 1780 | W33: 0.0196703623 | X33: =VLOOKUP("OSUPINC"&$U33,GTYF!$C:$AP,6,FALSE) -> 1775.6
S34: Figure 3. | T34: Peupleraies à résineux | U34: (FCTYF_PEUR) | V34: 1260 | W34: 0.01392396433 | X34: =VLOOKUP("OSUPINC"&$U34,GTYF!$C:$AP,6,FALSE) -> 1257.9
S35: Figure 3. | T35: Peupleraies | U35: (FCTYF_PEU) | V35: 3450 | W35: 0.03812514041 | X35: =VLOOKUP("OSUPINC"&$U35,GTYF!$C:$AP,6,FALSE) -> 3450.2
S36: Figure 3. | T36: Pessières | U36: (FCTYF_EPX) | V36: 2360 | W36: 0.0260798062 | X36: =VLOOKUP("OSUPINC"&$U36,GTYF!$C:$AP,6,FALSE) -> 2357.7
S37: Figure 3. | T37: Feuillus tolérants à résineux | U37: (FCTYF_FTR) | V37: 8920 | W37: 0.09857282681 | X37: =VLOOKUP("OSUPINC"&$U37,GTYF!$C:$AP,6,FALSE) -> 8918.5
S38: Figure 3. | T38: Feuillus tolérants | U38: (FCTYF_FT) | V38: 59590 | W38: 0.6585151065 | X38: =VLOOKUP("OSUPINC"&$U38,GTYF!$C:$AP,6,FALSE) -> 59585
S39: Figure 3. | T39: Érablières rouges | U39: (FCTYF_ERO) | V39: 1460 | W39: 0.01613411739 | X39: =VLOOKUP("OSUPINC"&$U39,GTYF!$C:$AP,6,FALSE) -> 1461.4
S40: Figure 3. | T40: Cédrières | U40: (FCTYF_THO) | V40: 1970 | W40: 0.02177000771 | X40: =VLOOKUP("OSUPINC"&$U40,GTYF!$C:$AP,6,FALSE) -> 1968.7
S41: Figure 3. | T41: Bétulaies blanches à résineux | U41: (FCTYF_BOPR) | V41: 1100 | W41: 0.01215584187 | X41: =VLOOKUP("OSUPINC"&$U41,GTYF!$C:$AP,6,FALSE) -> 1097.5
S42: Figure 3. | T42: Bétulaies blanches | U42: (FCTYF_BOP) | V42: 0 | W42: 0 | X42: =VLOOKUP("OSUPINC"&$U42,GTYF!$C:$AP,6,FALSE) -> 0
U43: Somme: | V43: =SUM(V29:V42) -> 90900 | X43: =SUM(X29:X42) -> 90878.4
T44: OSUPINC | U44: Tous | V44: =VLOOKUP("OSUPINC",Output!$C:$AP,7,FALSE) -> 90491.47
V45: =V43-V44 -> 408.53 | W45: Écart
V49: 2018
B50: Figure 4. Superficie destinée à l'aménagement forestier par classe d'âge en début de calcul (ha). | S50: Intrants | U50: Name | V50: PERIOD0 | X50: Classe d'âge | Y50: OUTPUT | Z50: Superficie (ha) | AA50: Pourcentage (%)
S51: =LEFT(B$50,10) -> Figure 4. | T51: 10 ans | U51: OSUP_INC_CLASSEAGEFCAGEAGE1 | V51: =VLOOKUP(U51,Output!$C:$AQ,6,FALSE) -> 1193 | X51: 10 | Z51: =ROUND(SUM(V51:V54),-1) -> 2480 | AA51: =IFERROR(Z51/$V$89,0) -> 0.02728921284
S52: Figure 4. | T52: 10 ans | U52: OSUP_INC_CLASSEAGEFCAGEAGE2 | V52: =VLOOKUP(U52,Output!$C:$AQ,6,FALSE) -> 496.9 | X52: 30 | Z52: =ROUND(SUM(V55:V58),-1) -> 2250 | AA52: 0.02475835842
S53: Figure 4. | T53: 10 ans | U53: OSUP_INC_CLASSEAGEFCAGEAGE3 | V53: =VLOOKUP(U53,Output!$C:$AQ,6,FALSE) -> 519.6 | X53: 50 | Z53: =ROUND(SUM(V59:V62),-1) -> 3060 | AA53: 0.03367136745
S54: Figure 4. | T54: 10 ans | U54: OSUP_INC_CLASSEAGEFCAGEAGE4 | V54: =VLOOKUP(U54,Output!$C:$AQ,6,FALSE) -> 267.8 | X54: 70 | Z54: =ROUND(SUM(V63:V66),-1) -> 1020 | AA54: 0.01122378915
S55: Figure 4. | T55: 30 ans | U55: OSUP_INC_CLASSEAGEFCAGEAGE5 | V55: =VLOOKUP(U55,Output!$C:$AQ,6,FALSE) -> 128.3 | X55: 90 | Z55: =ROUND(SUM(V67:V70),-1) -> 550 | AA55: 0.00605204317
S56: Figure 4. | T56: 30 ans | U56: OSUP_INC_CLASSEAGEFCAGEAGE6 | V56: =VLOOKUP(U56,Output!$C:$AQ,6,FALSE) -> 1119.8 | X56: 120 et plus | Z56: =ROUND(SUM(V71:V80),-1) -> 470 | AA56: 0.005171745981
S57: Figure 4. | T57: 30 ans | U57: OSUP_INC_CLASSEAGEFCAGEAGE7 | V57: =VLOOKUP(U57,Output!$C:$AQ,6,FALSE) -> 320.5
S58: Figure 4. | T58: 30 ans | U58: OSUP_INC_CLASSEAGEFCAGEAGE8 | V58: =VLOOKUP(U58,Output!$C:$AQ,6,FALSE) -> 683.7
S59: Figure 4. | T59: 50 ans | U59: OSUP_INC_CLASSEAGEFCAGEAGE9 | V59: =VLOOKUP(U59,Output!$C:$AQ,6,FALSE) -> 712.1
S60: Figure 4. | T60: 50 ans | U60: OSUP_INC_CLASSEAGEFCAGEAGE10 | V60: =VLOOKUP(U60,Output!$C:$AQ,6,FALSE) -> 739.7
S61: Figure 4. | T61: 50 ans | U61: OSUP_INC_CLASSEAGEFCAGEAGE11 | V61: =VLOOKUP(U61,Output!$C:$AQ,6,FALSE) -> 1482.9
N62: Proportion de la superficie dont l'évolution est suivi en âge: | S62: Figure 4. | T62: 50 ans | U62: OSUP_INC_CLASSEAGEFCAGEAGE12 | V62: =VLOOKUP(U62,Output!$C:$AQ,6,FALSE) -> 128.6
N63: =IF(AND($W$81>=99.5%,$W$81<100%),"> 99%",IF(AND($W$81>=0.1%,$W$81<0.5%),"< 1%",$W$81)) -> 0.1081819222 | S63: Figure 4. | T63: 70 ans | U63: OSUP_INC_CLASSEAGEFCAGEAGE13 | V63: =VLOOKUP(U63,Output!$C:$AQ,6,FALSE) -> 382.1
S64: Figure 4. | T64: 70 ans | U64: OSUP_INC_CLASSEAGEFCAGEAGE14 | V64: =VLOOKUP(U64,Output!$C:$AQ,6,FALSE) -> 345.5
S65: Figure 4. | T65: 70 ans | U65: OSUP_INC_CLASSEAGEFCAGEAGE15 | V65: =VLOOKUP(U65,Output!$C:$AQ,6,FALSE) -> 287.8
S66: Figure 4. | T66: 70 ans | U66: OSUP_INC_CLASSEAGEFCAGEAGE16 | V66: =VLOOKUP(U66,Output!$C:$AQ,6,FALSE) -> 0
S67: Figure 4. | T67: 90 ans | U67: OSUP_INC_CLASSEAGEFCAGEAGE17 | V67: =VLOOKUP(U67,Output!$C:$AQ,6,FALSE) -> 317.6
S68: Figure 4. | T68: 90 ans | U68: OSUP_INC_CLASSEAGEFCAGEAGE18 | V68: =VLOOKUP(U68,Output!$C:$AQ,6,FALSE) -> 0
B69: Figure 5. Superficie destinée à l'aménagement forestier par classe de surface terrière en début de calcul (ha) | S69: Figure 4. | T69: 90 ans | U69: OSUP_INC_CLASSEAGEFCAGEAGE19 | V69: =VLOOKUP(U69,Output!$C:$AQ,6,FALSE) -> 0
S70: Figure 4. | T70: 90 ans | U70: OSUP_INC_CLASSEAGEFCAGEAGE20 | V70: =VLOOKUP(U70,Output!$C:$AQ,6,FALSE) -> 235.2
S71: Figure 4. | T71: 120 et plus | U71: OSUP_INC_CLASSEAGEFCAGEAGE21 | V71: =VLOOKUP(U71,Output!$C:$AQ,6,FALSE) -> 295
S72: Figure 4. | T72: 120 et plus | U72: OSUP_INC_CLASSEAGEFCAGEAGE22 | V72: =VLOOKUP(U72,Output!$C:$AQ,6,FALSE) -> 74.3
S73: Figure 4. | T73: 120 et plus | U73: OSUP_INC_CLASSEAGEFCAGEAGE23 | V73: =VLOOKUP(U73,Output!$C:$AQ,6,FALSE) -> 0
S74: Figure 4. | T74: 120 et plus | U74: OSUP_INC_CLASSEAGEFCAGEAGE24 | V74: =VLOOKUP(U74,Output!$C:$AQ,6,FALSE) -> 0
S75: Figure 4. | T75: 120 et plus | U75: OSUP_INC_CLASSEAGEFCAGEAGE25 | V75: =VLOOKUP(U75,Output!$C:$AQ,6,FALSE) -> 0
N76: Proportion de la superficie dont l'évolution est suivi en surface terrière: | S76: Figure 4. | T76: 120 et plus | U76: OSUP_INC_CLASSEAGEFCAGEAGE26 | V76: =VLOOKUP(U76,Output!$C:$AQ,6,FALSE) -> 0
N77: =IF(AND($W$88>=99.5%,$W$88<100%),"> 99%",IF(AND($W$88>=0.1%,$W$88<0.5%),"< 1%",$W$88)) -> 0.8918180778 | S77: Figure 4. | T77: 120 et plus | U77: OSUP_INC_CLASSEAGEFCAGEAGE27 | V77: =VLOOKUP(U77,Output!$C:$AQ,6,FALSE) -> 0
S78: Figure 4. | T78: 120 et plus | U78: OSUP_INC_CLASSEAGEFCAGEAGE28 | V78: =VLOOKUP(U78,Output!$C:$AQ,6,FALSE) -> 0
S79: Figure 4. | T79: 120 et plus | U79: OSUP_INC_CLASSEAGEFCAGEAGE29 | V79: =VLOOKUP(U79,Output!$C:$AQ,6,FALSE) -> 0
S80: Figure 4. | T80: 120 et plus | U80: OSUP_INC_CLASSEAGEFCAGEAGE30+ | V80: =VLOOKUP(U80,Output!$C:$AQ,6,FALSE) -> 101
U81: Sous-total | V81: =SUM(V51:V80) -> 9831.4 | W81: =V81/V89 -> 0.1081819222
S82: =LEFT(B$69,10) -> Figure 5. | T82: <16 | U82: OSUPINC_ST016(FCST) | V82: =VLOOKUP(U82,GTYF!$C:$AQ,6,FALSE) -> 18574.2 | W82: =IFERROR(V82/$V$88,0) -> 0.2291781312
S83: Figure 5. | T83: 16 à 18 | U83: OSUPINC_ST1619(FCST) | V83: =VLOOKUP(U83,GTYF!$C:$AQ,6,FALSE) -> 16029.9 | W83: 0.1977852357
S84: Figure 5. | T84: 19 à 21 | U84: OSUPINC_ST1922(FCST) | V84: =VLOOKUP(U84,GTYF!$C:$AQ,6,FALSE) -> 15754.2 | W84: 0.1943835059
S85: Figure 5. | T85: 22 à 24 | U85: OSUPINC_ST2225(FCST) | V85: =VLOOKUP(U85,GTYF!$C:$AQ,6,FALSE) -> 24878 | W85: 0.3069576912
S86: Figure 5. | T86: 25 à 28 | U86: OSUPINC_ST2528(FCST) | V86: =VLOOKUP(U86,GTYF!$C:$AQ,6,FALSE) -> 2055.3 | W86: 0.02535935938
S87: Figure 5. | T87: 29+ | U87: OSUPINC_ST29+(FCST) | V87: =VLOOKUP(U87,GTYF!$C:$AQ,6,FALSE) -> 3755.4 | W87: 0.0463360766
S88: Figure 5. | T88: Total 0-29+ | U88: Sous-total | V88: =SUM(V82:V87) -> 81047 | W88: =V88/V89 -> 0.8918180778
U89: OSUPINC | V89: =VLOOKUP(U89,Output!$C:$AQ,6,FALSE) -> 90878.4
A91: 80 | B91: Figure 6. Évolution des volumes et des possibilités forestières à rendement non-décroissant
U93: Période | V93: P0 | W93: P1 | X93: P2 | Y93: P3 | Z93: P4 | AA93: P5 | AB93: P6 | AC93: P7 | AD93: P8 | AE93: P9 | AF93: P10 | AG93: P11 | AH93: P12 | AI93: P13 | AJ93: P14 | AK93: P15 | AL93: P16 | AM93: P17 | AN93: P18 | AO93: P19 | AP93: P20 | AQ93: P21 | AR93: P22 | AS93: P23 | AT93: P24 | AU93: P25 | AV93: P26 | AW93: P27 | AX93: P28 | AY93: P29 | AZ93: P30
U94: Colonne | V94: 6 | W94: 7 | X94: 8 | Y94: 9 | Z94: 10 | AA94: 11 | AB94: 12 | AC94: 13 | AD94: 14 | AE94: 15 | AF94: 16 | AG94: 17 | AH94: 18 | AI94: 19 | AJ94: 20 | AK94: 21 | AL94: 22 | AM94: 23 | AN94: 24 | AO94: 25 | AP94: 26 | AQ94: 27 | AR94: 28 | AS94: 29 | AT94: 30 | AU94: 31 | AV94: 32 | AW94: 33 | AX94: 34 | AY94: 35 | AZ94: 36
S95: =LEFT(B$91,10) -> Figure 6. | T95: Légende | U95: Axe des "X" Début de période | W95: 2018 | X95: 2023 | Y95: 2028 | Z95: 2033 | AA95: 2038 | AB95: 2043 | AC95: 2048 | AD95: 2053 | AE95: 2058 | AF95: 2063 | AG95: 2068 | AH95: 2073 | AI95: 2078 | AJ95: 2083 | AK95: 2088 | AL95: 2093 | AM95: 2098 | AN95: 2103 | AO95: 2108 | AP95: 2113 | AQ95: 2118 | AR95: 2123 | AS95: 2128 | AT95: 2133 | AU95: 2138 | AV95: 2143 | AW95: 2148 | AX95: 2153 | AY95: 2158 | AZ95: 2163
S96: =LEFT(B$91,10) -> Figure 6. | T96: Possibilités forestières quinquennales | U96: OVOLTOTREC | V96: =VLOOKUP($U96,Output!$C:$AM,V$94,FALSE) -> 0 | W96: =VLOOKUP($U96,Output!$C:$AM,W$94,FALSE) -> 525195 | X96: =VLOOKUP($U96,Output!$C:$AM,X$94,FALSE) -> 699500 | Y96: =VLOOKUP($U96,Output!$C:$AM,Y$94,FALSE) -> 699500 | Z96: =VLOOKUP($U96,Output!$C:$AM,Z$94,FALSE) -> 699500 | AA96: =VLOOKUP($U96,Output!$C:$AM,AA$94,FALSE) -> 699500 | AB96: =VLOOKUP($U96,Output!$C:$AM,AB$94,FALSE) -> 699500 | AC96: =VLOOKUP($U96,Output!$C:$AM,AC$94,FALSE) -> 898786.25 | AD96: =VLOOKUP($U96,Output!$C:$AM,AD$94,FALSE) -> 898787.4 | AE96: =VLOOKUP($U96,Output!$C:$AM,AE$94,FALSE) -> 898787.4 | AF96: =VLOOKUP($U96,Output!$C:$AM,AF$94,FALSE) -> 903119.33 | AG96: =VLOOKUP($U96,Output!$C:$AM,AG$94,FALSE) -> 903124.11 | AH96: =VLOOKUP($U96,Output!$C:$AM,AH$94,FALSE) -> 922880.92 | AI96: =VLOOKUP($U96,Output!$C:$AM,AI$94,FALSE) -> 922930.38 | AJ96: =VLOOKUP($U96,Output!$C:$AM,AJ$94,FALSE) -> 922930.38 | AK96: =VLOOKUP($U96,Output!$C:$AM,AK$94,FALSE) -> 922930.38 | AL96: =VLOOKUP($U96,Output!$C:$AM,AL$94,FALSE) -> 936600.49 | AM96: =VLOOKUP($U96,Output!$C:$AM,AM$94,FALSE) -> 936604.78 | AN96: =VLOOKUP($U96,Output!$C:$AM,AN$94,FALSE) -> 937022.33 | AO96: =VLOOKUP($U96,Output!$C:$AM,AO$94,FALSE) -> 937022.33 | AP96: =VLOOKUP($U96,Output!$C:$AM,AP$94,FALSE) -> 937022.76 | AQ96: =VLOOKUP($U96,Output!$C:$AM,AQ$94,FALSE) -> 951662.63 | AR96: =VLOOKUP($U96,Output!$C:$AM,AR$94,FALSE) -> 951662.63 | AS96: =VLOOKUP($U96,Output!$C:$AM,AS$94,FALSE) -> 954314.31 | AT96: =VLOOKUP($U96,Output!$C:$AM,AT$94,FALSE) -> 954314.31 | AU96: =VLOOKUP($U96,Output!$C:$AM,AU$94,FALSE) -> 981128.58 | AV96: =VLOOKUP($U96,Output!$C:$AM,AV$94,FALSE) -> 981128.58 | AW96: =VLOOKUP($U96,Output!$C:$AM,AW$94,FALSE) -> 993896.87 | AX96: =VLOOKUP($U96,Output!$C:$AM,AX$94,FALSE) -> 994081.55 | AY96: =VLOOKUP($U96,Output!$C:$AM,AY$94,FALSE) -> 998791.22 | AZ96: =VLOOKUP($U96,Output!$C:$AM,AZ$94,FALSE) -> 998795.62
S97: =LEFT(B$91,10) -> Figure 6. | T97: Volume à maturité | U97: OVOLMATUREADM | V97: =VLOOKUP($U97,Output!$C:$AM,V$94,FALSE) -> 6111900.23 | W97: =VLOOKUP($U97,Output!$C:$AM,W$94,FALSE) -> 8459300.76 | X97: =VLOOKUP($U97,Output!$C:$AM,X$94,FALSE) -> 7540995.28 | Y97: =VLOOKUP($U97,Output!$C:$AM,Y$94,FALSE) -> 6752508.87 | Z97: =VLOOKUP($U97,Output!$C:$AM,Z$94,FALSE) -> 8020439.78 | AA97: =VLOOKUP($U97,Output!$C:$AM,AA$94,FALSE) -> 8847874.55 | AB97: =VLOOKUP($U97,Output!$C:$AM,AB$94,FALSE) -> 8972861.64 | AC97: =VLOOKUP($U97,Output!$C:$AM,AC$94,FALSE) -> 8596464.04 | AD97: =VLOOKUP($U97,Output!$C:$AM,AD$94,FALSE) -> 7849725.64 | AE97: =VLOOKUP($U97,Output!$C:$AM,AE$94,FALSE) -> 7720954.98 | AF97: =VLOOKUP($U97,Output!$C:$AM,AF$94,FALSE) -> 8110445.14 | AG97: =VLOOKUP($U97,Output!$C:$AM,AG$94,FALSE) -> 8850042.74 | AH97: =VLOOKUP($U97,Output!$C:$AM,AH$94,FALSE) -> 9480469.11 | AI97: =VLOOKUP($U97,Output!$C:$AM,AI$94,FALSE) -> 9169457.77 | AJ97: =VLOOKUP($U97,Output!$C:$AM,AJ$94,FALSE) -> 9161424.07 | AK97: =VLOOKUP($U97,Output!$C:$AM,AK$94,FALSE) -> 8286349.25 | AL97: =VLOOKUP($U97,Output!$C:$AM,AL$94,FALSE) -> 8730045.91 | AM97: =VLOOKUP($U97,Output!$C:$AM,AM$94,FALSE) -> 8961382.67 | AN97: =VLOOKUP($U97,Output!$C:$AM,AN$94,FALSE) -> 8528014.02 | AO97: =VLOOKUP($U97,Output!$C:$AM,AO$94,FALSE) -> 8648035.96 | AP97: =VLOOKUP($U97,Output!$C:$AM,AP$94,FALSE) -> 8747881.2 | AQ97: =VLOOKUP($U97,Output!$C:$AM,AQ$94,FALSE) -> 7816654.29 | AR97: =VLOOKUP($U97,Output!$C:$AM,AR$94,FALSE) -> 8715835.6 | AS97: =VLOOKUP($U97,Output!$C:$AM,AS$94,FALSE) -> 9075986.59 | AT97: =VLOOKUP($U97,Output!$C:$AM,AT$94,FALSE) -> 9433471.05 | AU97: =VLOOKUP($U97,Output!$C:$AM,AU$94,FALSE) -> 8968806.82 | AV97: =VLOOKUP($U97,Output!$C:$AM,AV$94,FALSE) -> 9037039.71 | AW97: =VLOOKUP($U97,Output!$C:$AM,AW$94,FALSE) -> 8029514.75 | AX97: =VLOOKUP($U97,Output!$C:$AM,AX$94,FALSE) -> 8296429.58 | AY97: =VLOOKUP($U97,Output!$C:$AM,AY$94,FALSE) -> 8791941.81 | AZ97: =VLOOKUP($U97,Output!$C:$AM,AZ$94,FALSE) -> 8118460.46
S98: =LEFT(B$91,10) -> Figure 6. | T98: Volume sur pied | U98: OVOLTOTPIEDINC | V98: =VLOOKUP($U98,Output!$C:$AM,V$94,FALSE) -> 13598337.02 | W98: =VLOOKUP($U98,Output!$C:$AM,W$94,FALSE) -> 13994983.59 | X98: =VLOOKUP($U98,Output!$C:$AM,X$94,FALSE) -> 14073354.1 | Y98: =VLOOKUP($U98,Output!$C:$AM,Y$94,FALSE) -> 14227364.5 | Z98: =VLOOKUP($U98,Output!$C:$AM,Z$94,FALSE) -> 14367673.77 | AA98: =VLOOKUP($U98,Output!$C:$AM,AA$94,FALSE) -> 14472730.3 | AB98: =VLOOKUP($U98,Output!$C:$AM,AB$94,FALSE) -> 14592971.22 | AC98: =VLOOKUP($U98,Output!$C:$AM,AC$94,FALSE) -> 14592971.22 | AD98: =VLOOKUP($U98,Output!$C:$AM,AD$94,FALSE) -> 14592971.22 | AE98: =VLOOKUP($U98,Output!$C:$AM,AE$94,FALSE) -> 14592971.22 | AF98: =VLOOKUP($U98,Output!$C:$AM,AF$94,FALSE) -> 14592971.22 | AG98: =VLOOKUP($U98,Output!$C:$AM,AG$94,FALSE) -> 14592971.22 | AH98: =VLOOKUP($U98,Output!$C:$AM,AH$94,FALSE) -> 14592971.22 | AI98: =VLOOKUP($U98,Output!$C:$AM,AI$94,FALSE) -> 14592971.22 | AJ98: =VLOOKUP($U98,Output!$C:$AM,AJ$94,FALSE) -> 14592971.22 | AK98: =VLOOKUP($U98,Output!$C:$AM,AK$94,FALSE) -> 14592971.22 | AL98: =VLOOKUP($U98,Output!$C:$AM,AL$94,FALSE) -> 14592971.22 | AM98: =VLOOKUP($U98,Output!$C:$AM,AM$94,FALSE) -> 14592971.22 | AN98: =VLOOKUP($U98,Output!$C:$AM,AN$94,FALSE) -> 14592971.22 | AO98: =VLOOKUP($U98,Output!$C:$AM,AO$94,FALSE) -> 14592971.22 | AP98: =VLOOKUP($U98,Output!$C:$AM,AP$94,FALSE) -> 14592971.22 | AQ98: =VLOOKUP($U98,Output!$C:$AM,AQ$94,FALSE) -> 14592971.22 | AR98: =VLOOKUP($U98,Output!$C:$AM,AR$94,FALSE) -> 14592971.22 | AS98: =VLOOKUP($U98,Output!$C:$AM,AS$94,FALSE) -> 14592971.22 | AT98: =VLOOKUP($U98,Output!$C:$AM,AT$94,FALSE) -> 14592971.22 | AU98: =VLOOKUP($U98,Output!$C:$AM,AU$94,FALSE) -> 14592971.22 | AV98: =VLOOKUP($U98,Output!$C:$AM,AV$94,FALSE) -> 14592971.22 | AW98: =VLOOKUP($U98,Output!$C:$AM,AW$94,FALSE) -> 14592971.22 | AX98: =VLOOKUP($U98,Output!$C:$AM,AX$94,FALSE) -> 14592971.22 | AY98: =VLOOKUP($U98,Output!$C:$AM,AY$94,FALSE) -> 14592971.22 | AZ98: =VLOOKUP($U98,Output!$C:$AM,AZ$94,FALSE) -> 14592971.22
S99: =LEFT(B$91,10) -> Figure 6. | T99: Volume récoltable | U99: OVOLTOTADMREGAPRE | V99: =VLOOKUP($U99,Output!$C:$AM,V$94,FALSE) -> 0 | W99: =VLOOKUP($U99,Output!$C:$AM,W$94,FALSE) -> 2692456.25 | X99: =VLOOKUP($U99,Output!$C:$AM,X$94,FALSE) -> 5894192.7 | Y99: =VLOOKUP($U99,Output!$C:$AM,Y$94,FALSE) -> 6343239.07 | Z99: =VLOOKUP($U99,Output!$C:$AM,Z$94,FALSE) -> 5677337.57 | AA99: =VLOOKUP($U99,Output!$C:$AM,AA$94,FALSE) -> 6587492.27 | AB99: =VLOOKUP($U99,Output!$C:$AM,AB$94,FALSE) -> 6681366.92 | AC99: =VLOOKUP($U99,Output!$C:$AM,AC$94,FALSE) -> 5957878.34 | AD99: =VLOOKUP($U99,Output!$C:$AM,AD$94,FALSE) -> 5321436.87 | AE99: =VLOOKUP($U99,Output!$C:$AM,AE$94,FALSE) -> 5815984.44 | AF99: =VLOOKUP($U99,Output!$C:$AM,AF$94,FALSE) -> 5581568.17 | AG99: =VLOOKUP($U99,Output!$C:$AM,AG$94,FALSE) -> 4993465.91 | AH99: =VLOOKUP($U99,Output!$C:$AM,AH$94,FALSE) -> 4722151.83 | AI99: =VLOOKUP($U99,Output!$C:$AM,AI$94,FALSE) -> 4896115.08 | AJ99: =VLOOKUP($U99,Output!$C:$AM,AJ$94,FALSE) -> 5327761.09 | AK99: =VLOOKUP($U99,Output!$C:$AM,AK$94,FALSE) -> 5233753.4 | AL99: =VLOOKUP($U99,Output!$C:$AM,AL$94,FALSE) -> 4991014.29 | AM99: =VLOOKUP($U99,Output!$C:$AM,AM$94,FALSE) -> 5211954.32 | AN99: =VLOOKUP($U99,Output!$C:$AM,AN$94,FALSE) -> 4645388.66 | AO99: =VLOOKUP($U99,Output!$C:$AM,AO$94,FALSE) -> 3998447.14 | AP99: =VLOOKUP($U99,Output!$C:$AM,AP$94,FALSE) -> 4089227.16 | AQ99: =VLOOKUP($U99,Output!$C:$AM,AQ$94,FALSE) -> 4109727.06 | AR99: =VLOOKUP($U99,Output!$C:$AM,AR$94,FALSE) -> 3916089.1 | AS99: =VLOOKUP($U99,Output!$C:$AM,AS$94,FALSE) -> 4092338.19 | AT99: =VLOOKUP($U99,Output!$C:$AM,AT$94,FALSE) -> 4281659.08 | AU99: =VLOOKUP($U99,Output!$C:$AM,AU$94,FALSE) -> 4238269.45 | AV99: =VLOOKUP($U99,Output!$C:$AM,AV$94,FALSE) -> 4001864.55 | AW99: =VLOOKUP($U99,Output!$C:$AM,AW$94,FALSE) -> 4313604.07 | AX99: =VLOOKUP($U99,Output!$C:$AM,AX$94,FALSE) -> 4183574.23 | AY99: =VLOOKUP($U99,Output!$C:$AM,AY$94,FALSE) -> 4010955.64 | AZ99: =VLOOKUP($U99,Output!$C:$AM,AZ$94,FALSE) -> 4024158.24
T116: * Source: Cahier_analyse, Tableau 13, onglet Budget | X116: Moyenne P2 à P6
B117: Figure 7. Répartition du budget annuel par familles de traitements prévus à la stratégie d’aménagement et coût moyen à l’hectare par famille de traitements
S118: =LEFT(B$117,10) -> Figure 7. | T118: Légende | U118: Output taux | V118: Output superficie | W118: $/ha | X118: ha | Y118: $
S119: =LEFT(B$117,10) -> Figure 7. | T119: Coupes avec protection de la régénération et des sols (CPRS) | U119: OTAUXCT_100 | V119: OSUPCT | W119: =IFERROR(VLOOKUP(U119,Output!$C:$AQ,37,FALSE),0) -> 0 | X119: =IFERROR(VLOOKUP(V119,Output!$C:$AQ,37,FALSE),"0000")/5 -> 176.1144 | Y119: =W119*X119 -> 0
S120: =LEFT(B$117,10) -> Figure 7. | T120: Coupe avec protection des petites tiges marchandes (CPPTM) | V120: OSUPREALaCPPTM | W120: =IFERROR(VLOOKUP(U120,Output!$C:$AQ,8,FALSE),0) -> 0 | X120: =IFERROR(VLOOKUP(V120,Output!$C:$AQ,37,FALSE),"0000")/5 -> 0 | Y120: =W120*X120 -> 0
S121: =LEFT(B$117,10) -> Figure 7. | T121: Coupe avec réserve de semenciers (CRS) | V121: OSUPREALaCRS | W121: =IFERROR(VLOOKUP(U121,Output!$C:$AQ,8,FALSE),0) -> 0 | X121: =IFERROR(VLOOKUP(V121,Output!$C:$AQ,37,FALSE),"0000")/5 -> 24.62 | Y121: 0
T122: Coupe à rétention variable (CRV, CPPTM, CPPTM, CPHR, CDL)
S123: =LEFT(B$117,10) -> Figure 7. | T123: Coupes finales | W123: =(ROUND(Y123/X123,0))&"$/ha" -> 0$/ha | X123: =SUM(X119:X121) -> 200.7344 | Y123: =SUM(Y119:Y121) -> 0
S124: Figure 7. | T124: Éclaircie commerciale (EC) | U124: OTAUXEC_SEPM_100 | V124: OSUPEC_SEPM | W124: =IFERROR(VLOOKUP(U124,Output!$C:$AQ,37,FALSE),0) -> 1250 | X124: =IFERROR(VLOOKUP(V124,Output!$C:$AQ,37,FALSE),"0000")/5 -> 22.784 | Y124: 28480
S125: Figure 7. | T125: Coupe progressive régulière initiale (CPROG) | U125: OTAUXCPROG_INI_100 | V125: OSUPCPROG_INI | W125: =IFERROR(VLOOKUP(U125,Output!$C:$AQ,37,FALSE),0) -> 760 | X125: =IFERROR(VLOOKUP(V125,Output!$C:$AQ,37,FALSE),"0000")/5 -> 0 | Y125: 0
S126: Figure 7. | T126: Coupe progressive régulière finale (CPROG) | U126: OTAUXCPROG_FIN_100 | V126: OSUPCPROG_FIN | W126: =IFERROR(VLOOKUP(U126,Output!$C:$AQ,37,FALSE),0) -> 0 | X126: =IFERROR(VLOOKUP(V126,Output!$C:$AQ,37,FALSE),"0000")/5 -> 0 | Y126: 0
S127: Figure 7. | T127: Coupe progessive irrégulière initiale (CPIRL) | U127: OTAUXCPIRL_INI_100 | V127: OSUPCPIRL_INI | W127: =IFERROR(VLOOKUP(U127,Output!$C:$AQ,37,FALSE),0) -> 670 | X127: =IFERROR(VLOOKUP(V127,Output!$C:$AQ,37,FALSE),"0000")/5 -> 287.6508 | Y127: 192726.036
S128: Figure 7. | T128: Coupe progessive irrégulière finale (CPIRL) | U128: OTAUXCPIRL_FIN_100 | V128: OSUPCPIRL_FIN | W128: =IFERROR(VLOOKUP(U128,Output!$C:$AQ,37,FALSE),0) -> 0 | X128: =IFERROR(VLOOKUP(V128,Output!$C:$AQ,37,FALSE),"0000")/5 -> 162.0372 | Y128: 0
S129: Figure 7. | T129: Coupe à couvert permanent (CPICP) | U129: OTAUXCPICP_100 | V129: OSUPCPICP | W129: =IFERROR(VLOOKUP(U129,Output!$C:$AQ,37,FALSE),0) -> 600 | X129: =IFERROR(VLOOKUP(V129,Output!$C:$AQ,37,FALSE),"0000")/5 -> 857.7004 | Y129: 514620.24
S130: Figure 7. | T130: Coupe de jardinage (CJ) | U130: OTAUXCJ_100 | V130: OSUPCJ | W130: =IFERROR(VLOOKUP(U130,Output!$C:$AQ,37,FALSE),0) -> 676.01 | X130: =IFERROR(VLOOKUP(V130,Output!$C:$AQ,37,FALSE),"0000")/5 -> 0 | Y130: 0
S131: Figure 7. | T131: Coupes partielles | W131: =(ROUND(Y131/X131,0))&"$/ha" -> 553$/ha | X131: =SUM(X124:X130) -> 1330.1724 | Y131: =SUM(Y124:Y130) -> 735826.276
S132: Figure 7. | T132: Plantation ligniculture (pins, feuillus) | U132: OTAUXPL_PPF_100 | V132: OSUPPL_PPF | W132: =IFERROR(VLOOKUP(U132,Output!$C:$AQ,37,FALSE),0) -> 1650 | X132: =IFERROR(VLOOKUP(V132,Output!$C:$AQ,37,FALSE),"0000")/5 -> 0 | Y132: 0
S133: Figure 7. | T133: Plantation intensive | U133: OTAUXPL_SEPM_I_100 | V133: OSUPPL_SEPM_I | W133: =IFERROR(VLOOKUP(U133,Output!$C:$AQ,37,FALSE),0) -> 1630 | X133: =IFERROR(VLOOKUP(V133,Output!$C:$AQ,37,FALSE),"0000")/5 -> 15.3972 | Y133: 25097.436
S134: Figure 7. | T134: Plantation de base | U134: OTAUXPL_SEPM_E_100 | V134: OSUPPL_SEPM_E | W134: =IFERROR(VLOOKUP(U134,Output!$C:$AQ,37,FALSE),0) -> 1310 | X134: =IFERROR(VLOOKUP(V134,Output!$C:$AQ,37,FALSE),"0000")/5 -> 32.532 | Y134: 42616.92
S135: Figure 7. | T135: Regarni | U135: OTAUXREG_100 | V135: OSUPREG | W135: =IFERROR(VLOOKUP(U135,Output!$C:$AQ,37,FALSE),0) -> 550 | X135: =IFERROR(VLOOKUP(V135,Output!$C:$AQ,37,FALSE),"0000")/5 -> 68.4948 | Y135: 37672.14
S136: Figure 7. | T136: Ensemencement (ENS) | U136: OTAUXENS_100 | V136: OSUPENS | W136: =IFERROR(VLOOKUP(U136,Output!$C:$AQ,37,FALSE),0) -> 130 | X136: =IFERROR(VLOOKUP(V136,Output!$C:$AQ,37,FALSE),"0000")/5 -> 0 | Y136: =W136*X136 -> 0
S137: Figure 7. | T137: Reboisement | W137: =(ROUND(Y137/X137,0))&"$/ha" -> 905$/ha | X137: =SUM(X132:X136) -> 116.424 | Y137: =SUM(Y132:Y136) -> 105386.496
S138: Figure 7. | T138: Dégagement de la régénération naturelle | U138: OTAUXDEG_2_100 | V138: OSUPDEG_2 | W138: =IFERROR(VLOOKUP(U138,Output!$C:$AQ,37,FALSE),0) -> 1650 | X138: =IFERROR(VLOOKUP(V138,Output!$C:$AQ,37,FALSE),"0000")/5 -> 88.4948 | Y138: 146016.42
S139: Figure 7. | T139: Dégagement de plantation | U139: OTAUXDEG_1_100 | V139: OSUPDEG_1 | W139: =IFERROR(VLOOKUP(U139,Output!$C:$AQ,37,FALSE),0) -> 1650 | X139: =IFERROR(VLOOKUP(V139,Output!$C:$AQ,37,FALSE),"0000")/5 -> 63.3264 | Y139: 104488.56
S140: Figure 7. | T140: Nettoiement de la régénération naturelle | U140: OTAUXNETT_100 | V140: OSUPREALNET | W140: =IFERROR(VLOOKUP(U140,Output!$C:$AQ,37,FALSE),0) -> 1060 | X140: =IFERROR(VLOOKUP(V140,Output!$C:$AQ,37,FALSE),"0000")/5-X141 -> 366.972 | Y140: 388990.32
C141: $ /m3 | E141: $ /ha | S141: Figure 7. | T141: Nettoiement de plantation | U141: OTAUXNETT_100 | V141: OSUPTCADNETT_T100% | W141: =IFERROR(VLOOKUP(U141,Output!$C:$AQ,37,FALSE),0) -> 1060 | X141: =IFERROR(VLOOKUP(V141,Output!$C:$AQ,37,FALSE),"0000")/5 -> 33.188 | Y141: 35179.28
C142: =Y151/(Instructions!I5/5) -> 11.58755758 | E142: =Y151/Tableaux!F33 -> 17.83780046 | S142: Figure 7. | T142: Éclaircie précommerciale (EPC_1) | U142: OTAUXEPC_1_100 | V142: OSUPEPC_1 | W142: =IFERROR(VLOOKUP(U142,Output!$C:$AQ,37,FALSE),0) -> 1160 | X142: =IFERROR(VLOOKUP(V142,Output!$C:$AQ,37,FALSE),"0000")/5 -> 0 | Y142: 0
S143: Figure 7. | T143: Éclaircie précommerciale (EPC_2) | U143: OTAUXEPC_2_100 | V143: OSUPEPC_2 | W143: =IFERROR(VLOOKUP(U143,Output!$C:$AQ,37,FALSE),0) -> 1160 | X143: =IFERROR(VLOOKUP(V143,Output!$C:$AQ,37,FALSE),"0000")/5 -> 0 | Y143: 0
S144: Figure 7. | T144: Éclaircie précommerciale de la régénération naturelle | V144: OSUPREALEPC | W144: =IFERROR(VLOOKUP(U144,Output!$C:$AQ,37,FALSE),0) -> 0 | X144: =IFERROR(VLOOKUP(V144,Output!$C:$AQ,37,FALSE),"0000")/5 -> 0 | Y144: 0
S145: Figure 7. | T145: Élagage (plantation) | U145: OTAUXELAG_100 | V145: OSUPELAG | W145: =IFERROR(VLOOKUP(U145,Output!$C:$AQ,37,FALSE),0) -> 1100 | X145: =IFERROR(VLOOKUP(V145,Output!$C:$AQ,37,FALSE),"0000")/5 -> 18.0148 | Y145: 19816.28
S146: Figure 7. | T146: Travaux d'éducation | W146: =(ROUND(Y146/X146,0))&"$/ha" -> 1218$/ha | X146: =SUM(X138:X143)+X145 -> 569.996 | Y146: =SUM(Y138:Y143)+Y145 -> 694490.86
S147: Figure 7. | T147: Préparation terrain lignicult. + ferti + élagage (SCA_LIGN) | U147: OTAUXSCA_LIGN_100 | V147: OSUPSCA_LIGN | W147: =IFERROR(VLOOKUP(U147,Output!$C:$AQ,37,FALSE),0) -> 1790 | X147: =IFERROR(VLOOKUP(V147,Output!$C:$AQ,37,FALSE),"0000")/5 -> 0 | Y147: 0
S148: Figure 7. | T148: Préparation de terrain partielle (SCA_PART) | U148: OTAUXSCA_PART_100 | V148: OSUPSCA_PART | W148: =IFERROR(VLOOKUP(U148,Output!$C:$AQ,37,FALSE),0) -> 760 | X148: =IFERROR(VLOOKUP(V148,Output!$C:$AQ,37,FALSE),"0000")/5 -> 56.9952 | Y148: 43316.352
S149: Figure 7. | T149: Préparation de terrain régulière, 1 passage (SCA_REG) | U149: OTAUXSCA_REG_100 | V149: OSUPSCA_REG | W149: =IFERROR(VLOOKUP(U149,Output!$C:$AQ,37,FALSE),0) -> 580 | X149: =IFERROR(VLOOKUP(V149,Output!$C:$AQ,37,FALSE),"0000")/5 -> 72.5492 | Y149: 42078.536 | AA149: Valideur
B150: Figure 9b Évolution de la superficie des vieilles forêts selon leur degré d'altération | S150: Figure 7. | T150: Préparation de terrain | W150: =(ROUND(Y150/X150,0))&"$/ha" -> 659$/ha | X150: =SUM(X147:X149) -> 129.5444 | Y150: =SUM(Y147:Y149) -> 85394.888 | Z150: =Y123+Y131+Y137+Y146+Y150 -> 1621098.52 | AA150: =Y151-Z150 -> 0.7859999996
S151: Figure 7. | T151: Investissement sylvicole annuel (O$INVESTISTS)* | V151: O$INVESTISTS | Y151: =IFERROR(VLOOKUP(V151,Output!$C:$AQ,37,FALSE),"0000")/5 -> 1621099.306
S155: =LEFT(B$117,10) -> Figure 7. | T155: =T123 -> Coupes finales | U155: =Y123 -> 0 | V155: =W123 -> 0$/ha
S156: =LEFT(B$117,10) -> Figure 7. | T156: =T131 -> Coupes partielles | U156: =Y131 -> 735826.276 | V156: =W131 -> 553$/ha
S157: =LEFT(B$117,10) -> Figure 7. | T157: =T137 -> Reboisement | U157: =Y137 -> 105386.496 | V157: =W137 -> 905$/ha
S158: =LEFT(B$117,10) -> Figure 7. | T158: =T146 -> Travaux d'éducation | U158: =Y146 -> 694490.86 | V158: =W146 -> 1218$/ha
S159: =LEFT(B$117,10) -> Figure 7. | T159: =T150 -> Préparation de terrain | U159: =Y150 -> 85394.888 | V159: =W150 -> 659$/ha
U161: Période | V161: P0 | W161: P1 | X161: P2 | Y161: P3 | Z161: P4 | AA161: P5 | AB161: P6 | AC161: P7 | AD161: P8 | AE161: P9 | AF161: P10 | AG161: P11 | AH161: P12 | AI161: P13 | AJ161: P14 | AK161: P15 | AL161: P16 | AM161: P17 | AN161: P18 | AO161: P19 | AP161: P20 | AQ161: P21 | AR161: P22 | AS161: P23 | AT161: P24 | AU161: P25 | AV161: P26 | AW161: P27 | AX161: P28 | AY161: P29 | AZ161: P30
S162: =LEFT(B$150,10) -> Figure 9b | U162: Axe des "X" Fin de période | V162: 2018 | W162: 2023 | X162: 2028 | Y162: 2033 | Z162: 2038 | AA162: 2043 | AB162: 2048 | AC162: 2053 | AD162: 2058 | AE162: 2063 | AF162: 2068 | AG162: 2073 | AH162: 2078 | AI162: 2083 | AJ162: 2088 | AK162: 2093 | AL162: 2098 | AM162: 2103 | AN162: 2108 | AO162: 2113 | AP162: 2118 | AQ162: 2123 | AR162: 2128 | AS162: 2133 | AT162: 2138 | AU162: 2143 | AV162: 2148 | AW162: 2153 | AX162: 2158 | AY162: 2163 | AZ162: 2168
S163: Figure 9b | U163: Colonne | V163: 6 | W163: 7 | X163: 8 | Y163: 9 | Z163: 10 | AA163: 11 | AB163: 12 | AC163: 13 | AD163: 14 | AE163: 15 | AF163: 16 | AG163: 17 | AH163: 18 | AI163: 19 | AJ163: 20 | AK163: 21 | AL163: 22 | AM163: 23 | AN163: 24 | AO163: 25 | AP163: 26 | AQ163: 27 | AR163: 28 | AS163: 29 | AT163: 30 | AU163: 31 | AV163: 32 | AW163: 33 | AX163: 34 | AY163: 35 | AZ163: 36
S164: Figure 9b | U164: OSUPREGECO | V164: =VLOOKUP($U164,Output!$C:$AL,V$163,FALSE) -> 157682.1 | W164: =VLOOKUP($U164,Output!$C:$AL,W$163,FALSE) -> 157295.17 | X164: =VLOOKUP($U164,Output!$C:$AL,X$163,FALSE) -> 157054.59 | Y164: =VLOOKUP($U164,Output!$C:$AL,Y$163,FALSE) -> 156709.91 | Z164: =VLOOKUP($U164,Output!$C:$AL,Z$163,FALSE) -> 156536.87 | AA164: =VLOOKUP($U164,Output!$C:$AL,AA$163,FALSE) -> 156462.31 | AB164: =VLOOKUP($U164,Output!$C:$AL,AB$163,FALSE) -> 156081.87 | AC164: =VLOOKUP($U164,Output!$C:$AL,AC$163,FALSE) -> 155899.85 | AD164: =VLOOKUP($U164,Output!$C:$AL,AD$163,FALSE) -> 155852.92 | AE164: =VLOOKUP($U164,Output!$C:$AL,AE$163,FALSE) -> 155700.63 | AF164: =VLOOKUP($U164,Output!$C:$AL,AF$163,FALSE) -> 155556.12 | AG164: =VLOOKUP($U164,Output!$C:$AL,AG$163,FALSE) -> 155480.71 | AH164: =VLOOKUP($U164,Output!$C:$AL,AH$163,FALSE) -> 155357.64 | AI164: =VLOOKUP($U164,Output!$C:$AL,AI$163,FALSE) -> 155264.14 | AJ164: =VLOOKUP($U164,Output!$C:$AL,AJ$163,FALSE) -> 155251.7 | AK164: =VLOOKUP($U164,Output!$C:$AL,AK$163,FALSE) -> 155238.48 | AL164: =VLOOKUP($U164,Output!$C:$AL,AL$163,FALSE) -> 155228.62 | AM164: =VLOOKUP($U164,Output!$C:$AL,AM$163,FALSE) -> 155228.62 | AN164: =VLOOKUP($U164,Output!$C:$AL,AN$163,FALSE) -> 155214.38 | AO164: =VLOOKUP($U164,Output!$C:$AL,AO$163,FALSE) -> 155214.38 | AP164: =VLOOKUP($U164,Output!$C:$AL,AP$163,FALSE) -> 155214.38 | AQ164: =VLOOKUP($U164,Output!$C:$AL,AQ$163,FALSE) -> 155209.57 | AR164: =VLOOKUP($U164,Output!$C:$AL,AR$163,FALSE) -> 155209.46 | AS164: =VLOOKUP($U164,Output!$C:$AL,AS$163,FALSE) -> 155202.4 | AT164: =VLOOKUP($U164,Output!$C:$AL,AT$163,FALSE) -> 155197.8 | AU164: =VLOOKUP($U164,Output!$C:$AL,AU$163,FALSE) -> 155197.8 | AV164: =VLOOKUP($U164,Output!$C:$AL,AV$163,FALSE) -> 155197.8 | AW164: =VLOOKUP($U164,Output!$C:$AL,AW$163,FALSE) -> 155197.8 | AX164: =VLOOKUP($U164,Output!$C:$AL,AX$163,FALSE) -> 155197.8 | AY164: =VLOOKUP($U164,Output!$C:$AL,AY$163,FALSE) -> 155197.8 | AZ164: =VLOOKUP($U164,Output!$C:$AL,AZ$163,FALSE) -> 155197.8
S165: Figure 9b | T165: Élevé | U165: OSUPVIEUXALERTEREGECO | V165: =VLOOKUP($U165,Output!$C:$AL,V$163,FALSE) -> 33531.41 | W165: =VLOOKUP($U165,Output!$C:$AL,W$163,FALSE) -> 33437.3 | X165: =VLOOKUP($U165,Output!$C:$AL,X$163,FALSE) -> 33378.79 | Y165: =VLOOKUP($U165,Output!$C:$AL,Y$163,FALSE) -> 33294.99 | Z165: =VLOOKUP($U165,Output!$C:$AL,Z$163,FALSE) -> 33252.89 | AA165: =VLOOKUP($U165,Output!$C:$AL,AA$163,FALSE) -> 33234.77 | AB165: =VLOOKUP($U165,Output!$C:$AL,AB$163,FALSE) -> 33142.27 | AC165: =VLOOKUP($U165,Output!$C:$AL,AC$163,FALSE) -> 33098 | AD165: =VLOOKUP($U165,Output!$C:$AL,AD$163,FALSE) -> 33086.59 | AE165: =VLOOKUP($U165,Output!$C:$AL,AE$163,FALSE) -> 33049.57 | AF165: =VLOOKUP($U165,Output!$C:$AL,AF$163,FALSE) -> 33014.45 | AG165: =VLOOKUP($U165,Output!$C:$AL,AG$163,FALSE) -> 32996.12 | AH165: =VLOOKUP($U165,Output!$C:$AL,AH$163,FALSE) -> 32966.21 | AI165: =VLOOKUP($U165,Output!$C:$AL,AI$163,FALSE) -> 32943.48 | AJ165: =VLOOKUP($U165,Output!$C:$AL,AJ$163,FALSE) -> 32940.46 | AK165: =VLOOKUP($U165,Output!$C:$AL,AK$163,FALSE) -> 32937.24 | AL165: =VLOOKUP($U165,Output!$C:$AL,AL$163,FALSE) -> 32934.85 | AM165: =VLOOKUP($U165,Output!$C:$AL,AM$163,FALSE) -> 32934.85 | AN165: =VLOOKUP($U165,Output!$C:$AL,AN$163,FALSE) -> 32931.39 | AO165: =VLOOKUP($U165,Output!$C:$AL,AO$163,FALSE) -> 32931.39 | AP165: =VLOOKUP($U165,Output!$C:$AL,AP$163,FALSE) -> 32931.39 | AQ165: =VLOOKUP($U165,Output!$C:$AL,AQ$163,FALSE) -> 32930.22 | AR165: =VLOOKUP($U165,Output!$C:$AL,AR$163,FALSE) -> 32930.19 | AS165: =VLOOKUP($U165,Output!$C:$AL,AS$163,FALSE) -> 32928.48 | AT165: =VLOOKUP($U165,Output!$C:$AL,AT$163,FALSE) -> 32927.36 | AU165: =VLOOKUP($U165,Output!$C:$AL,AU$163,FALSE) -> 32927.36 | AV165: =VLOOKUP($U165,Output!$C:$AL,AV$163,FALSE) -> 32927.36 | AW165: =VLOOKUP($U165,Output!$C:$AL,AW$163,FALSE) -> 32927.36 | AX165: =VLOOKUP($U165,Output!$C:$AL,AX$163,FALSE) -> 32927.36 | AY165: =VLOOKUP($U165,Output!$C:$AL,AY$163,FALSE) -> 32927.36 | AZ165: =VLOOKUP($U165,Output!$C:$AL,AZ$163,FALSE) -> 32927.36
S166: Figure 9b | U166: OSUPVIEUXACCEPTREGECO | V166: =VLOOKUP($U166,Output!$C:$AL,V$163,FALSE) -> 55885.68 | W166: =VLOOKUP($U166,Output!$C:$AL,W$163,FALSE) -> 55728.83 | X166: =VLOOKUP($U166,Output!$C:$AL,X$163,FALSE) -> 55631.31 | Y166: =VLOOKUP($U166,Output!$C:$AL,Y$163,FALSE) -> 55491.65 | Z166: =VLOOKUP($U166,Output!$C:$AL,Z$163,FALSE) -> 55421.49 | AA166: =VLOOKUP($U166,Output!$C:$AL,AA$163,FALSE) -> 55391.28 | AB166: =VLOOKUP($U166,Output!$C:$AL,AB$163,FALSE) -> 55237.12 | AC166: =VLOOKUP($U166,Output!$C:$AL,AC$163,FALSE) -> 55163.34 | AD166: =VLOOKUP($U166,Output!$C:$AL,AD$163,FALSE) -> 55144.32 | AE166: =VLOOKUP($U166,Output!$C:$AL,AE$163,FALSE) -> 55082.61 | AF166: =VLOOKUP($U166,Output!$C:$AL,AF$163,FALSE) -> 55024.09 | AG166: =VLOOKUP($U166,Output!$C:$AL,AG$163,FALSE) -> 54993.54 | AH166: =VLOOKUP($U166,Output!$C:$AL,AH$163,FALSE) -> 54943.69 | AI166: =VLOOKUP($U166,Output!$C:$AL,AI$163,FALSE) -> 54905.8 | AJ166: =VLOOKUP($U166,Output!$C:$AL,AJ$163,FALSE) -> 54900.76 | AK166: =VLOOKUP($U166,Output!$C:$AL,AK$163,FALSE) -> 54895.41 | AL166: =VLOOKUP($U166,Output!$C:$AL,AL$163,FALSE) -> 54891.41 | AM166: =VLOOKUP($U166,Output!$C:$AL,AM$163,FALSE) -> 54891.41 | AN166: =VLOOKUP($U166,Output!$C:$AL,AN$163,FALSE) -> 54885.64 | AO166: =VLOOKUP($U166,Output!$C:$AL,AO$163,FALSE) -> 54885.64 | AP166: =VLOOKUP($U166,Output!$C:$AL,AP$163,FALSE) -> 54885.64 | AQ166: =VLOOKUP($U166,Output!$C:$AL,AQ$163,FALSE) -> 54883.7 | AR166: =VLOOKUP($U166,Output!$C:$AL,AR$163,FALSE) -> 54883.65 | AS166: =VLOOKUP($U166,Output!$C:$AL,AS$163,FALSE) -> 54880.79 | AT166: =VLOOKUP($U166,Output!$C:$AL,AT$163,FALSE) -> 54878.93 | AU166: =VLOOKUP($U166,Output!$C:$AL,AU$163,FALSE) -> 54878.93 | AV166: =VLOOKUP($U166,Output!$C:$AL,AV$163,FALSE) -> 54878.93 | AW166: =VLOOKUP($U166,Output!$C:$AL,AW$163,FALSE) -> 54878.93 | AX166: =VLOOKUP($U166,Output!$C:$AL,AX$163,FALSE) -> 54878.93 | AY166: =VLOOKUP($U166,Output!$C:$AL,AY$163,FALSE) -> 54878.93 | AZ166: =VLOOKUP($U166,Output!$C:$AL,AZ$163,FALSE) -> 54878.93
S167: Figure 9b | T167: Moyen | V167: =V166-V165 -> 22354.27 | W167: =W166-W165 -> 22291.53 | X167: 22252.52 | Y167: 22196.66 | Z167: 22168.6 | AA167: 22156.51 | AB167: 22094.85 | AC167: 22065.34 | AD167: 22057.73 | AE167: 22033.04 | AF167: 22009.64 | AG167: 21997.42 | AH167: 21977.48 | AI167: 21962.32 | AJ167: 21960.3 | AK167: 21958.17 | AL167: 21956.56 | AM167: 21956.56 | AN167: 21954.25 | AO167: 21954.25 | AP167: 21954.25 | AQ167: 21953.48 | AR167: 21953.46 | AS167: 21952.31 | AT167: 21951.57 | AU167: 21951.57 | AV167: 21951.57 | AW167: 21951.57 | AX167: 21951.57 | AY167: 21951.57 | AZ167: 21951.57
S168: Figure 9b | T168: Faible | V168: =$V$164-V165-V167 -> 101796.42 | W168: 101953.27 | X168: 102050.79 | Y168: 102190.45 | Z168: 102260.61 | AA168: 102290.82 | AB168: 102444.98 | AC168: 102518.76 | AD168: 102537.78 | AE168: 102599.49 | AF168: 102658.01 | AG168: 102688.56 | AH168: 102738.41 | AI168: 102776.3 | AJ168: 102781.34 | AK168: 102786.69 | AL168: 102790.69 | AM168: 102790.69 | AN168: 102796.46 | AO168: 102796.46 | AP168: 102796.46 | AQ168: 102798.4 | AR168: 102798.45 | AS168: 102801.31 | AT168: 102803.17 | AU168: 102803.17 | AV168: 102803.17 | AW168: 102803.17 | AX168: 102803.17 | AY168: 102803.17 | AZ168: 102803.17
S169: Figure 9b | T169: Niveau prédit | U169: OSUPVIEUXTOTREGECO | V169: =VLOOKUP($U169,Output!$C:$AL,V$163,FALSE) -> 35610.2 | W169: =VLOOKUP($U169,Output!$C:$AL,W$163,FALSE) -> 55242.76 | X169: =VLOOKUP($U169,Output!$C:$AL,X$163,FALSE) -> 58000.96 | Y169: =VLOOKUP($U169,Output!$C:$AL,Y$163,FALSE) -> 60220.47 | Z169: =VLOOKUP($U169,Output!$C:$AL,Z$163,FALSE) -> 63462.9 | AA169: =VLOOKUP($U169,Output!$C:$AL,AA$163,FALSE) -> 68312.23 | AB169: =VLOOKUP($U169,Output!$C:$AL,AB$163,FALSE) -> 66965.98 | AC169: =VLOOKUP($U169,Output!$C:$AL,AC$163,FALSE) -> 69922.11 | AD169: =VLOOKUP($U169,Output!$C:$AL,AD$163,FALSE) -> 71693.57 | AE169: =VLOOKUP($U169,Output!$C:$AL,AE$163,FALSE) -> 71548.96 | AF169: =VLOOKUP($U169,Output!$C:$AL,AF$163,FALSE) -> 71984.46 | AG169: =VLOOKUP($U169,Output!$C:$AL,AG$163,FALSE) -> 76021.72 | AH169: =VLOOKUP($U169,Output!$C:$AL,AH$163,FALSE) -> 74761.05 | AI169: =VLOOKUP($U169,Output!$C:$AL,AI$163,FALSE) -> 75700.38 | AJ169: =VLOOKUP($U169,Output!$C:$AL,AJ$163,FALSE) -> 75587.22 | AK169: =VLOOKUP($U169,Output!$C:$AL,AK$163,FALSE) -> 75899.04 | AL169: =VLOOKUP($U169,Output!$C:$AL,AL$163,FALSE) -> 74665.09 | AM169: =VLOOKUP($U169,Output!$C:$AL,AM$163,FALSE) -> 73576.01 | AN169: =VLOOKUP($U169,Output!$C:$AL,AN$163,FALSE) -> 72687.05 | AO169: =VLOOKUP($U169,Output!$C:$AL,AO$163,FALSE) -> 72898.47 | AP169: =VLOOKUP($U169,Output!$C:$AL,AP$163,FALSE) -> 75132.69 | AQ169: =VLOOKUP($U169,Output!$C:$AL,AQ$163,FALSE) -> 76901.77 | AR169: =VLOOKUP($U169,Output!$C:$AL,AR$163,FALSE) -> 75638.43 | AS169: =VLOOKUP($U169,Output!$C:$AL,AS$163,FALSE) -> 77012.46 | AT169: =VLOOKUP($U169,Output!$C:$AL,AT$163,FALSE) -> 75239.91 | AU169: =VLOOKUP($U169,Output!$C:$AL,AU$163,FALSE) -> 75287.94 | AV169: =VLOOKUP($U169,Output!$C:$AL,AV$163,FALSE) -> 76777.43 | AW169: =VLOOKUP($U169,Output!$C:$AL,AW$163,FALSE) -> 75128.18 | AX169: =VLOOKUP($U169,Output!$C:$AL,AX$163,FALSE) -> 73194.99 | AY169: =VLOOKUP($U169,Output!$C:$AL,AY$163,FALSE) -> 74893.85 | AZ169: =VLOOKUP($U169,Output!$C:$AL,AZ$163,FALSE) -> 74742.04
S170: Figure 9b | T170: Portrait préindustriel
B176: Figure 9c Évolution de la superficie des peuplements en régénération selon leur degré d'altération
U177: Période | V177: P0 | W177: P1 | X177: P2 | Y177: P3 | Z177: P4 | AA177: P5 | AB177: P6 | AC177: P7 | AD177: P8 | AE177: P9 | AF177: P10 | AG177: P11 | AH177: P12 | AI177: P13 | AJ177: P14 | AK177: P15 | AL177: P16 | AM177: P17 | AN177: P18 | AO177: P19 | AP177: P20 | AQ177: P21 | AR177: P22 | AS177: P23 | AT177: P24 | AU177: P25 | AV177: P26 | AW177: P27 | AX177: P28 | AY177: P29 | AZ177: P30
U178: Axe des "X" Fin de période | V178: 2018 | W178: 2023 | X178: 2028 | Y178: 2033 | Z178: 2038 | AA178: 2043 | AB178: 2048 | AC178: 2053 | AD178: 2058 | AE178: 2063 | AF178: 2068 | AG178: 2073 | AH178: 2078 | AI178: 2083 | AJ178: 2088 | AK178: 2093 | AL178: 2098 | AM178: 2103 | AN178: 2108 | AO178: 2113 | AP178: 2118 | AQ178: 2123 | AR178: 2128 | AS178: 2133 | AT178: 2138 | AU178: 2143 | AV178: 2148 | AW178: 2153 | AX178: 2158 | AY178: 2163 | AZ178: 2168
S179: =LEFT(B$176,10) -> Figure 9c | U179: Colonne | V179: 6 | W179: 7 | X179: 8 | Y179: 9 | Z179: 10 | AA179: 11 | AB179: 12 | AC179: 13 | AD179: 14 | AE179: 15 | AF179: 16 | AG179: 17 | AH179: 18 | AI179: 19 | AJ179: 20 | AK179: 21 | AL179: 22 | AM179: 23 | AN179: 24 | AO179: 25 | AP179: 26 | AQ179: 27 | AR179: 28 | AS179: 29 | AT179: 30 | AU179: 31 | AV179: 32 | AW179: 33 | AX179: 34 | AY179: 35 | AZ179: 36
S180: Figure 9c | T180: Niveau prédit | U180: OSUPJEUNEREGECO | V180: =VLOOKUP($U180,Output!$C:$AL,V$179,FALSE) -> 2547 | W180: =VLOOKUP($U180,Output!$C:$AL,W$179,FALSE) -> 2425.08 | X180: =VLOOKUP($U180,Output!$C:$AL,X$179,FALSE) -> 1516.13 | Y180: =VLOOKUP($U180,Output!$C:$AL,Y$179,FALSE) -> 1978.11 | Z180: =VLOOKUP($U180,Output!$C:$AL,Z$179,FALSE) -> 1635.98 | AA180: =VLOOKUP($U180,Output!$C:$AL,AA$179,FALSE) -> 1508.22 | AB180: =VLOOKUP($U180,Output!$C:$AL,AB$179,FALSE) -> 1298.63 | AC180: =VLOOKUP($U180,Output!$C:$AL,AC$179,FALSE) -> 1618.98 | AD180: =VLOOKUP($U180,Output!$C:$AL,AD$179,FALSE) -> 1819.15 | AE180: =VLOOKUP($U180,Output!$C:$AL,AE$179,FALSE) -> 1194.71 | AF180: =VLOOKUP($U180,Output!$C:$AL,AF$179,FALSE) -> 1164.03 | AG180: =VLOOKUP($U180,Output!$C:$AL,AG$179,FALSE) -> 1362.26 | AH180: =VLOOKUP($U180,Output!$C:$AL,AH$179,FALSE) -> 1442.94 | AI180: =VLOOKUP($U180,Output!$C:$AL,AI$179,FALSE) -> 1211.47 | AJ180: =VLOOKUP($U180,Output!$C:$AL,AJ$179,FALSE) -> 1389.7 | AK180: =VLOOKUP($U180,Output!$C:$AL,AK$179,FALSE) -> 1646.09 | AL180: =VLOOKUP($U180,Output!$C:$AL,AL$179,FALSE) -> 1491.82 | AM180: =VLOOKUP($U180,Output!$C:$AL,AM$179,FALSE) -> 1779.87 | AN180: =VLOOKUP($U180,Output!$C:$AL,AN$179,FALSE) -> 1957.86 | AO180: =VLOOKUP($U180,Output!$C:$AL,AO$179,FALSE) -> 1374.57 | AP180: =VLOOKUP($U180,Output!$C:$AL,AP$179,FALSE) -> 1237.51 | AQ180: =VLOOKUP($U180,Output!$C:$AL,AQ$179,FALSE) -> 1651.43 | AR180: =VLOOKUP($U180,Output!$C:$AL,AR$179,FALSE) -> 1590.6 | AS180: =VLOOKUP($U180,Output!$C:$AL,AS$179,FALSE) -> 1636.49 | AT180: =VLOOKUP($U180,Output!$C:$AL,AT$179,FALSE) -> 1954.02 | AU180: =VLOOKUP($U180,Output!$C:$AL,AU$179,FALSE) -> 1753.64 | AV180: =VLOOKUP($U180,Output!$C:$AL,AV$179,FALSE) -> 1048.87 | AW180: =VLOOKUP($U180,Output!$C:$AL,AW$179,FALSE) -> 1141.76 | AX180: =VLOOKUP($U180,Output!$C:$AL,AX$179,FALSE) -> 1672.98 | AY180: =VLOOKUP($U180,Output!$C:$AL,AY$179,FALSE) -> 1660.32 | AZ180: =VLOOKUP($U180,Output!$C:$AL,AZ$179,FALSE) -> 1609.88
S181: Figure 9c | U181: OSUPREGECO | V181: =VLOOKUP($U181,Output!$C:$AL,V$179,FALSE) -> 157682.1 | W181: =VLOOKUP($U181,Output!$C:$AL,W$179,FALSE) -> 157295.17 | X181: =VLOOKUP($U181,Output!$C:$AL,X$179,FALSE) -> 157054.59 | Y181: =VLOOKUP($U181,Output!$C:$AL,Y$179,FALSE) -> 156709.91 | Z181: =VLOOKUP($U181,Output!$C:$AL,Z$179,FALSE) -> 156536.87 | AA181: =VLOOKUP($U181,Output!$C:$AL,AA$179,FALSE) -> 156462.31 | AB181: =VLOOKUP($U181,Output!$C:$AL,AB$179,FALSE) -> 156081.87 | AC181: =VLOOKUP($U181,Output!$C:$AL,AC$179,FALSE) -> 155899.85 | AD181: =VLOOKUP($U181,Output!$C:$AL,AD$179,FALSE) -> 155852.92 | AE181: =VLOOKUP($U181,Output!$C:$AL,AE$179,FALSE) -> 155700.63 | AF181: =VLOOKUP($U181,Output!$C:$AL,AF$179,FALSE) -> 155556.12 | AG181: =VLOOKUP($U181,Output!$C:$AL,AG$179,FALSE) -> 155480.71 | AH181: =VLOOKUP($U181,Output!$C:$AL,AH$179,FALSE) -> 155357.64 | AI181: =VLOOKUP($U181,Output!$C:$AL,AI$179,FALSE) -> 155264.14 | AJ181: =VLOOKUP($U181,Output!$C:$AL,AJ$179,FALSE) -> 155251.7 | AK181: =VLOOKUP($U181,Output!$C:$AL,AK$179,FALSE) -> 155238.48 | AL181: =VLOOKUP($U181,Output!$C:$AL,AL$179,FALSE) -> 155228.62 | AM181: =VLOOKUP($U181,Output!$C:$AL,AM$179,FALSE) -> 155228.62 | AN181: =VLOOKUP($U181,Output!$C:$AL,AN$179,FALSE) -> 155214.38 | AO181: =VLOOKUP($U181,Output!$C:$AL,AO$179,FALSE) -> 155214.38 | AP181: =VLOOKUP($U181,Output!$C:$AL,AP$179,FALSE) -> 155214.38 | AQ181: =VLOOKUP($U181,Output!$C:$AL,AQ$179,FALSE) -> 155209.57 | AR181: =VLOOKUP($U181,Output!$C:$AL,AR$179,FALSE) -> 155209.46 | AS181: =VLOOKUP($U181,Output!$C:$AL,AS$179,FALSE) -> 155202.4 | AT181: =VLOOKUP($U181,Output!$C:$AL,AT$179,FALSE) -> 155197.8 | AU181: =VLOOKUP($U181,Output!$C:$AL,AU$179,FALSE) -> 155197.8 | AV181: =VLOOKUP($U181,Output!$C:$AL,AV$179,FALSE) -> 155197.8 | AW181: =VLOOKUP($U181,Output!$C:$AL,AW$179,FALSE) -> 155197.8 | AX181: =VLOOKUP($U181,Output!$C:$AL,AX$179,FALSE) -> 155197.8 | AY181: =VLOOKUP($U181,Output!$C:$AL,AY$179,FALSE) -> 155197.8 | AZ181: =VLOOKUP($U181,Output!$C:$AL,AZ$179,FALSE) -> 155197.8
S182: Figure 9c | V182: =IFERROR(V180/V181,"0000") -> 0.01615275291 | W182: 0.01541738376 | X182: 0.009653522384 | Y182: 0.0126227499 | Z182: 0.01045108414 | AA182: 0.009639509988 | AB182: 0.008320184785 | AC182: 0.0103847438 | AD182: 0.01167222276 | AE182: 0.007673122453 | AF182: 0.007483022847 | AG182: 0.008761601359 | AH182: 0.009287859934 | AI182: 0.007802638781 | AJ182: 0.008951270743 | AK182: 0.01060362096 | AL182: 0.009610470028 | AM182: 0.0114661201 | AN182: 0.01261390858 | AO182: 0.00885594492 | AP182: 0.00797290818 | AQ182: 0.01064000113 | AR182: 0.01024808668 | AS182: 0.01054423127 | AT182: 0.01259051353 | AU182: 0.01129938698 | AV182: 0.00675827879 | AW182: 0.007356805316 | AX182: 0.01077966311 | AY182: 0.01069808979 | AZ182: 0.01037308519
S183: Figure 9c
S184: Figure 9c | U184: OSUPJEUNEALERTEREGECO | V184: =VLOOKUP($U184,Output!$C:$AL,V$179,FALSE) -> 41552.43 | W184: =VLOOKUP($U184,Output!$C:$AL,W$179,FALSE) -> 41435.89 | X184: =VLOOKUP($U184,Output!$C:$AL,X$179,FALSE) -> 41363.45 | Y184: =VLOOKUP($U184,Output!$C:$AL,Y$179,FALSE) -> 41259.81 | Z184: =VLOOKUP($U184,Output!$C:$AL,Z$179,FALSE) -> 41207.63 | AA184: =VLOOKUP($U184,Output!$C:$AL,AA$179,FALSE) -> 41185.21 | AB184: =VLOOKUP($U184,Output!$C:$AL,AB$179,FALSE) -> 41070.82 | AC184: =VLOOKUP($U184,Output!$C:$AL,AC$179,FALSE) -> 41016.01 | AD184: =VLOOKUP($U184,Output!$C:$AL,AD$179,FALSE) -> 41001.87 | AE184: =VLOOKUP($U184,Output!$C:$AL,AE$179,FALSE) -> 40956.09 | AF184: =VLOOKUP($U184,Output!$C:$AL,AF$179,FALSE) -> 40912.74 | AG184: =VLOOKUP($U184,Output!$C:$AL,AG$179,FALSE) -> 40890.11 | AH184: =VLOOKUP($U184,Output!$C:$AL,AH$179,FALSE) -> 40853.15 | AI184: =VLOOKUP($U184,Output!$C:$AL,AI$179,FALSE) -> 40825.03 | AJ184: =VLOOKUP($U184,Output!$C:$AL,AJ$179,FALSE) -> 40821.3 | AK184: =VLOOKUP($U184,Output!$C:$AL,AK$179,FALSE) -> 40817.33 | AL184: =VLOOKUP($U184,Output!$C:$AL,AL$179,FALSE) -> 40814.37 | AM184: =VLOOKUP($U184,Output!$C:$AL,AM$179,FALSE) -> 40814.37 | AN184: =VLOOKUP($U184,Output!$C:$AL,AN$179,FALSE) -> 40810.1 | AO184: =VLOOKUP($U184,Output!$C:$AL,AO$179,FALSE) -> 40810.1 | AP184: =VLOOKUP($U184,Output!$C:$AL,AP$179,FALSE) -> 40810.1 | AQ184: =VLOOKUP($U184,Output!$C:$AL,AQ$179,FALSE) -> 40808.66 | AR184: =VLOOKUP($U184,Output!$C:$AL,AR$179,FALSE) -> 40808.62 | AS184: =VLOOKUP($U184,Output!$C:$AL,AS$179,FALSE) -> 40806.51 | AT184: =VLOOKUP($U184,Output!$C:$AL,AT$179,FALSE) -> 40805.11 | AU184: =VLOOKUP($U184,Output!$C:$AL,AU$179,FALSE) -> 40805.11 | AV184: =VLOOKUP($U184,Output!$C:$AL,AV$179,FALSE) -> 40805.11 | AW184: =VLOOKUP($U184,Output!$C:$AL,AW$179,FALSE) -> 40805.11 | AX184: =VLOOKUP($U184,Output!$C:$AL,AX$179,FALSE) -> 40805.11 | AY184: =VLOOKUP($U184,Output!$C:$AL,AY$179,FALSE) -> 40805.11 | AZ184: =VLOOKUP($U184,Output!$C:$AL,AZ$179,FALSE) -> 40805.11
S185: Figure 9c | T185: Faible | U185: OSUPJEUNEACCEPTREGECO | V185: =VLOOKUP($U185,Output!$C:$AL,V$179,FALSE) -> 27768.32 | W185: =VLOOKUP($U185,Output!$C:$AL,W$179,FALSE) -> 27690.47 | X185: =VLOOKUP($U185,Output!$C:$AL,X$179,FALSE) -> 27642.09 | Y185: =VLOOKUP($U185,Output!$C:$AL,Y$179,FALSE) -> 27572.92 | Z185: =VLOOKUP($U185,Output!$C:$AL,Z$179,FALSE) -> 27538.05 | AA185: =VLOOKUP($U185,Output!$C:$AL,AA$179,FALSE) -> 27523.08 | AB185: =VLOOKUP($U185,Output!$C:$AL,AB$179,FALSE) -> 27446.73 | AC185: =VLOOKUP($U185,Output!$C:$AL,AC$179,FALSE) -> 27410.12 | AD185: =VLOOKUP($U185,Output!$C:$AL,AD$179,FALSE) -> 27400.68 | AE185: =VLOOKUP($U185,Output!$C:$AL,AE$179,FALSE) -> 27370.13 | AF185: =VLOOKUP($U185,Output!$C:$AL,AF$179,FALSE) -> 27341.23 | AG185: =VLOOKUP($U185,Output!$C:$AL,AG$179,FALSE) -> 27326.14 | AH185: =VLOOKUP($U185,Output!$C:$AL,AH$179,FALSE) -> 27301.49 | AI185: =VLOOKUP($U185,Output!$C:$AL,AI$179,FALSE) -> 27282.72 | AJ185: =VLOOKUP($U185,Output!$C:$AL,AJ$179,FALSE) -> 27280.23 | AK185: =VLOOKUP($U185,Output!$C:$AL,AK$179,FALSE) -> 27277.58 | AL185: =VLOOKUP($U185,Output!$C:$AL,AL$179,FALSE) -> 27275.61 | AM185: =VLOOKUP($U185,Output!$C:$AL,AM$179,FALSE) -> 27275.61 | AN185: =VLOOKUP($U185,Output!$C:$AL,AN$179,FALSE) -> 27272.76 | AO185: =VLOOKUP($U185,Output!$C:$AL,AO$179,FALSE) -> 27272.76 | AP185: =VLOOKUP($U185,Output!$C:$AL,AP$179,FALSE) -> 27272.76 | AQ185: =VLOOKUP($U185,Output!$C:$AL,AQ$179,FALSE) -> 27271.8 | AR185: =VLOOKUP($U185,Output!$C:$AL,AR$179,FALSE) -> 27271.78 | AS185: =VLOOKUP($U185,Output!$C:$AL,AS$179,FALSE) -> 27270.37 | AT185: =VLOOKUP($U185,Output!$C:$AL,AT$179,FALSE) -> 27269.43 | AU185: =VLOOKUP($U185,Output!$C:$AL,AU$179,FALSE) -> 27269.43 | AV185: =VLOOKUP($U185,Output!$C:$AL,AV$179,FALSE) -> 27269.43 | AW185: =VLOOKUP($U185,Output!$C:$AL,AW$179,FALSE) -> 27269.43 | AX185: =VLOOKUP($U185,Output!$C:$AL,AX$179,FALSE) -> 27269.43 | AY185: =VLOOKUP($U185,Output!$C:$AL,AY$179,FALSE) -> 27269.43 | AZ185: =VLOOKUP($U185,Output!$C:$AL,AZ$179,FALSE) -> 27269.43
S186: Figure 9c | T186: Moyen | V186: =V184-V185 -> 13784.11 | W186: 13745.42 | X186: 13721.36 | Y186: 13686.89 | Z186: 13669.58 | AA186: 13662.13 | AB186: 13624.09 | AC186: 13605.89 | AD186: 13601.19 | AE186: 13585.96 | AF186: 13571.51 | AG186: 13563.97 | AH186: 13551.66 | AI186: 13542.31 | AJ186: 13541.07 | AK186: 13539.75 | AL186: 13538.76 | AM186: 13538.76 | AN186: 13537.34 | AO186: 13537.34 | AP186: 13537.34 | AQ186: 13536.86 | AR186: 13536.84 | AS186: 13536.14 | AT186: 13535.68 | AU186: 13535.68 | AV186: 13535.68 | AW186: 13535.68 | AX186: 13535.68 | AY186: 13535.68 | AZ186: 13535.68
S187: Figure 9c | T187: Élevé | V187: =$V$181-V184 -> 116129.67 | W187: 116246.21 | X187: 116318.65 | Y187: 116422.29 | Z187: 116474.47 | AA187: 116496.89 | AB187: 116611.28 | AC187: 116666.09 | AD187: 116680.23 | AE187: 116726.01 | AF187: 116769.36 | AG187: 116791.99 | AH187: 116828.95 | AI187: 116857.07 | AJ187: 116860.8 | AK187: 116864.77 | AL187: 116867.73 | AM187: 116867.73 | AN187: 116872 | AO187: 116872 | AP187: 116872 | AQ187: 116873.44 | AR187: 116873.48 | AS187: 116875.59 | AT187: 116876.99 | AU187: 116876.99 | AV187: 116876.99 | AW187: 116876.99 | AX187: 116876.99 | AY187: 116876.99 | AZ187: 116876.99
U199: Période | V199: P0 | W199: P1 | X199: P2 | Y199: P3 | Z199: P4 | AA199: P5 | AB199: P6 | AC199: P7 | AD199: P8 | AE199: P9 | AF199: P10 | AG199: P11 | AH199: P12 | AI199: P13 | AJ199: P14 | AK199: P15 | AL199: P16 | AM199: P17 | AN199: P18 | AO199: P19 | AP199: P20 | AQ199: P21 | AR199: P22 | AS199: P23 | AT199: P24 | AU199: P25 | AV199: P26 | AW199: P27 | AX199: P28 | AY199: P29 | AZ199: P30
U200: Axe des "X" Fin de période | V200: 2018 | W200: 2023 | X200: 2028 | Y200: 2033 | Z200: 2038 | AA200: 2043 | AB200: 2048 | AC200: 2053 | AD200: 2058 | AE200: 2063 | AF200: 2068 | AG200: 2073 | AH200: 2078 | AI200: 2083 | AJ200: 2088 | AK200: 2093 | AL200: 2098 | AM200: 2103 | AN200: 2108 | AO200: 2113 | AP200: 2118 | AQ200: 2123 | AR200: 2128 | AS200: 2133 | AT200: 2138 | AU200: 2143 | AV200: 2148 | AW200: 2153 | AX200: 2158 | AY200: 2163 | AZ200: 2168
U201: Colonne | V201: 6 | W201: 7 | X201: 8 | Y201: 9 | Z201: 10 | AA201: 11 | AB201: 12 | AC201: 13 | AD201: 14 | AE201: 15 | AF201: 16 | AG201: 17 | AH201: 18 | AI201: 19 | AJ201: 20 | AK201: 21 | AL201: 22 | AM201: 23 | AN201: 24 | AO201: 25 | AP201: 26 | AQ201: 27 | AR201: 28 | AS201: 29 | AT201: 30 | AU201: 31 | AV201: 32 | AW201: 33 | AX201: 34 | AY201: 35 | AZ201: 36
B202: Figure 10a Évolution de la superficie selon le type de couvert | S202: =LEFT(B$202,10) -> Figure 10a | U202: OSUPINC
S203: Figure 10a | U203: Résineux | V203: =SUM(V214,V220,V221,V222,V224,V225) -> 13439.8 | W203: =SUM(W214,W220,W221,W222,W224,W225) -> 13362.14 | X203: 13612.14 | Y203: 13734.54 | Z203: 13766.66 | AA203: 14001.11 | AB203: 14012.3 | AC203: 13679.61 | AD203: 13382.63 | AE203: 13108.15 | AF203: 13212.97 | AG203: 13335.24 | AH203: 13446.26 | AI203: 13620.25 | AJ203: 13619.84 | AK203: 13600.38 | AL203: 13600.38 | AM203: 13600.38 | AN203: 13341.46 | AO203: 13341.46 | AP203: 13341.46 | AQ203: 13250.23 | AR203: 13188.82 | AS203: 13186.04 | AT203: 12850.7 | AU203: 12769.07 | AV203: 12510.45 | AW203: 11994 | AX203: 11778.9 | AY203: 11476.69 | AZ203: 11211.6
S204: Figure 10a | U204: Mixtes résineux | V204: =V223 -> 1668.1 | W204: =W223 -> 1701.85 | X204: 1492.39 | Y204: 1135.75 | Z204: 1210.05 | AA204: 960.05 | AB204: 839.22 | AC204: 704.85 | AD204: 704.85 | AE204: 696.75 | AF204: 696.75 | AG204: 622.45 | AH204: 291.85 | AI204: 291.85 | AJ204: 314.85 | AK204: 373.52 | AL204: 373.52 | AM204: 373.52 | AN204: 618.21 | AO204: 618.21 | AP204: 618.21 | AQ204: 704.62 | AR204: 766.03 | AS204: 761.75 | AT204: 1092.49 | AU204: 1174.13 | AV204: 1432.75 | AW204: 1885.57 | AX204: 1949.13 | AY204: 1956.43 | AZ204: 2179.59
S205: Figure 10a | U205: Mixtes feuillus intolérants | V205: =V213+V219 -> 2355.4 | W205: =W213+W219 -> 1942.5 | X205: =X213+X219 -> 2136.14 | Y205: =Y213+Y219 -> 2399.84 | Z205: 2294.24 | AA205: 1739.97 | AB205: 1801.16 | AC205: 2324.83 | AD205: 2768.79 | AE205: 3072.37 | AF205: 3183.76 | AG205: 3358.48 | AH205: 3851.06 | AI205: 3953.51 | AJ205: 3883.95 | AK205: 3831.58 | AL205: 3857.28 | AM205: 3857.28 | AN205: 3910.42 | AO205: 3942.19 | AP205: 3942.19 | AQ205: 4085.49 | AR205: 4085.49 | AS205: 4085.49 | AT205: 4085.49 | AU205: 4085.49 | AV205: 4085.49 | AW205: 4149.12 | AX205: 4300.66 | AY205: 4595.57 | AZ205: 4637.5
S206: Figure 10a | U206: Mixtes feuillus tolérants | V206: =V217 -> 8918.5 | W206: =W217 -> 8810.6 | X206: 8539.14 | Y206: 8370.42 | Z206: 8272.75 | AA206: 8261.2 | AB206: 8225.53 | AC206: 8163.9 | AD206: 7989.5 | AE206: 7810.55 | AF206: 7414.18 | AG206: 7027.66 | AH206: 6640.99 | AI206: 6273.25 | AJ206: 6273.25 | AK206: 6273.25 | AL206: 6240.15 | AM206: 6210.88 | AN206: 6157.74 | AO206: 6357.81 | AP206: 6241.31 | AQ206: 5872.88 | AR206: 5872.88 | AS206: 5872.88 | AT206: 5872.88 | AU206: 5872.88 | AV206: 5872.88 | AW206: 5872.88 | AX206: 5872.88 | AY206: 5874.17 | AZ206: 5874.17
S207: Figure 10a | U207: Feuillus intolérants | V207: =V212+V215+V218 -> 4911.6 | W207: =W212+W215+W218 -> 5323 | X207: =X212+X215+X218 -> 5300.48 | Y207: 5341.21 | Z207: 5348.47 | AA207: 5895.74 | AB207: 5874.63 | AC207: 5852.29 | AD207: 5833.46 | AE207: 5953.83 | AF207: 5989.68 | AG207: 6078.1 | AH207: 6069.06 | AI207: 6046.95 | AJ207: 6081.47 | AK207: 6470.41 | AL207: 6475.81 | AM207: 6475.81 | AN207: 6499.8 | AO207: 6499.8 | AP207: 6499.8 | AQ207: 6499.8 | AR207: 6499.8 | AS207: 6499.8 | AT207: 6499.8 | AU207: 6499.8 | AV207: 6499.8 | AW207: 6499.8 | AX207: 6499.8 | AY207: 6499.8 | AZ207: 6499.8
S208: Figure 10a | U208: Feuillus tolérants | V208: =V216 -> 59585 | W208: =W216 -> 59351.39 | X208: 59170.59 | Y208: 58924.44 | Z208: 58841.01 | AA208: 58800.55 | AB208: 58525.32 | AC208: 58370.68 | AD208: 58369.98 | AE208: 58255.27 | AF208: 58255.08 | AG208: 58255.08 | AH208: 58254.72 | AI208: 58274.64 | AJ208: 58274.64 | AK208: 57885.65 | AL208: 57877.77 | AM208: 57907.05 | AN208: 57883.06 | AO208: 57651.22 | AP208: 57767.72 | AQ208: 57992.84 | AR208: 57992.73 | AS208: 57992.73 | AT208: 57992.73 | AU208: 57992.73 | AV208: 57992.73 | AW208: 57992.73 | AX208: 57992.73 | AY208: 57991.44 | AZ208: 57991.44
S209: Figure 10a | U209: Total | V209: =SUM(V203:V208) -> 90878.4 | W209: =SUM(W203:W208) -> 90491.48 | X209: =SUM(X203:X208) -> 90250.88 | Y209: 89906.2 | Z209: 89733.18 | AA209: 89658.62 | AB209: 89278.16 | AC209: 89096.16 | AD209: 89049.21 | AE209: 88896.92 | AF209: 88752.42 | AG209: 88677.01 | AH209: 88553.94 | AI209: 88460.45 | AJ209: 88448 | AK209: 88434.79 | AL209: 88424.91 | AM209: 88424.92 | AN209: 88410.69 | AO209: 88410.69 | AP209: 88410.69 | AQ209: 88405.86 | AR209: 88405.75 | AS209: 88398.69 | AT209: 88394.09 | AU209: 88394.1 | AV209: 88394.1 | AW209: 88394.1 | AX209: 88394.1 | AY209: 88394.1 | AZ209: 88394.1
S210: Figure 10a
S211: Figure 10a
S212: Figure 10a | T212: Bétulaies blanches | U212: (FCTYF_BOP) | V212: =VLOOKUP($U$202&$U212,GTYF!$C:$AP,V$201,FALSE) -> 0 | W212: =VLOOKUP($U$202&$U212,GTYF!$C:$AP,W$201,FALSE) -> 0 | X212: =VLOOKUP($U$202&$U212,GTYF!$C:$AP,X$201,FALSE) -> 0 | Y212: =VLOOKUP($U$202&$U212,GTYF!$C:$AP,Y$201,FALSE) -> 0 | Z212: =VLOOKUP($U$202&$U212,GTYF!$C:$AP,Z$201,FALSE) -> 0 | AA212: =VLOOKUP($U$202&$U212,GTYF!$C:$AP,AA$201,FALSE) -> 0 | AB212: =VLOOKUP($U$202&$U212,GTYF!$C:$AP,AB$201,FALSE) -> 0 | AC212: =VLOOKUP($U$202&$U212,GTYF!$C:$AP,AC$201,FALSE) -> 0 | AD212: =VLOOKUP($U$202&$U212,GTYF!$C:$AP,AD$201,FALSE) -> 0 | AE212: =VLOOKUP($U$202&$U212,GTYF!$C:$AP,AE$201,FALSE) -> 105.14 | AF212: =VLOOKUP($U$202&$U212,GTYF!$C:$AP,AF$201,FALSE) -> 105.14 | AG212: =VLOOKUP($U$202&$U212,GTYF!$C:$AP,AG$201,FALSE) -> 105.14 | AH212: =VLOOKUP($U$202&$U212,GTYF!$C:$AP,AH$201,FALSE) -> 105.14 | AI212: =VLOOKUP($U$202&$U212,GTYF!$C:$AP,AI$201,FALSE) -> 105.14 | AJ212: =VLOOKUP($U$202&$U212,GTYF!$C:$AP,AJ$201,FALSE) -> 105.14 | AK212: =VLOOKUP($U$202&$U212,GTYF!$C:$AP,AK$201,FALSE) -> 494.13 | AL212: =VLOOKUP($U$202&$U212,GTYF!$C:$AP,AL$201,FALSE) -> 499.53 | AM212: =VLOOKUP($U$202&$U212,GTYF!$C:$AP,AM$201,FALSE) -> 499.53 | AN212: =VLOOKUP($U$202&$U212,GTYF!$C:$AP,AN$201,FALSE) -> 523.52 | AO212: =VLOOKUP($U$202&$U212,GTYF!$C:$AP,AO$201,FALSE) -> 523.52 | AP212: =VLOOKUP($U$202&$U212,GTYF!$C:$AP,AP$201,FALSE) -> 523.52 | AQ212: =VLOOKUP($U$202&$U212,GTYF!$C:$AP,AQ$201,FALSE) -> 523.52 | AR212: =VLOOKUP($U$202&$U212,GTYF!$C:$AP,AR$201,FALSE) -> 523.52 | AS212: =VLOOKUP($U$202&$U212,GTYF!$C:$AP,AS$201,FALSE) -> 523.52 | AT212: =VLOOKUP($U$202&$U212,GTYF!$C:$AP,AT$201,FALSE) -> 523.52 | AU212: =VLOOKUP($U$202&$U212,GTYF!$C:$AP,AU$201,FALSE) -> 523.52 | AV212: =VLOOKUP($U$202&$U212,GTYF!$C:$AP,AV$201,FALSE) -> 523.52 | AW212: =VLOOKUP($U$202&$U212,GTYF!$C:$AP,AW$201,FALSE) -> 523.52 | AX212: =VLOOKUP($U$202&$U212,GTYF!$C:$AP,AX$201,FALSE) -> 523.52 | AY212: =VLOOKUP($U$202&$U212,GTYF!$C:$AP,AY$201,FALSE) -> 523.52 | AZ212: =VLOOKUP($U$202&$U212,GTYF!$C:$AP,AZ$201,FALSE) -> 523.52
S213: Figure 10a | T213: Bétulaies blanches à résineux | U213: (FCTYF_BOPR) | V213: =VLOOKUP($U$202&$U213,GTYF!$C:$AP,V$201,FALSE) -> 1097.5 | W213: =VLOOKUP($U$202&$U213,GTYF!$C:$AP,W$201,FALSE) -> 1097.5 | X213: =VLOOKUP($U$202&$U213,GTYF!$C:$AP,X$201,FALSE) -> 1291.14 | Y213: =VLOOKUP($U$202&$U213,GTYF!$C:$AP,Y$201,FALSE) -> 1619.14 | Z213: =VLOOKUP($U$202&$U213,GTYF!$C:$AP,Z$201,FALSE) -> 1619.14 | AA213: =VLOOKUP($U$202&$U213,GTYF!$C:$AP,AA$201,FALSE) -> 1619.14 | AB213: =VLOOKUP($U$202&$U213,GTYF!$C:$AP,AB$201,FALSE) -> 1619.14 | AC213: =VLOOKUP($U$202&$U213,GTYF!$C:$AP,AC$201,FALSE) -> 1619.14 | AD213: =VLOOKUP($U$202&$U213,GTYF!$C:$AP,AD$201,FALSE) -> 1771.58 | AE213: =VLOOKUP($U$202&$U213,GTYF!$C:$AP,AE$201,FALSE) -> 1933.08 | AF213: =VLOOKUP($U$202&$U213,GTYF!$C:$AP,AF$201,FALSE) -> 2080.56 | AG213: =VLOOKUP($U$202&$U213,GTYF!$C:$AP,AG$201,FALSE) -> 2273.48 | AH213: =VLOOKUP($U$202&$U213,GTYF!$C:$AP,AH$201,FALSE) -> 2766.06 | AI213: =VLOOKUP($U$202&$U213,GTYF!$C:$AP,AI$201,FALSE) -> 2868.51 | AJ213: =VLOOKUP($U$202&$U213,GTYF!$C:$AP,AJ$201,FALSE) -> 2834.15 | AK213: =VLOOKUP($U$202&$U213,GTYF!$C:$AP,AK$201,FALSE) -> 2781.78 | AL213: =VLOOKUP($U$202&$U213,GTYF!$C:$AP,AL$201,FALSE) -> 2807.48 | AM213: =VLOOKUP($U$202&$U213,GTYF!$C:$AP,AM$201,FALSE) -> 2807.48 | AN213: =VLOOKUP($U$202&$U213,GTYF!$C:$AP,AN$201,FALSE) -> 2860.62 | AO213: =VLOOKUP($U$202&$U213,GTYF!$C:$AP,AO$201,FALSE) -> 2892.39 | AP213: =VLOOKUP($U$202&$U213,GTYF!$C:$AP,AP$201,FALSE) -> 2892.39 | AQ213: =VLOOKUP($U$202&$U213,GTYF!$C:$AP,AQ$201,FALSE) -> 3035.69 | AR213: =VLOOKUP($U$202&$U213,GTYF!$C:$AP,AR$201,FALSE) -> 3035.69 | AS213: =VLOOKUP($U$202&$U213,GTYF!$C:$AP,AS$201,FALSE) -> 3035.69 | AT213: =VLOOKUP($U$202&$U213,GTYF!$C:$AP,AT$201,FALSE) -> 3035.69 | AU213: =VLOOKUP($U$202&$U213,GTYF!$C:$AP,AU$201,FALSE) -> 3035.69 | AV213: =VLOOKUP($U$202&$U213,GTYF!$C:$AP,AV$201,FALSE) -> 3035.69 | AW213: =VLOOKUP($U$202&$U213,GTYF!$C:$AP,AW$201,FALSE) -> 3099.32 | AX213: =VLOOKUP($U$202&$U213,GTYF!$C:$AP,AX$201,FALSE) -> 3250.86 | AY213: =VLOOKUP($U$202&$U213,GTYF!$C:$AP,AY$201,FALSE) -> 3545.77 | AZ213: =VLOOKUP($U$202&$U213,GTYF!$C:$AP,AZ$201,FALSE) -> 3587.7
S214: Figure 10a | T214: Pessières | U214: (FCTYF_EPX) | V214: =VLOOKUP($U$202&$U214,GTYF!$C:$AP,V$201,FALSE) -> 2357.7 | W214: =VLOOKUP($U$202&$U214,GTYF!$C:$AP,W$201,FALSE) -> 2333.39 | X214: =VLOOKUP($U$202&$U214,GTYF!$C:$AP,X$201,FALSE) -> 2583.39 | Y214: =VLOOKUP($U$202&$U214,GTYF!$C:$AP,Y$201,FALSE) -> 2707.99 | Z214: =VLOOKUP($U$202&$U214,GTYF!$C:$AP,Z$201,FALSE) -> 2747.72 | AA214: =VLOOKUP($U$202&$U214,GTYF!$C:$AP,AA$201,FALSE) -> 2997.19 | AB214: =VLOOKUP($U$202&$U214,GTYF!$C:$AP,AB$201,FALSE) -> 3056.82 | AC214: =VLOOKUP($U$202&$U214,GTYF!$C:$AP,AC$201,FALSE) -> 2724.13 | AD214: =VLOOKUP($U$202&$U214,GTYF!$C:$AP,AD$201,FALSE) -> 2430.04 | AE214: =VLOOKUP($U$202&$U214,GTYF!$C:$AP,AE$201,FALSE) -> 2267.85 | AF214: =VLOOKUP($U$202&$U214,GTYF!$C:$AP,AF$201,FALSE) -> 2516.75 | AG214: =VLOOKUP($U$202&$U214,GTYF!$C:$AP,AG$201,FALSE) -> 2705.57 | AH214: =VLOOKUP($U$202&$U214,GTYF!$C:$AP,AH$201,FALSE) -> 2912.07 | AI214: =VLOOKUP($U$202&$U214,GTYF!$C:$AP,AI$201,FALSE) -> 3142.16 | AJ214: =VLOOKUP($U$202&$U214,GTYF!$C:$AP,AJ$201,FALSE) -> 3254.19 | AK214: =VLOOKUP($U$202&$U214,GTYF!$C:$AP,AK$201,FALSE) -> 3303.69 | AL214: =VLOOKUP($U$202&$U214,GTYF!$C:$AP,AL$201,FALSE) -> 3303.69 | AM214: =VLOOKUP($U$202&$U214,GTYF!$C:$AP,AM$201,FALSE) -> 3303.69 | AN214: =VLOOKUP($U$202&$U214,GTYF!$C:$AP,AN$201,FALSE) -> 3044.77 | AO214: =VLOOKUP($U$202&$U214,GTYF!$C:$AP,AO$201,FALSE) -> 3044.77 | AP214: =VLOOKUP($U$202&$U214,GTYF!$C:$AP,AP$201,FALSE) -> 3044.77 | AQ214: =VLOOKUP($U$202&$U214,GTYF!$C:$AP,AQ$201,FALSE) -> 2953.54 | AR214: =VLOOKUP($U$202&$U214,GTYF!$C:$AP,AR$201,FALSE) -> 2953.54 | AS214: =VLOOKUP($U$202&$U214,GTYF!$C:$AP,AS$201,FALSE) -> 2953.54 | AT214: =VLOOKUP($U$202&$U214,GTYF!$C:$AP,AT$201,FALSE) -> 2618.2 | AU214: =VLOOKUP($U$202&$U214,GTYF!$C:$AP,AU$201,FALSE) -> 2618.2 | AV214: =VLOOKUP($U$202&$U214,GTYF!$C:$AP,AV$201,FALSE) -> 2618.2 | AW214: =VLOOKUP($U$202&$U214,GTYF!$C:$AP,AW$201,FALSE) -> 2554.57 | AX214: =VLOOKUP($U$202&$U214,GTYF!$C:$AP,AX$201,FALSE) -> 2396.23 | AY214: =VLOOKUP($U$202&$U214,GTYF!$C:$AP,AY$201,FALSE) -> 2094.02 | AZ214: =VLOOKUP($U$202&$U214,GTYF!$C:$AP,AZ$201,FALSE) -> 1828.93
S215: Figure 10a | T215: Érablières rouges | U215: (FCTYF_ERO) | V215: =VLOOKUP($U$202&$U215,GTYF!$C:$AP,V$201,FALSE) -> 1461.4 | W215: =VLOOKUP($U$202&$U215,GTYF!$C:$AP,W$201,FALSE) -> 1461.4 | X215: =VLOOKUP($U$202&$U215,GTYF!$C:$AP,X$201,FALSE) -> 1457.32 | Y215: =VLOOKUP($U$202&$U215,GTYF!$C:$AP,Y$201,FALSE) -> 1453.68 | Z215: =VLOOKUP($U$202&$U215,GTYF!$C:$AP,Z$201,FALSE) -> 1446.33 | AA215: =VLOOKUP($U$202&$U215,GTYF!$C:$AP,AA$201,FALSE) -> 1439.32 | AB215: =VLOOKUP($U$202&$U215,GTYF!$C:$AP,AB$201,FALSE) -> 1430.64 | AC215: =VLOOKUP($U$202&$U215,GTYF!$C:$AP,AC$201,FALSE) -> 1430.64 | AD215: =VLOOKUP($U$202&$U215,GTYF!$C:$AP,AD$201,FALSE) -> 1430.64 | AE215: =VLOOKUP($U$202&$U215,GTYF!$C:$AP,AE$201,FALSE) -> 1430.6 | AF215: =VLOOKUP($U$202&$U215,GTYF!$C:$AP,AF$201,FALSE) -> 1430.6 | AG215: =VLOOKUP($U$202&$U215,GTYF!$C:$AP,AG$201,FALSE) -> 1430.6 | AH215: =VLOOKUP($U$202&$U215,GTYF!$C:$AP,AH$201,FALSE) -> 1421.56 | AI215: =VLOOKUP($U$202&$U215,GTYF!$C:$AP,AI$201,FALSE) -> 1399.45 | AJ215: =VLOOKUP($U$202&$U215,GTYF!$C:$AP,AJ$201,FALSE) -> 1398.77 | AK215: =VLOOKUP($U$202&$U215,GTYF!$C:$AP,AK$201,FALSE) -> 1398.72 | AL215: =VLOOKUP($U$202&$U215,GTYF!$C:$AP,AL$201,FALSE) -> 1398.72 | AM215: =VLOOKUP($U$202&$U215,GTYF!$C:$AP,AM$201,FALSE) -> 1398.72 | AN215: =VLOOKUP($U$202&$U215,GTYF!$C:$AP,AN$201,FALSE) -> 1398.72 | AO215: =VLOOKUP($U$202&$U215,GTYF!$C:$AP,AO$201,FALSE) -> 1398.72 | AP215: =VLOOKUP($U$202&$U215,GTYF!$C:$AP,AP$201,FALSE) -> 1398.72 | AQ215: =VLOOKUP($U$202&$U215,GTYF!$C:$AP,AQ$201,FALSE) -> 1398.72 | AR215: =VLOOKUP($U$202&$U215,GTYF!$C:$AP,AR$201,FALSE) -> 1398.72 | AS215: =VLOOKUP($U$202&$U215,GTYF!$C:$AP,AS$201,FALSE) -> 1398.72 | AT215: =VLOOKUP($U$202&$U215,GTYF!$C:$AP,AT$201,FALSE) -> 1398.72 | AU215: =VLOOKUP($U$202&$U215,GTYF!$C:$AP,AU$201,FALSE) -> 1398.72 | AV215: =VLOOKUP($U$202&$U215,GTYF!$C:$AP,AV$201,FALSE) -> 1398.72 | AW215: =VLOOKUP($U$202&$U215,GTYF!$C:$AP,AW$201,FALSE) -> 1398.72 | AX215: =VLOOKUP($U$202&$U215,GTYF!$C:$AP,AX$201,FALSE) -> 1398.72 | AY215: =VLOOKUP($U$202&$U215,GTYF!$C:$AP,AY$201,FALSE) -> 1398.72 | AZ215: =VLOOKUP($U$202&$U215,GTYF!$C:$AP,AZ$201,FALSE) -> 1398.72
S216: Figure 10a | T216: Feuillus tolérants | U216: (FCTYF_FT) | V216: =VLOOKUP($U$202&$U216,GTYF!$C:$AP,V$201,FALSE) -> 59585 | W216: =VLOOKUP($U$202&$U216,GTYF!$C:$AP,W$201,FALSE) -> 59351.39 | X216: =VLOOKUP($U$202&$U216,GTYF!$C:$AP,X$201,FALSE) -> 59170.59 | Y216: =VLOOKUP($U$202&$U216,GTYF!$C:$AP,Y$201,FALSE) -> 58924.44 | Z216: =VLOOKUP($U$202&$U216,GTYF!$C:$AP,Z$201,FALSE) -> 58841.01 | AA216: =VLOOKUP($U$202&$U216,GTYF!$C:$AP,AA$201,FALSE) -> 58800.55 | AB216: =VLOOKUP($U$202&$U216,GTYF!$C:$AP,AB$201,FALSE) -> 58525.32 | AC216: =VLOOKUP($U$202&$U216,GTYF!$C:$AP,AC$201,FALSE) -> 58370.68 | AD216: =VLOOKUP($U$202&$U216,GTYF!$C:$AP,AD$201,FALSE) -> 58369.98 | AE216: =VLOOKUP($U$202&$U216,GTYF!$C:$AP,AE$201,FALSE) -> 58255.27 | AF216: =VLOOKUP($U$202&$U216,GTYF!$C:$AP,AF$201,FALSE) -> 58255.08 | AG216: =VLOOKUP($U$202&$U216,GTYF!$C:$AP,AG$201,FALSE) -> 58255.08 | AH216: =VLOOKUP($U$202&$U216,GTYF!$C:$AP,AH$201,FALSE) -> 58254.72 | AI216: =VLOOKUP($U$202&$U216,GTYF!$C:$AP,AI$201,FALSE) -> 58274.64 | AJ216: =VLOOKUP($U$202&$U216,GTYF!$C:$AP,AJ$201,FALSE) -> 58274.64 | AK216: =VLOOKUP($U$202&$U216,GTYF!$C:$AP,AK$201,FALSE) -> 57885.65 | AL216: =VLOOKUP($U$202&$U216,GTYF!$C:$AP,AL$201,FALSE) -> 57877.77 | AM216: =VLOOKUP($U$202&$U216,GTYF!$C:$AP,AM$201,FALSE) -> 57907.05 | AN216: =VLOOKUP($U$202&$U216,GTYF!$C:$AP,AN$201,FALSE) -> 57883.06 | AO216: =VLOOKUP($U$202&$U216,GTYF!$C:$AP,AO$201,FALSE) -> 57651.22 | AP216: =VLOOKUP($U$202&$U216,GTYF!$C:$AP,AP$201,FALSE) -> 57767.72 | AQ216: =VLOOKUP($U$202&$U216,GTYF!$C:$AP,AQ$201,FALSE) -> 57992.84 | AR216: =VLOOKUP($U$202&$U216,GTYF!$C:$AP,AR$201,FALSE) -> 57992.73 | AS216: =VLOOKUP($U$202&$U216,GTYF!$C:$AP,AS$201,FALSE) -> 57992.73 | AT216: =VLOOKUP($U$202&$U216,GTYF!$C:$AP,AT$201,FALSE) -> 57992.73 | AU216: =VLOOKUP($U$202&$U216,GTYF!$C:$AP,AU$201,FALSE) -> 57992.73 | AV216: =VLOOKUP($U$202&$U216,GTYF!$C:$AP,AV$201,FALSE) -> 57992.73 | AW216: =VLOOKUP($U$202&$U216,GTYF!$C:$AP,AW$201,FALSE) -> 57992.73 | AX216: =VLOOKUP($U$202&$U216,GTYF!$C:$AP,AX$201,FALSE) -> 57992.73 | AY216: =VLOOKUP($U$202&$U216,GTYF!$C:$AP,AY$201,FALSE) -> 57991.44 | AZ216: =VLOOKUP($U$202&$U216,GTYF!$C:$AP,AZ$201,FALSE) -> 57991.44
S217: Figure 10a | T217: Feuillus tolérants à résineux | U217: (FCTYF_FTR) | V217: =VLOOKUP($U$202&$U217,GTYF!$C:$AP,V$201,FALSE) -> 8918.5 | W217: =VLOOKUP($U$202&$U217,GTYF!$C:$AP,W$201,FALSE) -> 8810.6 | X217: =VLOOKUP($U$202&$U217,GTYF!$C:$AP,X$201,FALSE) -> 8539.14 | Y217: =VLOOKUP($U$202&$U217,GTYF!$C:$AP,Y$201,FALSE) -> 8370.42 | Z217: =VLOOKUP($U$202&$U217,GTYF!$C:$AP,Z$201,FALSE) -> 8272.75 | AA217: =VLOOKUP($U$202&$U217,GTYF!$C:$AP,AA$201,FALSE) -> 8261.2 | AB217: =VLOOKUP($U$202&$U217,GTYF!$C:$AP,AB$201,FALSE) -> 8225.53 | AC217: =VLOOKUP($U$202&$U217,GTYF!$C:$AP,AC$201,FALSE) -> 8163.9 | AD217: =VLOOKUP($U$202&$U217,GTYF!$C:$AP,AD$201,FALSE) -> 7989.5 | AE217: =VLOOKUP($U$202&$U217,GTYF!$C:$AP,AE$201,FALSE) -> 7810.55 | AF217: =VLOOKUP($U$202&$U217,GTYF!$C:$AP,AF$201,FALSE) -> 7414.18 | AG217: =VLOOKUP($U$202&$U217,GTYF!$C:$AP,AG$201,FALSE) -> 7027.66 | AH217: =VLOOKUP($U$202&$U217,GTYF!$C:$AP,AH$201,FALSE) -> 6640.99 | AI217: =VLOOKUP($U$202&$U217,GTYF!$C:$AP,AI$201,FALSE) -> 6273.25 | AJ217: =VLOOKUP($U$202&$U217,GTYF!$C:$AP,AJ$201,FALSE) -> 6273.25 | AK217: =VLOOKUP($U$202&$U217,GTYF!$C:$AP,AK$201,FALSE) -> 6273.25 | AL217: =VLOOKUP($U$202&$U217,GTYF!$C:$AP,AL$201,FALSE) -> 6240.15 | AM217: =VLOOKUP($U$202&$U217,GTYF!$C:$AP,AM$201,FALSE) -> 6210.88 | AN217: =VLOOKUP($U$202&$U217,GTYF!$C:$AP,AN$201,FALSE) -> 6157.74 | AO217: =VLOOKUP($U$202&$U217,GTYF!$C:$AP,AO$201,FALSE) -> 6357.81 | AP217: =VLOOKUP($U$202&$U217,GTYF!$C:$AP,AP$201,FALSE) -> 6241.31 | AQ217: =VLOOKUP($U$202&$U217,GTYF!$C:$AP,AQ$201,FALSE) -> 5872.88 | AR217: =VLOOKUP($U$202&$U217,GTYF!$C:$AP,AR$201,FALSE) -> 5872.88 | AS217: =VLOOKUP($U$202&$U217,GTYF!$C:$AP,AS$201,FALSE) -> 5872.88 | AT217: =VLOOKUP($U$202&$U217,GTYF!$C:$AP,AT$201,FALSE) -> 5872.88 | AU217: =VLOOKUP($U$202&$U217,GTYF!$C:$AP,AU$201,FALSE) -> 5872.88 | AV217: =VLOOKUP($U$202&$U217,GTYF!$C:$AP,AV$201,FALSE) -> 5872.88 | AW217: =VLOOKUP($U$202&$U217,GTYF!$C:$AP,AW$201,FALSE) -> 5872.88 | AX217: =VLOOKUP($U$202&$U217,GTYF!$C:$AP,AX$201,FALSE) -> 5872.88 | AY217: =VLOOKUP($U$202&$U217,GTYF!$C:$AP,AY$201,FALSE) -> 5874.17 | AZ217: =VLOOKUP($U$202&$U217,GTYF!$C:$AP,AZ$201,FALSE) -> 5874.17
S218: Figure 10a | T218: Peupleraies | U218: (FCTYF_PEU) | V218: =VLOOKUP($U$202&$U218,GTYF!$C:$AP,V$201,FALSE) -> 3450.2 | W218: =VLOOKUP($U$202&$U218,GTYF!$C:$AP,W$201,FALSE) -> 3861.6 | X218: =VLOOKUP($U$202&$U218,GTYF!$C:$AP,X$201,FALSE) -> 3843.16 | Y218: =VLOOKUP($U$202&$U218,GTYF!$C:$AP,Y$201,FALSE) -> 3887.53 | Z218: =VLOOKUP($U$202&$U218,GTYF!$C:$AP,Z$201,FALSE) -> 3902.14 | AA218: =VLOOKUP($U$202&$U218,GTYF!$C:$AP,AA$201,FALSE) -> 4456.42 | AB218: =VLOOKUP($U$202&$U218,GTYF!$C:$AP,AB$201,FALSE) -> 4443.99 | AC218: =VLOOKUP($U$202&$U218,GTYF!$C:$AP,AC$201,FALSE) -> 4421.65 | AD218: =VLOOKUP($U$202&$U218,GTYF!$C:$AP,AD$201,FALSE) -> 4402.82 | AE218: =VLOOKUP($U$202&$U218,GTYF!$C:$AP,AE$201,FALSE) -> 4418.09 | AF218: =VLOOKUP($U$202&$U218,GTYF!$C:$AP,AF$201,FALSE) -> 4453.94 | AG218: =VLOOKUP($U$202&$U218,GTYF!$C:$AP,AG$201,FALSE) -> 4542.36 | AH218: =VLOOKUP($U$202&$U218,GTYF!$C:$AP,AH$201,FALSE) -> 4542.36 | AI218: =VLOOKUP($U$202&$U218,GTYF!$C:$AP,AI$201,FALSE) -> 4542.36 | AJ218: =VLOOKUP($U$202&$U218,GTYF!$C:$AP,AJ$201,FALSE) -> 4577.56 | AK218: =VLOOKUP($U$202&$U218,GTYF!$C:$AP,AK$201,FALSE) -> 4577.56 | AL218: =VLOOKUP($U$202&$U218,GTYF!$C:$AP,AL$201,FALSE) -> 4577.56 | AM218: =VLOOKUP($U$202&$U218,GTYF!$C:$AP,AM$201,FALSE) -> 4577.56 | AN218: =VLOOKUP($U$202&$U218,GTYF!$C:$AP,AN$201,FALSE) -> 4577.56 | AO218: =VLOOKUP($U$202&$U218,GTYF!$C:$AP,AO$201,FALSE) -> 4577.56 | AP218: =VLOOKUP($U$202&$U218,GTYF!$C:$AP,AP$201,FALSE) -> 4577.56 | AQ218: =VLOOKUP($U$202&$U218,GTYF!$C:$AP,AQ$201,FALSE) -> 4577.56 | AR218: =VLOOKUP($U$202&$U218,GTYF!$C:$AP,AR$201,FALSE) -> 4577.56 | AS218: =VLOOKUP($U$202&$U218,GTYF!$C:$AP,AS$201,FALSE) -> 4577.56 | AT218: =VLOOKUP($U$202&$U218,GTYF!$C:$AP,AT$201,FALSE) -> 4577.56 | AU218: =VLOOKUP($U$202&$U218,GTYF!$C:$AP,AU$201,FALSE) -> 4577.56 | AV218: =VLOOKUP($U$202&$U218,GTYF!$C:$AP,AV$201,FALSE) -> 4577.56 | AW218: =VLOOKUP($U$202&$U218,GTYF!$C:$AP,AW$201,FALSE) -> 4577.56 | AX218: =VLOOKUP($U$202&$U218,GTYF!$C:$AP,AX$201,FALSE) -> 4577.56 | AY218: =VLOOKUP($U$202&$U218,GTYF!$C:$AP,AY$201,FALSE) -> 4577.56 | AZ218: =VLOOKUP($U$202&$U218,GTYF!$C:$AP,AZ$201,FALSE) -> 4577.56
S219: Figure 10a | T219: Peupleraies à résineux | U219: (FCTYF_PEUR) | V219: =VLOOKUP($U$202&$U219,GTYF!$C:$AP,V$201,FALSE) -> 1257.9 | W219: =VLOOKUP($U$202&$U219,GTYF!$C:$AP,W$201,FALSE) -> 845 | X219: =VLOOKUP($U$202&$U219,GTYF!$C:$AP,X$201,FALSE) -> 845 | Y219: =VLOOKUP($U$202&$U219,GTYF!$C:$AP,Y$201,FALSE) -> 780.7 | Z219: =VLOOKUP($U$202&$U219,GTYF!$C:$AP,Z$201,FALSE) -> 675.1 | AA219: =VLOOKUP($U$202&$U219,GTYF!$C:$AP,AA$201,FALSE) -> 120.83 | AB219: =VLOOKUP($U$202&$U219,GTYF!$C:$AP,AB$201,FALSE) -> 182.02 | AC219: =VLOOKUP($U$202&$U219,GTYF!$C:$AP,AC$201,FALSE) -> 705.69 | AD219: =VLOOKUP($U$202&$U219,GTYF!$C:$AP,AD$201,FALSE) -> 997.21 | AE219: =VLOOKUP($U$202&$U219,GTYF!$C:$AP,AE$201,FALSE) -> 1139.29 | AF219: =VLOOKUP($U$202&$U219,GTYF!$C:$AP,AF$201,FALSE) -> 1103.2 | AG219: =VLOOKUP($U$202&$U219,GTYF!$C:$AP,AG$201,FALSE) -> 1085 | AH219: =VLOOKUP($U$202&$U219,GTYF!$C:$AP,AH$201,FALSE) -> 1085 | AI219: =VLOOKUP($U$202&$U219,GTYF!$C:$AP,AI$201,FALSE) -> 1085 | AJ219: =VLOOKUP($U$202&$U219,GTYF!$C:$AP,AJ$201,FALSE) -> 1049.8 | AK219: =VLOOKUP($U$202&$U219,GTYF!$C:$AP,AK$201,FALSE) -> 1049.8 | AL219: =VLOOKUP($U$202&$U219,GTYF!$C:$AP,AL$201,FALSE) -> 1049.8 | AM219: =VLOOKUP($U$202&$U219,GTYF!$C:$AP,AM$201,FALSE) -> 1049.8 | AN219: =VLOOKUP($U$202&$U219,GTYF!$C:$AP,AN$201,FALSE) -> 1049.8 | AO219: =VLOOKUP($U$202&$U219,GTYF!$C:$AP,AO$201,FALSE) -> 1049.8 | AP219: =VLOOKUP($U$202&$U219,GTYF!$C:$AP,AP$201,FALSE) -> 1049.8 | AQ219: =VLOOKUP($U$202&$U219,GTYF!$C:$AP,AQ$201,FALSE) -> 1049.8 | AR219: =VLOOKUP($U$202&$U219,GTYF!$C:$AP,AR$201,FALSE) -> 1049.8 | AS219: =VLOOKUP($U$202&$U219,GTYF!$C:$AP,AS$201,FALSE) -> 1049.8 | AT219: =VLOOKUP($U$202&$U219,GTYF!$C:$AP,AT$201,FALSE) -> 1049.8 | AU219: =VLOOKUP($U$202&$U219,GTYF!$C:$AP,AU$201,FALSE) -> 1049.8 | AV219: =VLOOKUP($U$202&$U219,GTYF!$C:$AP,AV$201,FALSE) -> 1049.8 | AW219: =VLOOKUP($U$202&$U219,GTYF!$C:$AP,AW$201,FALSE) -> 1049.8 | AX219: =VLOOKUP($U$202&$U219,GTYF!$C:$AP,AX$201,FALSE) -> 1049.8 | AY219: =VLOOKUP($U$202&$U219,GTYF!$C:$AP,AY$201,FALSE) -> 1049.8 | AZ219: =VLOOKUP($U$202&$U219,GTYF!$C:$AP,AZ$201,FALSE) -> 1049.8
S220: Figure 10a | T220: Pinèdes grises | U220: (FCTYF_PIG) | V220: =VLOOKUP($U$202&$U220,GTYF!$C:$AP,V$201,FALSE) -> 0 | W220: =VLOOKUP($U$202&$U220,GTYF!$C:$AP,W$201,FALSE) -> 0 | X220: =VLOOKUP($U$202&$U220,GTYF!$C:$AP,X$201,FALSE) -> 0 | Y220: =VLOOKUP($U$202&$U220,GTYF!$C:$AP,Y$201,FALSE) -> 0 | Z220: =VLOOKUP($U$202&$U220,GTYF!$C:$AP,Z$201,FALSE) -> 0 | AA220: =VLOOKUP($U$202&$U220,GTYF!$C:$AP,AA$201,FALSE) -> 0 | AB220: =VLOOKUP($U$202&$U220,GTYF!$C:$AP,AB$201,FALSE) -> 0 | AC220: =VLOOKUP($U$202&$U220,GTYF!$C:$AP,AC$201,FALSE) -> 0 | AD220: =VLOOKUP($U$202&$U220,GTYF!$C:$AP,AD$201,FALSE) -> 0 | AE220: =VLOOKUP($U$202&$U220,GTYF!$C:$AP,AE$201,FALSE) -> 0 | AF220: =VLOOKUP($U$202&$U220,GTYF!$C:$AP,AF$201,FALSE) -> 0 | AG220: =VLOOKUP($U$202&$U220,GTYF!$C:$AP,AG$201,FALSE) -> 0 | AH220: =VLOOKUP($U$202&$U220,GTYF!$C:$AP,AH$201,FALSE) -> 0 | AI220: =VLOOKUP($U$202&$U220,GTYF!$C:$AP,AI$201,FALSE) -> 0 | AJ220: =VLOOKUP($U$202&$U220,GTYF!$C:$AP,AJ$201,FALSE) -> 0 | AK220: =VLOOKUP($U$202&$U220,GTYF!$C:$AP,AK$201,FALSE) -> 0 | AL220: =VLOOKUP($U$202&$U220,GTYF!$C:$AP,AL$201,FALSE) -> 0 | AM220: =VLOOKUP($U$202&$U220,GTYF!$C:$AP,AM$201,FALSE) -> 0 | AN220: =VLOOKUP($U$202&$U220,GTYF!$C:$AP,AN$201,FALSE) -> 0 | AO220: =VLOOKUP($U$202&$U220,GTYF!$C:$AP,AO$201,FALSE) -> 0 | AP220: =VLOOKUP($U$202&$U220,GTYF!$C:$AP,AP$201,FALSE) -> 0 | AQ220: =VLOOKUP($U$202&$U220,GTYF!$C:$AP,AQ$201,FALSE) -> 0 | AR220: =VLOOKUP($U$202&$U220,GTYF!$C:$AP,AR$201,FALSE) -> 0 | AS220: =VLOOKUP($U$202&$U220,GTYF!$C:$AP,AS$201,FALSE) -> 0 | AT220: =VLOOKUP($U$202&$U220,GTYF!$C:$AP,AT$201,FALSE) -> 0 | AU220: =VLOOKUP($U$202&$U220,GTYF!$C:$AP,AU$201,FALSE) -> 0 | AV220: =VLOOKUP($U$202&$U220,GTYF!$C:$AP,AV$201,FALSE) -> 0 | AW220: =VLOOKUP($U$202&$U220,GTYF!$C:$AP,AW$201,FALSE) -> 0 | AX220: =VLOOKUP($U$202&$U220,GTYF!$C:$AP,AX$201,FALSE) -> 0 | AY220: =VLOOKUP($U$202&$U220,GTYF!$C:$AP,AY$201,FALSE) -> 0 | AZ220: =VLOOKUP($U$202&$U220,GTYF!$C:$AP,AZ$201,FALSE) -> 0
S221: Figure 10a | T221: Pinèdes blanches | U221: (FCTYF_PIN) | V221: =VLOOKUP($U$202&$U221,GTYF!$C:$AP,V$201,FALSE) -> 1775.6 | W221: =VLOOKUP($U$202&$U221,GTYF!$C:$AP,W$201,FALSE) -> 1775.6 | X221: =VLOOKUP($U$202&$U221,GTYF!$C:$AP,X$201,FALSE) -> 1775.6 | Y221: =VLOOKUP($U$202&$U221,GTYF!$C:$AP,Y$201,FALSE) -> 1773.4 | Z221: =VLOOKUP($U$202&$U221,GTYF!$C:$AP,Z$201,FALSE) -> 1765.79 | AA221: =VLOOKUP($U$202&$U221,GTYF!$C:$AP,AA$201,FALSE) -> 1763.45 | AB221: =VLOOKUP($U$202&$U221,GTYF!$C:$AP,AB$201,FALSE) -> 1735.81 | AC221: =VLOOKUP($U$202&$U221,GTYF!$C:$AP,AC$201,FALSE) -> 1735.81 | AD221: =VLOOKUP($U$202&$U221,GTYF!$C:$AP,AD$201,FALSE) -> 1732.92 | AE221: =VLOOKUP($U$202&$U221,GTYF!$C:$AP,AE$201,FALSE) -> 1731.94 | AF221: =VLOOKUP($U$202&$U221,GTYF!$C:$AP,AF$201,FALSE) -> 1731.94 | AG221: =VLOOKUP($U$202&$U221,GTYF!$C:$AP,AG$201,FALSE) -> 1731.94 | AH221: =VLOOKUP($U$202&$U221,GTYF!$C:$AP,AH$201,FALSE) -> 1731.94 | AI221: =VLOOKUP($U$202&$U221,GTYF!$C:$AP,AI$201,FALSE) -> 1710.86 | AJ221: =VLOOKUP($U$202&$U221,GTYF!$C:$AP,AJ$201,FALSE) -> 1598.42 | AK221: =VLOOKUP($U$202&$U221,GTYF!$C:$AP,AK$201,FALSE) -> 1532.86 | AL221: =VLOOKUP($U$202&$U221,GTYF!$C:$AP,AL$201,FALSE) -> 1532.86 | AM221: =VLOOKUP($U$202&$U221,GTYF!$C:$AP,AM$201,FALSE) -> 1532.86 | AN221: =VLOOKUP($U$202&$U221,GTYF!$C:$AP,AN$201,FALSE) -> 1532.86 | AO221: =VLOOKUP($U$202&$U221,GTYF!$C:$AP,AO$201,FALSE) -> 1532.86 | AP221: =VLOOKUP($U$202&$U221,GTYF!$C:$AP,AP$201,FALSE) -> 1532.86 | AQ221: =VLOOKUP($U$202&$U221,GTYF!$C:$AP,AQ$201,FALSE) -> 1532.86 | AR221: =VLOOKUP($U$202&$U221,GTYF!$C:$AP,AR$201,FALSE) -> 1471.45 | AS221: =VLOOKUP($U$202&$U221,GTYF!$C:$AP,AS$201,FALSE) -> 1468.67 | AT221: =VLOOKUP($U$202&$U221,GTYF!$C:$AP,AT$201,FALSE) -> 1468.67 | AU221: =VLOOKUP($U$202&$U221,GTYF!$C:$AP,AU$201,FALSE) -> 1387.04 | AV221: =VLOOKUP($U$202&$U221,GTYF!$C:$AP,AV$201,FALSE) -> 1128.42 | AW221: =VLOOKUP($U$202&$U221,GTYF!$C:$AP,AW$201,FALSE) -> 675.6 | AX221: =VLOOKUP($U$202&$U221,GTYF!$C:$AP,AX$201,FALSE) -> 618.84 | AY221: =VLOOKUP($U$202&$U221,GTYF!$C:$AP,AY$201,FALSE) -> 618.84 | AZ221: =VLOOKUP($U$202&$U221,GTYF!$C:$AP,AZ$201,FALSE) -> 618.84
S222: Figure 10a | T222: Prucheraies | U222: (FCTYF_PRU) | V222: =VLOOKUP($U$202&$U222,GTYF!$C:$AP,V$201,FALSE) -> 7337.8 | W222: =VLOOKUP($U$202&$U222,GTYF!$C:$AP,W$201,FALSE) -> 7314.55 | X222: =VLOOKUP($U$202&$U222,GTYF!$C:$AP,X$201,FALSE) -> 7314.55 | Y222: =VLOOKUP($U$202&$U222,GTYF!$C:$AP,Y$201,FALSE) -> 7314.55 | Z222: =VLOOKUP($U$202&$U222,GTYF!$C:$AP,Z$201,FALSE) -> 7314.55 | AA222: =VLOOKUP($U$202&$U222,GTYF!$C:$AP,AA$201,FALSE) -> 7314.55 | AB222: =VLOOKUP($U$202&$U222,GTYF!$C:$AP,AB$201,FALSE) -> 7307.26 | AC222: =VLOOKUP($U$202&$U222,GTYF!$C:$AP,AC$201,FALSE) -> 7307.26 | AD222: =VLOOKUP($U$202&$U222,GTYF!$C:$AP,AD$201,FALSE) -> 7307.26 | AE222: =VLOOKUP($U$202&$U222,GTYF!$C:$AP,AE$201,FALSE) -> 7195.95 | AF222: =VLOOKUP($U$202&$U222,GTYF!$C:$AP,AF$201,FALSE) -> 7051.87 | AG222: =VLOOKUP($U$202&$U222,GTYF!$C:$AP,AG$201,FALSE) -> 6985.54 | AH222: =VLOOKUP($U$202&$U222,GTYF!$C:$AP,AH$201,FALSE) -> 6890.06 | AI222: =VLOOKUP($U$202&$U222,GTYF!$C:$AP,AI$201,FALSE) -> 6855.04 | AJ222: =VLOOKUP($U$202&$U222,GTYF!$C:$AP,AJ$201,FALSE) -> 6855.04 | AK222: =VLOOKUP($U$202&$U222,GTYF!$C:$AP,AK$201,FALSE) -> 6851.64 | AL222: =VLOOKUP($U$202&$U222,GTYF!$C:$AP,AL$201,FALSE) -> 6851.64 | AM222: =VLOOKUP($U$202&$U222,GTYF!$C:$AP,AM$201,FALSE) -> 6851.64 | AN222: =VLOOKUP($U$202&$U222,GTYF!$C:$AP,AN$201,FALSE) -> 6851.64 | AO222: =VLOOKUP($U$202&$U222,GTYF!$C:$AP,AO$201,FALSE) -> 6851.64 | AP222: =VLOOKUP($U$202&$U222,GTYF!$C:$AP,AP$201,FALSE) -> 6851.64 | AQ222: =VLOOKUP($U$202&$U222,GTYF!$C:$AP,AQ$201,FALSE) -> 6851.64 | AR222: =VLOOKUP($U$202&$U222,GTYF!$C:$AP,AR$201,FALSE) -> 6851.64 | AS222: =VLOOKUP($U$202&$U222,GTYF!$C:$AP,AS$201,FALSE) -> 6851.64 | AT222: =VLOOKUP($U$202&$U222,GTYF!$C:$AP,AT$201,FALSE) -> 6851.64 | AU222: =VLOOKUP($U$202&$U222,GTYF!$C:$AP,AU$201,FALSE) -> 6851.64 | AV222: =VLOOKUP($U$202&$U222,GTYF!$C:$AP,AV$201,FALSE) -> 6851.64 | AW222: =VLOOKUP($U$202&$U222,GTYF!$C:$AP,AW$201,FALSE) -> 6851.64 | AX222: =VLOOKUP($U$202&$U222,GTYF!$C:$AP,AX$201,FALSE) -> 6851.64 | AY222: =VLOOKUP($U$202&$U222,GTYF!$C:$AP,AY$201,FALSE) -> 6851.64 | AZ222: =VLOOKUP($U$202&$U222,GTYF!$C:$AP,AZ$201,FALSE) -> 6851.64
S223: Figure 10a | T223: Résineux à feuillus | U223: (FCTYF_RF) | V223: =VLOOKUP($U$202&$U223,GTYF!$C:$AP,V$201,FALSE) -> 1668.1 | W223: =VLOOKUP($U$202&$U223,GTYF!$C:$AP,W$201,FALSE) -> 1701.85 | X223: =VLOOKUP($U$202&$U223,GTYF!$C:$AP,X$201,FALSE) -> 1492.39 | Y223: =VLOOKUP($U$202&$U223,GTYF!$C:$AP,Y$201,FALSE) -> 1135.75 | Z223: =VLOOKUP($U$202&$U223,GTYF!$C:$AP,Z$201,FALSE) -> 1210.05 | AA223: =VLOOKUP($U$202&$U223,GTYF!$C:$AP,AA$201,FALSE) -> 960.05 | AB223: =VLOOKUP($U$202&$U223,GTYF!$C:$AP,AB$201,FALSE) -> 839.22 | AC223: =VLOOKUP($U$202&$U223,GTYF!$C:$AP,AC$201,FALSE) -> 704.85 | AD223: =VLOOKUP($U$202&$U223,GTYF!$C:$AP,AD$201,FALSE) -> 704.85 | AE223: =VLOOKUP($U$202&$U223,GTYF!$C:$AP,AE$201,FALSE) -> 696.75 | AF223: =VLOOKUP($U$202&$U223,GTYF!$C:$AP,AF$201,FALSE) -> 696.75 | AG223: =VLOOKUP($U$202&$U223,GTYF!$C:$AP,AG$201,FALSE) -> 622.45 | AH223: =VLOOKUP($U$202&$U223,GTYF!$C:$AP,AH$201,FALSE) -> 291.85 | AI223: =VLOOKUP($U$202&$U223,GTYF!$C:$AP,AI$201,FALSE) -> 291.85 | AJ223: =VLOOKUP($U$202&$U223,GTYF!$C:$AP,AJ$201,FALSE) -> 314.85 | AK223: =VLOOKUP($U$202&$U223,GTYF!$C:$AP,AK$201,FALSE) -> 373.52 | AL223: =VLOOKUP($U$202&$U223,GTYF!$C:$AP,AL$201,FALSE) -> 373.52 | AM223: =VLOOKUP($U$202&$U223,GTYF!$C:$AP,AM$201,FALSE) -> 373.52 | AN223: =VLOOKUP($U$202&$U223,GTYF!$C:$AP,AN$201,FALSE) -> 618.21 | AO223: =VLOOKUP($U$202&$U223,GTYF!$C:$AP,AO$201,FALSE) -> 618.21 | AP223: =VLOOKUP($U$202&$U223,GTYF!$C:$AP,AP$201,FALSE) -> 618.21 | AQ223: =VLOOKUP($U$202&$U223,GTYF!$C:$AP,AQ$201,FALSE) -> 704.62 | AR223: =VLOOKUP($U$202&$U223,GTYF!$C:$AP,AR$201,FALSE) -> 766.03 | AS223: =VLOOKUP($U$202&$U223,GTYF!$C:$AP,AS$201,FALSE) -> 761.75 | AT223: =VLOOKUP($U$202&$U223,GTYF!$C:$AP,AT$201,FALSE) -> 1092.49 | AU223: =VLOOKUP($U$202&$U223,GTYF!$C:$AP,AU$201,FALSE) -> 1174.13 | AV223: =VLOOKUP($U$202&$U223,GTYF!$C:$AP,AV$201,FALSE) -> 1432.75 | AW223: =VLOOKUP($U$202&$U223,GTYF!$C:$AP,AW$201,FALSE) -> 1885.57 | AX223: =VLOOKUP($U$202&$U223,GTYF!$C:$AP,AX$201,FALSE) -> 1949.13 | AY223: =VLOOKUP($U$202&$U223,GTYF!$C:$AP,AY$201,FALSE) -> 1956.43 | AZ223: =VLOOKUP($U$202&$U223,GTYF!$C:$AP,AZ$201,FALSE) -> 2179.59
S224: Figure 10a | T224: Sapinières | U224: (FCTYF_SAB) | V224: =VLOOKUP($U$202&$U224,GTYF!$C:$AP,V$201,FALSE) -> 0 | W224: =VLOOKUP($U$202&$U224,GTYF!$C:$AP,W$201,FALSE) -> 0 | X224: =VLOOKUP($U$202&$U224,GTYF!$C:$AP,X$201,FALSE) -> 0 | Y224: =VLOOKUP($U$202&$U224,GTYF!$C:$AP,Y$201,FALSE) -> 0 | Z224: =VLOOKUP($U$202&$U224,GTYF!$C:$AP,Z$201,FALSE) -> 0 | AA224: =VLOOKUP($U$202&$U224,GTYF!$C:$AP,AA$201,FALSE) -> 0 | AB224: =VLOOKUP($U$202&$U224,GTYF!$C:$AP,AB$201,FALSE) -> 0 | AC224: =VLOOKUP($U$202&$U224,GTYF!$C:$AP,AC$201,FALSE) -> 0 | AD224: =VLOOKUP($U$202&$U224,GTYF!$C:$AP,AD$201,FALSE) -> 0 | AE224: =VLOOKUP($U$202&$U224,GTYF!$C:$AP,AE$201,FALSE) -> 0 | AF224: =VLOOKUP($U$202&$U224,GTYF!$C:$AP,AF$201,FALSE) -> 0 | AG224: =VLOOKUP($U$202&$U224,GTYF!$C:$AP,AG$201,FALSE) -> 0 | AH224: =VLOOKUP($U$202&$U224,GTYF!$C:$AP,AH$201,FALSE) -> 0 | AI224: =VLOOKUP($U$202&$U224,GTYF!$C:$AP,AI$201,FALSE) -> 0 | AJ224: =VLOOKUP($U$202&$U224,GTYF!$C:$AP,AJ$201,FALSE) -> 0 | AK224: =VLOOKUP($U$202&$U224,GTYF!$C:$AP,AK$201,FALSE) -> 0 | AL224: =VLOOKUP($U$202&$U224,GTYF!$C:$AP,AL$201,FALSE) -> 0 | AM224: =VLOOKUP($U$202&$U224,GTYF!$C:$AP,AM$201,FALSE) -> 0 | AN224: =VLOOKUP($U$202&$U224,GTYF!$C:$AP,AN$201,FALSE) -> 0 | AO224: =VLOOKUP($U$202&$U224,GTYF!$C:$AP,AO$201,FALSE) -> 0 | AP224: =VLOOKUP($U$202&$U224,GTYF!$C:$AP,AP$201,FALSE) -> 0 | AQ224: =VLOOKUP($U$202&$U224,GTYF!$C:$AP,AQ$201,FALSE) -> 0 | AR224: =VLOOKUP($U$202&$U224,GTYF!$C:$AP,AR$201,FALSE) -> 0 | AS224: =VLOOKUP($U$202&$U224,GTYF!$C:$AP,AS$201,FALSE) -> 0 | AT224: =VLOOKUP($U$202&$U224,GTYF!$C:$AP,AT$201,FALSE) -> 0 | AU224: =VLOOKUP($U$202&$U224,GTYF!$C:$AP,AU$201,FALSE) -> 0 | AV224: =VLOOKUP($U$202&$U224,GTYF!$C:$AP,AV$201,FALSE) -> 0 | AW224: =VLOOKUP($U$202&$U224,GTYF!$C:$AP,AW$201,FALSE) -> 0 | AX224: =VLOOKUP($U$202&$U224,GTYF!$C:$AP,AX$201,FALSE) -> 0 | AY224: =VLOOKUP($U$202&$U224,GTYF!$C:$AP,AY$201,FALSE) -> 0 | AZ224: =VLOOKUP($U$202&$U224,GTYF!$C:$AP,AZ$201,FALSE) -> 0
B225: * Attention, étant donné que le graphique fait appel aux GTYF, certains TYF ne paraissent pas dans les bons types de couvert (ex: EoRx, PbFx, PuFx, ToFx) | S225: Figure 10a | T225: Cédrières | U225: (FCTYF_THO) | V225: =VLOOKUP($U$202&$U225,GTYF!$C:$AP,V$201,FALSE) -> 1968.7 | W225: =VLOOKUP($U$202&$U225,GTYF!$C:$AP,W$201,FALSE) -> 1938.6 | X225: =VLOOKUP($U$202&$U225,GTYF!$C:$AP,X$201,FALSE) -> 1938.6 | Y225: =VLOOKUP($U$202&$U225,GTYF!$C:$AP,Y$201,FALSE) -> 1938.6 | Z225: =VLOOKUP($U$202&$U225,GTYF!$C:$AP,Z$201,FALSE) -> 1938.6 | AA225: =VLOOKUP($U$202&$U225,GTYF!$C:$AP,AA$201,FALSE) -> 1925.92 | AB225: =VLOOKUP($U$202&$U225,GTYF!$C:$AP,AB$201,FALSE) -> 1912.41 | AC225: =VLOOKUP($U$202&$U225,GTYF!$C:$AP,AC$201,FALSE) -> 1912.41 | AD225: =VLOOKUP($U$202&$U225,GTYF!$C:$AP,AD$201,FALSE) -> 1912.41 | AE225: =VLOOKUP($U$202&$U225,GTYF!$C:$AP,AE$201,FALSE) -> 1912.41 | AF225: =VLOOKUP($U$202&$U225,GTYF!$C:$AP,AF$201,FALSE) -> 1912.41 | AG225: =VLOOKUP($U$202&$U225,GTYF!$C:$AP,AG$201,FALSE) -> 1912.19 | AH225: =VLOOKUP($U$202&$U225,GTYF!$C:$AP,AH$201,FALSE) -> 1912.19 | AI225: =VLOOKUP($U$202&$U225,GTYF!$C:$AP,AI$201,FALSE) -> 1912.19 | AJ225: =VLOOKUP($U$202&$U225,GTYF!$C:$AP,AJ$201,FALSE) -> 1912.19 | AK225: =VLOOKUP($U$202&$U225,GTYF!$C:$AP,AK$201,FALSE) -> 1912.19 | AL225: =VLOOKUP($U$202&$U225,GTYF!$C:$AP,AL$201,FALSE) -> 1912.19 | AM225: =VLOOKUP($U$202&$U225,GTYF!$C:$AP,AM$201,FALSE) -> 1912.19 | AN225: =VLOOKUP($U$202&$U225,GTYF!$C:$AP,AN$201,FALSE) -> 1912.19 | AO225: =VLOOKUP($U$202&$U225,GTYF!$C:$AP,AO$201,FALSE) -> 1912.19 | AP225: =VLOOKUP($U$202&$U225,GTYF!$C:$AP,AP$201,FALSE) -> 1912.19 | AQ225: =VLOOKUP($U$202&$U225,GTYF!$C:$AP,AQ$201,FALSE) -> 1912.19 | AR225: =VLOOKUP($U$202&$U225,GTYF!$C:$AP,AR$201,FALSE) -> 1912.19 | AS225: =VLOOKUP($U$202&$U225,GTYF!$C:$AP,AS$201,FALSE) -> 1912.19 | AT225: =VLOOKUP($U$202&$U225,GTYF!$C:$AP,AT$201,FALSE) -> 1912.19 | AU225: =VLOOKUP($U$202&$U225,GTYF!$C:$AP,AU$201,FALSE) -> 1912.19 | AV225: =VLOOKUP($U$202&$U225,GTYF!$C:$AP,AV$201,FALSE) -> 1912.19 | AW225: =VLOOKUP($U$202&$U225,GTYF!$C:$AP,AW$201,FALSE) -> 1912.19 | AX225: =VLOOKUP($U$202&$U225,GTYF!$C:$AP,AX$201,FALSE) -> 1912.19 | AY225: =VLOOKUP($U$202&$U225,GTYF!$C:$AP,AY$201,FALSE) -> 1912.19 | AZ225: =VLOOKUP($U$202&$U225,GTYF!$C:$AP,AZ$201,FALSE) -> 1912.19
U228: Colonne | V228: 6 | W228: 7 | X228: 8 | Y228: 9 | Z228: 10 | AA228: 11 | AB228: 12 | AC228: 13 | AD228: 14 | AE228: 15 | AF228: 16 | AG228: 17 | AH228: 18 | AI228: 19 | AJ228: 20 | AK228: 21 | AL228: 22 | AM228: 23 | AN228: 24 | AO228: 25 | AP228: 26 | AQ228: 27 | AR228: 28 | AS228: 29 | AT228: 30 | AU228: 31 | AV228: 32 | AW228: 33 | AX228: 34 | AY228: 35 | AZ228: 36
B229: Figure 10c Évolution des superficies de hêtraie et d'érablière à hêtre | U229: Période | V229: P0 | W229: P1 | X229: P2 | Y229: P3 | Z229: P4 | AA229: P5 | AB229: P6 | AC229: P7 | AD229: P8 | AE229: P9 | AF229: P10 | AG229: P11 | AH229: P12 | AI229: P13 | AJ229: P14 | AK229: P15 | AL229: P16 | AM229: P17 | AN229: P18 | AO229: P19 | AP229: P20 | AQ229: P21 | AR229: P22 | AS229: P23 | AT229: P24 | AU229: P25 | AV229: P26 | AW229: P27 | AX229: P28 | AY229: P29 | AZ229: P30
U230: Axe des "X" Fin de période | V230: 2018 | W230: 2023 | X230: 2028 | Y230: 2033 | Z230: 2038 | AA230: 2043 | AB230: 2048 | AC230: 2053 | AD230: 2058 | AE230: 2063 | AF230: 2068 | AG230: 2073 | AH230: 2078 | AI230: 2083 | AJ230: 2088 | AK230: 2093 | AL230: 2098 | AM230: 2103 | AN230: 2108 | AO230: 2113 | AP230: 2118 | AQ230: 2123 | AR230: 2128 | AS230: 2133 | AT230: 2138 | AU230: 2143 | AV230: 2148 | AW230: 2153 | AX230: 2158 | AY230: 2163 | AZ230: 2168
S231: =LEFT(B$229,10) -> Figure 10c | T231: Hêtraie | U231: OSUPESHG_FX | V231: =VLOOKUP($U231,Output!$C:$AQ,V$228,FALSE) -> 3928.3 | W231: =VLOOKUP($U231,Output!$C:$AQ,W$228,FALSE) -> 4252.49 | X231: =VLOOKUP($U231,Output!$C:$AQ,X$228,FALSE) -> 4564.83 | Y231: =VLOOKUP($U231,Output!$C:$AQ,Y$228,FALSE) -> 4814.49 | Z231: =VLOOKUP($U231,Output!$C:$AQ,Z$228,FALSE) -> 5565.79 | AA231: =VLOOKUP($U231,Output!$C:$AQ,AA$228,FALSE) -> 6013.49 | AB231: =VLOOKUP($U231,Output!$C:$AQ,AB$228,FALSE) -> 6668.12 | AC231: =VLOOKUP($U231,Output!$C:$AQ,AC$228,FALSE) -> 7024.97 | AD231: =VLOOKUP($U231,Output!$C:$AQ,AD$228,FALSE) -> 6945.29 | AE231: =VLOOKUP($U231,Output!$C:$AQ,AE$228,FALSE) -> 6933.89 | AF231: =VLOOKUP($U231,Output!$C:$AQ,AF$228,FALSE) -> 6895.37 | AG231: =VLOOKUP($U231,Output!$C:$AQ,AG$228,FALSE) -> 6862.19 | AH231: =VLOOKUP($U231,Output!$C:$AQ,AH$228,FALSE) -> 6862.19 | AI231: =VLOOKUP($U231,Output!$C:$AQ,AI$228,FALSE) -> 6862.19 | AJ231: =VLOOKUP($U231,Output!$C:$AQ,AJ$228,FALSE) -> 7074.14 | AK231: =VLOOKUP($U231,Output!$C:$AQ,AK$228,FALSE) -> 7089.94 | AL231: =VLOOKUP($U231,Output!$C:$AQ,AL$228,FALSE) -> 7089.94 | AM231: =VLOOKUP($U231,Output!$C:$AQ,AM$228,FALSE) -> 7848.72 | AN231: =VLOOKUP($U231,Output!$C:$AQ,AN$228,FALSE) -> 7848.72 | AO231: =VLOOKUP($U231,Output!$C:$AQ,AO$228,FALSE) -> 7848.72 | AP231: =VLOOKUP($U231,Output!$C:$AQ,AP$228,FALSE) -> 7848.72 | AQ231: =VLOOKUP($U231,Output!$C:$AQ,AQ$228,FALSE) -> 7879.05 | AR231: =VLOOKUP($U231,Output!$C:$AQ,AR$228,FALSE) -> 7881.07 | AS231: =VLOOKUP($U231,Output!$C:$AQ,AS$228,FALSE) -> 8047.52 | AT231: =VLOOKUP($U231,Output!$C:$AQ,AT$228,FALSE) -> 8247.17 | AU231: =VLOOKUP($U231,Output!$C:$AQ,AU$228,FALSE) -> 8247.17 | AV231: =VLOOKUP($U231,Output!$C:$AQ,AV$228,FALSE) -> 8247.17 | AW231: =VLOOKUP($U231,Output!$C:$AQ,AW$228,FALSE) -> 8247.17 | AX231: =VLOOKUP($U231,Output!$C:$AQ,AX$228,FALSE) -> 8247.17 | AY231: =VLOOKUP($U231,Output!$C:$AQ,AY$228,FALSE) -> 8247.17 | AZ231: =VLOOKUP($U231,Output!$C:$AQ,AZ$228,FALSE) -> 8247.17
S232: =LEFT(B$229,10) -> Figure 10c | T232: Érablière à hêtre | U232: OSUPESHG | V232: =VLOOKUP($U232,Output!$C:$AQ,V$228,FALSE) -> 8276.5 | W232: =VLOOKUP($U232,Output!$C:$AQ,W$228,FALSE) -> 7951.91 | X232: =VLOOKUP($U232,Output!$C:$AQ,X$228,FALSE) -> 7125.16 | Y232: =VLOOKUP($U232,Output!$C:$AQ,Y$228,FALSE) -> 6660.02 | Z232: =VLOOKUP($U232,Output!$C:$AQ,Z$228,FALSE) -> 5610.03 | AA232: =VLOOKUP($U232,Output!$C:$AQ,AA$228,FALSE) -> 4741.56 | AB232: =VLOOKUP($U232,Output!$C:$AQ,AB$228,FALSE) -> 3521.3 | AC232: =VLOOKUP($U232,Output!$C:$AQ,AC$228,FALSE) -> 2544.76 | AD232: =VLOOKUP($U232,Output!$C:$AQ,AD$228,FALSE) -> 2612.08 | AE232: =VLOOKUP($U232,Output!$C:$AQ,AE$228,FALSE) -> 2296.97 | AF232: =VLOOKUP($U232,Output!$C:$AQ,AF$228,FALSE) -> 2037.45 | AG232: =VLOOKUP($U232,Output!$C:$AQ,AG$228,FALSE) -> 1852.48 | AH232: =VLOOKUP($U232,Output!$C:$AQ,AH$228,FALSE) -> 1516.68 | AI232: =VLOOKUP($U232,Output!$C:$AQ,AI$228,FALSE) -> 1516.68 | AJ232: =VLOOKUP($U232,Output!$C:$AQ,AJ$228,FALSE) -> 1304.72 | AK232: =VLOOKUP($U232,Output!$C:$AQ,AK$228,FALSE) -> 1288.92 | AL232: =VLOOKUP($U232,Output!$C:$AQ,AL$228,FALSE) -> 1288.92 | AM232: =VLOOKUP($U232,Output!$C:$AQ,AM$228,FALSE) -> 530.14 | AN232: =VLOOKUP($U232,Output!$C:$AQ,AN$228,FALSE) -> 530.14 | AO232: =VLOOKUP($U232,Output!$C:$AQ,AO$228,FALSE) -> 530.14 | AP232: =VLOOKUP($U232,Output!$C:$AQ,AP$228,FALSE) -> 530.14 | AQ232: =VLOOKUP($U232,Output!$C:$AQ,AQ$228,FALSE) -> 530.14 | AR232: =VLOOKUP($U232,Output!$C:$AQ,AR$228,FALSE) -> 530.14 | AS232: =VLOOKUP($U232,Output!$C:$AQ,AS$228,FALSE) -> 530.14 | AT232: =VLOOKUP($U232,Output!$C:$AQ,AT$228,FALSE) -> 530.14 | AU232: =VLOOKUP($U232,Output!$C:$AQ,AU$228,FALSE) -> 530.14 | AV232: =VLOOKUP($U232,Output!$C:$AQ,AV$228,FALSE) -> 530.14 | AW232: =VLOOKUP($U232,Output!$C:$AQ,AW$228,FALSE) -> 530.14 | AX232: =VLOOKUP($U232,Output!$C:$AQ,AX$228,FALSE) -> 530.14 | AY232: =VLOOKUP($U232,Output!$C:$AQ,AY$228,FALSE) -> 530.14 | AZ232: =VLOOKUP($U232,Output!$C:$AQ,AZ$228,FALSE) -> 530.14
S233: =LEFT(B$229,10) -> Figure 10c | T233: Total | U233: Total | V233: =SUM(V231:V232) -> 12204.8 | W233: =SUM(W231:W232) -> 12204.4 | X233: 11689.99 | Y233: 11474.51 | Z233: 11175.82 | AA233: 10755.05 | AB233: 10189.42 | AC233: 9569.73 | AD233: 9557.37 | AE233: 9230.86 | AF233: 8932.82 | AG233: 8714.67 | AH233: 8378.87 | AI233: 8378.87 | AJ233: 8378.86 | AK233: 8378.86 | AL233: 8378.86 | AM233: 8378.86 | AN233: 8378.86 | AO233: 8378.86 | AP233: 8378.86 | AQ233: 8409.19 | AR233: 8411.21 | AS233: 8577.66 | AT233: 8777.31 | AU233: 8777.31 | AV233: 8777.31 | AW233: 8777.31 | AX233: 8777.31 | AY233: 8777.31 | AZ233: 8777.31
B255: Figure 11b Évolution du volume de sapin et d'épinettes sur pied dans la composante SEPM
U262: Colonne | V262: 6 | W262: 7 | X262: 8 | Y262: 9 | Z262: 10 | AA262: 11 | AB262: 12 | AC262: 13 | AD262: 14 | AE262: 15 | AF262: 16 | AG262: 17 | AH262: 18 | AI262: 19 | AJ262: 20 | AK262: 21 | AL262: 22 | AM262: 23 | AN262: 24 | AO262: 25 | AP262: 26 | AQ262: 27 | AR262: 28 | AS262: 29 | AT262: 30 | AU262: 31 | AV262: 32 | AW262: 33 | AX262: 34 | AY262: 35 | AZ262: 36
U263: Axe des "X" Fin de période | V263: 2018 | W263: 2023 | X263: 2028 | Y263: 2033 | Z263: 2038 | AA263: 2043 | AB263: 2048 | AC263: 2053 | AD263: 2058 | AE263: 2063 | AF263: 2068 | AG263: 2073 | AH263: 2078 | AI263: 2083 | AJ263: 2088 | AK263: 2093 | AL263: 2098 | AM263: 2103 | AN263: 2108 | AO263: 2113 | AP263: 2118 | AQ263: 2123 | AR263: 2128 | AS263: 2133 | AT263: 2138 | AU263: 2143 | AV263: 2148 | AW263: 2153 | AX263: 2158 | AY263: 2163 | AZ263: 2168
S264: =LEFT(B$255,10) -> Figure 11b | U264: Période | V264: P0 | W264: P1 | X264: P2 | Y264: P3 | Z264: P4 | AA264: P5 | AB264: P6 | AC264: P7 | AD264: P8 | AE264: P9 | AF264: P10 | AG264: P11 | AH264: P12 | AI264: P13 | AJ264: P14 | AK264: P15 | AL264: P16 | AM264: P17 | AN264: P18 | AO264: P19 | AP264: P20 | AQ264: P21 | AR264: P22 | AS264: P23 | AT264: P24 | AU264: P25 | AV264: P26 | AW264: P27 | AX264: P28 | AY264: P29 | AZ264: P30
S265: Figure 11b | T265: Légende | Y265: PERIOD3 | Z265: PERIOD4 | AA265: PERIOD5 | AB265: PERIOD6 | AC265: PERIOD7 | AD265: PERIOD8 | AE265: PERIOD9 | AF265: PERIOD10 | AG265: PERIOD11 | AH265: PERIOD12 | AI265: PERIOD13 | AJ265: PERIOD14 | AK265: PERIOD15 | AL265: PERIOD16 | AM265: PERIOD17 | AN265: PERIOD18 | AO265: PERIOD19 | AP265: PERIOD20 | AQ265: PERIOD21 | AR265: PERIOD22 | AS265: PERIOD23 | AT265: PERIOD24 | AU265: PERIOD25 | AV265: PERIOD26 | AW265: PERIOD27 | AX265: PERIOD28 | AY265: PERIOD29 | AZ265: PERIOD30
S266: Figure 11b | T266: Volume Sapin | U266: OVOLSABPIEDINC(FCTYF_SEPM) | V266: =VLOOKUP($U266,GTYF!$C:$AL,Figures!V$262,FALSE) -> 26231.39 | W266: =VLOOKUP($U266,GTYF!$C:$AL,Figures!W$262,FALSE) -> 28865.3 | X266: =VLOOKUP($U266,GTYF!$C:$AL,Figures!X$262,FALSE) -> 28908.14 | Y266: =VLOOKUP($U266,GTYF!$C:$AL,Figures!Y$262,FALSE) -> 29794.25 | Z266: =VLOOKUP($U266,GTYF!$C:$AL,Figures!Z$262,FALSE) -> 25830.32 | AA266: =VLOOKUP($U266,GTYF!$C:$AL,Figures!AA$262,FALSE) -> 28238.27 | AB266: =VLOOKUP($U266,GTYF!$C:$AL,Figures!AB$262,FALSE) -> 33242.89 | AC266: =VLOOKUP($U266,GTYF!$C:$AL,Figures!AC$262,FALSE) -> 34023.64 | AD266: =VLOOKUP($U266,GTYF!$C:$AL,Figures!AD$262,FALSE) -> 29274.19 | AE266: =VLOOKUP($U266,GTYF!$C:$AL,Figures!AE$262,FALSE) -> 28969.11 | AF266: =VLOOKUP($U266,GTYF!$C:$AL,Figures!AF$262,FALSE) -> 34931.63 | AG266: =VLOOKUP($U266,GTYF!$C:$AL,Figures!AG$262,FALSE) -> 38953.42 | AH266: =VLOOKUP($U266,GTYF!$C:$AL,Figures!AH$262,FALSE) -> 44565.8 | AI266: =VLOOKUP($U266,GTYF!$C:$AL,Figures!AI$262,FALSE) -> 49196.55 | AJ266: =VLOOKUP($U266,GTYF!$C:$AL,Figures!AJ$262,FALSE) -> 49058.38 | AK266: =VLOOKUP($U266,GTYF!$C:$AL,Figures!AK$262,FALSE) -> 47606.93 | AL266: =VLOOKUP($U266,GTYF!$C:$AL,Figures!AL$262,FALSE) -> 43969.27 | AM266: =VLOOKUP($U266,GTYF!$C:$AL,Figures!AM$262,FALSE) -> 38684.63 | AN266: =VLOOKUP($U266,GTYF!$C:$AL,Figures!AN$262,FALSE) -> 37343.36 | AO266: =VLOOKUP($U266,GTYF!$C:$AL,Figures!AO$262,FALSE) -> 42969.06 | AP266: =VLOOKUP($U266,GTYF!$C:$AL,Figures!AP$262,FALSE) -> 43328.42 | AQ266: =VLOOKUP($U266,GTYF!$C:$AL,Figures!AQ$262,FALSE) -> 39973.61 | AR266: =VLOOKUP($U266,GTYF!$C:$AL,Figures!AR$262,FALSE) -> 41918.78 | AS266: =VLOOKUP($U266,GTYF!$C:$AL,Figures!AS$262,FALSE) -> 39285.12 | AT266: =VLOOKUP($U266,GTYF!$C:$AL,Figures!AT$262,FALSE) -> 33534.16 | AU266: =VLOOKUP($U266,GTYF!$C:$AL,Figures!AU$262,FALSE) -> 32623.16 | AV266: =VLOOKUP($U266,GTYF!$C:$AL,Figures!AV$262,FALSE) -> 32353.86 | AW266: =VLOOKUP($U266,GTYF!$C:$AL,Figures!AW$262,FALSE) -> 37059.12 | AX266: =VLOOKUP($U266,GTYF!$C:$AL,Figures!AX$262,FALSE) -> 39101.72 | AY266: =VLOOKUP($U266,GTYF!$C:$AL,Figures!AY$262,FALSE) -> 34717.55 | AZ266: =VLOOKUP($U266,GTYF!$C:$AL,Figures!AZ$262,FALSE) -> 26198.36
S267: Figure 11b | T267: Volume Épinettes | U267: OVOLGEPXPIEDINC(FCTYF_SEPM) | V267: =VLOOKUP($U267,GTYF!$C:$AL,Figures!V$262,FALSE) -> 139811.45 | W267: =VLOOKUP($U267,GTYF!$C:$AL,Figures!W$262,FALSE) -> 174751.11 | X267: =VLOOKUP($U267,GTYF!$C:$AL,Figures!X$262,FALSE) -> 180986.07 | Y267: =VLOOKUP($U267,GTYF!$C:$AL,Figures!Y$262,FALSE) -> 204129.59 | Z267: =VLOOKUP($U267,GTYF!$C:$AL,Figures!Z$262,FALSE) -> 199874.59 | AA267: =VLOOKUP($U267,GTYF!$C:$AL,Figures!AA$262,FALSE) -> 230211.14 | AB267: =VLOOKUP($U267,GTYF!$C:$AL,Figures!AB$262,FALSE) -> 261945.69 | AC267: =VLOOKUP($U267,GTYF!$C:$AL,Figures!AC$262,FALSE) -> 236856.61 | AD267: =VLOOKUP($U267,GTYF!$C:$AL,Figures!AD$262,FALSE) -> 187450.6 | AE267: =VLOOKUP($U267,GTYF!$C:$AL,Figures!AE$262,FALSE) -> 179078.29 | AF267: =VLOOKUP($U267,GTYF!$C:$AL,Figures!AF$262,FALSE) -> 231642.22 | AG267: =VLOOKUP($U267,GTYF!$C:$AL,Figures!AG$262,FALSE) -> 276043.31 | AH267: =VLOOKUP($U267,GTYF!$C:$AL,Figures!AH$262,FALSE) -> 328657.49 | AI267: =VLOOKUP($U267,GTYF!$C:$AL,Figures!AI$262,FALSE) -> 369988.87 | AJ267: =VLOOKUP($U267,GTYF!$C:$AL,Figures!AJ$262,FALSE) -> 368903.15 | AK267: =VLOOKUP($U267,GTYF!$C:$AL,Figures!AK$262,FALSE) -> 355356.2 | AL267: =VLOOKUP($U267,GTYF!$C:$AL,Figures!AL$262,FALSE) -> 325425.84 | AM267: =VLOOKUP($U267,GTYF!$C:$AL,Figures!AM$262,FALSE) -> 281652.08 | AN267: =VLOOKUP($U267,GTYF!$C:$AL,Figures!AN$262,FALSE) -> 293668.67 | AO267: =VLOOKUP($U267,GTYF!$C:$AL,Figures!AO$262,FALSE) -> 352080.13 | AP267: =VLOOKUP($U267,GTYF!$C:$AL,Figures!AP$262,FALSE) -> 359208.57 | AQ267: =VLOOKUP($U267,GTYF!$C:$AL,Figures!AQ$262,FALSE) -> 339298.23 | AR267: =VLOOKUP($U267,GTYF!$C:$AL,Figures!AR$262,FALSE) -> 361223.96 | AS267: =VLOOKUP($U267,GTYF!$C:$AL,Figures!AS$262,FALSE) -> 332457.19 | AT267: =VLOOKUP($U267,GTYF!$C:$AL,Figures!AT$262,FALSE) -> 313708.08 | AU267: =VLOOKUP($U267,GTYF!$C:$AL,Figures!AU$262,FALSE) -> 302982 | AV267: =VLOOKUP($U267,GTYF!$C:$AL,Figures!AV$262,FALSE) -> 301472.13 | AW267: =VLOOKUP($U267,GTYF!$C:$AL,Figures!AW$262,FALSE) -> 347215.46 | AX267: =VLOOKUP($U267,GTYF!$C:$AL,Figures!AX$262,FALSE) -> 369454.82 | AY267: =VLOOKUP($U267,GTYF!$C:$AL,Figures!AY$262,FALSE) -> 332792.9 | AZ267: =VLOOKUP($U267,GTYF!$C:$AL,Figures!AZ$262,FALSE) -> 257483.65
S268: Figure 11b
S269: Figure 11b | T269: SEPM sur pied | U269: OVOLGSEPMPIEDINC(FCTYF_SEPM) | V269: =VLOOKUP($U269,GTYF!$C:$AL,Figures!V$262,FALSE) -> 186976.86 | W269: =VLOOKUP($U269,GTYF!$C:$AL,Figures!W$262,FALSE) -> 227848.78 | X269: =VLOOKUP($U269,GTYF!$C:$AL,Figures!X$262,FALSE) -> 237550.91 | Y269: =VLOOKUP($U269,GTYF!$C:$AL,Figures!Y$262,FALSE) -> 263437.17 | Z269: =VLOOKUP($U269,GTYF!$C:$AL,Figures!Z$262,FALSE) -> 253064.91 | AA269: =VLOOKUP($U269,GTYF!$C:$AL,Figures!AA$262,FALSE) -> 289823.83 | AB269: =VLOOKUP($U269,GTYF!$C:$AL,Figures!AB$262,FALSE) -> 328346.26 | AC269: =VLOOKUP($U269,GTYF!$C:$AL,Figures!AC$262,FALSE) -> 289497.39 | AD269: =VLOOKUP($U269,GTYF!$C:$AL,Figures!AD$262,FALSE) -> 237259.39 | AE269: =VLOOKUP($U269,GTYF!$C:$AL,Figures!AE$262,FALSE) -> 232223.73 | AF269: =VLOOKUP($U269,GTYF!$C:$AL,Figures!AF$262,FALSE) -> 295032.98 | AG269: =VLOOKUP($U269,GTYF!$C:$AL,Figures!AG$262,FALSE) -> 345698.5 | AH269: =VLOOKUP($U269,GTYF!$C:$AL,Figures!AH$262,FALSE) -> 407037.88 | AI269: =VLOOKUP($U269,GTYF!$C:$AL,Figures!AI$262,FALSE) -> 452147.23 | AJ269: =VLOOKUP($U269,GTYF!$C:$AL,Figures!AJ$262,FALSE) -> 441726.49 | AK269: =VLOOKUP($U269,GTYF!$C:$AL,Figures!AK$262,FALSE) -> 424613.42 | AL269: =VLOOKUP($U269,GTYF!$C:$AL,Figures!AL$262,FALSE) -> 392001.3 | AM269: =VLOOKUP($U269,GTYF!$C:$AL,Figures!AM$262,FALSE) -> 344707.19 | AN269: =VLOOKUP($U269,GTYF!$C:$AL,Figures!AN$262,FALSE) -> 352869.28 | AO269: =VLOOKUP($U269,GTYF!$C:$AL,Figures!AO$262,FALSE) -> 421546.47 | AP269: =VLOOKUP($U269,GTYF!$C:$AL,Figures!AP$262,FALSE) -> 430359.04 | AQ269: =VLOOKUP($U269,GTYF!$C:$AL,Figures!AQ$262,FALSE) -> 407288.97 | AR269: =VLOOKUP($U269,GTYF!$C:$AL,Figures!AR$262,FALSE) -> 433546.26 | AS269: =VLOOKUP($U269,GTYF!$C:$AL,Figures!AS$262,FALSE) -> 395550.41 | AT269: =VLOOKUP($U269,GTYF!$C:$AL,Figures!AT$262,FALSE) -> 355329.14 | AU269: =VLOOKUP($U269,GTYF!$C:$AL,Figures!AU$262,FALSE) -> 341212.78 | AV269: =VLOOKUP($U269,GTYF!$C:$AL,Figures!AV$262,FALSE) -> 340422.53 | AW269: =VLOOKUP($U269,GTYF!$C:$AL,Figures!AW$262,FALSE) -> 393825.07 | AX269: =VLOOKUP($U269,GTYF!$C:$AL,Figures!AX$262,FALSE) -> 421856.63 | AY269: =VLOOKUP($U269,GTYF!$C:$AL,Figures!AY$262,FALSE) -> 384225.09 | AZ269: =VLOOKUP($U269,GTYF!$C:$AL,Figures!AZ$262,FALSE) -> 302850.86
S270: Figure 11b
S271: Figure 11b | T271: % Sapin | V271: =IF(ISERROR(V266),0,V266/V269) -> 0.1402921731 | W271: 0.1266862171 | X271: 0.1216923985 | Y271: 0.1130981251 | Z271: 0.1020699393 | AA271: 0.09743253341 | AB271: 0.1012433947 | AC271: 0.1175265863 | AD271: 0.1233847478 | AE271: 0.1247465537 | AF271: 0.1183990685 | AG271: 0.1126803269 | AH271: 0.1094880899 | AI271: 0.1088064832 | AJ271: 0.1110605343 | AK271: 0.1121182887 | AL271: 0.1121661331 | AM271: 0.1122246101 | AN271: 0.1058277445 | AO271: 0.1019319649 | AP271: 0.1006797022 | AQ271: 0.09814557463 | AR271: 0.09668813658 | AS271: 0.09931760657 | AT271: 0.09437492236 | AU271: 0.09560943175 | AV271: 0.09504030183 | AW271: 0.09410045937 | AX271: 0.09268959457 | AY271: 0.09035732154 | AZ271: 0.08650581346
S272: Figure 11b | T272: % Épinettes | V272: =IF(ISERROR(V267),0,V267/V269) -> 0.7477473416 | W272: =IF(ISERROR(W267),0,W267/W269) -> 0.7669609203 | X272: 0.7618832948 | Y272: 0.7748701142 | Z272: 0.7898155062 | AA272: 0.7943140493 | AB272: 0.7977727232 | AC272: 0.8181649237 | AD272: 0.790066096 | AE272: 0.7711455242 | AF272: 0.7851400884 | AG272: 0.7985088451 | AH272: 0.8074371113 | AI272: 0.8182929043 | AJ272: 0.8351392963 | AK272: 0.8368934736 | AL272: 0.8301652061 | AM272: 0.8170763134 | AN272: 0.8322307626 | AO272: 0.8352107183 | AP272: 0.8346718359 | AQ272: 0.8330651085 | AR272: 0.8331843527 | AS272: 0.8404925936 | AT272: 0.8828661787 | AU272: 0.8879561897 | AV272: 0.885582191 | AW272: 0.8816489514 | AX272: 0.8757828933 | AY272: 0.8661404699 | AZ272: 0.8501995008
S273: Figure 11b | T273: % Volume autre | V273: =1-(V272+V271) -> 0.1119604854 | W273: 0.1063528626 | X273: 0.1164243067 | Y273: 0.1120317607 | Z273: 0.1081145545 | AA273: 0.1082534173 | AB273: 0.1009838821 | AC273: 0.06430848997 | AD273: 0.08654915618 | AE273: 0.1041079221 | AF273: 0.09646084312 | AG273: 0.08881082793 | AH273: 0.08307479884 | AI273: 0.07290061248 | AJ273: 0.05380016942 | AK273: 0.05098823772 | AL273: 0.05766866079 | AM273: 0.07069907651 | AN273: 0.0619414929 | AO273: 0.06285731677 | AP273: 0.0646484619 | AQ273: 0.06878931683 | AR273: 0.07012751073 | AS273: 0.06018979983 | AT273: 0.02275889897 | AU273: 0.01643437857 | AV273: 0.01937750712 | AW273: 0.02425058923 | AX273: 0.03152751208 | AY273: 0.04350220856 | AZ273: 0.06329468571
B278: Figure 14 Indicateur de productivité
... 127 more rows

Sheet UTA
M1: Jeune forêt | R1: Niveau d'altération des vieilles forêts | W1: Niveau d'altération combiné | AA1: Info à récupérer par le SSP Niveau d'altération des vieilles forêts
A2: Inscrire la liste des numéros d'UTA de l'UA: | B2: VieuxAlerte (%) | C2: VieuxAccept (%) | D2: RegeAlerte (%) | E2: RegeAccept (%) | G2: VieuxAlerte (ha) | H2: VieuxAccept (ha) | I2: RegeAlerte (ha) | J2: RegeAccept (ha) | K2: SupUTA | M2: OSUPJEUNEREGECO PERIOD1 (%) | N2: État Jeune 2023 | O2: OSUPJEUNEREGECO PERIOD6 (%) | P2: État Jeune 2048 | R2: OSUPVIEUXTOTREGECO PERIOD1 (%) | S2: État Vielle 2023 | T2: OSUPVIEUXTOTREGECO PERIOD6 (%) | U2: État Vielle 2048 | W2: UTA | X2: 2023 | Y2: 2048 | AA2: UA | AB2: UTA | AC2: 2023 | AD2: 2048 | AE2: Mode de répartition spatiale | AP2: Mode de répartition spatiale
A3: UTA1 | B3: =ROUND(G3/$K3,3) -> 0.243 | C3: =ROUND(H3/$K3,3) -> 0.405 | D3: =ROUND(I3/$K3,3) -> 0.3 | E3: =ROUND(J3/$K3,3) -> 0.2 | G3: =VLOOKUP(CONCATENATE("OSUPVIEUXALERTEREGECO_"&A3),Output!$C:$AQ,6,FALSE) -> 7297.24 | H3: =VLOOKUP(CONCATENATE("OSUPVIEUXACCEPTREGECO_"&A3),Output!$C:$AQ,6,FALSE) -> 12162.07 | I3: =VLOOKUP(CONCATENATE("OSUPJEUNEALERTEREGECO_"&A3),Output!$C:$AQ,6,FALSE) -> 9008.94 | J3: =VLOOKUP(CONCATENATE("OSUPJEUNEACCEPTREGECO_"&A3),Output!$C:$AQ,6,FALSE) -> 6005.96 | K3: =VLOOKUP(CONCATENATE("OSUPREGECO_"&A3),Output!$C:$AQ,6,FALSE) -> 30029.8 | M3: =ROUND(VLOOKUP("OSUPJEUNEREGECO_"&A3,Output!$C:$AQ,7,FALSE)/VLOOKUP("OSUPREGECO_"&A3,Output!$C:$AQ,6,FALSE),3) -> 0.014 | N3: =IF(M3<=$E3,"Faible",IF(M3<$D3,"Modéré","Supérieur")) -> Faible | O3: =ROUND(VLOOKUP("OSUPJEUNEREGECO_"&$A3,Output!$C:$AQ,12,FALSE)/VLOOKUP("OSUPREGECO_"&A3,Output!$C:$AQ,6,FALSE),3) -> 0.009 | P3: =IF(O3<=$E3,"Faible",IF(O3<$D3,"Modéré","Supérieur")) -> Faible | R3: =ROUND(VLOOKUP("OSUPVIEUXTOTREGECO_"&$A3,Output!$C:$AQ,7,FALSE)/VLOOKUP("OSUPREGECO_"&A3,Output!$C:$AQ,6,FALSE),3) -> 0.422 | S3: =IF(R3<$B3,"Supérieur",IF(R3<$C3,"Modéré","Faible")) -> Faible | T3: =ROUND(VLOOKUP("OSUPVIEUXTOTREGECO_"&$A3,Output!$C:$AQ,12,FALSE)/VLOOKUP("OSUPREGECO_"&A3,Output!$C:$AQ,6,FALSE),3) -> 0.474 | U3: =IF(T3<$B3,"Supérieur",IF(T3<$C3,"Modéré","Faible")) -> Faible | W3: =A3 -> UTA1 | X3: =IF(S3>N3,S3,N3) -> Faible | Y3: =IF(U3>P3,U3,P3) -> Faible | AA3: =Tableaux!$O$33 -> 07251 | AB3: =W3 -> UTA1 | AC3: =S3 -> Faible | AD3: =U3 -> Faible | AE3: CMO | AG3: Note: "Élevé" a été renommé "Supérieur" pour le bon fonctionnement des formules. | AP3: COS sapinière
A4: UTA2 | B4: =ROUND(G4/$K4,3) -> 0.243 | C4: 0.405 | D4: 0.3 | E4: 0.2 | G4: =VLOOKUP(CONCATENATE("OSUPVIEUXALERTEREGECO_"&A4),Output!$C:$AQ,6,FALSE) -> 6481.37 | H4: =VLOOKUP(CONCATENATE("OSUPVIEUXACCEPTREGECO_"&A4),Output!$C:$AQ,6,FALSE) -> 10802.28 | I4: =VLOOKUP(CONCATENATE("OSUPJEUNEALERTEREGECO_"&A4),Output!$C:$AQ,6,FALSE) -> 8001.69 | J4: =VLOOKUP(CONCATENATE("OSUPJEUNEACCEPTREGECO_"&A4),Output!$C:$AQ,6,FALSE) -> 5334.46 | K4: =VLOOKUP(CONCATENATE("OSUPREGECO_"&A4),Output!$C:$AQ,6,FALSE) -> 26672.3 | M4: =ROUND(VLOOKUP("OSUPJEUNEREGECO_"&A4,Output!$C:$AQ,7,FALSE)/VLOOKUP("OSUPREGECO_"&A4,Output!$C:$AQ,6,FALSE),3) -> 0.01 | N4: =IF(M4<=$E4,"Faible",IF(M4<$D4,"Modéré","Supérieur")) -> Faible | O4: =ROUND(VLOOKUP("OSUPJEUNEREGECO_"&$A4,Output!$C:$AQ,12,FALSE)/VLOOKUP("OSUPREGECO_"&A4,Output!$C:$AQ,6,FALSE),3) -> 0.004 | P4: =IF(O4<=$E4,"Faible",IF(O4<$D4,"Modéré","Supérieur")) -> Faible | R4: =ROUND(VLOOKUP("OSUPVIEUXTOTREGECO_"&$A4,Output!$C:$AQ,7,FALSE)/VLOOKUP("OSUPREGECO_"&A4,Output!$C:$AQ,6,FALSE),3) -> 0.261 | S4: =IF(R4<$B4,"Supérieur",IF(R4<$C4,"Modéré","Faible")) -> Modéré | T4: =ROUND(VLOOKUP("OSUPVIEUXTOTREGECO_"&$A4,Output!$C:$AQ,12,FALSE)/VLOOKUP("OSUPREGECO_"&A4,Output!$C:$AQ,6,FALSE),3) -> 0.326 | U4: =IF(T4<$B4,"Supérieur",IF(T4<$C4,"Modéré","Faible")) -> Modéré | W4: =A4 -> UTA2 | X4: =IF(S4>N4,S4,N4) -> Modéré | Y4: =IF(U4>P4,U4,P4) -> Modéré | AA4: =Tableaux!$O$33 -> 07251 | AB4: =W4 -> UTA2 | AC4: =S4 -> Modéré | AD4: =U4 -> Modéré | AE4: CMO | AP4: COS pessière
A5: UTA3 | B5: 0.243 | C5: 0.405 | D5: 0.3 | E5: 0.2 | G5: =VLOOKUP(CONCATENATE("OSUPVIEUXALERTEREGECO_"&A5),Output!$C:$AQ,6,FALSE) -> 10872.01 | H5: =VLOOKUP(CONCATENATE("OSUPVIEUXACCEPTREGECO_"&A5),Output!$C:$AQ,6,FALSE) -> 18120.02 | I5: =VLOOKUP(CONCATENATE("OSUPJEUNEALERTEREGECO_"&A5),Output!$C:$AQ,6,FALSE) -> 13422.24 | J5: =VLOOKUP(CONCATENATE("OSUPJEUNEACCEPTREGECO_"&A5),Output!$C:$AQ,6,FALSE) -> 8948.16 | K5: =VLOOKUP(CONCATENATE("OSUPREGECO_"&A5),Output!$C:$AQ,6,FALSE) -> 44740.8 | M5: =ROUND(VLOOKUP("OSUPJEUNEREGECO_"&A5,Output!$C:$AQ,7,FALSE)/VLOOKUP("OSUPREGECO_"&A5,Output!$C:$AQ,6,FALSE),3) -> 0.016 | N5: Faible | O5: =ROUND(VLOOKUP("OSUPJEUNEREGECO_"&$A5,Output!$C:$AQ,12,FALSE)/VLOOKUP("OSUPREGECO_"&A5,Output!$C:$AQ,6,FALSE),3) -> 0.01 | P5: Faible | R5: =ROUND(VLOOKUP("OSUPVIEUXTOTREGECO_"&$A5,Output!$C:$AQ,7,FALSE)/VLOOKUP("OSUPREGECO_"&A5,Output!$C:$AQ,6,FALSE),3) -> 0.267 | S5: Modéré | T5: =ROUND(VLOOKUP("OSUPVIEUXTOTREGECO_"&$A5,Output!$C:$AQ,12,FALSE)/VLOOKUP("OSUPREGECO_"&A5,Output!$C:$AQ,6,FALSE),3) -> 0.362 | U5: Modéré | W5: UTA3 | X5: Modéré | Y5: Modéré | AA5: =Tableaux!$O$33 -> 07251 | AB5: =W5 -> UTA3 | AC5: =S5 -> Modéré | AD5: =U5 -> Modéré | AE5: CMO | AP5: CMO
A6: UTA4 | B6: 0.243 | C6: 0.405 | D6: 0.3 | E6: 0.2 | G6: =VLOOKUP(CONCATENATE("OSUPVIEUXALERTEREGECO_"&A6),Output!$C:$AQ,6,FALSE) -> 7872.28 | H6: =VLOOKUP(CONCATENATE("OSUPVIEUXACCEPTREGECO_"&A6),Output!$C:$AQ,6,FALSE) -> 13120.46 | I6: =VLOOKUP(CONCATENATE("OSUPJEUNEALERTEREGECO_"&A6),Output!$C:$AQ,6,FALSE) -> 9718.86 | J6: =VLOOKUP(CONCATENATE("OSUPJEUNEACCEPTREGECO_"&A6),Output!$C:$AQ,6,FALSE) -> 6479.24 | K6: =VLOOKUP(CONCATENATE("OSUPREGECO_"&A6),Output!$C:$AQ,6,FALSE) -> 32396.2 | M6: =ROUND(VLOOKUP("OSUPJEUNEREGECO_"&A6,Output!$C:$AQ,7,FALSE)/VLOOKUP("OSUPREGECO_"&A6,Output!$C:$AQ,6,FALSE),3) -> 0.022 | N6: Faible | O6: =ROUND(VLOOKUP("OSUPJEUNEREGECO_"&$A6,Output!$C:$AQ,12,FALSE)/VLOOKUP("OSUPREGECO_"&A6,Output!$C:$AQ,6,FALSE),3) -> 0.012 | P6: Faible | R6: =ROUND(VLOOKUP("OSUPVIEUXTOTREGECO_"&$A6,Output!$C:$AQ,7,FALSE)/VLOOKUP("OSUPREGECO_"&A6,Output!$C:$AQ,6,FALSE),3) -> 0.296 | S6: Modéré | T6: =ROUND(VLOOKUP("OSUPVIEUXTOTREGECO_"&$A6,Output!$C:$AQ,12,FALSE)/VLOOKUP("OSUPREGECO_"&A6,Output!$C:$AQ,6,FALSE),3) -> 0.37 | U6: Modéré | W6: UTA4 | X6: Modéré | Y6: Modéré | AA6: =Tableaux!$O$33 -> 07251 | AB6: UTA4 | AC6: Modéré | AD6: =U6 -> Modéré | AE6: CMO | AP6: CMO entente Cris
G7: =VLOOKUP(CONCATENATE("OSUPVIEUXALERTEREGECO_"&A7),Output!$C:$AQ,6,FALSE) ->  | H7: =VLOOKUP(CONCATENATE("OSUPVIEUXACCEPTREGECO_"&A7),Output!$C:$AQ,6,FALSE) ->  | I7: =VLOOKUP(CONCATENATE("OSUPJEUNEALERTEREGECO_"&A7),Output!$C:$AQ,6,FALSE) ->  | J7: =VLOOKUP(CONCATENATE("OSUPJEUNEACCEPTREGECO_"&A7),Output!$C:$AQ,6,FALSE) ->  | K7: =VLOOKUP(CONCATENATE("OSUPREGECO_"&A7),Output!$C:$AQ,6,FALSE) ->  | M7: =ROUND(VLOOKUP("OSUPJEUNEREGECO_"&A7,Output!$C:$AQ,7,FALSE)/VLOOKUP("OSUPREGECO_"&A7,Output!$C:$AQ,6,FALSE),3) ->  | O7: =ROUND(VLOOKUP("OSUPJEUNEREGECO_"&$A7,Output!$C:$AQ,12,FALSE)/VLOOKUP("OSUPREGECO_"&A7,Output!$C:$AQ,6,FALSE),3) ->  | R7: =ROUND(VLOOKUP("OSUPVIEUXTOTREGECO_"&$A7,Output!$C:$AQ,7,FALSE)/VLOOKUP("OSUPREGECO_"&A7,Output!$C:$AQ,6,FALSE),3) ->  | T7: =ROUND(VLOOKUP("OSUPVIEUXTOTREGECO_"&$A7,Output!$C:$AQ,12,FALSE)/VLOOKUP("OSUPREGECO_"&A7,Output!$C:$AQ,6,FALSE),3) ->  | W7: 0 | AA7: =Tableaux!$O$33 -> 07251 | AB7: 0 | AC7: =S7 ->  | AD7: =U7 ->  | AG7: Voir à renommer "Élevé" dans la légende des figures | AP7: CMO entente BM
G8: =VLOOKUP(CONCATENATE("OSUPVIEUXALERTEREGECO_"&A8),Output!$C:$AQ,6,FALSE) ->  | H8: =VLOOKUP(CONCATENATE("OSUPVIEUXACCEPTREGECO_"&A8),Output!$C:$AQ,6,FALSE) ->  | I8: =VLOOKUP(CONCATENATE("OSUPJEUNEALERTEREGECO_"&A8),Output!$C:$AQ,6,FALSE) ->  | J8: =VLOOKUP(CONCATENATE("OSUPJEUNEACCEPTREGECO_"&A8),Output!$C:$AQ,6,FALSE) ->  | K8: =VLOOKUP(CONCATENATE("OSUPREGECO_"&A8),Output!$C:$AQ,6,FALSE) ->  | M8: =ROUND(VLOOKUP("OSUPJEUNEREGECO_"&A8,Output!$C:$AQ,7,FALSE)/VLOOKUP("OSUPREGECO_"&A8,Output!$C:$AQ,6,FALSE),3) ->  | O8: =ROUND(VLOOKUP("OSUPJEUNEREGECO_"&$A8,Output!$C:$AQ,12,FALSE)/VLOOKUP("OSUPREGECO_"&A8,Output!$C:$AQ,6,FALSE),3) ->  | R8: =ROUND(VLOOKUP("OSUPVIEUXTOTREGECO_"&$A8,Output!$C:$AQ,7,FALSE)/VLOOKUP("OSUPREGECO_"&A8,Output!$C:$AQ,6,FALSE),3) ->  | T8: =ROUND(VLOOKUP("OSUPVIEUXTOTREGECO_"&$A8,Output!$C:$AQ,12,FALSE)/VLOOKUP("OSUPREGECO_"&A8,Output!$C:$AQ,6,FALSE),3) ->  | W8: 0 | AA8: =Tableaux!$O$33 -> 07251 | AB8: 0
G9: =VLOOKUP(CONCATENATE("OSUPVIEUXALERTEREGECO_"&A9),Output!$C:$AQ,6,FALSE) ->  | H9: =VLOOKUP(CONCATENATE("OSUPVIEUXACCEPTREGECO_"&A9),Output!$C:$AQ,6,FALSE) ->  | I9: =VLOOKUP(CONCATENATE("OSUPJEUNEALERTEREGECO_"&A9),Output!$C:$AQ,6,FALSE) ->  | J9: =VLOOKUP(CONCATENATE("OSUPJEUNEACCEPTREGECO_"&A9),Output!$C:$AQ,6,FALSE) ->  | K9: =VLOOKUP(CONCATENATE("OSUPREGECO_"&A9),Output!$C:$AQ,6,FALSE) ->  | M9: =ROUND(VLOOKUP("OSUPJEUNEREGECO_"&A9,Output!$C:$AQ,7,FALSE)/VLOOKUP("OSUPREGECO_"&A9,Output!$C:$AQ,6,FALSE),3) ->  | O9: =ROUND(VLOOKUP("OSUPJEUNEREGECO_"&$A9,Output!$C:$AQ,12,FALSE)/VLOOKUP("OSUPREGECO_"&A9,Output!$C:$AQ,6,FALSE),3) ->  | R9: =ROUND(VLOOKUP("OSUPVIEUXTOTREGECO_"&$A9,Output!$C:$AQ,7,FALSE)/VLOOKUP("OSUPREGECO_"&A9,Output!$C:$AQ,6,FALSE),3) ->  | T9: =ROUND(VLOOKUP("OSUPVIEUXTOTREGECO_"&$A9,Output!$C:$AQ,12,FALSE)/VLOOKUP("OSUPREGECO_"&A9,Output!$C:$AQ,6,FALSE),3) ->  | W9: 0 | AA9: =Tableaux!$O$33 -> 07251 | AB9: 0
G10: =VLOOKUP(CONCATENATE("OSUPVIEUXALERTEREGECO_"&A10),Output!$C:$AQ,6,FALSE) ->  | H10: =VLOOKUP(CONCATENATE("OSUPVIEUXACCEPTREGECO_"&A10),Output!$C:$AQ,6,FALSE) ->  | I10: =VLOOKUP(CONCATENATE("OSUPJEUNEALERTEREGECO_"&A10),Output!$C:$AQ,6,FALSE) ->  | J10: =VLOOKUP(CONCATENATE("OSUPJEUNEACCEPTREGECO_"&A10),Output!$C:$AQ,6,FALSE) ->  | K10: =VLOOKUP(CONCATENATE("OSUPREGECO_"&A10),Output!$C:$AQ,6,FALSE) ->  | M10: =ROUND(VLOOKUP("OSUPJEUNEREGECO_"&A10,Output!$C:$AQ,7,FALSE)/VLOOKUP("OSUPREGECO_"&A10,Output!$C:$AQ,6,FALSE),3) ->  | O10: =ROUND(VLOOKUP("OSUPJEUNEREGECO_"&$A10,Output!$C:$AQ,12,FALSE)/VLOOKUP("OSUPREGECO_"&A10,Output!$C:$AQ,6,FALSE),3) ->  | R10: =ROUND(VLOOKUP("OSUPVIEUXTOTREGECO_"&$A10,Output!$C:$AQ,7,FALSE)/VLOOKUP("OSUPREGECO_"&A10,Output!$C:$AQ,6,FALSE),3) ->  | T10: =ROUND(VLOOKUP("OSUPVIEUXTOTREGECO_"&$A10,Output!$C:$AQ,12,FALSE)/VLOOKUP("OSUPREGECO_"&A10,Output!$C:$AQ,6,FALSE),3) ->  | W10: 0 | AA10: =Tableaux!$O$33 -> 07251 | AB10: 0
E11: =ROUND(J11/$K11,3) ->  | G11: =VLOOKUP(CONCATENATE("OSUPVIEUXALERTEREGECO_"&A11),Output!$C:$AQ,6,FALSE) ->  | H11: =VLOOKUP(CONCATENATE("OSUPVIEUXACCEPTREGECO_"&A11),Output!$C:$AQ,6,FALSE) ->  | I11: =VLOOKUP(CONCATENATE("OSUPJEUNEALERTEREGECO_"&A11),Output!$C:$AQ,6,FALSE) ->  | J11: =VLOOKUP(CONCATENATE("OSUPJEUNEACCEPTREGECO_"&A11),Output!$C:$AQ,6,FALSE) ->  | K11: =VLOOKUP(CONCATENATE("OSUPREGECO_"&A11),Output!$C:$AQ,6,FALSE) ->  | M11: =ROUND(VLOOKUP("OSUPJEUNEREGECO_"&A11,Output!$C:$AQ,7,FALSE)/VLOOKUP("OSUPREGECO_"&A11,Output!$C:$AQ,6,FALSE),3) ->  | O11: =ROUND(VLOOKUP("OSUPJEUNEREGECO_"&$A11,Output!$C:$AQ,12,FALSE)/VLOOKUP("OSUPREGECO_"&A11,Output!$C:$AQ,6,FALSE),3) ->  | R11: =ROUND(VLOOKUP("OSUPVIEUXTOTREGECO_"&$A11,Output!$C:$AQ,7,FALSE)/VLOOKUP("OSUPREGECO_"&A11,Output!$C:$AQ,6,FALSE),3) ->  | T11: =ROUND(VLOOKUP("OSUPVIEUXTOTREGECO_"&$A11,Output!$C:$AQ,12,FALSE)/VLOOKUP("OSUPREGECO_"&A11,Output!$C:$AQ,6,FALSE),3) ->  | W11: 0 | AA11: =Tableaux!$O$33 -> 07251 | AB11: 0
G12: =VLOOKUP(CONCATENATE("OSUPVIEUXALERTEREGECO_"&A12),Output!$C:$AQ,6,FALSE) ->  | H12: =VLOOKUP(CONCATENATE("OSUPVIEUXACCEPTREGECO_"&A12),Output!$C:$AQ,6,FALSE) ->  | I12: =VLOOKUP(CONCATENATE("OSUPJEUNEALERTEREGECO_"&A12),Output!$C:$AQ,6,FALSE) ->  | J12: =VLOOKUP(CONCATENATE("OSUPJEUNEACCEPTREGECO_"&A12),Output!$C:$AQ,6,FALSE) ->  | K12: =VLOOKUP(CONCATENATE("OSUPREGECO_"&A12),Output!$C:$AQ,6,FALSE) ->  | M12: =ROUND(VLOOKUP("OSUPJEUNEREGECO_"&A12,Output!$C:$AQ,7,FALSE)/VLOOKUP("OSUPREGECO_"&A12,Output!$C:$AQ,6,FALSE),3) ->  | O12: =ROUND(VLOOKUP("OSUPJEUNEREGECO_"&$A12,Output!$C:$AQ,12,FALSE)/VLOOKUP("OSUPREGECO_"&A12,Output!$C:$AQ,6,FALSE),3) ->  | R12: =ROUND(VLOOKUP("OSUPVIEUXTOTREGECO_"&$A12,Output!$C:$AQ,7,FALSE)/VLOOKUP("OSUPREGECO_"&A12,Output!$C:$AQ,6,FALSE),3) ->  | T12: =ROUND(VLOOKUP("OSUPVIEUXTOTREGECO_"&$A12,Output!$C:$AQ,12,FALSE)/VLOOKUP("OSUPREGECO_"&A12,Output!$C:$AQ,6,FALSE),3) ->  | W12: 0 | AA12: =Tableaux!$O$33 -> 07251 | AB12: 0 | AG12: Compléter cellules en jaune
G13: =VLOOKUP(CONCATENATE("OSUPVIEUXALERTEREGECO_"&A13),Output!$C:$AQ,6,FALSE) ->  | H13: =VLOOKUP(CONCATENATE("OSUPVIEUXACCEPTREGECO_"&A13),Output!$C:$AQ,6,FALSE) ->  | I13: =VLOOKUP(CONCATENATE("OSUPJEUNEALERTEREGECO_"&A13),Output!$C:$AQ,6,FALSE) ->  | J13: =VLOOKUP(CONCATENATE("OSUPJEUNEACCEPTREGECO_"&A13),Output!$C:$AQ,6,FALSE) ->  | K13: =VLOOKUP(CONCATENATE("OSUPREGECO_"&A13),Output!$C:$AQ,6,FALSE) ->  | M13: =ROUND(VLOOKUP("OSUPJEUNEREGECO_"&A13,Output!$C:$AQ,7,FALSE)/VLOOKUP("OSUPREGECO_"&A13,Output!$C:$AQ,6,FALSE),3) ->  | O13: =ROUND(VLOOKUP("OSUPJEUNEREGECO_"&$A13,Output!$C:$AQ,12,FALSE)/VLOOKUP("OSUPREGECO_"&A13,Output!$C:$AQ,6,FALSE),3) ->  | R13: =ROUND(VLOOKUP("OSUPVIEUXTOTREGECO_"&$A13,Output!$C:$AQ,7,FALSE)/VLOOKUP("OSUPREGECO_"&A13,Output!$C:$AQ,6,FALSE),3) ->  | T13: =ROUND(VLOOKUP("OSUPVIEUXTOTREGECO_"&$A13,Output!$C:$AQ,12,FALSE)/VLOOKUP("OSUPREGECO_"&A13,Output!$C:$AQ,6,FALSE),3) ->  | W13: 0 | AA13: =Tableaux!$O$33 -> 07251 | AB13: 0
G14: =VLOOKUP(CONCATENATE("OSUPVIEUXALERTEREGECO_"&A14),Output!$C:$AQ,6,FALSE) ->  | H14: =VLOOKUP(CONCATENATE("OSUPVIEUXACCEPTREGECO_"&A14),Output!$C:$AQ,6,FALSE) ->  | I14: =VLOOKUP(CONCATENATE("OSUPJEUNEALERTEREGECO_"&A14),Output!$C:$AQ,6,FALSE) ->  | J14: =VLOOKUP(CONCATENATE("OSUPJEUNEACCEPTREGECO_"&A14),Output!$C:$AQ,6,FALSE) ->  | K14: =VLOOKUP(CONCATENATE("OSUPREGECO_"&A14),Output!$C:$AQ,6,FALSE) ->  | M14: =ROUND(VLOOKUP("OSUPJEUNEREGECO_"&A14,Output!$C:$AQ,7,FALSE)/VLOOKUP("OSUPREGECO_"&A14,Output!$C:$AQ,6,FALSE),3) ->  | O14: =ROUND(VLOOKUP("OSUPJEUNEREGECO_"&$A14,Output!$C:$AQ,12,FALSE)/VLOOKUP("OSUPREGECO_"&A14,Output!$C:$AQ,6,FALSE),3) ->  | R14: =ROUND(VLOOKUP("OSUPVIEUXTOTREGECO_"&$A14,Output!$C:$AQ,7,FALSE)/VLOOKUP("OSUPREGECO_"&A14,Output!$C:$AQ,6,FALSE),3) ->  | T14: =ROUND(VLOOKUP("OSUPVIEUXTOTREGECO_"&$A14,Output!$C:$AQ,12,FALSE)/VLOOKUP("OSUPREGECO_"&A14,Output!$C:$AQ,6,FALSE),3) ->  | W14: 0 | AA14: =Tableaux!$O$33 -> 07251 | AB14: 0
G15: =VLOOKUP(CONCATENATE("OSUPVIEUXALERTEREGECO_"&A15),Output!$C:$AQ,6,FALSE) ->  | H15: =VLOOKUP(CONCATENATE("OSUPVIEUXACCEPTREGECO_"&A15),Output!$C:$AQ,6,FALSE) ->  | I15: =VLOOKUP(CONCATENATE("OSUPJEUNEALERTEREGECO_"&A15),Output!$C:$AQ,6,FALSE) ->  | J15: =VLOOKUP(CONCATENATE("OSUPJEUNEACCEPTREGECO_"&A15),Output!$C:$AQ,6,FALSE) ->  | K15: =VLOOKUP(CONCATENATE("OSUPREGECO_"&A15),Output!$C:$AQ,6,FALSE) ->  | M15: =ROUND(VLOOKUP("OSUPJEUNEREGECO_"&A15,Output!$C:$AQ,7,FALSE)/VLOOKUP("OSUPREGECO_"&A15,Output!$C:$AQ,6,FALSE),3) ->  | O15: =ROUND(VLOOKUP("OSUPJEUNEREGECO_"&$A15,Output!$C:$AQ,12,FALSE)/VLOOKUP("OSUPREGECO_"&A15,Output!$C:$AQ,6,FALSE),3) ->  | R15: =ROUND(VLOOKUP("OSUPVIEUXTOTREGECO_"&$A15,Output!$C:$AQ,7,FALSE)/VLOOKUP("OSUPREGECO_"&A15,Output!$C:$AQ,6,FALSE),3) ->  | T15: =ROUND(VLOOKUP("OSUPVIEUXTOTREGECO_"&$A15,Output!$C:$AQ,12,FALSE)/VLOOKUP("OSUPREGECO_"&A15,Output!$C:$AQ,6,FALSE),3) ->  | W15: 0 | AA15: =Tableaux!$O$33 -> 07251 | AB15: 0
G16: =VLOOKUP(CONCATENATE("OSUPVIEUXALERTEREGECO_"&A16),Output!$C:$AQ,6,FALSE) ->  | H16: =VLOOKUP(CONCATENATE("OSUPVIEUXACCEPTREGECO_"&A16),Output!$C:$AQ,6,FALSE) ->  | I16: =VLOOKUP(CONCATENATE("OSUPJEUNEALERTEREGECO_"&A16),Output!$C:$AQ,6,FALSE) ->  | J16: =VLOOKUP(CONCATENATE("OSUPJEUNEACCEPTREGECO_"&A16),Output!$C:$AQ,6,FALSE) ->  | K16: =VLOOKUP(CONCATENATE("OSUPREGECO_"&A16),Output!$C:$AQ,6,FALSE) ->  | M16: =ROUND(VLOOKUP("OSUPJEUNEREGECO_"&A16,Output!$C:$AQ,7,FALSE)/VLOOKUP("OSUPREGECO_"&A16,Output!$C:$AQ,6,FALSE),3) ->  | O16: =ROUND(VLOOKUP("OSUPJEUNEREGECO_"&$A16,Output!$C:$AQ,12,FALSE)/VLOOKUP("OSUPREGECO_"&A16,Output!$C:$AQ,6,FALSE),3) ->  | R16: =ROUND(VLOOKUP("OSUPVIEUXTOTREGECO_"&$A16,Output!$C:$AQ,7,FALSE)/VLOOKUP("OSUPREGECO_"&A16,Output!$C:$AQ,6,FALSE),3) ->  | T16: =ROUND(VLOOKUP("OSUPVIEUXTOTREGECO_"&$A16,Output!$C:$AQ,12,FALSE)/VLOOKUP("OSUPREGECO_"&A16,Output!$C:$AQ,6,FALSE),3) ->  | W16: 0 | AA16: =Tableaux!$O$33 -> 07251 | AB16: 0
G17: =VLOOKUP(CONCATENATE("OSUPVIEUXALERTEREGECO_"&A17),Output!$C:$AQ,6,FALSE) ->  | H17: =VLOOKUP(CONCATENATE("OSUPVIEUXACCEPTREGECO_"&A17),Output!$C:$AQ,6,FALSE) ->  | I17: =VLOOKUP(CONCATENATE("OSUPJEUNEALERTEREGECO_"&A17),Output!$C:$AQ,6,FALSE) ->  | J17: =VLOOKUP(CONCATENATE("OSUPJEUNEACCEPTREGECO_"&A17),Output!$C:$AQ,6,FALSE) ->  | K17: =VLOOKUP(CONCATENATE("OSUPREGECO_"&A17),Output!$C:$AQ,6,FALSE) ->  | M17: =ROUND(VLOOKUP("OSUPJEUNEREGECO_"&A17,Output!$C:$AQ,7,FALSE)/VLOOKUP("OSUPREGECO_"&A17,Output!$C:$AQ,6,FALSE),3) ->  | O17: =ROUND(VLOOKUP("OSUPJEUNEREGECO_"&$A17,Output!$C:$AQ,12,FALSE)/VLOOKUP("OSUPREGECO_"&A17,Output!$C:$AQ,6,FALSE),3) ->  | R17: =ROUND(VLOOKUP("OSUPVIEUXTOTREGECO_"&$A17,Output!$C:$AQ,7,FALSE)/VLOOKUP("OSUPREGECO_"&A17,Output!$C:$AQ,6,FALSE),3) ->  | T17: =ROUND(VLOOKUP("OSUPVIEUXTOTREGECO_"&$A17,Output!$C:$AQ,12,FALSE)/VLOOKUP("OSUPREGECO_"&A17,Output!$C:$AQ,6,FALSE),3) ->  | W17: 0 | AA17: =Tableaux!$O$33 -> 07251 | AB17: 0
G18: =VLOOKUP(CONCATENATE("OSUPVIEUXALERTEREGECO_"&A18),Output!$C:$AQ,6,FALSE) ->  | H18: =VLOOKUP(CONCATENATE("OSUPVIEUXACCEPTREGECO_"&A18),Output!$C:$AQ,6,FALSE) ->  | I18: =VLOOKUP(CONCATENATE("OSUPJEUNEALERTEREGECO_"&A18),Output!$C:$AQ,6,FALSE) ->  | J18: =VLOOKUP(CONCATENATE("OSUPJEUNEACCEPTREGECO_"&A18),Output!$C:$AQ,6,FALSE) ->  | K18: =VLOOKUP(CONCATENATE("OSUPREGECO_"&A18),Output!$C:$AQ,6,FALSE) ->  | M18: =ROUND(VLOOKUP("OSUPJEUNEREGECO_"&A18,Output!$C:$AQ,7,FALSE)/VLOOKUP("OSUPREGECO_"&A18,Output!$C:$AQ,6,FALSE),3) ->  | O18: =ROUND(VLOOKUP("OSUPJEUNEREGECO_"&$A18,Output!$C:$AQ,12,FALSE)/VLOOKUP("OSUPREGECO_"&A18,Output!$C:$AQ,6,FALSE),3) ->  | R18: =ROUND(VLOOKUP("OSUPVIEUXTOTREGECO_"&$A18,Output!$C:$AQ,7,FALSE)/VLOOKUP("OSUPREGECO_"&A18,Output!$C:$AQ,6,FALSE),3) ->  | T18: =ROUND(VLOOKUP("OSUPVIEUXTOTREGECO_"&$A18,Output!$C:$AQ,12,FALSE)/VLOOKUP("OSUPREGECO_"&A18,Output!$C:$AQ,6,FALSE),3) ->  | W18: 0 | AA18: =Tableaux!$O$33 -> 07251 | AB18: 0
G19: =VLOOKUP(CONCATENATE("OSUPVIEUXALERTEREGECO_"&A19),Output!$C:$AQ,6,FALSE) ->  | H19: =VLOOKUP(CONCATENATE("OSUPVIEUXACCEPTREGECO_"&A19),Output!$C:$AQ,6,FALSE) ->  | I19: =VLOOKUP(CONCATENATE("OSUPJEUNEALERTEREGECO_"&A19),Output!$C:$AQ,6,FALSE) ->  | J19: =VLOOKUP(CONCATENATE("OSUPJEUNEACCEPTREGECO_"&A19),Output!$C:$AQ,6,FALSE) ->  | K19: =VLOOKUP(CONCATENATE("OSUPREGECO_"&A19),Output!$C:$AQ,6,FALSE) ->  | M19: =ROUND(VLOOKUP("OSUPJEUNEREGECO_"&A19,Output!$C:$AQ,7,FALSE)/VLOOKUP("OSUPREGECO_"&A19,Output!$C:$AQ,6,FALSE),3) ->  | O19: =ROUND(VLOOKUP("OSUPJEUNEREGECO_"&$A19,Output!$C:$AQ,12,FALSE)/VLOOKUP("OSUPREGECO_"&A19,Output!$C:$AQ,6,FALSE),3) ->  | R19: =ROUND(VLOOKUP("OSUPVIEUXTOTREGECO_"&$A19,Output!$C:$AQ,7,FALSE)/VLOOKUP("OSUPREGECO_"&A19,Output!$C:$AQ,6,FALSE),3) ->  | T19: =ROUND(VLOOKUP("OSUPVIEUXTOTREGECO_"&$A19,Output!$C:$AQ,12,FALSE)/VLOOKUP("OSUPREGECO_"&A19,Output!$C:$AQ,6,FALSE),3) ->  | W19: 0 | AA19: =Tableaux!$O$33 -> 07251 | AB19: 0
G20: =VLOOKUP(CONCATENATE("OSUPVIEUXALERTEREGECO_"&A20),Output!$C:$AQ,6,FALSE) ->  | H20: =VLOOKUP(CONCATENATE("OSUPVIEUXACCEPTREGECO_"&A20),Output!$C:$AQ,6,FALSE) ->  | I20: =VLOOKUP(CONCATENATE("OSUPJEUNEALERTEREGECO_"&A20),Output!$C:$AQ,6,FALSE) ->  | J20: =VLOOKUP(CONCATENATE("OSUPJEUNEACCEPTREGECO_"&A20),Output!$C:$AQ,6,FALSE) ->  | K20: =VLOOKUP(CONCATENATE("OSUPREGECO_"&A20),Output!$C:$AQ,6,FALSE) ->  | M20: =ROUND(VLOOKUP("OSUPJEUNEREGECO_"&A20,Output!$C:$AQ,7,FALSE)/VLOOKUP("OSUPREGECO_"&A20,Output!$C:$AQ,6,FALSE),3) ->  | O20: =ROUND(VLOOKUP("OSUPJEUNEREGECO_"&$A20,Output!$C:$AQ,12,FALSE)/VLOOKUP("OSUPREGECO_"&A20,Output!$C:$AQ,6,FALSE),3) ->  | R20: =ROUND(VLOOKUP("OSUPVIEUXTOTREGECO_"&$A20,Output!$C:$AQ,7,FALSE)/VLOOKUP("OSUPREGECO_"&A20,Output!$C:$AQ,6,FALSE),3) ->  | T20: =ROUND(VLOOKUP("OSUPVIEUXTOTREGECO_"&$A20,Output!$C:$AQ,12,FALSE)/VLOOKUP("OSUPREGECO_"&A20,Output!$C:$AQ,6,FALSE),3) ->  | W20: 0 | AA20: =Tableaux!$O$33 -> 07251 | AB20: 0
B21: =ROUND(G21/$K21,2) ->  | C21: =H21/$K21 ->  | D21: =ROUND(I21/$K21,3) ->  | G21: =VLOOKUP(CONCATENATE("OSUPVIEUXALERTEREGECO_"&A21),Output!$C:$AQ,6,FALSE) ->  | H21: =VLOOKUP(CONCATENATE("OSUPVIEUXACCEPTREGECO_"&A21),Output!$C:$AQ,6,FALSE) ->  | I21: =VLOOKUP(CONCATENATE("OSUPJEUNEALERTEREGECO_"&A21),Output!$C:$AQ,6,FALSE) ->  | J21: =VLOOKUP(CONCATENATE("OSUPJEUNEACCEPTREGECO_"&A21),Output!$C:$AQ,6,FALSE) ->  | K21: =VLOOKUP(CONCATENATE("OSUPREGECO_"&A21),Output!$C:$AQ,6,FALSE) ->  | M21: =ROUND(VLOOKUP("OSUPJEUNEREGECO_"&A21,Output!$C:$AQ,7,FALSE)/VLOOKUP("OSUPREGECO_"&A21,Output!$C:$AQ,6,FALSE),3) ->  | O21: =ROUND(VLOOKUP("OSUPJEUNEREGECO_"&$A21,Output!$C:$AQ,12,FALSE)/VLOOKUP("OSUPREGECO_"&A21,Output!$C:$AQ,6,FALSE),3) ->  | R21: =ROUND(VLOOKUP("OSUPVIEUXTOTREGECO_"&$A21,Output!$C:$AQ,7,FALSE)/VLOOKUP("OSUPREGECO_"&A21,Output!$C:$AQ,6,FALSE),3) ->  | T21: =ROUND(VLOOKUP("OSUPVIEUXTOTREGECO_"&$A21,Output!$C:$AQ,12,FALSE)/VLOOKUP("OSUPREGECO_"&A21,Output!$C:$AQ,6,FALSE),3) ->  | W21: 0 | AA21: =Tableaux!$O$33 -> 07251 | AB21: 0
G22: =VLOOKUP(CONCATENATE("OSUPVIEUXALERTEREGECO_"&A22),Output!$C:$AQ,6,FALSE) ->  | H22: =VLOOKUP(CONCATENATE("OSUPVIEUXACCEPTREGECO_"&A22),Output!$C:$AQ,6,FALSE) ->  | I22: =VLOOKUP(CONCATENATE("OSUPJEUNEALERTEREGECO_"&A22),Output!$C:$AQ,6,FALSE) ->  | J22: =VLOOKUP(CONCATENATE("OSUPJEUNEACCEPTREGECO_"&A22),Output!$C:$AQ,6,FALSE) ->  | K22: =VLOOKUP(CONCATENATE("OSUPREGECO_"&A22),Output!$C:$AQ,6,FALSE) ->  | M22: =ROUND(VLOOKUP("OSUPJEUNEREGECO_"&A22,Output!$C:$AQ,7,FALSE)/VLOOKUP("OSUPREGECO_"&A22,Output!$C:$AQ,6,FALSE),3) ->  | O22: =ROUND(VLOOKUP("OSUPJEUNEREGECO_"&$A22,Output!$C:$AQ,12,FALSE)/VLOOKUP("OSUPREGECO_"&A22,Output!$C:$AQ,6,FALSE),3) ->  | R22: =ROUND(VLOOKUP("OSUPVIEUXTOTREGECO_"&$A22,Output!$C:$AQ,7,FALSE)/VLOOKUP("OSUPREGECO_"&A22,Output!$C:$AQ,6,FALSE),3) ->  | T22: =ROUND(VLOOKUP("OSUPVIEUXTOTREGECO_"&$A22,Output!$C:$AQ,12,FALSE)/VLOOKUP("OSUPREGECO_"&A22,Output!$C:$AQ,6,FALSE),3) ->  | W22: 0 | AA22: =Tableaux!$O$33 -> 07251 | AB22: 0
G23: =VLOOKUP(CONCATENATE("OSUPVIEUXALERTEREGECO_"&A23),Output!$C:$AQ,6,FALSE) ->  | H23: =VLOOKUP(CONCATENATE("OSUPVIEUXACCEPTREGECO_"&A23),Output!$C:$AQ,6,FALSE) ->  | I23: =VLOOKUP(CONCATENATE("OSUPJEUNEALERTEREGECO_"&A23),Output!$C:$AQ,6,FALSE) ->  | J23: =VLOOKUP(CONCATENATE("OSUPJEUNEACCEPTREGECO_"&A23),Output!$C:$AQ,6,FALSE) ->  | K23: =VLOOKUP(CONCATENATE("OSUPREGECO_"&A23),Output!$C:$AQ,6,FALSE) ->  | M23: =ROUND(VLOOKUP("OSUPJEUNEREGECO_"&A23,Output!$C:$AQ,7,FALSE)/VLOOKUP("OSUPREGECO_"&A23,Output!$C:$AQ,6,FALSE),3) ->  | O23: =ROUND(VLOOKUP("OSUPJEUNEREGECO_"&$A23,Output!$C:$AQ,12,FALSE)/VLOOKUP("OSUPREGECO_"&A23,Output!$C:$AQ,6,FALSE),3) ->  | R23: =ROUND(VLOOKUP("OSUPVIEUXTOTREGECO_"&$A23,Output!$C:$AQ,7,FALSE)/VLOOKUP("OSUPREGECO_"&A23,Output!$C:$AQ,6,FALSE),3) ->  | T23: =ROUND(VLOOKUP("OSUPVIEUXTOTREGECO_"&$A23,Output!$C:$AQ,12,FALSE)/VLOOKUP("OSUPREGECO_"&A23,Output!$C:$AQ,6,FALSE),3) ->  | W23: 0 | AA23: =Tableaux!$O$33 -> 07251 | AB23: 0
G24: =VLOOKUP(CONCATENATE("OSUPVIEUXALERTEREGECO_"&A24),Output!$C:$AQ,6,FALSE) ->  | H24: =VLOOKUP(CONCATENATE("OSUPVIEUXACCEPTREGECO_"&A24),Output!$C:$AQ,6,FALSE) ->  | I24: =VLOOKUP(CONCATENATE("OSUPJEUNEALERTEREGECO_"&A24),Output!$C:$AQ,6,FALSE) ->  | J24: =VLOOKUP(CONCATENATE("OSUPJEUNEACCEPTREGECO_"&A24),Output!$C:$AQ,6,FALSE) ->  | K24: =VLOOKUP(CONCATENATE("OSUPREGECO_"&A24),Output!$C:$AQ,6,FALSE) ->  | M24: =ROUND(VLOOKUP("OSUPJEUNEREGECO_"&A24,Output!$C:$AQ,7,FALSE)/VLOOKUP("OSUPREGECO_"&A24,Output!$C:$AQ,6,FALSE),3) ->  | O24: =ROUND(VLOOKUP("OSUPJEUNEREGECO_"&$A24,Output!$C:$AQ,12,FALSE)/VLOOKUP("OSUPREGECO_"&A24,Output!$C:$AQ,6,FALSE),3) ->  | R24: =ROUND(VLOOKUP("OSUPVIEUXTOTREGECO_"&$A24,Output!$C:$AQ,7,FALSE)/VLOOKUP("OSUPREGECO_"&A24,Output!$C:$AQ,6,FALSE),3) ->  | T24: =ROUND(VLOOKUP("OSUPVIEUXTOTREGECO_"&$A24,Output!$C:$AQ,12,FALSE)/VLOOKUP("OSUPREGECO_"&A24,Output!$C:$AQ,6,FALSE),3) ->  | W24: 0 | AA24: =Tableaux!$O$33 -> 07251 | AB24: 0
G25: =VLOOKUP(CONCATENATE("OSUPVIEUXALERTEREGECO_"&A25),Output!$C:$AQ,6,FALSE) ->  | H25: =VLOOKUP(CONCATENATE("OSUPVIEUXACCEPTREGECO_"&A25),Output!$C:$AQ,6,FALSE) ->  | I25: =VLOOKUP(CONCATENATE("OSUPJEUNEALERTEREGECO_"&A25),Output!$C:$AQ,6,FALSE) ->  | J25: =VLOOKUP(CONCATENATE("OSUPJEUNEACCEPTREGECO_"&A25),Output!$C:$AQ,6,FALSE) ->  | K25: =VLOOKUP(CONCATENATE("OSUPREGECO_"&A25),Output!$C:$AQ,6,FALSE) ->  | M25: =ROUND(VLOOKUP("OSUPJEUNEREGECO_"&A25,Output!$C:$AQ,7,FALSE)/VLOOKUP("OSUPREGECO_"&A25,Output!$C:$AQ,6,FALSE),3) ->  | O25: =ROUND(VLOOKUP("OSUPJEUNEREGECO_"&$A25,Output!$C:$AQ,12,FALSE)/VLOOKUP("OSUPREGECO_"&A25,Output!$C:$AQ,6,FALSE),3) ->  | R25: =ROUND(VLOOKUP("OSUPVIEUXTOTREGECO_"&$A25,Output!$C:$AQ,7,FALSE)/VLOOKUP("OSUPREGECO_"&A25,Output!$C:$AQ,6,FALSE),3) ->  | T25: =ROUND(VLOOKUP("OSUPVIEUXTOTREGECO_"&$A25,Output!$C:$AQ,12,FALSE)/VLOOKUP("OSUPREGECO_"&A25,Output!$C:$AQ,6,FALSE),3) ->  | W25: 0 | AA25: =Tableaux!$O$33 -> 07251 | AB25: 0
G26: =VLOOKUP(CONCATENATE("OSUPVIEUXALERTEREGECO_"&A26),Output!$C:$AQ,6,FALSE) ->  | H26: =VLOOKUP(CONCATENATE("OSUPVIEUXACCEPTREGECO_"&A26),Output!$C:$AQ,6,FALSE) ->  | I26: =VLOOKUP(CONCATENATE("OSUPJEUNEALERTEREGECO_"&A26),Output!$C:$AQ,6,FALSE) ->  | J26: =VLOOKUP(CONCATENATE("OSUPJEUNEACCEPTREGECO_"&A26),Output!$C:$AQ,6,FALSE) ->  | K26: =VLOOKUP(CONCATENATE("OSUPREGECO_"&A26),Output!$C:$AQ,6,FALSE) ->  | M26: =ROUND(VLOOKUP("OSUPJEUNEREGECO_"&A26,Output!$C:$AQ,7,FALSE)/VLOOKUP("OSUPREGECO_"&A26,Output!$C:$AQ,6,FALSE),3) ->  | O26: =ROUND(VLOOKUP("OSUPJEUNEREGECO_"&$A26,Output!$C:$AQ,12,FALSE)/VLOOKUP("OSUPREGECO_"&A26,Output!$C:$AQ,6,FALSE),3) ->  | R26: =ROUND(VLOOKUP("OSUPVIEUXTOTREGECO_"&$A26,Output!$C:$AQ,7,FALSE)/VLOOKUP("OSUPREGECO_"&A26,Output!$C:$AQ,6,FALSE),3) ->  | T26: =ROUND(VLOOKUP("OSUPVIEUXTOTREGECO_"&$A26,Output!$C:$AQ,12,FALSE)/VLOOKUP("OSUPREGECO_"&A26,Output!$C:$AQ,6,FALSE),3) ->  | W26: 0 | AA26: =Tableaux!$O$33 -> 07251 | AB26: 0
C27: =ROUND(H27/$K27,3) ->  | G27: =VLOOKUP(CONCATENATE("OSUPVIEUXALERTEREGECO_"&A27),Output!$C:$AQ,6,FALSE) ->  | H27: =VLOOKUP(CONCATENATE("OSUPVIEUXACCEPTREGECO_"&A27),Output!$C:$AQ,6,FALSE) ->  | I27: =VLOOKUP(CONCATENATE("OSUPJEUNEALERTEREGECO_"&A27),Output!$C:$AQ,6,FALSE) ->  | J27: =VLOOKUP(CONCATENATE("OSUPJEUNEACCEPTREGECO_"&A27),Output!$C:$AQ,6,FALSE) ->  | K27: =VLOOKUP(CONCATENATE("OSUPREGECO_"&A27),Output!$C:$AQ,6,FALSE) ->  | M27: =ROUND(VLOOKUP("OSUPJEUNEREGECO_"&A27,Output!$C:$AQ,7,FALSE)/VLOOKUP("OSUPREGECO_"&A27,Output!$C:$AQ,6,FALSE),3) ->  | O27: =ROUND(VLOOKUP("OSUPJEUNEREGECO_"&$A27,Output!$C:$AQ,12,FALSE)/VLOOKUP("OSUPREGECO_"&A27,Output!$C:$AQ,6,FALSE),3) ->  | R27: =ROUND(VLOOKUP("OSUPVIEUXTOTREGECO_"&$A27,Output!$C:$AQ,7,FALSE)/VLOOKUP("OSUPREGECO_"&A27,Output!$C:$AQ,6,FALSE),3) ->  | T27: =ROUND(VLOOKUP("OSUPVIEUXTOTREGECO_"&$A27,Output!$C:$AQ,12,FALSE)/VLOOKUP("OSUPREGECO_"&A27,Output!$C:$AQ,6,FALSE),3) ->  | W27: 0 | AA27: =Tableaux!$O$33 -> 07251 | AB27: 0
G28: =VLOOKUP(CONCATENATE("OSUPVIEUXALERTEREGECO_"&A28),Output!$C:$AQ,6,FALSE) ->  | H28: =VLOOKUP(CONCATENATE("OSUPVIEUXACCEPTREGECO_"&A28),Output!$C:$AQ,6,FALSE) ->  | I28: =VLOOKUP(CONCATENATE("OSUPJEUNEALERTEREGECO_"&A28),Output!$C:$AQ,6,FALSE) ->  | J28: =VLOOKUP(CONCATENATE("OSUPJEUNEACCEPTREGECO_"&A28),Output!$C:$AQ,6,FALSE) ->  | K28: =VLOOKUP(CONCATENATE("OSUPREGECO_"&A28),Output!$C:$AQ,6,FALSE) ->  | M28: =ROUND(VLOOKUP("OSUPJEUNEREGECO_"&A28,Output!$C:$AQ,7,FALSE)/VLOOKUP("OSUPREGECO_"&A28,Output!$C:$AQ,6,FALSE),3) ->  | O28: =ROUND(VLOOKUP("OSUPJEUNEREGECO_"&$A28,Output!$C:$AQ,12,FALSE)/VLOOKUP("OSUPREGECO_"&A28,Output!$C:$AQ,6,FALSE),3) ->  | R28: =ROUND(VLOOKUP("OSUPVIEUXTOTREGECO_"&$A28,Output!$C:$AQ,7,FALSE)/VLOOKUP("OSUPREGECO_"&A28,Output!$C:$AQ,6,FALSE),3) ->  | T28: =ROUND(VLOOKUP("OSUPVIEUXTOTREGECO_"&$A28,Output!$C:$AQ,12,FALSE)/VLOOKUP("OSUPREGECO_"&A28,Output!$C:$AQ,6,FALSE),3) ->  | W28: 0 | AA28: =Tableaux!$O$33 -> 07251 | AB28: 0
G29: =VLOOKUP(CONCATENATE("OSUPVIEUXALERTEREGECO_"&A29),Output!$C:$AQ,6,FALSE) ->  | H29: =VLOOKUP(CONCATENATE("OSUPVIEUXACCEPTREGECO_"&A29),Output!$C:$AQ,6,FALSE) ->  | I29: =VLOOKUP(CONCATENATE("OSUPJEUNEALERTEREGECO_"&A29),Output!$C:$AQ,6,FALSE) ->  | J29: =VLOOKUP(CONCATENATE("OSUPJEUNEACCEPTREGECO_"&A29),Output!$C:$AQ,6,FALSE) ->  | K29: =VLOOKUP(CONCATENATE("OSUPREGECO_"&A29),Output!$C:$AQ,6,FALSE) ->  | M29: =ROUND(VLOOKUP("OSUPJEUNEREGECO_"&A29,Output!$C:$AQ,7,FALSE)/VLOOKUP("OSUPREGECO_"&A29,Output!$C:$AQ,6,FALSE),3) ->  | O29: =ROUND(VLOOKUP("OSUPJEUNEREGECO_"&$A29,Output!$C:$AQ,12,FALSE)/VLOOKUP("OSUPREGECO_"&A29,Output!$C:$AQ,6,FALSE),3) ->  | R29: =ROUND(VLOOKUP("OSUPVIEUXTOTREGECO_"&$A29,Output!$C:$AQ,7,FALSE)/VLOOKUP("OSUPREGECO_"&A29,Output!$C:$AQ,6,FALSE),3) ->  | T29: =ROUND(VLOOKUP("OSUPVIEUXTOTREGECO_"&$A29,Output!$C:$AQ,12,FALSE)/VLOOKUP("OSUPREGECO_"&A29,Output!$C:$AQ,6,FALSE),3) ->  | W29: 0 | AA29: =Tableaux!$O$33 -> 07251 | AB29: 0
G30: =VLOOKUP(CONCATENATE("OSUPVIEUXALERTEREGECO_"&A30),Output!$C:$AQ,6,FALSE) ->  | H30: =VLOOKUP(CONCATENATE("OSUPVIEUXACCEPTREGECO_"&A30),Output!$C:$AQ,6,FALSE) ->  | I30: =VLOOKUP(CONCATENATE("OSUPJEUNEALERTEREGECO_"&A30),Output!$C:$AQ,6,FALSE) ->  | J30: =VLOOKUP(CONCATENATE("OSUPJEUNEACCEPTREGECO_"&A30),Output!$C:$AQ,6,FALSE) ->  | K30: =VLOOKUP(CONCATENATE("OSUPREGECO_"&A30),Output!$C:$AQ,6,FALSE) ->  | M30: =ROUND(VLOOKUP("OSUPJEUNEREGECO_"&A30,Output!$C:$AQ,7,FALSE)/VLOOKUP("OSUPREGECO_"&A30,Output!$C:$AQ,6,FALSE),3) ->  | O30: =ROUND(VLOOKUP("OSUPJEUNEREGECO_"&$A30,Output!$C:$AQ,12,FALSE)/VLOOKUP("OSUPREGECO_"&A30,Output!$C:$AQ,6,FALSE),3) ->  | R30: =ROUND(VLOOKUP("OSUPVIEUXTOTREGECO_"&$A30,Output!$C:$AQ,7,FALSE)/VLOOKUP("OSUPREGECO_"&A30,Output!$C:$AQ,6,FALSE),3) ->  | T30: =ROUND(VLOOKUP("OSUPVIEUXTOTREGECO_"&$A30,Output!$C:$AQ,12,FALSE)/VLOOKUP("OSUPREGECO_"&A30,Output!$C:$AQ,6,FALSE),3) ->  | W30: 0 | AA30: =Tableaux!$O$33 -> 07251 | AB30: 0
G31: =VLOOKUP(CONCATENATE("OSUPVIEUXALERTEREGECO_"&A31),Output!$C:$AQ,6,FALSE) ->  | H31: =VLOOKUP(CONCATENATE("OSUPVIEUXACCEPTREGECO_"&A31),Output!$C:$AQ,6,FALSE) ->  | I31: =VLOOKUP(CONCATENATE("OSUPJEUNEALERTEREGECO_"&A31),Output!$C:$AQ,6,FALSE) ->  | J31: =VLOOKUP(CONCATENATE("OSUPJEUNEACCEPTREGECO_"&A31),Output!$C:$AQ,6,FALSE) ->  | K31: =VLOOKUP(CONCATENATE("OSUPREGECO_"&A31),Output!$C:$AQ,6,FALSE) ->  | M31: =ROUND(VLOOKUP("OSUPJEUNEREGECO_"&A31,Output!$C:$AQ,7,FALSE)/VLOOKUP("OSUPREGECO_"&A31,Output!$C:$AQ,6,FALSE),3) ->  | O31: =ROUND(VLOOKUP("OSUPJEUNEREGECO_"&$A31,Output!$C:$AQ,12,FALSE)/VLOOKUP("OSUPREGECO_"&A31,Output!$C:$AQ,6,FALSE),3) ->  | R31: =ROUND(VLOOKUP("OSUPVIEUXTOTREGECO_"&$A31,Output!$C:$AQ,7,FALSE)/VLOOKUP("OSUPREGECO_"&A31,Output!$C:$AQ,6,FALSE),3) ->  | T31: =ROUND(VLOOKUP("OSUPVIEUXTOTREGECO_"&$A31,Output!$C:$AQ,12,FALSE)/VLOOKUP("OSUPREGECO_"&A31,Output!$C:$AQ,6,FALSE),3) ->  | W31: 0 | AA31: =Tableaux!$O$33 -> 07251 | AB31: 0
G32: =VLOOKUP(CONCATENATE("OSUPVIEUXALERTEREGECO_"&A32),Output!$C:$AQ,6,FALSE) ->  | H32: =VLOOKUP(CONCATENATE("OSUPVIEUXACCEPTREGECO_"&A32),Output!$C:$AQ,6,FALSE) ->  | I32: =VLOOKUP(CONCATENATE("OSUPJEUNEALERTEREGECO_"&A32),Output!$C:$AQ,6,FALSE) ->  | J32: =VLOOKUP(CONCATENATE("OSUPJEUNEACCEPTREGECO_"&A32),Output!$C:$AQ,6,FALSE) ->  | K32: =VLOOKUP(CONCATENATE("OSUPREGECO_"&A32),Output!$C:$AQ,6,FALSE) ->  | M32: =ROUND(VLOOKUP("OSUPJEUNEREGECO_"&A32,Output!$C:$AQ,7,FALSE)/VLOOKUP("OSUPREGECO_"&A32,Output!$C:$AQ,6,FALSE),3) ->  | O32: =ROUND(VLOOKUP("OSUPJEUNEREGECO_"&$A32,Output!$C:$AQ,12,FALSE)/VLOOKUP("OSUPREGECO_"&A32,Output!$C:$AQ,6,FALSE),3) ->  | R32: =ROUND(VLOOKUP("OSUPVIEUXTOTREGECO_"&$A32,Output!$C:$AQ,7,FALSE)/VLOOKUP("OSUPREGECO_"&A32,Output!$C:$AQ,6,FALSE),3) ->  | T32: =ROUND(VLOOKUP("OSUPVIEUXTOTREGECO_"&$A32,Output!$C:$AQ,12,FALSE)/VLOOKUP("OSUPREGECO_"&A32,Output!$C:$AQ,6,FALSE),3) ->  | W32: 0 | AA32: =Tableaux!$O$33 -> 07251 | AB32: 0
G33: =VLOOKUP(CONCATENATE("OSUPVIEUXALERTEREGECO_"&A33),Output!$C:$AQ,6,FALSE) ->  | H33: =VLOOKUP(CONCATENATE("OSUPVIEUXACCEPTREGECO_"&A33),Output!$C:$AQ,6,FALSE) ->  | I33: =VLOOKUP(CONCATENATE("OSUPJEUNEALERTEREGECO_"&A33),Output!$C:$AQ,6,FALSE) ->  | J33: =VLOOKUP(CONCATENATE("OSUPJEUNEACCEPTREGECO_"&A33),Output!$C:$AQ,6,FALSE) ->  | K33: =VLOOKUP(CONCATENATE("OSUPREGECO_"&A33),Output!$C:$AQ,6,FALSE) ->  | M33: =ROUND(VLOOKUP("OSUPJEUNEREGECO_"&A33,Output!$C:$AQ,7,FALSE)/VLOOKUP("OSUPREGECO_"&A33,Output!$C:$AQ,6,FALSE),3) ->  | O33: =ROUND(VLOOKUP("OSUPJEUNEREGECO_"&$A33,Output!$C:$AQ,12,FALSE)/VLOOKUP("OSUPREGECO_"&A33,Output!$C:$AQ,6,FALSE),3) ->  | R33: =ROUND(VLOOKUP("OSUPVIEUXTOTREGECO_"&$A33,Output!$C:$AQ,7,FALSE)/VLOOKUP("OSUPREGECO_"&A33,Output!$C:$AQ,6,FALSE),3) ->  | T33: =ROUND(VLOOKUP("OSUPVIEUXTOTREGECO_"&$A33,Output!$C:$AQ,12,FALSE)/VLOOKUP("OSUPREGECO_"&A33,Output!$C:$AQ,6,FALSE),3) ->  | W33: 0 | AA33: =Tableaux!$O$33 -> 07251 | AB33: =W33 -> 0
G34: =VLOOKUP(CONCATENATE("OSUPVIEUXALERTEREGECO_"&A34),Output!$C:$AQ,6,FALSE) ->  | H34: =VLOOKUP(CONCATENATE("OSUPVIEUXACCEPTREGECO_"&A34),Output!$C:$AQ,6,FALSE) ->  | I34: =VLOOKUP(CONCATENATE("OSUPJEUNEALERTEREGECO_"&A34),Output!$C:$AQ,6,FALSE) ->  | J34: =VLOOKUP(CONCATENATE("OSUPJEUNEACCEPTREGECO_"&A34),Output!$C:$AQ,6,FALSE) ->  | K34: =VLOOKUP(CONCATENATE("OSUPREGECO_"&A34),Output!$C:$AQ,6,FALSE) ->  | M34: =ROUND(VLOOKUP("OSUPJEUNEREGECO_"&A34,Output!$C:$AQ,7,FALSE)/VLOOKUP("OSUPREGECO_"&A34,Output!$C:$AQ,6,FALSE),3) ->  | O34: =ROUND(VLOOKUP("OSUPJEUNEREGECO_"&$A34,Output!$C:$AQ,12,FALSE)/VLOOKUP("OSUPREGECO_"&A34,Output!$C:$AQ,6,FALSE),3) ->  | R34: =ROUND(VLOOKUP("OSUPVIEUXTOTREGECO_"&$A34,Output!$C:$AQ,7,FALSE)/VLOOKUP("OSUPREGECO_"&A34,Output!$C:$AQ,6,FALSE),3) ->  | T34: =ROUND(VLOOKUP("OSUPVIEUXTOTREGECO_"&$A34,Output!$C:$AQ,12,FALSE)/VLOOKUP("OSUPREGECO_"&A34,Output!$C:$AQ,6,FALSE),3) ->  | W34: 0 | AA34: =Tableaux!$O$33 -> 07251 | AB34: 0
G35: =VLOOKUP(CONCATENATE("OSUPVIEUXALERTEREGECO_"&A35),Output!$C:$AQ,6,FALSE) ->  | H35: =VLOOKUP(CONCATENATE("OSUPVIEUXACCEPTREGECO_"&A35),Output!$C:$AQ,6,FALSE) ->  | I35: =VLOOKUP(CONCATENATE("OSUPJEUNEALERTEREGECO_"&A35),Output!$C:$AQ,6,FALSE) ->  | J35: =VLOOKUP(CONCATENATE("OSUPJEUNEACCEPTREGECO_"&A35),Output!$C:$AQ,6,FALSE) ->  | K35: =VLOOKUP(CONCATENATE("OSUPREGECO_"&A35),Output!$C:$AQ,6,FALSE) ->  | M35: =ROUND(VLOOKUP("OSUPJEUNEREGECO_"&A35,Output!$C:$AQ,7,FALSE)/VLOOKUP("OSUPREGECO_"&A35,Output!$C:$AQ,6,FALSE),3) ->  | O35: =ROUND(VLOOKUP("OSUPJEUNEREGECO_"&$A35,Output!$C:$AQ,12,FALSE)/VLOOKUP("OSUPREGECO_"&A35,Output!$C:$AQ,6,FALSE),3) ->  | R35: =ROUND(VLOOKUP("OSUPVIEUXTOTREGECO_"&$A35,Output!$C:$AQ,7,FALSE)/VLOOKUP("OSUPREGECO_"&A35,Output!$C:$AQ,6,FALSE),3) ->  | T35: =ROUND(VLOOKUP("OSUPVIEUXTOTREGECO_"&$A35,Output!$C:$AQ,12,FALSE)/VLOOKUP("OSUPREGECO_"&A35,Output!$C:$AQ,6,FALSE),3) ->  | W35: 0 | AA35: =Tableaux!$O$33 -> 07251 | AB35: 0
G36: =VLOOKUP(CONCATENATE("OSUPVIEUXALERTEREGECO_"&A36),Output!$C:$AQ,6,FALSE) ->  | H36: =VLOOKUP(CONCATENATE("OSUPVIEUXACCEPTREGECO_"&A36),Output!$C:$AQ,6,FALSE) ->  | I36: =VLOOKUP(CONCATENATE("OSUPJEUNEALERTEREGECO_"&A36),Output!$C:$AQ,6,FALSE) ->  | J36: =VLOOKUP(CONCATENATE("OSUPJEUNEACCEPTREGECO_"&A36),Output!$C:$AQ,6,FALSE) ->  | K36: =VLOOKUP(CONCATENATE("OSUPREGECO_"&A36),Output!$C:$AQ,6,FALSE) ->  | M36: =ROUND(VLOOKUP("OSUPJEUNEREGECO_"&A36,Output!$C:$AQ,7,FALSE)/VLOOKUP("OSUPREGECO_"&A36,Output!$C:$AQ,6,FALSE),3) ->  | O36: =ROUND(VLOOKUP("OSUPJEUNEREGECO_"&$A36,Output!$C:$AQ,12,FALSE)/VLOOKUP("OSUPREGECO_"&A36,Output!$C:$AQ,6,FALSE),3) ->  | R36: =ROUND(VLOOKUP("OSUPVIEUXTOTREGECO_"&$A36,Output!$C:$AQ,7,FALSE)/VLOOKUP("OSUPREGECO_"&A36,Output!$C:$AQ,6,FALSE),3) ->  | T36: =ROUND(VLOOKUP("OSUPVIEUXTOTREGECO_"&$A36,Output!$C:$AQ,12,FALSE)/VLOOKUP("OSUPREGECO_"&A36,Output!$C:$AQ,6,FALSE),3) ->  | W36: 0 | AA36: =Tableaux!$O$33 -> 07251 | AB36: 0
G37: =VLOOKUP(CONCATENATE("OSUPVIEUXALERTEREGECO_"&A37),Output!$C:$AQ,6,FALSE) ->  | H37: =VLOOKUP(CONCATENATE("OSUPVIEUXACCEPTREGECO_"&A37),Output!$C:$AQ,6,FALSE) ->  | I37: =VLOOKUP(CONCATENATE("OSUPJEUNEALERTEREGECO_"&A37),Output!$C:$AQ,6,FALSE) ->  | J37: =VLOOKUP(CONCATENATE("OSUPJEUNEACCEPTREGECO_"&A37),Output!$C:$AQ,6,FALSE) ->  | K37: =VLOOKUP(CONCATENATE("OSUPREGECO_"&A37),Output!$C:$AQ,6,FALSE) ->  | M37: =ROUND(VLOOKUP("OSUPJEUNEREGECO_"&A37,Output!$C:$AQ,7,FALSE)/VLOOKUP("OSUPREGECO_"&A37,Output!$C:$AQ,6,FALSE),3) ->  | O37: =ROUND(VLOOKUP("OSUPJEUNEREGECO_"&$A37,Output!$C:$AQ,12,FALSE)/VLOOKUP("OSUPREGECO_"&A37,Output!$C:$AQ,6,FALSE),3) ->  | R37: =ROUND(VLOOKUP("OSUPVIEUXTOTREGECO_"&$A37,Output!$C:$AQ,7,FALSE)/VLOOKUP("OSUPREGECO_"&A37,Output!$C:$AQ,6,FALSE),3) ->  | T37: =ROUND(VLOOKUP("OSUPVIEUXTOTREGECO_"&$A37,Output!$C:$AQ,12,FALSE)/VLOOKUP("OSUPREGECO_"&A37,Output!$C:$AQ,6,FALSE),3) ->  | W37: 0 | AA37: =Tableaux!$O$33 -> 07251 | AB37: 0
G38: =VLOOKUP(CONCATENATE("OSUPVIEUXALERTEREGECO_"&A38),Output!$C:$AQ,6,FALSE) ->  | H38: =VLOOKUP(CONCATENATE("OSUPVIEUXACCEPTREGECO_"&A38),Output!$C:$AQ,6,FALSE) ->  | I38: =VLOOKUP(CONCATENATE("OSUPJEUNEALERTEREGECO_"&A38),Output!$C:$AQ,6,FALSE) ->  | J38: =VLOOKUP(CONCATENATE("OSUPJEUNEACCEPTREGECO_"&A38),Output!$C:$AQ,6,FALSE) ->  | K38: =VLOOKUP(CONCATENATE("OSUPREGECO_"&A38),Output!$C:$AQ,6,FALSE) ->  | M38: =ROUND(VLOOKUP("OSUPJEUNEREGECO_"&A38,Output!$C:$AQ,7,FALSE)/VLOOKUP("OSUPREGECO_"&A38,Output!$C:$AQ,6,FALSE),3) ->  | O38: =ROUND(VLOOKUP("OSUPJEUNEREGECO_"&$A38,Output!$C:$AQ,12,FALSE)/VLOOKUP("OSUPREGECO_"&A38,Output!$C:$AQ,6,FALSE),3) ->  | R38: =ROUND(VLOOKUP("OSUPVIEUXTOTREGECO_"&$A38,Output!$C:$AQ,7,FALSE)/VLOOKUP("OSUPREGECO_"&A38,Output!$C:$AQ,6,FALSE),3) ->  | T38: =ROUND(VLOOKUP("OSUPVIEUXTOTREGECO_"&$A38,Output!$C:$AQ,12,FALSE)/VLOOKUP("OSUPREGECO_"&A38,Output!$C:$AQ,6,FALSE),3) ->  | W38: 0 | AA38: =Tableaux!$O$33 -> 07251 | AB38: 0
G39: =VLOOKUP(CONCATENATE("OSUPVIEUXALERTEREGECO_"&A39),Output!$C:$AQ,6,FALSE) ->  | H39: =VLOOKUP(CONCATENATE("OSUPVIEUXACCEPTREGECO_"&A39),Output!$C:$AQ,6,FALSE) ->  | I39: =VLOOKUP(CONCATENATE("OSUPJEUNEALERTEREGECO_"&A39),Output!$C:$AQ,6,FALSE) ->  | J39: =VLOOKUP(CONCATENATE("OSUPJEUNEACCEPTREGECO_"&A39),Output!$C:$AQ,6,FALSE) ->  | K39: =VLOOKUP(CONCATENATE("OSUPREGECO_"&A39),Output!$C:$AQ,6,FALSE) ->  | M39: =ROUND(VLOOKUP("OSUPJEUNEREGECO_"&A39,Output!$C:$AQ,7,FALSE)/VLOOKUP("OSUPREGECO_"&A39,Output!$C:$AQ,6,FALSE),3) ->  | O39: =ROUND(VLOOKUP("OSUPJEUNEREGECO_"&$A39,Output!$C:$AQ,12,FALSE)/VLOOKUP("OSUPREGECO_"&A39,Output!$C:$AQ,6,FALSE),3) ->  | R39: =ROUND(VLOOKUP("OSUPVIEUXTOTREGECO_"&$A39,Output!$C:$AQ,7,FALSE)/VLOOKUP("OSUPREGECO_"&A39,Output!$C:$AQ,6,FALSE),3) ->  | T39: =ROUND(VLOOKUP("OSUPVIEUXTOTREGECO_"&$A39,Output!$C:$AQ,12,FALSE)/VLOOKUP("OSUPREGECO_"&A39,Output!$C:$AQ,6,FALSE),3) ->  | W39: 0 | AA39: =Tableaux!$O$33 -> 07251 | AB39: 0
G40: =VLOOKUP(CONCATENATE("OSUPVIEUXALERTEREGECO_"&A40),Output!$C:$AQ,6,FALSE) ->  | H40: =VLOOKUP(CONCATENATE("OSUPVIEUXACCEPTREGECO_"&A40),Output!$C:$AQ,6,FALSE) ->  | I40: =VLOOKUP(CONCATENATE("OSUPJEUNEALERTEREGECO_"&A40),Output!$C:$AQ,6,FALSE) ->  | J40: =VLOOKUP(CONCATENATE("OSUPJEUNEACCEPTREGECO_"&A40),Output!$C:$AQ,6,FALSE) ->  | K40: =VLOOKUP(CONCATENATE("OSUPREGECO_"&A40),Output!$C:$AQ,6,FALSE) ->  | M40: =ROUND(VLOOKUP("OSUPJEUNEREGECO_"&A40,Output!$C:$AQ,7,FALSE)/VLOOKUP("OSUPREGECO_"&A40,Output!$C:$AQ,6,FALSE),3) ->  | O40: =ROUND(VLOOKUP("OSUPJEUNEREGECO_"&$A40,Output!$C:$AQ,12,FALSE)/VLOOKUP("OSUPREGECO_"&A40,Output!$C:$AQ,6,FALSE),3) ->  | R40: =ROUND(VLOOKUP("OSUPVIEUXTOTREGECO_"&$A40,Output!$C:$AQ,7,FALSE)/VLOOKUP("OSUPREGECO_"&A40,Output!$C:$AQ,6,FALSE),3) ->  | T40: =ROUND(VLOOKUP("OSUPVIEUXTOTREGECO_"&$A40,Output!$C:$AQ,12,FALSE)/VLOOKUP("OSUPREGECO_"&A40,Output!$C:$AQ,6,FALSE),3) ->  | W40: 0 | AA40: =Tableaux!$O$33 -> 07251 | AB40: 0
G41: =VLOOKUP(CONCATENATE("OSUPVIEUXALERTEREGECO_"&A41),Output!$C:$AQ,6,FALSE) ->  | H41: =VLOOKUP(CONCATENATE("OSUPVIEUXACCEPTREGECO_"&A41),Output!$C:$AQ,6,FALSE) ->  | I41: =VLOOKUP(CONCATENATE("OSUPJEUNEALERTEREGECO_"&A41),Output!$C:$AQ,6,FALSE) ->  | J41: =VLOOKUP(CONCATENATE("OSUPJEUNEACCEPTREGECO_"&A41),Output!$C:$AQ,6,FALSE) ->  | K41: =VLOOKUP(CONCATENATE("OSUPREGECO_"&A41),Output!$C:$AQ,6,FALSE) ->  | M41: =ROUND(VLOOKUP("OSUPJEUNEREGECO_"&A41,Output!$C:$AQ,7,FALSE)/VLOOKUP("OSUPREGECO_"&A41,Output!$C:$AQ,6,FALSE),3) ->  | O41: =ROUND(VLOOKUP("OSUPJEUNEREGECO_"&$A41,Output!$C:$AQ,12,FALSE)/VLOOKUP("OSUPREGECO_"&A41,Output!$C:$AQ,6,FALSE),3) ->  | R41: =ROUND(VLOOKUP("OSUPVIEUXTOTREGECO_"&$A41,Output!$C:$AQ,7,FALSE)/VLOOKUP("OSUPREGECO_"&A41,Output!$C:$AQ,6,FALSE),3) ->  | T41: =ROUND(VLOOKUP("OSUPVIEUXTOTREGECO_"&$A41,Output!$C:$AQ,12,FALSE)/VLOOKUP("OSUPREGECO_"&A41,Output!$C:$AQ,6,FALSE),3) ->  | W41: 0 | AA41: =Tableaux!$O$33 -> 07251 | AB41: 0
G42: =VLOOKUP(CONCATENATE("OSUPVIEUXALERTEREGECO_"&A42),Output!$C:$AQ,6,FALSE) ->  | H42: =VLOOKUP(CONCATENATE("OSUPVIEUXACCEPTREGECO_"&A42),Output!$C:$AQ,6,FALSE) ->  | I42: =VLOOKUP(CONCATENATE("OSUPJEUNEALERTEREGECO_"&A42),Output!$C:$AQ,6,FALSE) ->  | J42: =VLOOKUP(CONCATENATE("OSUPJEUNEACCEPTREGECO_"&A42),Output!$C:$AQ,6,FALSE) ->  | K42: =VLOOKUP(CONCATENATE("OSUPREGECO_"&A42),Output!$C:$AQ,6,FALSE) ->  | M42: =ROUND(VLOOKUP("OSUPJEUNEREGECO_"&A42,Output!$C:$AQ,7,FALSE)/VLOOKUP("OSUPREGECO_"&A42,Output!$C:$AQ,6,FALSE),3) ->  | O42: =ROUND(VLOOKUP("OSUPJEUNEREGECO_"&$A42,Output!$C:$AQ,12,FALSE)/VLOOKUP("OSUPREGECO_"&A42,Output!$C:$AQ,6,FALSE),3) ->  | R42: =ROUND(VLOOKUP("OSUPVIEUXTOTREGECO_"&$A42,Output!$C:$AQ,7,FALSE)/VLOOKUP("OSUPREGECO_"&A42,Output!$C:$AQ,6,FALSE),3) ->  | T42: =ROUND(VLOOKUP("OSUPVIEUXTOTREGECO_"&$A42,Output!$C:$AQ,12,FALSE)/VLOOKUP("OSUPREGECO_"&A42,Output!$C:$AQ,6,FALSE),3) ->  | W42: 0 | AA42: =Tableaux!$O$33 -> 07251 | AB42: 0

Sheet Output
C1: 1 | D1: 2 | E1: 3 | F1: 4 | G1: 5 | H1: 6 | I1: 7 | J1: 8 | K1: 9 | L1: 10 | M1: 11 | N1: 12 | O1: 13 | P1: 14 | Q1: 15 | R1: 16 | S1: 17 | T1: 18 | U1: 19 | V1: 20 | W1: 21 | X1: 22 | Y1: 23 | Z1: 24 | AA1: 25 | AB1: 26 | AC1: 27 | AD1: 28 | AE1: 29 | AF1: 30 | AG1: 31 | AH1: 32 | AI1: 33 | AJ1: 34 | AK1: 35 | AL1: 36 | AM1: 37 | AN1: 38 | AO1: 39 | AP1: 40 | AQ1: 41
A2: Record | B2: Group | C2: Name | D2: Description | E2: Attribute | F2: Minimum | G2: Maximum | H2: Period0 | I2: Period1 | J2: Period2 | K2: Period3 | L2: Period4 | M2: Period5 | N2: Period6 | O2: Period7 | P2: Period8 | Q2: Period9 | R2: Period10 | S2: Period11 | T2: Period12 | U2: Period13 | V2: Period14 | W2: Period15 | X2: Period16 | Y2: Period17 | Z2: Period18 | AA2: Period19 | AB2: Period20 | AC2: Period21 | AD2: Period22 | AE2: Period23 | AF2: Period24 | AG2: Period25 | AH2: Period26 | AI2: Period27 | AJ2: Period28 | AK2: Period29 | AL2: Period30 | AM2: Moyemme P2 à P6 | AN2: Moyenne P7 à P11 | AO2: Moyenne P12 à P20 | AP2: Moyenne P21 à P30 | AQ2: Moyenne P2 à P30
B3: <Non regroupÚ(s)> | C3: OSUPTOT | D3: Superficie Totale | F3: 184980.1 | G3: 184980.1 | H3: 184980.1 | I3: 184980.1 | J3: 184980.1 | K3: 184980.1 | L3: 184980.1 | M3: 184980.1 | N3: 184980.1 | O3: 184980.1 | P3: 184980.1 | Q3: 184980.1 | R3: 184980.1 | S3: 184980.1 | T3: 184980.1 | U3: 184980.1 | V3: 184980.1 | W3: 184980.1 | X3: 184980.1 | Y3: 184980.1 | Z3: 184980.1 | AA3: 184980.1 | AB3: 184980.1 | AC3: 184980.1 | AD3: 184980.1 | AE3: 184980.1 | AF3: 184980.1 | AG3: 184980.1 | AH3: 184980.1 | AI3: 184980.1 | AJ3: 184980.1 | AK3: 184980.1 | AL3: 184980.1 | AM3: =AVERAGE(J3:N3) -> 184980.1 | AN3: =AVERAGE(O3:S3) -> 184980.1 | AO3: =AVERAGE(T3:AB3) -> 184980.1 | AP3: =AVERAGE(AC3:AL3) -> 184980.1 | AQ3: =AVERAGE(J3:AL3) -> 184980.1
B4: <Non regroupÚ(s)> | C4: OSUPINC | D4: Superficie InclusActions par courbe | F4: 88394.1 | G4: 90878.4 | H4: 90878.4 | I4: 90491.47 | J4: 90250.89 | K4: 89906.21 | L4: 89733.17 | M4: 89658.61 | N4: 89278.17 | O4: 89096.15 | P4: 89049.22 | Q4: 88896.93 | R4: 88752.42 | S4: 88677.01 | T4: 88553.94 | U4: 88460.44 | V4: 88448 | W4: 88434.78 | X4: 88424.92 | Y4: 88424.92 | Z4: 88410.68 | AA4: 88410.68 | AB4: 88410.68 | AC4: 88405.87 | AD4: 88405.76 | AE4: 88398.7 | AF4: 88394.1 | AG4: 88394.1 | AH4: 88394.1 | AI4: 88394.1 | AJ4: 88394.1 | AK4: 88394.1 | AL4: 88394.1 | AM4: =AVERAGE(J4:N4) -> 89765.41 | AN4: =AVERAGE(O4:S4) -> 88894.346 | AO4: =AVERAGE(T4:AB4) -> 88442.11556 | AP4: =AVERAGE(AC4:AL4) -> 88396.903 | AQ4: =AVERAGE(J4:AL4) -> 88732.65
B5: <Non regroupÚ(s)> | C5: OSUPregECO | D5: Superficie Disponible aux RÚsultats ╔cologiques | F5: 155197.8 | G5: 157682.1 | H5: 157682.1 | I5: 157295.17 | J5: 157054.59 | K5: 156709.91 | L5: 156536.87 | M5: 156462.31 | N5: 156081.87 | O5: 155899.85 | P5: 155852.92 | Q5: 155700.63 | R5: 155556.12 | S5: 155480.71 | T5: 155357.64 | U5: 155264.14 | V5: 155251.7 | W5: 155238.48 | X5: 155228.62 | Y5: 155228.62 | Z5: 155214.38 | AA5: 155214.38 | AB5: 155214.38 | AC5: 155209.57 | AD5: 155209.46 | AE5: 155202.4 | AF5: 155197.8 | AG5: 155197.8 | AH5: 155197.8 | AI5: 155197.8 | AJ5: 155197.8 | AK5: 155197.8 | AL5: 155197.8 | AM5: 156569.11 | AN5: 155698.046 | AO5: 155245.8156 | AP5: 155200.603 | AQ5: 155536.35
B6: <Non regroupÚ(s)> | C6: OSUPEXIN | D6: Superficie ExcluActionsInclus | F6: 66803.7 | G6: 66803.7 | H6: 66803.7 | I6: 66803.7 | J6: 66803.7 | K6: 66803.7 | L6: 66803.7 | M6: 66803.7 | N6: 66803.7 | O6: 66803.7 | P6: 66803.7 | Q6: 66803.7 | R6: 66803.7 | S6: 66803.7 | T6: 66803.7 | U6: 66803.7 | V6: 66803.7 | W6: 66803.7 | X6: 66803.7 | Y6: 66803.7 | Z6: 66803.7 | AA6: 66803.7 | AB6: 66803.7 | AC6: 66803.7 | AD6: 66803.7 | AE6: 66803.7 | AF6: 66803.7 | AG6: 66803.7 | AH6: 66803.7 | AI6: 66803.7 | AJ6: 66803.7 | AK6: 66803.7 | AL6: 66803.7 | AM6: 66803.7 | AN6: 66803.7 | AO6: 66803.7 | AP6: 66803.7 | AQ6: 66803.7
B7: <Non regroupÚ(s)> | C7: OSUPEXTI | D7: Superficie Improductive | F7: 3108.9 | G7: 3108.9 | H7: 3108.9 | I7: 3108.9 | J7: 3108.9 | K7: 3108.9 | L7: 3108.9 | M7: 3108.9 | N7: 3108.9 | O7: 3108.9 | P7: 3108.9 | Q7: 3108.9 | R7: 3108.9 | S7: 3108.9 | T7: 3108.9 | U7: 3108.9 | V7: 3108.9 | W7: 3108.9 | X7: 3108.9 | Y7: 3108.9 | Z7: 3108.9 | AA7: 3108.9 | AB7: 3108.9 | AC7: 3108.9 | AD7: 3108.9 | AE7: 3108.9 | AF7: 3108.9 | AG7: 3108.9 | AH7: 3108.9 | AI7: 3108.9 | AJ7: 3108.9 | AK7: 3108.9 | AL7: 3108.9 | AM7: 3108.9 | AN7: 3108.9 | AO7: 3108.9 | AP7: 3108.9 | AQ7: 3108.9
B8: <Non regroupÚ(s)> | C8: OSUPLOCK | D8: Superficie Sous Verrous | F8: 29539.71 | G8: 92084.08 | H8: 86956.8 | I8: 92084.08 | J8: 53849.78 | K8: 41505.81 | L8: 34030.77 | M8: 29539.71 | N8: 33915.18 | O8: 37519.14 | P8: 39631.5 | Q8: 41815 | R8: 42522.87 | S8: 44173.1 | T8: 45705 | U8: 46663.46 | V8: 47033.18 | W8: 47412.46 | X8: 48254.26 | Y8: 48040.11 | Z8: 48906.62 | AA8: 47838.12 | AB8: 47608.99 | AC8: 48257.02 | AD8: 47592.07 | AE8: 47180.45 | AF8: 47156.28 | AG8: 49486.74 | AH8: 51225.09 | AI8: 52581.8 | AJ8: 53841.9 | AK8: 55101.83 | AL8: 56614.8 | AM8: 38568.25 | AN8: 41132.322 | AO8: 47495.8 | AP8: 50903.798 | AQ8: 46034.58759
B9: Economique | C9: oSupTcsdDEG_1_T100% | D9: oSupTcsdDEG_1_T100% | F9: 0 | G9: 509.1 | H9: 0 | I9: 11.4 | J9: 254.54 | K9: 225.26 | L9: 352.6 | M9: 509.1 | N9: 241.66 | O9: 325.35 | P9: 44.07 | Q9: 19.32 | R9: 248.9 | S9: 275.79 | T9: 206.5 | U9: 316.18 | V9: 390 | W9: 279.08 | X9: 241.83 | Y9: 503.26 | Z9: 44.06 | AA9: 9.62 | AB9: 285.72 | AC9: 341.55 | AD9: 177.99 | AE9: 418.27 | AF9: 245.93 | AG9: 282.97 | AH9: 166.46 | AI9: 0 | AJ9: 0 | AK9: 0 | AL9: 89.57 | AM9: 316.632 | AN9: 182.686 | AO9: 252.9166667 | AP9: 172.274 | AQ9: 223.9855172
B10: Economique | C10: oSupTcsdDEG_2_T100% | D10: oSupTcsdDEG_2_T100% | F10: 0 | G10: 662.83 | H10: 0 | I10: 269.3 | J10: 332.72 | K10: 662.83 | L10: 554.1 | M10: 281.76 | N10: 380.96 | O10: 222.69 | P10: 579.47 | Q10: 330.39 | R10: 140.99 | S10: 180.13 | T10: 15.26 | U10: 36.93 | V10: 132.91 | W10: 170.94 | X10: 181.7 | Y10: 125 | Z10: 125 | AA10: 125 | AB10: 125 | AC10: 0 | AD10: 40.1 | AE10: 135.34 | AF10: 0 | AG10: 0 | AH10: 0 | AI10: 0 | AJ10: 0 | AK10: 0 | AL10: 95.73 | AM10: 442.474 | AN10: 290.734 | AO10: 115.3044444 | AP10: 27.117 | AQ10: 171.55
B11: Economique | C11: oSupDEG_1_T100% | D11: oSupDEG_1_T100% | F11: 0 | G11: 509.1 | H11: 0 | I11: 11.4 | J11: 254.54 | K11: 225.26 | L11: 352.6 | M11: 509.1 | N11: 241.66 | O11: 325.35 | P11: 44.07 | Q11: 19.32 | R11: 248.9 | S11: 275.79 | T11: 206.5 | U11: 316.18 | V11: 390 | W11: 279.08 | X11: 241.83 | Y11: 503.26 | Z11: 44.06 | AA11: 9.62 | AB11: 285.72 | AC11: 341.55 | AD11: 177.99 | AE11: 418.27 | AF11: 245.93 | AG11: 282.97 | AH11: 166.46 | AI11: 0 | AJ11: 0 | AK11: 0 | AL11: 89.57 | AM11: 316.632 | AN11: 182.686 | AO11: 252.9166667 | AP11: 172.274 | AQ11: 223.9855172
B12: Economique | C12: oSupDEG_2_T100% | D12: oSupDEG_2_T100% | F12: 0 | G12: 662.83 | H12: 0 | I12: 269.3 | J12: 332.72 | K12: 662.83 | L12: 554.1 | M12: 281.76 | N12: 380.96 | O12: 222.69 | P12: 579.47 | Q12: 330.39 | R12: 140.99 | S12: 180.13 | T12: 15.26 | U12: 36.93 | V12: 132.91 | W12: 170.94 | X12: 181.7 | Y12: 125 | Z12: 125 | AA12: 125 | AB12: 125 | AC12: 0 | AD12: 40.1 | AE12: 135.34 | AF12: 0 | AG12: 0 | AH12: 0 | AI12: 0 | AJ12: 0 | AK12: 0 | AL12: 95.73 | AM12: 442.474 | AN12: 290.734 | AO12: 115.3044444 | AP12: 27.117 | AQ12: 171.55
B13: Economique | C13: oSupDEG_1 | D13: oSupDEG_1 | F13: 0 | G13: 509.1 | H13: 0 | I13: 11.4 | J13: 254.54 | K13: 225.26 | L13: 352.6 | M13: 509.1 | N13: 241.66 | O13: 325.35 | P13: 44.07 | Q13: 19.32 | R13: 248.9 | S13: 275.79 | T13: 206.5 | U13: 316.18 | V13: 390 | W13: 279.08 | X13: 241.83 | Y13: 503.26 | Z13: 44.06 | AA13: 9.62 | AB13: 285.72 | AC13: 341.55 | AD13: 177.99 | AE13: 418.27 | AF13: 245.93 | AG13: 282.97 | AH13: 166.46 | AI13: 0 | AJ13: 0 | AK13: 0 | AL13: 89.57 | AM13: 316.632 | AN13: 182.686 | AO13: 252.9166667 | AP13: 172.274 | AQ13: 223.9855172
B14: Economique | C14: oSupDEG_2 | D14: oSupDEG_2 | F14: 0 | G14: 662.83 | H14: 0 | I14: 269.3 | J14: 332.72 | K14: 662.83 | L14: 554.1 | M14: 281.76 | N14: 380.96 | O14: 222.69 | P14: 579.47 | Q14: 330.39 | R14: 140.99 | S14: 180.13 | T14: 15.26 | U14: 36.93 | V14: 132.91 | W14: 170.94 | X14: 181.7 | Y14: 125 | Z14: 125 | AA14: 125 | AB14: 125 | AC14: 0 | AD14: 40.1 | AE14: 135.34 | AF14: 0 | AG14: 0 | AH14: 0 | AI14: 0 | AJ14: 0 | AK14: 0 | AL14: 95.73 | AM14: 442.474 | AN14: 290.734 | AO14: 115.3044444 | AP14: 27.117 | AQ14: 171.55
B15: Economique | C15: oSupTcsdSCA_LIGN_T100% | D15: oSupTcsdSCA_LIGN_T100% | F15: 0 | G15: 0 | H15: 0 | I15: 0 | J15: 0 | K15: 0 | L15: 0 | M15: 0 | N15: 0 | O15: 0 | P15: 0 | Q15: 0 | R15: 0 | S15: 0 | T15: 0 | U15: 0 | V15: 0 | W15: 0 | X15: 0 | Y15: 0 | Z15: 0 | AA15: 0 | AB15: 0 | AC15: 0 | AD15: 0 | AE15: 0 | AF15: 0 | AG15: 0 | AH15: 0 | AI15: 0 | AJ15: 0 | AK15: 0 | AL15: 0 | AM15: 0 | AN15: 0 | AO15: 0 | AP15: 0 | AQ15: 0
B16: Economique | C16: oSupTcsdSCA_PART_T100% | D16: oSupTcsdSCA_PART_T100% | F16: 0 | G16: 2604.37 | H16: 0 | I16: 1470.8 | J16: 332.72 | K16: 152.56 | L16: 252.37 | M16: 340.22 | N16: 347.01 | O16: 685.91 | P16: 265.41 | Q16: 1545.34 | R16: 2193.38 | S16: 1102.62 | T16: 1410.4 | U16: 1058.04 | V16: 132.91 | W16: 251.43 | X16: 125 | Y16: 273.36 | Z16: 1405.02 | AA16: 2604.37 | AB16: 887.72 | AC16: 556.59 | AD16: 1194.18 | AE16: 283.69 | AF16: 248.03 | AG16: 680.07 | AH16: 125 | AI16: 1405.02 | AJ16: 2049.3 | AK16: 1036.08 | AL16: 125 | AM16: 284.976 | AN16: 1158.532 | AO16: 905.3611111 | AP16: 770.296 | AQ16: 795.4741379
B17: Economique | C17: oSupTcsdSCA_REG_T100% | D17: oSupTcsdSCA_REG_T100% | F17: 0 | G17: 486.33 | H17: 0 | I17: 11.4 | J17: 324.11 | K17: 281.91 | L17: 486.33 | M17: 442.84 | N17: 278.54 | O17: 190.98 | P17: 44.07 | Q17: 16.92 | R17: 248.9 | S17: 275.79 | T17: 206.5 | U17: 316.18 | V17: 390 | W17: 273.17 | X17: 234.54 | Y17: 280.1 | Z17: 22.03 | AA17: 4.81 | AB17: 164.9 | AC17: 199.08 | AD17: 177.99 | AE17: 418.27 | AF17: 245.93 | AG17: 282.97 | AH17: 166.46 | AI17: 0 | AJ17: 0 | AK17: 0 | AL17: 89.57 | AM17: 362.746 | AN17: 155.332 | AO17: 210.2477778 | AP17: 158.027 | AQ17: 209.0651724
B18: Economique | C18: oSupSCA_LIGN_T100% | D18: oSupSCA_LIGN_T100% | F18: 0 | G18: 0 | H18: 0 | I18: 0 | J18: 0 | K18: 0 | L18: 0 | M18: 0 | N18: 0 | O18: 0 | P18: 0 | Q18: 0 | R18: 0 | S18: 0 | T18: 0 | U18: 0 | V18: 0 | W18: 0 | X18: 0 | Y18: 0 | Z18: 0 | AA18: 0 | AB18: 0 | AC18: 0 | AD18: 0 | AE18: 0 | AF18: 0 | AG18: 0 | AH18: 0 | AI18: 0 | AJ18: 0 | AK18: 0 | AL18: 0 | AM18: 0 | AN18: 0 | AO18: 0 | AP18: 0 | AQ18: 0
B19: Economique | C19: oSupSCA_PART_T100% | D19: oSupSCA_PART_T100% | F19: 0 | G19: 2604.37 | H19: 0 | I19: 1470.8 | J19: 332.72 | K19: 152.56 | L19: 252.37 | M19: 340.22 | N19: 347.01 | O19: 685.91 | P19: 265.41 | Q19: 1545.34 | R19: 2193.38 | S19: 1102.62 | T19: 1410.4 | U19: 1058.04 | V19: 132.91 | W19: 251.43 | X19: 125 | Y19: 273.36 | Z19: 1405.02 | AA19: 2604.37 | AB19: 887.72 | AC19: 556.59 | AD19: 1194.18 | AE19: 283.69 | AF19: 248.03 | AG19: 680.07 | AH19: 125 | AI19: 1405.02 | AJ19: 2049.3 | AK19: 1036.08 | AL19: 125 | AM19: 284.976 | AN19: 1158.532 | AO19: 905.3611111 | AP19: 770.296 | AQ19: 795.4741379
B20: Economique | C20: oSupSCA_REG_T100% | D20: oSupSCA_REG_T100% | F20: 0 | G20: 486.33 | H20: 0 | I20: 11.4 | J20: 324.11 | K20: 281.91 | L20: 486.33 | M20: 442.84 | N20: 278.54 | O20: 190.98 | P20: 44.07 | Q20: 16.92 | R20: 248.9 | S20: 275.79 | T20: 206.5 | U20: 316.18 | V20: 390 | W20: 273.17 | X20: 234.54 | Y20: 280.1 | Z20: 22.03 | AA20: 4.81 | AB20: 164.9 | AC20: 199.08 | AD20: 177.99 | AE20: 418.27 | AF20: 245.93 | AG20: 282.97 | AH20: 166.46 | AI20: 0 | AJ20: 0 | AK20: 0 | AL20: 89.57 | AM20: 362.746 | AN20: 155.332 | AO20: 210.2477778 | AP20: 158.027 | AQ20: 209.0651724
B21: Economique | C21: oSupSCA_LIGN | D21: oSupSCA_LIGN | F21: 0 | G21: 0 | H21: 0 | I21: 0 | J21: 0 | K21: 0 | L21: 0 | M21: 0 | N21: 0 | O21: 0 | P21: 0 | Q21: 0 | R21: 0 | S21: 0 | T21: 0 | U21: 0 | V21: 0 | W21: 0 | X21: 0 | Y21: 0 | Z21: 0 | AA21: 0 | AB21: 0 | AC21: 0 | AD21: 0 | AE21: 0 | AF21: 0 | AG21: 0 | AH21: 0 | AI21: 0 | AJ21: 0 | AK21: 0 | AL21: 0 | AM21: 0 | AN21: 0 | AO21: 0 | AP21: 0 | AQ21: 0
B22: Economique | C22: oSupSCA_PART | D22: oSupSCA_PART | F22: 0 | G22: 2604.37 | H22: 0 | I22: 1470.8 | J22: 332.72 | K22: 152.56 | L22: 252.37 | M22: 340.22 | N22: 347.01 | O22: 685.91 | P22: 265.41 | Q22: 1545.34 | R22: 2193.38 | S22: 1102.62 | T22: 1410.4 | U22: 1058.04 | V22: 132.91 | W22: 251.43 | X22: 125 | Y22: 273.36 | Z22: 1405.02 | AA22: 2604.37 | AB22: 887.72 | AC22: 556.59 | AD22: 1194.18 | AE22: 283.69 | AF22: 248.03 | AG22: 680.07 | AH22: 125 | AI22: 1405.02 | AJ22: 2049.3 | AK22: 1036.08 | AL22: 125 | AM22: 284.976 | AN22: 1158.532 | AO22: 905.3611111 | AP22: 770.296 | AQ22: 795.4741379
B23: Economique | C23: oSupSCA_REG | D23: oSupSCA_REG | F23: 0 | G23: 486.33 | H23: 0 | I23: 11.4 | J23: 324.11 | K23: 281.91 | L23: 486.33 | M23: 442.84 | N23: 278.54 | O23: 190.98 | P23: 44.07 | Q23: 16.92 | R23: 248.9 | S23: 275.79 | T23: 206.5 | U23: 316.18 | V23: 390 | W23: 273.17 | X23: 234.54 | Y23: 280.1 | Z23: 22.03 | AA23: 4.81 | AB23: 164.9 | AC23: 199.08 | AD23: 177.99 | AE23: 418.27 | AF23: 245.93 | AG23: 282.97 | AH23: 166.46 | AI23: 0 | AJ23: 0 | AK23: 0 | AL23: 89.57 | AM23: 362.746 | AN23: 155.332 | AO23: 210.2477778 | AP23: 158.027 | AQ23: 209.0651724
B24: Economique | C24: oSupTcsdREG_T100% | D24: oSupTcsdREG_T100% | F24: 0 | G24: 537.83 | H24: 0 | I24: 226.3 | J24: 207.72 | K24: 537.83 | L24: 429.1 | M24: 281.76 | N24: 255.96 | O24: 97.69 | P24: 466.97 | Q24: 205.39 | R24: 15.99 | S24: 55.13 | T24: 0 | U24: 32.09 | V24: 7.91 | W24: 45.94 | X24: 56.7 | Y24: 0 | Z24: 0 | AA24: 0 | AB24: 0 | AC24: 0 | AD24: 0 | AE24: 10.34 | AF24: 0 | AG24: 0 | AH24: 0 | AI24: 0 | AJ24: 0 | AK24: 0 | AL24: 0 | AM24: 342.474 | AN24: 168.234 | AO24: 15.84888889 | AP24: 1.034 | AQ24: 93.32827586
B25: Economique | C25: oSupREG_T100% | D25: oSupREG_T100% | F25: 0 | G25: 537.83 | H25: 0 | I25: 226.3 | J25: 207.72 | K25: 537.83 | L25: 429.1 | M25: 281.76 | N25: 255.96 | O25: 97.69 | P25: 466.97 | Q25: 205.39 | R25: 15.99 | S25: 55.13 | T25: 0 | U25: 32.09 | V25: 7.91 | W25: 45.94 | X25: 56.7 | Y25: 0 | Z25: 0 | AA25: 0 | AB25: 0 | AC25: 0 | AD25: 0 | AE25: 10.34 | AF25: 0 | AG25: 0 | AH25: 0 | AI25: 0 | AJ25: 0 | AK25: 0 | AL25: 0 | AM25: 342.474 | AN25: 168.234 | AO25: 15.84888889 | AP25: 1.034 | AQ25: 93.32827586
B26: Economique | C26: oSupREG | D26: oSupREG | F26: 0 | G26: 537.83 | H26: 0 | I26: 226.3 | J26: 207.72 | K26: 537.83 | L26: 429.1 | M26: 281.76 | N26: 255.96 | O26: 97.69 | P26: 466.97 | Q26: 205.39 | R26: 15.99 | S26: 55.13 | T26: 0 | U26: 32.09 | V26: 7.91 | W26: 45.94 | X26: 56.7 | Y26: 0 | Z26: 0 | AA26: 0 | AB26: 0 | AC26: 0 | AD26: 0 | AE26: 10.34 | AF26: 0 | AG26: 0 | AH26: 0 | AI26: 0 | AJ26: 0 | AK26: 0 | AL26: 0 | AM26: 342.474 | AN26: 168.234 | AO26: 15.84888889 | AP26: 1.034 | AQ26: 93.32827586
B27: Economique | C27: oSupTcsdELAG_T100% | D27: oSupTcsdELAG_T100% | F27: 0 | G27: 226.3 | H27: 0 | I27: 226.3 | J27: 207.72 | K27: 27.56 | L27: 127.37 | M27: 56.76 | N27: 30.96 | O27: 97.69 | P27: 140.41 | Q27: 29.02 | R27: 0 | S27: 0 | T27: 0 | U27: 32.09 | V27: 7.91 | W27: 0 | X27: 0 | Y27: 0 | Z27: 0 | AA27: 0 | AB27: 0 | AC27: 0 | AD27: 0 | AE27: 10.34 | AF27: 0 | AG27: 0 | AH27: 0 | AI27: 0 | AJ27: 0 | AK27: 0 | AL27: 0 | AM27: 90.074 | AN27: 53.424 | AO27: 4.444444444 | AP27: 1.034 | AQ27: 26.47689655
B28: Economique | C28: oSupELAG_T100% | D28: oSupELAG_T100% | F28: 0 | G28: 226.3 | H28: 0 | I28: 226.3 | J28: 207.72 | K28: 27.56 | L28: 127.37 | M28: 56.76 | N28: 30.96 | O28: 97.69 | P28: 140.41 | Q28: 29.02 | R28: 0 | S28: 0 | T28: 0 | U28: 32.09 | V28: 7.91 | W28: 0 | X28: 0 | Y28: 0 | Z28: 0 | AA28: 0 | AB28: 0 | AC28: 0 | AD28: 0 | AE28: 10.34 | AF28: 0 | AG28: 0 | AH28: 0 | AI28: 0 | AJ28: 0 | AK28: 0 | AL28: 0 | AM28: 90.074 | AN28: 53.424 | AO28: 4.444444444 | AP28: 1.034 | AQ28: 26.47689655
B29: Economique | C29: oSupELAG | D29: oSupELAG | F29: 0 | G29: 226.3 | H29: 0 | I29: 226.3 | J29: 207.72 | K29: 27.56 | L29: 127.37 | M29: 56.76 | N29: 30.96 | O29: 97.69 | P29: 140.41 | Q29: 29.02 | R29: 0 | S29: 0 | T29: 0 | U29: 32.09 | V29: 7.91 | W29: 0 | X29: 0 | Y29: 0 | Z29: 0 | AA29: 0 | AB29: 0 | AC29: 0 | AD29: 0 | AE29: 10.34 | AF29: 0 | AG29: 0 | AH29: 0 | AI29: 0 | AJ29: 0 | AK29: 0 | AL29: 0 | AM29: 90.074 | AN29: 53.424 | AO29: 4.444444444 | AP29: 1.034 | AQ29: 26.47689655
B30: Economique | C30: oSupActCPICP_T100% | D30: oSupActCPICP_T100% | F30: 0 | G30: 8933.74 | H30: 0 | I30: 3726.56 | J30: 4267.18 | K30: 3289.01 | L30: 3522.42 | M30: 4776.21 | N30: 5587.69 | O30: 5358.26 | P30: 6378.94 | Q30: 6395.54 | R30: 6366.91 | S30: 7690.12 | T30: 7123.48 | U30: 7090.36 | V30: 7744.58 | W30: 7255.24 | X30: 7055.74 | Y30: 6955.49 | Z30: 8090.07 | AA30: 5963.1 | AB30: 7301.41 | AC30: 7391.28 | AD30: 6753.92 | AE30: 7632.46 | AF30: 8296.78 | AG30: 7146.08 | AH30: 8328.56 | AI30: 8933.74 | AJ30: 8019.44 | AK30: 8335.27 | AL30: 7977 | AM30: 4288.502 | AN30: 6437.954 | AO30: 7175.496667 | AP30: 7881.453 | AQ30: 6794.009655
B31: Economique | C31: oSupActCPIRL_FIN_T100% | D31: oSupActCPIRL_FIN_T100% | F31: 0 | G31: 2053.14 | H31: 0 | I31: 429.92 | J31: 1000 | K31: 1000 | L31: 1000 | M31: 1000 | N31: 50.93 | O31: 742.75 | P31: 531.88 | Q31: 830.62 | R31: 1830.51 | S31: 1180.23 | T31: 1146.64 | U31: 1276.1 | V31: 749.84 | W31: 774.4 | X31: 837.42 | Y31: 847.23 | Z31: 625.16 | AA31: 2053.14 | AB31: 609.04 | AC31: 597.23 | AD31: 1548.09 | AE31: 1230.87 | AF31: 634.91 | AG31: 1164.73 | AH31: 849.47 | AI31: 645.04 | AJ31: 893.41 | AK31: 461.01 | AL31: 0 | AM31: 810.186 | AN31: 1023.198 | AO31: 990.9966667 | AP31: 802.476 | AQ31: 900.3672414
B32: Economique | C32: oSupActCPIRL_INI_T100% | D32: oSupActCPIRL_INI_T100% | F32: 0 | G32: 1920.46 | H32: 0 | I32: 1783.52 | J32: 1191.83 | K32: 1920.46 | L32: 1739.91 | M32: 972.15 | N32: 1366.92 | O32: 1605.08 | P32: 1565.89 | Q32: 1160.46 | R32: 235.61 | S32: 401.44 | T32: 755.59 | U32: 501.99 | V32: 276.21 | W32: 847.65 | X32: 1019.95 | Y32: 690.65 | Z32: 125 | AA32: 706.84 | AB32: 704.13 | AC32: 834.33 | AD32: 634.74 | AE32: 151.6 | AF32: 604.49 | AG32: 1314.69 | AH32: 1194.88 | AI32: 503.16 | AJ32: 831.39 | AK32: 1294.09 | AL32: 1863.9 | AM32: 1438.254 | AN32: 993.696 | AO32: 625.3344444 | AP32: 922.727 | AQ32: 931.5527586
B33: Economique | C33: oSupCPICP_T100% | D33: oSupCPICP_T100% | F33: 0 | G33: 8933.74 | H33: 0 | I33: 3726.56 | J33: 4267.18 | K33: 3289.01 | L33: 3522.42 | M33: 4776.21 | N33: 5587.69 | O33: 5358.26 | P33: 6378.94 | Q33: 6395.54 | R33: 6366.91 | S33: 7690.12 | T33: 7123.48 | U33: 7090.36 | V33: 7744.58 | W33: 7255.24 | X33: 7055.74 | Y33: 6955.49 | Z33: 8090.07 | AA33: 5963.1 | AB33: 7301.41 | AC33: 7391.28 | AD33: 6753.92 | AE33: 7632.46 | AF33: 8296.78 | AG33: 7146.08 | AH33: 8328.56 | AI33: 8933.74 | AJ33: 8019.44 | AK33: 8335.27 | AL33: 7977 | AM33: 4288.502 | AN33: 6437.954 | AO33: 7175.496667 | AP33: 7881.453 | AQ33: 6794.009655
B34: Economique | C34: oSupCPIRL_FIN_T100% | D34: oSupCPIRL_FIN_T100% | F34: 0 | G34: 2053.14 | H34: 0 | I34: 429.92 | J34: 1000 | K34: 1000 | L34: 1000 | M34: 1000 | N34: 50.93 | O34: 742.75 | P34: 531.88 | Q34: 830.62 | R34: 1830.51 | S34: 1180.23 | T34: 1146.64 | U34: 1276.1 | V34: 749.84 | W34: 774.4 | X34: 837.42 | Y34: 847.23 | Z34: 625.16 | AA34: 2053.14 | AB34: 609.04 | AC34: 597.23 | AD34: 1548.09 | AE34: 1230.87 | AF34: 634.91 | AG34: 1164.73 | AH34: 849.47 | AI34: 645.04 | AJ34: 893.41 | AK34: 461.01 | AL34: 0 | AM34: 810.186 | AN34: 1023.198 | AO34: 990.9966667 | AP34: 802.476 | AQ34: 900.3672414
B35: Economique | C35: oSupCPIRL_INI_T100% | D35: oSupCPIRL_INI_T100% | F35: 0 | G35: 1920.46 | H35: 0 | I35: 1783.52 | J35: 1191.83 | K35: 1920.46 | L35: 1739.91 | M35: 972.15 | N35: 1366.92 | O35: 1605.08 | P35: 1565.89 | Q35: 1160.46 | R35: 235.61 | S35: 401.44 | T35: 755.59 | U35: 501.99 | V35: 276.21 | W35: 847.65 | X35: 1019.95 | Y35: 690.65 | Z35: 125 | AA35: 706.84 | AB35: 704.13 | AC35: 834.33 | AD35: 634.74 | AE35: 151.6 | AF35: 604.49 | AG35: 1314.69 | AH35: 1194.88 | AI35: 503.16 | AJ35: 831.39 | AK35: 1294.09 | AL35: 1863.9 | AM35: 1438.254 | AN35: 993.696 | AO35: 625.3344444 | AP35: 922.727 | AQ35: 931.5527586
B36: Economique | C36: oSupCPICP | D36: oSupCPICP | F36: 0 | G36: 8933.74 | H36: 0 | I36: 3726.56 | J36: 4267.18 | K36: 3289.01 | L36: 3522.42 | M36: 4776.21 | N36: 5587.69 | O36: 5358.26 | P36: 6378.94 | Q36: 6395.54 | R36: 6366.91 | S36: 7690.12 | T36: 7123.48 | U36: 7090.36 | V36: 7744.58 | W36: 7255.24 | X36: 7055.74 | Y36: 6955.49 | Z36: 8090.07 | AA36: 5963.1 | AB36: 7301.41 | AC36: 7391.28 | AD36: 6753.92 | AE36: 7632.46 | AF36: 8296.78 | AG36: 7146.08 | AH36: 8328.56 | AI36: 8933.74 | AJ36: 8019.44 | AK36: 8335.27 | AL36: 7977 | AM36: 4288.502 | AN36: 6437.954 | AO36: 7175.496667 | AP36: 7881.453 | AQ36: 6794.009655
B37: Economique | C37: oSupCPIRL_FIN | D37: oSupCPIRL_FIN | F37: 0 | G37: 2053.14 | H37: 0 | I37: 429.92 | J37: 1000 | K37: 1000 | L37: 1000 | M37: 1000 | N37: 50.93 | O37: 742.75 | P37: 531.88 | Q37: 830.62 | R37: 1830.51 | S37: 1180.23 | T37: 1146.64 | U37: 1276.1 | V37: 749.84 | W37: 774.4 | X37: 837.42 | Y37: 847.23 | Z37: 625.16 | AA37: 2053.14 | AB37: 609.04 | AC37: 597.23 | AD37: 1548.09 | AE37: 1230.87 | AF37: 634.91 | AG37: 1164.73 | AH37: 849.47 | AI37: 645.04 | AJ37: 893.41 | AK37: 461.01 | AL37: 0 | AM37: 810.186 | AN37: 1023.198 | AO37: 990.9966667 | AP37: 802.476 | AQ37: 900.3672414
B38: Economique | C38: oSupCPIRL_INI | D38: oSupCPIRL_INI | F38: 0 | G38: 1920.46 | H38: 0 | I38: 1783.52 | J38: 1191.83 | K38: 1920.46 | L38: 1739.91 | M38: 972.15 | N38: 1366.92 | O38: 1605.08 | P38: 1565.89 | Q38: 1160.46 | R38: 235.61 | S38: 401.44 | T38: 755.59 | U38: 501.99 | V38: 276.21 | W38: 847.65 | X38: 1019.95 | Y38: 690.65 | Z38: 125 | AA38: 706.84 | AB38: 704.13 | AC38: 834.33 | AD38: 634.74 | AE38: 151.6 | AF38: 604.49 | AG38: 1314.69 | AH38: 1194.88 | AI38: 503.16 | AJ38: 831.39 | AK38: 1294.09 | AL38: 1863.9 | AM38: 1438.254 | AN38: 993.696 | AO38: 625.3344444 | AP38: 922.727 | AQ38: 931.5527586
B39: Economique | C39: oSupActCT_T100% | D39: oSupActCT_T100% | F39: 0 | G39: 1232.21 | H39: 0 | I39: 488.01 | J39: 878.55 | K39: 1067.58 | L39: 841.6 | M39: 997.64 | N39: 617.49 | O39: 1232.21 | P39: 729.87 | Q39: 632.66 | R39: 613.77 | S39: 730.18 | T39: 898.41 | U39: 896.73 | V39: 918.78 | W39: 729.23 | X39: 735.49 | Y39: 1031.14 | Z39: 933.19 | AA39: 420.12 | AB39: 736.85 | AC39: 872.08 | AD39: 683.83 | AE39: 905.51 | AF39: 1039.41 | AG39: 709.78 | AH39: 320.09 | AI39: 807.94 | AJ39: 844.21 | AK39: 790.18 | AL39: 794.74 | AM39: 880.572 | AN39: 787.738 | AO39: 811.1044444 | AP39: 776.777 | AQ39: 807.2158621
B40: Economique | C40: oSupCT_T100% | D40: oSupCT_T100% | F40: 0 | G40: 1232.21 | H40: 0 | I40: 488.01 | J40: 878.55 | K40: 1067.58 | L40: 841.6 | M40: 997.64 | N40: 617.49 | O40: 1232.21 | P40: 729.87 | Q40: 632.66 | R40: 613.77 | S40: 730.18 | T40: 898.41 | U40: 896.73 | V40: 918.78 | W40: 729.23 | X40: 735.49 | Y40: 1031.14 | Z40: 933.19 | AA40: 420.12 | AB40: 736.85 | AC40: 872.08 | AD40: 683.83 | AE40: 905.51 | AF40: 1039.41 | AG40: 709.78 | AH40: 320.09 | AI40: 807.94 | AJ40: 844.21 | AK40: 790.18 | AL40: 794.74 | AM40: 880.572 | AN40: 787.738 | AO40: 811.1044444 | AP40: 776.777 | AQ40: 807.2158621
B41: Economique | C41: oSupCT | D41: oSupCT | F41: 0 | G41: 1232.21 | H41: 0 | I41: 488.01 | J41: 878.55 | K41: 1067.58 | L41: 841.6 | M41: 997.64 | N41: 617.49 | O41: 1232.21 | P41: 729.87 | Q41: 632.66 | R41: 613.77 | S41: 730.18 | T41: 898.41 | U41: 896.73 | V41: 918.78 | W41: 729.23 | X41: 735.49 | Y41: 1031.14 | Z41: 933.19 | AA41: 420.12 | AB41: 736.85 | AC41: 872.08 | AD41: 683.83 | AE41: 905.51 | AF41: 1039.41 | AG41: 709.78 | AH41: 320.09 | AI41: 807.94 | AJ41: 844.21 | AK41: 790.18 | AL41: 794.74 | AM41: 880.572 | AN41: 787.738 | AO41: 811.1044444 | AP41: 776.777 | AQ41: 807.2158621
B42: Economique | C42: oSupActPL_PPF_T100% | D42: oSupActPL_PPF_T100% | F42: 0 | G42: 0 | H42: 0 | I42: 0 | J42: 0 | K42: 0 | L42: 0 | M42: 0 | N42: 0 | O42: 0 | P42: 0 | Q42: 0 | R42: 0 | S42: 0 | T42: 0 | U42: 0 | V42: 0 | W42: 0 | X42: 0 | Y42: 0 | Z42: 0 | AA42: 0 | AB42: 0 | AC42: 0 | AD42: 0 | AE42: 0 | AF42: 0 | AG42: 0 | AH42: 0 | AI42: 0 | AJ42: 0 | AK42: 0 | AL42: 0 | AM42: 0 | AN42: 0 | AO42: 0 | AP42: 0 | AQ42: 0
B43: Economique | C43: oSupActPL_SEPM_E_T100% | D43: oSupActPL_SEPM_E_T100% | F43: 0 | G43: 352.6 | H43: 0 | I43: 11.4 | J43: 245.46 | K43: 206.14 | L43: 352.6 | M43: 9.1 | N43: 0 | O43: 56.61 | P43: 44.07 | Q43: 3.12 | R43: 0 | S43: 82.19 | T43: 0 | U43: 86.08 | V43: 238.46 | W43: 215.97 | X43: 227.25 | Y43: 56.94 | Z43: 0 | AA43: 0 | AB43: 44.07 | AC43: 56.61 | AD43: 3.12 | AE43: 168.27 | AF43: 238.46 | AG43: 66.3 | AH43: 0 | AI43: 0 | AJ43: 0 | AK43: 0 | AL43: 89.57 | AM43: 162.66 | AN43: 37.198 | AO43: 96.53 | AP43: 62.233 | AQ43: 85.87551724
B44: Economique | C44: oSupActPL_SEPM_I_T100% | D44: oSupActPL_SEPM_I_T100% | F44: 0 | G44: 250 | H44: 0 | I44: 0 | J44: 4.54 | K44: 9.56 | L44: 0 | M44: 250 | N44: 120.83 | O44: 134.37 | P44: 0 | Q44: 8.1 | R44: 248.9 | S44: 193.6 | T44: 206.5 | U44: 230.09 | V44: 151.54 | W44: 56.3 | X44: 7.29 | Y44: 223.16 | Z44: 22.03 | AA44: 4.81 | AB44: 120.83 | AC44: 142.47 | AD44: 174.87 | AE44: 250 | AF44: 7.47 | AG44: 216.67 | AH44: 166.46 | AI44: 0 | AJ44: 0 | AK44: 0 | AL44: 0 | AM44: 76.986 | AN44: 116.994 | AO44: 113.6166667 | AP44: 95.794 | AQ44: 101.7375862
B45: Economique | C45: oSupPL_PPF_T100% | D45: oSupPL_PPF_T100% | F45: 0 | G45: 0 | H45: 0 | I45: 0 | J45: 0 | K45: 0 | L45: 0 | M45: 0 | N45: 0 | O45: 0 | P45: 0 | Q45: 0 | R45: 0 | S45: 0 | T45: 0 | U45: 0 | V45: 0 | W45: 0 | X45: 0 | Y45: 0 | Z45: 0 | AA45: 0 | AB45: 0 | AC45: 0 | AD45: 0 | AE45: 0 | AF45: 0 | AG45: 0 | AH45: 0 | AI45: 0 | AJ45: 0 | AK45: 0 | AL45: 0 | AM45: 0 | AN45: 0 | AO45: 0 | AP45: 0 | AQ45: 0
B46: Economique | C46: oSupPL_SEPM_E_T100% | D46: oSupPL_SEPM_E_T100% | F46: 0 | G46: 352.6 | H46: 0 | I46: 11.4 | J46: 245.46 | K46: 206.14 | L46: 352.6 | M46: 9.1 | N46: 0 | O46: 56.61 | P46: 44.07 | Q46: 3.12 | R46: 0 | S46: 82.19 | T46: 0 | U46: 86.08 | V46: 238.46 | W46: 215.97 | X46: 227.25 | Y46: 56.94 | Z46: 0 | AA46: 0 | AB46: 44.07 | AC46: 56.61 | AD46: 3.12 | AE46: 168.27 | AF46: 238.46 | AG46: 66.3 | AH46: 0 | AI46: 0 | AJ46: 0 | AK46: 0 | AL46: 89.57 | AM46: 162.66 | AN46: 37.198 | AO46: 96.53 | AP46: 62.233 | AQ46: 85.87551724
B47: Economique | C47: oSupPL_SEPM_I_T100% | D47: oSupPL_SEPM_I_T100% | F47: 0 | G47: 250 | H47: 0 | I47: 0 | J47: 4.54 | K47: 9.56 | L47: 0 | M47: 250 | N47: 120.83 | O47: 134.37 | P47: 0 | Q47: 8.1 | R47: 248.9 | S47: 193.6 | T47: 206.5 | U47: 230.09 | V47: 151.54 | W47: 56.3 | X47: 7.29 | Y47: 223.16 | Z47: 22.03 | AA47: 4.81 | AB47: 120.83 | AC47: 142.47 | AD47: 174.87 | AE47: 250 | AF47: 7.47 | AG47: 216.67 | AH47: 166.46 | AI47: 0 | AJ47: 0 | AK47: 0 | AL47: 0 | AM47: 76.986 | AN47: 116.994 | AO47: 113.6166667 | AP47: 95.794 | AQ47: 101.7375862
B48: Economique | C48: oSupPL_PPF | D48: oSupPL_PPF | F48: 0 | G48: 0 | H48: 0 | I48: 0 | J48: 0 | K48: 0 | L48: 0 | M48: 0 | N48: 0 | O48: 0 | P48: 0 | Q48: 0 | R48: 0 | S48: 0 | T48: 0 | U48: 0 | V48: 0 | W48: 0 | X48: 0 | Y48: 0 | Z48: 0 | AA48: 0 | AB48: 0 | AC48: 0 | AD48: 0 | AE48: 0 | AF48: 0 | AG48: 0 | AH48: 0 | AI48: 0 | AJ48: 0 | AK48: 0 | AL48: 0 | AM48: 0 | AN48: 0 | AO48: 0 | AP48: 0 | AQ48: 0
B49: Economique | C49: oSupPL_SEPM_E | D49: oSupPL_SEPM_E | F49: 0 | G49: 352.6 | H49: 0 | I49: 11.4 | J49: 245.46 | K49: 206.14 | L49: 352.6 | M49: 9.1 | N49: 0 | O49: 56.61 | P49: 44.07 | Q49: 3.12 | R49: 0 | S49: 82.19 | T49: 0 | U49: 86.08 | V49: 238.46 | W49: 215.97 | X49: 227.25 | Y49: 56.94 | Z49: 0 | AA49: 0 | AB49: 44.07 | AC49: 56.61 | AD49: 3.12 | AE49: 168.27 | AF49: 238.46 | AG49: 66.3 | AH49: 0 | AI49: 0 | AJ49: 0 | AK49: 0 | AL49: 89.57 | AM49: 162.66 | AN49: 37.198 | AO49: 96.53 | AP49: 62.233 | AQ49: 85.87551724
B50: Economique | C50: oSupPL_SEPM_I | D50: oSupPL_SEPM_I | F50: 0 | G50: 250 | H50: 0 | I50: 0 | J50: 4.54 | K50: 9.56 | L50: 0 | M50: 250 | N50: 120.83 | O50: 134.37 | P50: 0 | Q50: 8.1 | R50: 248.9 | S50: 193.6 | T50: 206.5 | U50: 230.09 | V50: 151.54 | W50: 56.3 | X50: 7.29 | Y50: 223.16 | Z50: 22.03 | AA50: 4.81 | AB50: 120.83 | AC50: 142.47 | AD50: 174.87 | AE50: 250 | AF50: 7.47 | AG50: 216.67 | AH50: 166.46 | AI50: 0 | AJ50: 0 | AK50: 0 | AL50: 0 | AM50: 76.986 | AN50: 116.994 | AO50: 113.6166667 | AP50: 95.794 | AQ50: 101.7375862
B51: Economique | C51: oSupActEPC_2_T100% | D51: oSupActEPC_2_T100% | F51: 0 | G51: 0 | H51: 0 | I51: 0 | J51: 0 | K51: 0 | L51: 0 | M51: 0 | N51: 0 | O51: 0 | P51: 0 | Q51: 0 | R51: 0 | S51: 0 | T51: 0 | U51: 0 | V51: 0 | W51: 0 | X51: 0 | Y51: 0 | Z51: 0 | AA51: 0 | AB51: 0 | AC51: 0 | AD51: 0 | AE51: 0 | AF51: 0 | AG51: 0 | AH51: 0 | AI51: 0 | AJ51: 0 | AK51: 0 | AL51: 0 | AM51: 0 | AN51: 0 | AO51: 0 | AP51: 0 | AQ51: 0
B52: Economique | C52: oSupEPC_2_T100% | D52: oSupEPC_2_T100% | F52: 0 | G52: 0 | H52: 0 | I52: 0 | J52: 0 | K52: 0 | L52: 0 | M52: 0 | N52: 0 | O52: 0 | P52: 0 | Q52: 0 | R52: 0 | S52: 0 | T52: 0 | U52: 0 | V52: 0 | W52: 0 | X52: 0 | Y52: 0 | Z52: 0 | AA52: 0 | AB52: 0 | AC52: 0 | AD52: 0 | AE52: 0 | AF52: 0 | AG52: 0 | AH52: 0 | AI52: 0 | AJ52: 0 | AK52: 0 | AL52: 0 | AM52: 0 | AN52: 0 | AO52: 0 | AP52: 0 | AQ52: 0
B53: Economique | C53: oSupEPC_2 | D53: oSupEPC_2 | F53: 0 | G53: 0 | H53: 0 | I53: 0 | J53: 0 | K53: 0 | L53: 0 | M53: 0 | N53: 0 | O53: 0 | P53: 0 | Q53: 0 | R53: 0 | S53: 0 | T53: 0 | U53: 0 | V53: 0 | W53: 0 | X53: 0 | Y53: 0 | Z53: 0 | AA53: 0 | AB53: 0 | AC53: 0 | AD53: 0 | AE53: 0 | AF53: 0 | AG53: 0 | AH53: 0 | AI53: 0 | AJ53: 0 | AK53: 0 | AL53: 0 | AM53: 0 | AN53: 0 | AO53: 0 | AP53: 0 | AQ53: 0
B54: Economique | C54: oSupActEC_SEPM_T100% | D54: oSupActEC_SEPM_T100% | F54: 0 | G54: 508.4 | H54: 0 | I54: 0 | J54: 508.4 | K54: 61.2 | L54: 0 | M54: 0 | N54: 0 | O54: 0 | P54: 0 | Q54: 0 | R54: 0 | S54: 4.54 | T54: 9.56 | U54: 0 | V54: 250 | W54: 120.83 | X54: 134.37 | Y54: 248.9 | Z54: 201.7 | AA54: 206.5 | AB54: 230.09 | AC54: 151.54 | AD54: 49.5 | AE54: 0 | AF54: 6.81 | AG54: 7.29 | AH54: 223.16 | AI54: 22.03 | AJ54: 4.81 | AK54: 120.83 | AL54: 142.47 | AM54: 113.92 | AN54: 0.908 | AO54: 155.7722222 | AP54: 72.844 | AQ54: 93.25965517
B55: Economique | C55: oSupEC_SEPM_T100% | D55: oSupEC_SEPM_T100% | F55: 0 | G55: 508.4 | H55: 0 | I55: 0 | J55: 508.4 | K55: 61.2 | L55: 0 | M55: 0 | N55: 0 | O55: 0 | P55: 0 | Q55: 0 | R55: 0 | S55: 4.54 | T55: 9.56 | U55: 0 | V55: 250 | W55: 120.83 | X55: 134.37 | Y55: 248.9 | Z55: 201.7 | AA55: 206.5 | AB55: 230.09 | AC55: 151.54 | AD55: 49.5 | AE55: 0 | AF55: 6.81 | AG55: 7.29 | AH55: 223.16 | AI55: 22.03 | AJ55: 4.81 | AK55: 120.83 | AL55: 142.47 | AM55: 113.92 | AN55: 0.908 | AO55: 155.7722222 | AP55: 72.844 | AQ55: 93.25965517
B56: Economique | C56: oSupEC_SEPM | D56: oSupEC_SEPM | F56: 0 | G56: 508.4 | H56: 0 | I56: 0 | J56: 508.4 | K56: 61.2 | L56: 0 | M56: 0 | N56: 0 | O56: 0 | P56: 0 | Q56: 0 | R56: 0 | S56: 4.54 | T56: 9.56 | U56: 0 | V56: 250 | W56: 120.83 | X56: 134.37 | Y56: 248.9 | Z56: 201.7 | AA56: 206.5 | AB56: 230.09 | AC56: 151.54 | AD56: 49.5 | AE56: 0 | AF56: 6.81 | AG56: 7.29 | AH56: 223.16 | AI56: 22.03 | AJ56: 4.81 | AK56: 120.83 | AL56: 142.47 | AM56: 113.92 | AN56: 0.908 | AO56: 155.7722222 | AP56: 72.844 | AQ56: 93.25965517
B57: Economique | C57: oSupTcsdNETT_T100% | D57: oSupTcsdNETT_T100% | F57: 0 | G57: 2264.41 | H57: 0 | I57: 269.3 | J57: 1914.74 | K57: 2264.41 | L57: 1654.1 | M57: 1794.94 | N57: 1546.12 | O57: 1462.07 | P57: 1297.92 | Q57: 1297.38 | R57: 1220.3 | S57: 1021.69 | T57: 1167.05 | U57: 1126.04 | V57: 1001.62 | W57: 1137.93 | X57: 1261.02 | Y57: 966.56 | Z57: 1276.79 | AA57: 1214.11 | AB57: 1246.33 | AC57: 1500.64 | AD57: 1648.71 | AE57: 1129.05 | AF57: 1380.91 | AG57: 923.1 | AH57: 1049.52 | AI57: 1032.75 | AJ57: 1017.69 | AK57: 1302.56 | AL57: 1247.52 | AM57: 1834.862 | AN57: 1259.872 | AO57: 1155.272222 | AP57: 1223.245 | AQ57: 1313.916207
B58: Economique | C58: oSupTcsdNETT_FC | D58: oSupTcsdNETT_FC | F58: 0 | G58: 2264.41 | H58: 0 | I58: 269.3 | J58: 1914.74 | K58: 2264.41 | L58: 1654.1 | M58: 1794.94 | N58: 1546.12 | O58: 1462.07 | P58: 1297.92 | Q58: 1297.38 | R58: 1220.3 | S58: 1021.69 | T58: 1167.05 | U58: 1126.04 | V58: 1001.62 | W58: 1137.93 | X58: 1261.02 | Y58: 966.56 | Z58: 1276.79 | AA58: 1214.11 | AB58: 1246.33 | AC58: 1500.64 | AD58: 1648.71 | AE58: 1129.05 | AF58: 1380.91 | AG58: 923.1 | AH58: 1049.52 | AI58: 1032.75 | AJ58: 1017.69 | AK58: 1302.56 | AL58: 1247.52 | AM58: 1834.862 | AN58: 1259.872 | AO58: 1155.272222 | AP58: 1223.245 | AQ58: 1313.916207
B59: Economique | C59: oSupTcadNETT_T100% | D59: oSupTcadNETT_T100% | F59: 0 | G59: 418.27 | H59: 0 | I59: 0 | J59: 0 | K59: 11.4 | L59: 250 | M59: 215.7 | N59: 352.6 | O59: 259.1 | P59: 120.83 | Q59: 190.98 | R59: 44.07 | S59: 11.22 | T59: 248.9 | U59: 275.79 | V59: 206.5 | W59: 316.18 | X59: 390 | Y59: 272.27 | Z59: 234.54 | AA59: 280.1 | AB59: 22.03 | AC59: 4.81 | AD59: 164.9 | AE59: 199.08 | AF59: 177.99 | AG59: 418.27 | AH59: 245.93 | AI59: 282.97 | AJ59: 166.46 | AK59: 0 | AL59: 0 | AM59: 165.94 | AN59: 125.24 | AO59: 249.59 | AP59: 166.041 | AQ59: 184.917931
B60: Economique | C60: oSupNETT_T100% | D60: oSupNETT_T100% | F60: 0 | G60: 2275.81 | H60: 0 | I60: 269.3 | J60: 1914.74 | K60: 2275.81 | L60: 1904.1 | M60: 2010.63 | N60: 1898.72 | O60: 1721.17 | P60: 1418.75 | Q60: 1488.35 | R60: 1264.37 | S60: 1032.91 | T60: 1415.95 | U60: 1401.83 | V60: 1208.12 | W60: 1454.11 | X60: 1651.02 | Y60: 1238.84 | Z60: 1511.33 | AA60: 1494.21 | AB60: 1268.36 | AC60: 1505.44 | AD60: 1813.61 | AE60: 1328.12 | AF60: 1558.9 | AG60: 1341.37 | AH60: 1295.45 | AI60: 1315.72 | AJ60: 1184.15 | AK60: 1302.56 | AL60: 1247.52 | AM60: 2000.8 | AN60: 1385.11 | AO60: 1404.863333 | AP60: 1389.284 | AQ60: 1498.833103
B61: Economique | C61: oSupNETT | D61: oSupNETT | F61: 0 | G61: 2275.81 | H61: 0 | I61: 269.3 | J61: 1914.74 | K61: 2275.81 | L61: 1904.1 | M61: 2010.63 | N61: 1898.72 | O61: 1721.17 | P61: 1418.75 | Q61: 1488.35 | R61: 1264.37 | S61: 1032.91 | T61: 1415.95 | U61: 1401.83 | V61: 1208.12 | W61: 1454.11 | X61: 1651.02 | Y61: 1238.84 | Z61: 1511.33 | AA61: 1494.21 | AB61: 1268.36 | AC61: 1505.44 | AD61: 1813.61 | AE61: 1328.12 | AF61: 1558.9 | AG61: 1341.37 | AH61: 1295.45 | AI61: 1315.72 | AJ61: 1184.15 | AK61: 1302.56 | AL61: 1247.52 | AM61: 2000.8 | AN61: 1385.11 | AO61: 1404.863333 | AP61: 1389.284 | AQ61: 1498.833103
B62: Economique | C62: oTauxDEG | D62: oTauxDEG | F62: 0 | G62: 1496062.75 | H62: 0 | I62: 463155 | J62: 968986.34 | K62: 1465339.72 | L62: 1496062.75 | M62: 1304920.06 | N62: 1027328.4 | O62: 904267.55 | P62: 1028842.7 | Q62: 577016.24 | R62: 643310.76 | S62: 752264.57 | T62: 365906.33 | U62: 582625.47 | V62: 862799.73 | W62: 742541.48 | X62: 698837.58 | Y62: 1036631.84 | Z62: 278941.46 | AA62: 222119.45 | AB62: 677695.71 | AC62: 563552.77 | AD62: 359840.67 | AE62: 913449.45 | AF62: 405782.57 | AG62: 466904.9 | AH62: 274659.58 | AI62: 0 | AJ62: 0 | AK62: 0 | AL62: 305740.4 | AM62: 1252527.454 | AN62: 781140.364 | AO62: 607566.5611 | AP62: 328993.034 | AQ62: 652633.3959
B63: Economique | C63: oTauxSCA | D63: oTauxSCA | F63: 0 | G63: 1982112.65 | H63: 0 | I63: 1124420 | J63: 440852.47 | K63: 279449.72 | L63: 473874.36 | M63: 515412.26 | N63: 425282.18 | O63: 632057.72 | P63: 227266.42 | Q63: 1184274.69 | R63: 1811330.76 | S63: 997951.38 | T63: 1191677.19 | U63: 987489.75 | V63: 327210.88 | W63: 349528.73 | X63: 231034.06 | Y63: 370207.03 | Z63: 1080588.12 | AA63: 1982112.65 | AB63: 770306.9 | AC63: 538475.54 | AD63: 1010808.61 | AE63: 458201.83 | AF63: 331140.96 | AG63: 680979.45 | AH63: 191547 | AI63: 1067812.04 | AJ63: 1557468.17 | AK63: 787417.49 | AL63: 146950.65 | AM63: 426974.198 | AN63: 970576.194 | AO63: 810017.2567 | AP63: 677080.174 | AQ63: 725817.5521
B64: Economique | C64: oTauxREG | D64: oTauxREG | F64: 0 | G64: 295804.3 | H64: 0 | I64: 124465 | J64: 114248.68 | K64: 295804.3 | L64: 236005.34 | M64: 154968.8 | N64: 140780.7 | O64: 53731.59 | P64: 256836.1 | Q64: 112963.57 | R64: 8793.89 | S64: 30320.76 | T64: 0 | U64: 17649.78 | V64: 4350.22 | W64: 25269.25 | X64: 31187.02 | Y64: 0 | Z64: 0 | AA64: 0 | AB64: 0 | AC64: 0 | AD64: 0 | AE64: 5684.96 | AF64: 0 | AG64: 0 | AH64: 0 | AI64: 0 | AJ64: 0 | AK64: 0 | AL64: 0 | AM64: 188361.564 | AN64: 92529.182 | AO64: 8717.363333 | AP64: 568.496 | AQ64: 51330.86069
B65: Economique | C65: oTauxELA | D65: oTauxELA | F65: 0 | G65: 248930 | H65: 0 | I65: 248930 | J65: 228497.37 | K65: 30311.93 | L65: 140107.35 | M65: 62437.61 | N65: 34061.4 | O65: 107463.19 | P65: 154445.74 | Q65: 31925.42 | R65: 0 | S65: 0 | T65: 0 | U65: 35299.57 | V65: 8700.43 | W65: 0 | X65: 0 | Y65: 0 | Z65: 0 | AA65: 0 | AB65: 0 | AC65: 0 | AD65: 0 | AE65: 11369.91 | AF65: 0 | AG65: 0 | AH65: 0 | AI65: 0 | AJ65: 0 | AK65: 0 | AL65: 0 | AM65: 99083.132 | AN65: 58766.87 | AO65: 4888.888889 | AP65: 1136.991 | AQ65: 29124.82483
B66: Economique | C66: oTauxCPI | D66: oTauxCPI | F66: 0 | G66: 6035009.32 | H66: 0 | I66: 3430892.33 | J66: 3358831.93 | K66: 3260113.34 | L66: 3279188.73 | M66: 3517066.31 | N66: 4268447.5 | O66: 4290359.33 | P66: 4876505.58 | Q66: 4614836.01 | R66: 3978002.52 | S66: 4883036.37 | T66: 4780333.8 | U66: 4590548.7 | V66: 4831807.62 | W66: 4921067.95 | X66: 4916813.39 | Y66: 4636028.09 | Z66: 4937791.97 | AA66: 4051443.25 | AB66: 4852611.96 | AC66: 4993770.07 | AD66: 4477630.65 | AE66: 4681045.54 | AF66: 5383077.62 | AG66: 5168489.23 | AH66: 5797703.68 | AI66: 5697362.51 | AJ66: 5368695.98 | AK66: 5868201.84 | AL66: 6035009.32 | AM66: 3536729.562 | AN66: 4528547.962 | AO66: 4724271.859 | AP66: 5347098.644 | AQ66: 4700545.544
B67: Economique | C67: oTauxCT | D67: oTauxCT | F67: 0 | G67: 0 | H67: 0 | I67: 0 | J67: 0 | K67: 0 | L67: 0 | M67: 0 | N67: 0 | O67: 0 | P67: 0 | Q67: 0 | R67: 0 | S67: 0 | T67: 0 | U67: 0 | V67: 0 | W67: 0 | X67: 0 | Y67: 0 | Z67: 0 | AA67: 0 | AB67: 0 | AC67: 0 | AD67: 0 | AE67: 0 | AF67: 0 | AG67: 0 | AH67: 0 | AI67: 0 | AJ67: 0 | AK67: 0 | AL67: 0 | AM67: 0 | AN67: 0 | AO67: 0 | AP67: 0 | AQ67: 0
B68: Economique | C68: oTauxPL | D68: oTauxPL | F68: 0 | G68: 627932.97 | H68: 0 | I68: 14934 | J68: 328952.66 | K68: 285624.04 | L68: 461911.34 | M68: 419419.92 | N68: 196951.57 | O68: 293177.64 | P68: 57726.86 | Q68: 17288.24 | R68: 405701.17 | S68: 423237.09 | T68: 336595 | U68: 487822.1 | V68: 559390.74 | W68: 374695.81 | X68: 309583.03 | Y68: 438341.13 | Z68: 35905.18 | AA68: 7838.54 | AB68: 254678.43 | AC68: 306380.64 | AD68: 289118.05 | AE68: 627932.97 | AF68: 324555.65 | AG68: 440027.96 | AH68: 271330.37 | AI68: 0 | AJ68: 0 | AK68: 0 | AL68: 117336.82 | AM68: =AVERAGE(J68:N68) -> 338571.906 | AN68: =AVERAGE(O68:S68) -> 239426.2 | AO68: =AVERAGE(T68:AB68) -> 311649.9956 | AP68: =AVERAGE(AC68:AL68) -> 237668.246 | AQ68: =AVERAGE(J68:AL68) -> 278328.3776
B69: Economique | C69: oTauxEPC | D69: oTauxEPC | F69: 0 | G69: 0 | H69: 0 | I69: 0 | J69: 0 | K69: 0 | L69: 0 | M69: 0 | N69: 0 | O69: 0 | P69: 0 | Q69: 0 | R69: 0 | S69: 0 | T69: 0 | U69: 0 | V69: 0 | W69: 0 | X69: 0 | Y69: 0 | Z69: 0 | AA69: 0 | AB69: 0 | AC69: 0 | AD69: 0 | AE69: 0 | AF69: 0 | AG69: 0 | AH69: 0 | AI69: 0 | AJ69: 0 | AK69: 0 | AL69: 0 | AM69: 0 | AN69: 0 | AO69: 0 | AP69: 0 | AQ69: 0
B70: Economique | C70: oTauxEC | D70: oTauxEC | F70: 0 | G70: 635500 | H70: 0 | I70: 0 | J70: 635500 | K70: 76496.63 | L70: 0 | M70: 0 | N70: 0 | O70: 0 | P70: 0 | Q70: 0 | R70: 0 | S70: 5674.46 | T70: 11950.54 | U70: 0 | V70: 312500 | W70: 151036.48 | X70: 167963.52 | Y70: 311120.53 | Z70: 252129.47 | AA70: 258125 | AB70: 287616.87 | AC70: 189419.81 | AD70: 61870.2 | AE70: 0 | AF70: 8509.02 | AG70: 9115.98 | AH70: 278954.2 | AI70: 27534.65 | AJ70: 6011.15 | AK70: 151036.48 | AL70: 178088.52 | AM70: 142399.326 | AN70: 1134.892 | AO70: 194715.8233 | AP70: 91054.001 | AQ70: 116574.259
B71: Economique | C71: oTauxNET | D71: oTauxNET | F71: 0 | G71: 2412356.85 | H71: 0 | I71: 285458 | J71: 2029627.08 | K71: 2412356.85 | L71: 2018346.66 | M71: 2131271.57 | N71: 2012644.79 | O71: 1824439.52 | P71: 1503873.13 | Q71: 1577654.74 | R71: 1340231.14 | S71: 1094885.61 | T71: 1500907.37 | U71: 1485934.86 | V71: 1280610.61 | W71: 1541356.84 | X71: 1750077.93 | Y71: 1313167.9 | Z71: 1602014.03 | AA71: 1583857.65 | AB71: 1344460.37 | AC71: 1595771.42 | AD71: 1922422.14 | AE71: 1407811.87 | AF71: 1652430.71 | AG71: 1421852.72 | AH71: 1373175.39 | AI71: 1394661.03 | AJ71: 1255194.93 | AK71: 1380714.42 | AL71: 1322370.82 | AM71: 2120849.39 | AN71: 1468216.828 | AO71: 1489154.173 | AP71: 1472640.545 | AQ71: 1588762.9
B72: Economique | C72: oSupRealDEG | D72: oSupRealDEG | F72: 0 | G72: 906.7 | H72: 0 | I72: 280.7 | J72: 587.26 | K72: 888.08 | L72: 906.7 | M72: 790.86 | N72: 622.62 | O72: 548.04 | P72: 623.54 | Q72: 349.71 | R72: 389.89 | S72: 455.92 | T72: 221.76 | U72: 353.11 | V72: 522.91 | W72: 450.03 | X72: 423.54 | Y72: 628.26 | Z72: 169.06 | AA72: 134.62 | AB72: 410.72 | AC72: 341.55 | AD72: 218.09 | AE72: 553.61 | AF72: 245.93 | AG72: 282.97 | AH72: 166.46 | AI72: 0 | AJ72: 0 | AK72: 0 | AL72: 185.3 | AM72: 759.104 | AN72: 473.42 | AO72: 368.2233333 | AP72: 199.391 | AQ72: 395.5358621
B73: Economique | C73: oSupRealSCA | D73: oSupRealSCA | F73: 0 | G73: 2609.18 | H73: 0 | I73: 1482.2 | J73: 656.83 | K73: 434.46 | L73: 738.7 | M73: 783.06 | N73: 625.55 | O73: 876.89 | P73: 309.47 | Q73: 1562.26 | R73: 2442.28 | S73: 1378.41 | T73: 1616.9 | U73: 1374.21 | V73: 522.91 | W73: 524.61 | X73: 359.54 | Y73: 553.45 | Z73: 1427.04 | AA73: 2609.18 | AB73: 1052.62 | AC73: 755.67 | AD73: 1372.17 | AE73: 701.96 | AF73: 493.96 | AG73: 963.05 | AH73: 291.46 | AI73: 1405.02 | AJ73: 2049.3 | AK73: 1036.08 | AL73: 214.57 | AM73: 647.72 | AN73: 1313.862 | AO73: 1115.606667 | AP73: 928.324 | AQ73: 1004.538276
B74: Economique | C74: oSupRealREG | D74: oSupRealREG | F74: 0 | G74: 537.83 | H74: 0 | I74: 226.3 | J74: 207.72 | K74: 537.83 | L74: 429.1 | M74: 281.76 | N74: 255.96 | O74: 97.69 | P74: 466.97 | Q74: 205.39 | R74: 15.99 | S74: 55.13 | T74: 0 | U74: 32.09 | V74: 7.91 | W74: 45.94 | X74: 56.7 | Y74: 0 | Z74: 0 | AA74: 0 | AB74: 0 | AC74: 0 | AD74: 0 | AE74: 10.34 | AF74: 0 | AG74: 0 | AH74: 0 | AI74: 0 | AJ74: 0 | AK74: 0 | AL74: 0 | AM74: 342.474 | AN74: 168.234 | AO74: 15.84888889 | AP74: 1.034 | AQ74: 93.32827586
B75: Economique | C75: oSupRealELA | D75: oSupRealELA | F75: 0 | G75: 226.3 | H75: 0 | I75: 226.3 | J75: 207.72 | K75: 27.56 | L75: 127.37 | M75: 56.76 | N75: 30.96 | O75: 97.69 | P75: 140.41 | Q75: 29.02 | R75: 0 | S75: 0 | T75: 0 | U75: 32.09 | V75: 7.91 | W75: 0 | X75: 0 | Y75: 0 | Z75: 0 | AA75: 0 | AB75: 0 | AC75: 0 | AD75: 0 | AE75: 10.34 | AF75: 0 | AG75: 0 | AH75: 0 | AI75: 0 | AJ75: 0 | AK75: 0 | AL75: 0 | AM75: 90.074 | AN75: 53.424 | AO75: 4.444444444 | AP75: 1.034 | AQ75: 26.47689655
B76: Economique | C76: oSupRealCPI | D76: oSupRealCPI | F76: 0 | G76: 10372.91 | H76: 0 | I76: 5940 | J76: 6459.01 | K76: 6209.47 | L76: 6262.33 | M76: 6748.36 | N76: 7005.54 | O76: 7706.09 | P76: 8476.7 | Q76: 8386.63 | R76: 8433.03 | S76: 9271.79 | T76: 9025.71 | U76: 8868.45 | V76: 8770.63 | W76: 8877.29 | X76: 8913.11 | Y76: 8493.36 | Z76: 8840.23 | AA76: 8723.08 | AB76: 8614.58 | AC76: 8822.84 | AD76: 8936.76 | AE76: 9014.93 | AF76: 9536.18 | AG76: 9625.5 | AH76: 10372.91 | AI76: 10081.94 | AJ76: 9744.24 | AK76: 10090.37 | AL76: 9840.89 | AM76: 6536.942 | AN76: 8454.848 | AO76: 8791.826667 | AP76: 9606.656 | AQ76: 8625.92931
B77: Economique | C77: oSupRealCT | D77: oSupRealCT | F77: 0 | G77: 1232.21 | H77: 0 | I77: 488.01 | J77: 878.55 | K77: 1067.58 | L77: 841.6 | M77: 997.64 | N77: 617.49 | O77: 1232.21 | P77: 729.87 | Q77: 632.66 | R77: 613.77 | S77: 730.18 | T77: 898.41 | U77: 896.73 | V77: 918.78 | W77: 729.23 | X77: 735.49 | Y77: 1031.14 | Z77: 933.19 | AA77: 420.12 | AB77: 736.85 | AC77: 872.08 | AD77: 683.83 | AE77: 905.51 | AF77: 1039.41 | AG77: 709.78 | AH77: 320.09 | AI77: 807.94 | AJ77: 844.21 | AK77: 790.18 | AL77: 794.74 | AM77: 880.572 | AN77: 787.738 | AO77: 811.1044444 | AP77: 776.777 | AQ77: 807.2158621
B78: Economique | C78: oSupRealPL | D78: oSupRealPL | F78: 0 | G78: 418.27 | H78: 0 | I78: 11.4 | J78: 250 | K78: 215.7 | L78: 352.6 | M78: 259.1 | N78: 120.83 | O78: 190.98 | P78: 44.07 | Q78: 11.22 | R78: 248.9 | S78: 275.79 | T78: 206.5 | U78: 316.18 | V78: 390 | W78: 272.27 | X78: 234.54 | Y78: 280.1 | Z78: 22.03 | AA78: 4.81 | AB78: 164.9 | AC78: 199.08 | AD78: 177.99 | AE78: 418.27 | AF78: 245.93 | AG78: 282.97 | AH78: 166.46 | AI78: 0 | AJ78: 0 | AK78: 0 | AL78: 89.57 | AM78: 239.646 | AN78: 154.192 | AO78: 210.1477778 | AP78: 158.027 | AQ78: 187.6134483
B79: Economique | C79: oSupRealEPC | D79: oSupRealEPC | F79: 0 | G79: 0 | H79: 0 | I79: 0 | J79: 0 | K79: 0 | L79: 0 | M79: 0 | N79: 0 | O79: 0 | P79: 0 | Q79: 0 | R79: 0 | S79: 0 | T79: 0 | U79: 0 | V79: 0 | W79: 0 | X79: 0 | Y79: 0 | Z79: 0 | AA79: 0 | AB79: 0 | AC79: 0 | AD79: 0 | AE79: 0 | AF79: 0 | AG79: 0 | AH79: 0 | AI79: 0 | AJ79: 0 | AK79: 0 | AL79: 0 | AM79: 0 | AN79: 0 | AO79: 0 | AP79: 0 | AQ79: 0
B80: Economique | C80: oSupRealEC | D80: oSupRealEC | F80: 0 | G80: 508.4 | H80: 0 | I80: 0 | J80: 508.4 | K80: 61.2 | L80: 0 | M80: 0 | N80: 0 | O80: 0 | P80: 0 | Q80: 0 | R80: 0 | S80: 4.54 | T80: 9.56 | U80: 0 | V80: 250 | W80: 120.83 | X80: 134.37 | Y80: 248.9 | Z80: 201.7 | AA80: 206.5 | AB80: 230.09 | AC80: 151.54 | AD80: 49.5 | AE80: 0 | AF80: 6.81 | AG80: 7.29 | AH80: 223.16 | AI80: 22.03 | AJ80: 4.81 | AK80: 120.83 | AL80: 142.47 | AM80: 113.92 | AN80: 0.908 | AO80: 155.7722222 | AP80: 72.844 | AQ80: 93.25965517
B81: Economique | C81: oSupRealNET | D81: oSupRealNET | F81: 0 | G81: 2275.81 | H81: 0 | I81: 269.3 | J81: 1914.74 | K81: 2275.81 | L81: 1904.1 | M81: 2010.63 | N81: 1898.72 | O81: 1721.17 | P81: 1418.75 | Q81: 1488.35 | R81: 1264.37 | S81: 1032.91 | T81: 1415.95 | U81: 1401.83 | V81: 1208.12 | W81: 1454.11 | X81: 1651.02 | Y81: 1238.84 | Z81: 1511.33 | AA81: 1494.21 | AB81: 1268.36 | AC81: 1505.44 | AD81: 1813.61 | AE81: 1328.12 | AF81: 1558.9 | AG81: 1341.37 | AH81: 1295.45 | AI81: 1315.72 | AJ81: 1184.15 | AK81: 1302.56 | AL81: 1247.52 | AM81: 2000.8 | AN81: 1385.11 | AO81: 1404.863333 | AP81: 1389.284 | AQ81: 1498.833103
B82: Economique | C82: oCoutProdPlants | D82: oCoutProdPlants | F82: 0 | G82: 0 | H82: 0 | I82: 0 | J82: 0 | K82: 0 | L82: 0 | M82: 0 | N82: 0 | O82: 0 | P82: 0 | Q82: 0 | R82: 0 | S82: 0 | T82: 0 | U82: 0 | V82: 0 | W82: 0 | X82: 0 | Y82: 0 | Z82: 0 | AA82: 0 | AB82: 0 | AC82: 0 | AD82: 0 | AE82: 0 | AF82: 0 | AG82: 0 | AH82: 0 | AI82: 0 | AJ82: 0 | AK82: 0 | AL82: 0 | AM82: 0 | AN82: 0 | AO82: 0 | AP82: 0 | AQ82: 0
B83: Economique | C83: oCoutTransPlants | D83: oCoutTransPlants | F83: 0 | G83: 0 | H83: 0 | I83: 0 | J83: 0 | K83: 0 | L83: 0 | M83: 0 | N83: 0 | O83: 0 | P83: 0 | Q83: 0 | R83: 0 | S83: 0 | T83: 0 | U83: 0 | V83: 0 | W83: 0 | X83: 0 | Y83: 0 | Z83: 0 | AA83: 0 | AB83: 0 | AC83: 0 | AD83: 0 | AE83: 0 | AF83: 0 | AG83: 0 | AH83: 0 | AI83: 0 | AJ83: 0 | AK83: 0 | AL83: 0 | AM83: 0 | AN83: 0 | AO83: 0 | AP83: 0 | AQ83: 0
B84: Economique | C84: o$InvestisTS | D84: o$InvestisTS | F84: 0 | G84: 8187370.23 | H84: 0 | I84: 5692254.33 | J84: 8105496.53 | K84: 8105496.53 | L84: 8105496.53 | M84: 8105496.53 | N84: 8105496.53 | O84: 8105496.53 | P84: 8105496.53 | Q84: 8115958.91 | R84: 8187370.23 | S84: 8187370.23 | T84: 8187370.23 | U84: 8187370.23 | V84: 8187370.23 | W84: 8105496.53 | X84: 8105496.53 | Y84: 8105496.53 | Z84: 8187370.23 | AA84: 8105496.53 | AB84: 8187370.23 | AC84: 8187370.23 | AD84: 8121690.33 | AE84: 8105496.53 | AF84: 8105496.53 | AG84: 8187370.23 | AH84: 8187370.23 | AI84: 8187370.23 | AJ84: 8187370.23 | AK84: 8187370.23 | AL84: 8105496.53 | AM84: 8105496.53 | AN84: 8140338.486 | AO84: 8150981.919 | AP84: 8156240.13 | AQ84: 8143117.712
B85: Economique | C85: oTauxREGAPAR | D85: oTauxREGAPAR | F85: 0 | G85: 6213097.84 | H85: 0 | I85: 3430892.33 | J85: 3994331.93 | K85: 3336609.97 | L85: 3279188.73 | M85: 3517066.31 | N85: 4268447.5 | O85: 4290359.33 | P85: 4876505.58 | Q85: 4614836.01 | R85: 3978002.52 | S85: 4888710.83 | T85: 4792284.34 | U85: 4590548.7 | V85: 5144307.62 | W85: 5072104.43 | X85: 5084776.91 | Y85: 4947148.63 | Z85: 5189921.44 | AA85: 4309568.25 | AB85: 5140228.82 | AC85: 5183189.88 | AD85: 4539500.85 | AE85: 4681045.54 | AF85: 5391586.64 | AG85: 5177605.21 | AH85: 6076657.88 | AI85: 5724897.16 | AJ85: 5374707.14 | AK85: 6019238.32 | AL85: 6213097.84 | AM85: 3679128.888 | AN85: 4529682.854 | AO85: 4918987.682 | AP85: 5438152.646 | AQ85: 4817119.804
B86: Economique | C86: oTauxREGAEDU | D86: oTauxREGAEDU | F86: 0 | G86: 3877696.57 | H86: 0 | I86: 748613 | J86: 2998613.42 | K86: 3877696.57 | L86: 3514409.41 | M86: 3436191.62 | N86: 3039973.19 | O86: 2728707.07 | P86: 2532715.83 | Q86: 2154670.98 | R86: 1983541.9 | S86: 1847150.18 | T86: 1866813.7 | U86: 2068560.33 | V86: 2143410.34 | W86: 2283898.31 | X86: 2448915.52 | Y86: 2349799.74 | Z86: 1880955.5 | AA86: 1805977.09 | AB86: 2022156.08 | AC86: 2159324.18 | AD86: 2282262.81 | AE86: 2321261.32 | AF86: 2058213.28 | AG86: 1888757.61 | AH86: 1647834.98 | AI86: 1394661.03 | AJ86: 1255194.93 | AK86: 1380714.42 | AL86: 1628111.22 | AM86: 3373376.842 | AN86: 2249357.192 | AO86: 2096720.734 | AP86: 1801633.578 | AQ86: 2241396.295
B87: Economique | C87: oTauxAUTRES | D87: oTauxAUTRES | F87: 0 | G87: 1982112.65 | H87: 0 | I87: 1373350 | J87: 669349.83 | K87: 309761.65 | L87: 613981.71 | M87: 577849.87 | N87: 459343.57 | O87: 739520.9 | P87: 381712.16 | Q87: 1216200.11 | R87: 1811330.76 | S87: 997951.38 | T87: 1191677.19 | U87: 1022789.32 | V87: 335911.32 | W87: 349528.73 | X87: 231034.06 | Y87: 370207.03 | Z87: 1080588.12 | AA87: 1982112.65 | AB87: 770306.9 | AC87: 538475.54 | AD87: 1010808.61 | AE87: 469571.75 | AF87: 331140.96 | AG87: 680979.45 | AH87: 191547 | AI87: 1067812.04 | AJ87: 1557468.17 | AK87: 787417.49 | AL87: 146950.65 | AM87: 526057.326 | AN87: 1029343.062 | AO87: 814906.1467 | AP87: 678217.166 | AQ87: 754942.3766
B88: Economique | C88: oTauxREGAREG | D88: oTauxREGAREG | F88: 0 | G88: 697916.68 | H88: 0 | I88: 139399 | J88: 443201.34 | K88: 581428.34 | L88: 697916.68 | M88: 574388.73 | N88: 337732.27 | O88: 346909.23 | P88: 314562.96 | Q88: 130251.81 | R88: 414495.06 | S88: 453557.85 | T88: 336595 | U88: 505471.89 | V88: 563740.96 | W88: 399965.05 | X88: 340770.04 | Y88: 438341.13 | Z88: 35905.18 | AA88: 7838.54 | AB88: 254678.43 | AC88: 306380.64 | AD88: 289118.05 | AE88: 633617.92 | AF88: 324555.65 | AG88: 440027.96 | AH88: 271330.37 | AI88: 0 | AJ88: 0 | AK88: 0 | AL88: 117336.82 | AM88: 526933.472 | AN88: 331955.382 | AO88: 320367.3578 | AP88: 238236.741 | AQ88: 329659.2379
B89: Economique | C89: oTauxREGAFIN | D89: oTauxREGAFIN | F89: 0 | G89: 0 | H89: 0 | I89: 0 | J89: 0 | K89: 0 | L89: 0 | M89: 0 | N89: 0 | O89: 0 | P89: 0 | Q89: 0 | R89: 0 | S89: 0 | T89: 0 | U89: 0 | V89: 0 | W89: 0 | X89: 0 | Y89: 0 | Z89: 0 | AA89: 0 | AB89: 0 | AC89: 0 | AD89: 0 | AE89: 0 | AF89: 0 | AG89: 0 | AH89: 0 | AI89: 0 | AJ89: 0 | AK89: 0 | AL89: 0 | AM89: 0 | AN89: 0 | AO89: 0 | AP89: 0 | AQ89: 0
B90: Economique | C90: oSupRealREGAPAR | D90: oSupRealREGAPAR | F90: 0 | G90: 10596.07 | H90: 0 | I90: 5940 | J90: 6967.41 | K90: 6270.67 | L90: 6262.33 | M90: 6748.36 | N90: 7005.54 | O90: 7706.09 | P90: 8476.7 | Q90: 8386.63 | R90: 8433.03 | S90: 9276.33 | T90: 9035.27 | U90: 8868.45 | V90: 9020.63 | W90: 8998.12 | X90: 9047.48 | Y90: 8742.26 | Z90: 9041.94 | AA90: 8929.58 | AB90: 8844.67 | AC90: 8974.38 | AD90: 8986.25 | AE90: 9014.93 | AF90: 9542.99 | AG90: 9632.79 | AH90: 10596.07 | AI90: 10103.97 | AJ90: 9749.05 | AK90: 10211.2 | AL90: 9983.36 | AM90: 6650.862 | AN90: 8455.756 | AO90: 8947.6 | AP90: 9679.499 | AQ90: 8719.188966
B91: Economique | C91: oSupRealREGAEDU | D91: oSupRealREGAEDU | F91: 0 | G91: 3163.89 | H91: 0 | I91: 550 | J91: 2502.01 | K91: 3163.89 | L91: 2810.81 | M91: 2801.49 | N91: 2521.34 | O91: 2269.21 | P91: 2042.29 | Q91: 1838.06 | R91: 1654.25 | S91: 1488.83 | T91: 1637.71 | U91: 1754.93 | V91: 1731.03 | W91: 1904.14 | X91: 2074.55 | Y91: 1867.1 | Z91: 1680.39 | AA91: 1628.82 | AB91: 1679.08 | AC91: 1846.99 | AD91: 2031.69 | AE91: 1881.73 | AF91: 1804.83 | AG91: 1624.34 | AH91: 1461.91 | AI91: 1315.72 | AJ91: 1184.15 | AK91: 1302.56 | AL91: 1432.82 | AM91: 2759.908 | AN91: 1858.528 | AO91: 1773.083333 | AP91: 1588.674 | AQ91: 1894.367931
B92: Economique | C92: oSupRealAUTRES | D92: oSupRealAUTRES | F92: 0 | G92: 2609.18 | H92: 0 | I92: 1708.5 | J92: 864.56 | K92: 462.02 | L92: 866.07 | M92: 839.82 | N92: 656.52 | O92: 974.58 | P92: 449.88 | Q92: 1591.29 | R92: 2442.28 | S92: 1378.41 | T92: 1616.9 | U92: 1406.3 | V92: 530.82 | W92: 524.61 | X92: 359.54 | Y92: 553.45 | Z92: 1427.04 | AA92: 2609.18 | AB92: 1052.62 | AC92: 755.67 | AD92: 1372.17 | AE92: 712.3 | AF92: 493.96 | AG92: 963.05 | AH92: 291.46 | AI92: 1405.02 | AJ92: 2049.3 | AK92: 1036.08 | AL92: 214.57 | AM92: 737.798 | AN92: 1367.288 | AO92: 1120.051111 | AP92: 929.358 | AQ92: 1031.016207
B93: Economique | C93: oSupRealREGAREG | D93: oSupRealREGAREG | F93: 0 | G93: 781.7 | H93: 0 | I93: 237.7 | J93: 457.72 | K93: 753.52 | L93: 781.7 | M93: 540.86 | N93: 376.79 | O93: 288.67 | P93: 511.04 | Q93: 216.61 | R93: 264.89 | S93: 330.92 | T93: 206.5 | U93: 348.27 | V93: 397.91 | W93: 318.22 | X93: 291.25 | Y93: 280.1 | Z93: 22.03 | AA93: 4.81 | AB93: 164.9 | AC93: 199.08 | AD93: 177.99 | AE93: 428.61 | AF93: 245.93 | AG93: 282.97 | AH93: 166.46 | AI93: 0 | AJ93: 0 | AK93: 0 | AL93: 89.57 | AM93: 582.118 | AN93: 322.426 | AO93: 225.9988889 | AP93: 159.061 | AQ93: 280.942069
B94: Economique | C94: oSupRealREGAFIN | D94: oSupRealREGAFIN | F94: 0 | G94: 1232.21 | H94: 0 | I94: 488.01 | J94: 878.55 | K94: 1067.58 | L94: 841.6 | M94: 997.64 | N94: 617.49 | O94: 1232.21 | P94: 729.87 | Q94: 632.66 | R94: 613.77 | S94: 730.18 | T94: 898.41 | U94: 896.73 | V94: 918.78 | W94: 729.23 | X94: 735.49 | Y94: 1031.14 | Z94: 933.19 | AA94: 420.12 | AB94: 736.85 | AC94: 872.08 | AD94: 683.83 | AE94: 905.51 | AF94: 1039.41 | AG94: 709.78 | AH94: 320.09 | AI94: 807.94 | AJ94: 844.21 | AK94: 790.18 | AL94: 794.74 | AM94: 880.572 | AN94: 787.738 | AO94: 811.1044444 | AP94: 776.777 | AQ94: 807.2158621
B95: VolExpl | C95: OVOLBOJADMaEC | D95: Volume BOJ Admissible InclusActions aEC | F95: 0 | G95: 0 | H95: 0 | I95: 0 | J95: 0 | K95: 0 | L95: 0 | M95: 0 | N95: 0 | O95: 0 | P95: 0 | Q95: 0 | R95: 0 | S95: 0 | T95: 0 | U95: 0 | V95: 0 | W95: 0 | X95: 0 | Y95: 0 | Z95: 0 | AA95: 0 | AB95: 0 | AC95: 0 | AD95: 0 | AE95: 0 | AF95: 0 | AG95: 0 | AH95: 0 | AI95: 0 | AJ95: 0 | AK95: 0 | AL95: 0 | AM95: 0 | AN95: 0 | AO95: 0 | AP95: 0 | AQ95: 0
B96: VolExpl | C96: OVOLBOJADMaEC2 | D96: Volume BOJ Admissible InclusActions aEC2 | F96: 0 | G96: 0 | H96: 0 | I96: 0 | J96: 0 | K96: 0 | L96: 0 | M96: 0 | N96: 0 | O96: 0 | P96: 0 | Q96: 0 | R96: 0 | S96: 0 | T96: 0 | U96: 0 | V96: 0 | W96: 0 | X96: 0 | Y96: 0 | Z96: 0 | AA96: 0 | AB96: 0 | AC96: 0 | AD96: 0 | AE96: 0 | AF96: 0 | AG96: 0 | AH96: 0 | AI96: 0 | AJ96: 0 | AK96: 0 | AL96: 0 | AM96: 0 | AN96: 0 | AO96: 0 | AP96: 0 | AQ96: 0
B97: VolExpl | C97: OVOLBOJADMaEC3 | D97: Volume BOJ Admissible InclusActions aEC3 | F97: 0 | G97: 0 | H97: 0 | I97: 0 | J97: 0 | K97: 0 | L97: 0 | M97: 0 | N97: 0 | O97: 0 | P97: 0 | Q97: 0 | R97: 0 | S97: 0 | T97: 0 | U97: 0 | V97: 0 | W97: 0 | X97: 0 | Y97: 0 | Z97: 0 | AA97: 0 | AB97: 0 | AC97: 0 | AD97: 0 | AE97: 0 | AF97: 0 | AG97: 0 | AH97: 0 | AI97: 0 | AJ97: 0 | AK97: 0 | AL97: 0 | AM97: 0 | AN97: 0 | AO97: 0 | AP97: 0 | AQ97: 0
B98: VolExpl | C98: OVOLBOJADMaCA | D98: Volume BOJ Admissible InclusActions aCA | F98: 0 | G98: 0 | H98: 0 | I98: 0 | J98: 0 | K98: 0 | L98: 0 | M98: 0 | N98: 0 | O98: 0 | P98: 0 | Q98: 0 | R98: 0 | S98: 0 | T98: 0 | U98: 0 | V98: 0 | W98: 0 | X98: 0 | Y98: 0 | Z98: 0 | AA98: 0 | AB98: 0 | AC98: 0 | AD98: 0 | AE98: 0 | AF98: 0 | AG98: 0 | AH98: 0 | AI98: 0 | AJ98: 0 | AK98: 0 | AL98: 0 | AM98: 0 | AN98: 0 | AO98: 0 | AP98: 0 | AQ98: 0
B99: VolExpl | C99: OVOLBOJADMaCA2 | D99: Volume BOJ Admissible InclusActions aCA2 | F99: 0 | G99: 0 | H99: 0 | I99: 0 | J99: 0 | K99: 0 | L99: 0 | M99: 0 | N99: 0 | O99: 0 | P99: 0 | Q99: 0 | R99: 0 | S99: 0 | T99: 0 | U99: 0 | V99: 0 | W99: 0 | X99: 0 | Y99: 0 | Z99: 0 | AA99: 0 | AB99: 0 | AC99: 0 | AD99: 0 | AE99: 0 | AF99: 0 | AG99: 0 | AH99: 0 | AI99: 0 | AJ99: 0 | AK99: 0 | AL99: 0 | AM99: 0 | AN99: 0 | AO99: 0 | AP99: 0 | AQ99: 0
B100: VolExpl | C100: OVOLBOJADMaCPROG | D100: Volume BOJ Admissible InclusActions aCPROG | F100: 0 | G100: 0 | H100: 0 | I100: 0 | J100: 0 | K100: 0 | L100: 0 | M100: 0 | N100: 0 | O100: 0 | P100: 0 | Q100: 0 | R100: 0 | S100: 0 | T100: 0 | U100: 0 | V100: 0 | W100: 0 | X100: 0 | Y100: 0 | Z100: 0 | AA100: 0 | AB100: 0 | AC100: 0 | AD100: 0 | AE100: 0 | AF100: 0 | AG100: 0 | AH100: 0 | AI100: 0 | AJ100: 0 | AK100: 0 | AL100: 0 | AM100: 0 | AN100: 0 | AO100: 0 | AP100: 0 | AQ100: 0
B101: VolExpl | C101: OVOLBOJADMaCPIL | D101: Volume BOJ Admissible InclusActions aCPIL | F101: 0 | G101: 140065.02 | H101: 0 | I101: 59030.04 | J101: 115888.38 | K101: 104344.12 | L101: 93409.33 | M101: 99299.53 | N101: 140065.02 | O101: 137280.77 | P101: 126709.62 | Q101: 102851.86 | R101: 97947.8 | S101: 94314.71 | T101: 89785.03 | U101: 91319.26 | V101: 98375.23 | W101: 94172.27 | X101: 92472.1 | Y101: 82060.38 | Z101: 75163.3 | AA101: 69481.24 | AB101: 60855.78 | AC101: 54052.31 | AD101: 61869.33 | AE101: 63601.97 | AF101: 58702.99 | AG101: 55029.73 | AH101: 44139.18 | AI101: 46464.09 | AJ101: 50324.36 | AK101: 54811.04 | AL101: 68057.23 | AM101: 110601.276 | AN101: 111820.952 | AO101: 83742.73222 | AP101: 55705.223 | AQ101: 83546.48138
B102: VolExpl | C102: OVOLBOJADMaCPIP | D102: Volume BOJ Admissible InclusActions aCPIP | F102: 0 | G102: 89603.18 | H102: 0 | I102: 24759.71 | J102: 34850.08 | K102: 33184.69 | L102: 32199.56 | M102: 32268.24 | N102: 33302.28 | O102: 28435.52 | P102: 19518.34 | Q102: 84443.47 | R102: 89603.18 | S102: 64730.96 | T102: 68196.01 | U102: 49769.23 | V102: 33567.12 | W102: 36048.47 | X102: 39019.26 | Y102: 37704.59 | Z102: 56085.8 | AA102: 66010.02 | AB102: 41689.78 | AC102: 48175.6 | AD102: 54749.62 | AE102: 40601.14 | AF102: 46662.87 | AG102: 45968.56 | AH102: 36188.93 | AI102: 54804.79 | AJ102: 61451.56 | AK102: 48369.98 | AL102: 46229.49 | AM102: 33160.97 | AN102: 57346.294 | AO102: 47565.58667 | AP102: 48320.254 | AQ102: 47028.59103
B103: VolExpl | C103: OVOLBOJADMaCPFORT | D103: Volume BOJ Admissible InclusActions aCPFORT | F103: 0 | G103: 155689.02 | H103: 0 | I103: 55318.97 | J103: 113975.99 | K103: 114536.24 | L103: 106879.28 | M103: 110566.75 | N103: 155689.02 | O103: 146123.08 | P103: 123738.76 | Q103: 109730.51 | R103: 99960.85 | S103: 96274.4 | T103: 87728.22 | U103: 78418.21 | V103: 80929.87 | W103: 80748.18 | X103: 77327.81 | Y103: 78544.04 | Z103: 79148.45 | AA103: 74697.41 | AB103: 67842.13 | AC103: 62277.08 | AD103: 57744.93 | AE103: 57618.8 | AF103: 59163.54 | AG103: 61140.96 | AH103: 55411.04 | AI103: 55993.55 | AJ103: 51479.36 | AK103: 61454.33 | AL103: 81595.97 | AM103: 120329.456 | AN103: 115165.52 | AO103: 78376.03556 | AP103: 60387.956 | AQ103: 85749.61241
B104: VolExpl | C104: OVOLBOJADMaCPFAIBL | D104: Volume BOJ Admissible InclusActions aCPFAIBL | F104: 0 | G104: 64808.85 | H104: 0 | I104: 20064.77 | J104: 52507.42 | K104: 43183.68 | L104: 32371.46 | M104: 64808.85 | N104: 57946.69 | O104: 46038.66 | P104: 44393.84 | Q104: 29638.81 | R104: 25586.88 | S104: 32935.68 | T104: 26498.46 | U104: 27567 | V104: 43300.22 | W104: 35799.95 | X104: 30344.88 | Y104: 44285.28 | Z104: 32167.71 | AA104: 13530.83 | AB104: 32631.28 | AC104: 26417.07 | AD104: 22023.24 | AE104: 37159.41 | AF104: 33256.51 | AG104: 28971.19 | AH104: 36662.14 | AI104: 27675.79 | AJ104: 25098.38 | AK104: 26645.31 | AL104: 33757.05 | AM104: 50163.62 | AN104: 35718.774 | AO104: 31791.73444 | AP104: 29766.609 | AQ104: 34938.05759
